Workbook

Sheet START

Sheet Instructions
D2: 2020
X4: Yes
X5: No
W7: Type of Entities Range:
X8: Parent Municipality
X9: Consolidated Information
W17: MTREF Range: | X17: 2008
X18: 2009
X19: 2010
X20: 2011
X21: 2012
X22: 2013
X23: 2014
X24: 2015
X25: 2016
X26: 2017
X27: 2018
X28: 2019
X29: 2020
X30: 2021
X31: 2022
W33: MTREF Linked: | X33: 13
W34: MTREF: | X34: =INDEX(X17:X31,X33,1) -> 2020
W36: Fin Year: | X36: =MTREF&"/"&RIGHT(MTREF,2)+1 -> 2020/21

Sheet Template names (hidden)
A1: Common sheet headings
A2: Head1 | B2: =HLOOKUP(MTREF,Headings,2) -> 2018/19 | C2: Prior year -1
A3: Head1A | B3: =HLOOKUP(MTREF,Headings,3) -> 2017/18 | C3: Prior year -2
A4: Head1B | B4: =HLOOKUP(MTREF,Headings,4) -> 2016/17 | C4: Prior year -3
A5: Head2 | B5: =HLOOKUP(MTREF,Headings,5) -> Current Year 2019/20 | C5: Year in which budget is being prepared
A6: Head2A | B6: =HLOOKUP(MTREF,Headings,6) -> 2019/20 | C6: Year in which budget is being prepared
A7: Head3 | B7: =HLOOKUP(MTREF,Headings,7) -> 2020/21 Medium Term Revenue & Expenditure Framework | C7: MTREF name
A8: Head4 | B8: LTFS | C8: Long term financial strategy
A9: Head5 | B9: Audited Outcome
A10: Head5A | B10: Outcome
A11: Head5B | B11: Pre-audit outcome
A12: Head6 | B12: Original Budget
A13: Head7 | B13: Adjusted Budget
A14: Head8 | B14: Full Year Forecast
A15: Head9 | B15: =HLOOKUP(MTREF,Headings,8) -> Budget Year 2020/21 | C15: 1st year of MTREF | D15: Year1
A16: Head10 | B16: =HLOOKUP(MTREF,Headings,9) -> Budget Year +1 2021/22 | C16: 2nd year of MTREF | D16: Year2
A17: Head11 | B17: =HLOOKUP(MTREF,Headings,10) -> Budget Year +2 2022/23 | C17: 3rd year of MTREF | D17: Year3
A18: Head12 | B18: =HLOOKUP(MTREF,Headings,11) -> Forecast 2023/24 | C18: 1st yr of long term forecast | D18: Year4
A19: Head13 | B19: =HLOOKUP(MTREF,Headings,12) -> Forecast 2024/25 | C19: Next yr of long term forecast | D19: Year5
A20: Head14 | B20: =HLOOKUP(MTREF,Headings,13) -> Forecast 2025/26 | C20: Next yr of long term forecast | D20: Year6
A21: Head15 | B21: =HLOOKUP(MTREF,Headings,14) -> Forecast 2026/27 | C21: Next yr of long term forecast | D21: Year7
A22: Head16 | B22: =HLOOKUP(MTREF,Headings,15) -> Forecast 2027/28 | C22: Next yr of long term forecast | D22: Year8
A23: Head17 | B23: =HLOOKUP(MTREF,Headings,16) -> Forecast 2028/29 | C23: Next yr of long term forecast | D23: Year9
A24: Head18 | B24: =HLOOKUP(MTREF,Headings,17) -> Forecast 2029/30 | C24: Next yr of long term forecast | D24: Year10
A25: Head19 | B25: =HLOOKUP(MTREF,Headings,18) -> Forecast 2030/31 | C25: Next yr of long term forecast | D25: Year11
A26: Head20 | B26: =HLOOKUP(MTREF,Headings,19) -> Forecast 2031/32 | C26: Next yr of long term forecast | D26: Year12
A27: Head21 | B27: =HLOOKUP(MTREF,Headings,20) -> Forecast 2032/33 | C27: Next yr of long term forecast | D27: Year13
A28: Head22 | B28: =HLOOKUP(MTREF,Headings,21) -> Forecast 2033/34 | C28: Next yr of long term forecast | D28: Year14
A29: Head23 | B29: =HLOOKUP(MTREF,Headings,22) -> Forecast 2034/35 | C29: Next yr of long term forecast | D29: Year15
A30: Head24 | B30: Description
A31: Head25
A32: Head26 | B32: Vote Description
A33: Head27 | B33: Ref
A34: Head27a | B34: References
A35: Head28 | B35: Surplus/(Deficit) for the year | D35: Result
A36: Head29 | B36: =HLOOKUP(MTREF,Headings,23) -> Annual target 2020/21
A37: Head30 | B37: =HLOOKUP(MTREF,Headings,24) -> Revised target 2020/21
A38: Head31 | B38: Quarter ended 30 September
A39: Head32 | B39: Quarter ended 31 December
A40: Head33 | B40: Quarter ended 31 March
A41: Head34 | B41: Quarter ended 30 June
A42: Head35 | B42: Variance explanation
A43: Head36 | B43: YTD Actual 31 Dec
A44: Head37 | B44: YTD Budget 31 Dec
A45: Head38 | B45: Monthly actual
A46: Head39 | B46: YTD actual
A47: Head40 | B47: YTD budget
A48: Head41 | B48: YTD variance
A49: Head42 | B49: Surplus/ (Deficit) for the yr/period
A50: Head43 | B50: =Head3&" Summary" -> 2020/21 Medium Term Revenue & Expenditure Framework Summary
A51: Head44 | B51: 2001 Census
A52: Head45 | B52: 2011 Census
A53: Head46 | B53: - Adjustments Budget - January 2007
A54: Head47 | B54: Previous target year to complete
A55: Head48 | B55: Present value
A56: Head49
A57: Head50 | B57: Other Adjusts.
A58: Head51 | B58: Accum. Funds
A59: Head52 | B59: Multi-year capital
A60: Head53 | B60: Unfore. Unavoid.
A61: Head54 | B61: Prior Adjusted
A62: Head55 | B62: Nat. or Prov. Govt
A63: Head56 | B63: Total Adjusts.
A64: SFPerf1 | B64: Budgeted Financial Performance
A65: SFPerf2 | B65: Forecast Financial Performance
A66: SFPos1 | B66: Budgeted Financial Position
A67: SFPos2 | B67: Forecast Financial Position
A68: Cash1 | B68: Budget Cash Flow
A69: Cash2 | B69: Forecast Cash Flow
A70: RandM | B70: Expenditure includes repairs & maintenance of R'000
A71: Depart1 | B71: Department 1 - | D71: DEP1
A72: Depart2 | B72: Department 2 - | D72: DEP2
A73: Depart3 | B73: Department 3 - | D73: DEP3
A74: Depart4 | B74: Department 4 - | D74: DEP4
A75: Depart5 | B75: Department 5 - | D75: DEP5
A76: Depart6 | B76: Department 6 - | D76: DEP6
A77: Depart7 | B77: Department 7 - | D77: DEP7
A78: Depart8 | B78: Department 8 - | D78: DEP8
A79: Depart9 | B79: Department 9 - | D79: DEP9
A80: Depart10 | B80: Department 10 - | D80: DEP10
A81: Depart11 | B81: Department 11 - | D81: DEP11
A82: Depart12 | B82: Department 12 - | D82: DEP12
A83: Depart13 | B83: Department 13 - | D83: DEP13
A84: Depart14 | B84: Department 14 - | D84: DEP14
A87: Base year of forecast column selection names
A88: Choose | B88: ACT
B89: APP
B90: ADJ
A92: Standard nomenclature
A93: Muni | B93: ='Lookup and lists'!B28 -> DC3 Overberg
A94: Municipal Entities | B94: 2 | C94: Type of report: | D94: 1
A95: =IF((MuniEntities=1)*(MuniType=2),"YES","NO") -> NO | B95: Does this municipality have entities (consolidated budget and entity budgets required)? YES/NO
A96: Entity 1 | B96: (Pty) Ltd Example 1 - Municipal entity - | D96: Ent1
A97: Entity 2 | B97: (Pty) Ltd Example 2 - Municipal entity - | D97: Ent2
A98: Entity 3 | B98: Municipal Entity Example 3 | D98: Ent3
A99: Budget approval tables | C99: Chart x-ref | D99: Sch/Tab/Ch | E99: Alternative for municipalities without entities | F99: Alternative for municipalities without entities
B100: =IF(Consolques="YES",E100,F100) -> Table A1 Budget Summary | D100: Table A1 | E100: =D100&"Consolidated Budget Summary" -> Table A1 Consolidated Budget Summary | F100: =D100&"Budget Summary" -> Table A1 Budget Summary
B101: Table A2 Budgeted Financial Performance (revenue and expenditure by functional classification) | C101: Charts 5, 6 | D101: Table A2 | E101: =D101&"Consolidated Budgeted Financial Performance (revenue and expenditure by functional classification)" -> Table A2 Consolidated Budgeted Financial Performance (revenue and expenditure by functional classification) | F101: =D101&"Budgeted Financial Performance (revenue and expenditure by functional classification)" -> Table A2 Budgeted Financial Performance (revenue and expenditure by functional classification)
B102: Table A3 Budgeted Financial Performance (revenue and expenditure by municipal vote) | D102: Table A3 | E102: =D102&"Consolidated Budgeted Financial Performance (revenue and expenditure by municipal vote)" -> Table A3 Consolidated Budgeted Financial Performance (revenue and expenditure by municipal vote) | F102: =D102&"Budgeted Financial Performance (revenue and expenditure by municipal vote)" -> Table A3 Budgeted Financial Performance (revenue and expenditure by municipal vote)
B103: Table A4 Budgeted Financial Performance (revenue and expenditure) | C103: Charts 1, 2, 3, 4 | D103: Table A4 | E103: =D103&"Consolidated Budgeted Financial Performance (revenue and expenditure)" -> Table A4 Consolidated Budgeted Financial Performance (revenue and expenditure) | F103: =D103&"Budgeted Financial Performance (revenue and expenditure)" -> Table A4 Budgeted Financial Performance (revenue and expenditure)
B104: Table A5 Budgeted Capital Expenditure by vote, functional classification and funding | C104: Charts 7, 8, 9, 10, 20 | D104: Table A5 | E104: =D104&"Consolidated Budgeted Capital Expenditure by vote, functional classification and funding" -> Table A5 Consolidated Budgeted Capital Expenditure by vote, functional classification and funding | F104: =D104&"Budgeted Capital Expenditure by vote, functional classification and funding" -> Table A5 Budgeted Capital Expenditure by vote, functional classification and funding
B105: Table A6 Budgeted Financial Position | D105: Table A6 | E105: =D105&"Consolidated Budgeted Financial Position" -> Table A6 Consolidated Budgeted Financial Position | F105: =D105&"Budgeted Financial Position" -> Table A6 Budgeted Financial Position
B106: Table A7 Budgeted Cash Flows | D106: Table A7 | E106: =D106&"Consolidated Budgeted Cash Flows" -> Table A7 Consolidated Budgeted Cash Flows | F106: =D106&"Budgeted Cash Flows" -> Table A7 Budgeted Cash Flows
B107: Table A8 Cash backed reserves/accumulated surplus reconciliation | D107: Table A8 | E107: =D107&"Consolidated Cash backed reserves/accumulated surplus reconciliation" -> Table A8 Consolidated Cash backed reserves/accumulated surplus reconciliation | F107: =D107&"Cash backed reserves/accumulated surplus reconciliation" -> Table A8 Cash backed reserves/accumulated surplus reconciliation
B108: Table A9 Asset Management | D108: Table A9 | E108: =D108&"Consolidated Asset Management" -> Table A9 Consolidated Asset Management | F108: =D108&"Asset Management" -> Table A9 Asset Management
B109: Table A10 Basic service delivery measurement | D109: Table A10 | E109: =D109&"Consolidated basic service delivery measurement" -> Table A10 Consolidated basic service delivery measurement | F109: =D109&"Basic service delivery measurement" -> Table A10 Basic service delivery measurement
A110: Supportinging Tables to the Budget Approval Tables | C110: =$C$99 -> Chart x-ref | D110: =$D$99 -> Sch/Tab/Ch
A111: Supporting Table SA1 | B111: =A111&" Supportinging detail to 'Budgeted Financial Performance'" -> Supporting Table SA1 Supportinging detail to 'Budgeted Financial Performance'
A112: Supporting Table SA2 | B112: =IF(Consolques="YES",E112,F112) -> Supporting Table SA2 Matrix Financial Performance Budget (revenue source/expenditure type and dept.) | E112: =A112&"Consolidated Matrix Financial Performance Budget (revenue source/expenditure type & dept.)" -> Supporting Table SA2 Consolidated Matrix Financial Performance Budget (revenue source/expenditure type & dept.) | F112: =A112&"Matrix Financial Performance Budget (revenue source/expenditure type and dept.)" -> Supporting Table SA2 Matrix Financial Performance Budget (revenue source/expenditure type and dept.)
A113: Supporting Table SA3 | B113: =A113&"Supportinging detail to 'Budgeted Financial Position'" -> Supporting Table SA3 Supportinging detail to 'Budgeted Financial Position'
A114: Supporting Table SA4 | B114: =A114&"Reconciliation of IDP strategic objectives and budget (revenue)" -> Supporting Table SA4 Reconciliation of IDP strategic objectives and budget (revenue) | C114: Chart 11
A115: Supporting Table SA5 | B115: =A115&"Reconciliation of IDP strategic objectives and budget (operating expenditure)" -> Supporting Table SA5 Reconciliation of IDP strategic objectives and budget (operating expenditure) | C115: Chart 12
A116: Supporting Table SA6 | B116: =A116&"Reconciliation of IDP strategic objectives and budget (capital expenditure)" -> Supporting Table SA6 Reconciliation of IDP strategic objectives and budget (capital expenditure) | C116: Chart 13
A117: Supporting Table SA7 | B117: =A117&" Measureable performance objectives" -> Supporting Table SA7 Measureable performance objectives
A118: Supporting Table SA8 | B118: =A118&" Performance indicators and benchmarks" -> Supporting Table SA8 Performance indicators and benchmarks | C118: Chts 15-19
A119: Supporting Table SA9 | B119: =A119&" Social, economic and demographic statistics and assumptions" -> Supporting Table SA9 Social, economic and demographic statistics and assumptions
A120: Supporting Table SA10 | B120: =A120&" Funding measurement" -> Supporting Table SA10 Funding measurement | C120: Chart 14
A121: Supporting Table SA11 | B121: =A121&" Property rates summary" -> Supporting Table SA11 Property rates summary
A122: Supporting Table SA12a | B122: =A122&" Property rates by category (current year)" -> Supporting Table SA12a Property rates by category (current year)
A123: Supporting Table SA12b | B123: =A123&" Property rates by category (budget year)" -> Supporting Table SA12b Property rates by category (budget year)
A124: Supporting Table SA13a | B124: =A124&" Service Tariffs by category" -> Supporting Table SA13a Service Tariffs by category
A125: Supporting Table SA13b | B125: =A125&" Service Tariffs by category - explanatory" -> Supporting Table SA13b Service Tariffs by category - explanatory
A126: Supporting Table SA14 | B126: =A126&" Household bills" -> Supporting Table SA14 Household bills
A127: Supporting Table SA15 | B127: =A127&" Investment particulars by type" -> Supporting Table SA15 Investment particulars by type
A128: Supporting Table SA16 | B128: =A128&" Investment particulars by maturity" -> Supporting Table SA16 Investment particulars by maturity
A129: Supporting Table SA17 | B129: =A129&" Borrowing" -> Supporting Table SA17 Borrowing
A130: Supporting Table SA18 | B130: =A130&" Transfers and grant receipts" -> Supporting Table SA18 Transfers and grant receipts
A131: Supporting Table SA19 | B131: =A131&" Expenditure on transfers and grant programme" -> Supporting Table SA19 Expenditure on transfers and grant programme
A132: Supporting Table SA20 | B132: =A132&" Reconciliation of transfers, grant receipts and unspent funds" -> Supporting Table SA20 Reconciliation of transfers, grant receipts and unspent funds
A133: Supporting Table SA21 | B133: =A133&" Transfers and grants made by the municipality" -> Supporting Table SA21 Transfers and grants made by the municipality
A134: Supporting Table SA22 | B134: =A134&" Summary councillor and staff benefits" -> Supporting Table SA22 Summary councillor and staff benefits
A135: Supporting Table SA23 | B135: =A135&" Salaries, allowances & benefits (political office bearers/councillors/senior managers)" -> Supporting Table SA23 Salaries, allowances & benefits (political office bearers/councillors/senior managers)
A136: Supporting Table SA24 | B136: =A136&" Summary of personnel numbers" -> Supporting Table SA24 Summary of personnel numbers
A137: Supporting Table SA25 | B137: =IF(Consolques="YES",E137,F137) -> Supporting Table SA25 Budgeted monthly revenue and expenditure | E137: =A137&" Consolidated budgeted monthly revenue and expenditure" -> Supporting Table SA25 Consolidated budgeted monthly revenue and expenditure | F137: =A137&" Budgeted monthly revenue and expenditure" -> Supporting Table SA25 Budgeted monthly revenue and expenditure
A138: Supporting Table SA26 | B138: Supporting Table SA26 Budgeted monthly revenue and expenditure (municipal vote) | E138: =A138&" Consolidated budgeted monthly revenue and expenditure (municipal vote)" -> Supporting Table SA26 Consolidated budgeted monthly revenue and expenditure (municipal vote) | F138: =A138&" Budgeted monthly revenue and expenditure (municipal vote)" -> Supporting Table SA26 Budgeted monthly revenue and expenditure (municipal vote)
A139: Supporting Table SA27 | B139: Supporting Table SA27 Budgeted monthly revenue and expenditure (functional classification) | E139: =A139&" Consolidated budgeted monthly revenue and expenditure (functional classification)" -> Supporting Table SA27 Consolidated budgeted monthly revenue and expenditure (functional classification) | F139: =A139&" Budgeted monthly revenue and expenditure (functional classification)" -> Supporting Table SA27 Budgeted monthly revenue and expenditure (functional classification)
A140: Supporting Table SA28 | B140: Supporting Table SA28 Budgeted monthly capital expenditure (municipal vote) | E140: =A140&" Consolidated budgeted monthly capital expenditure (municipal vote)" -> Supporting Table SA28 Consolidated budgeted monthly capital expenditure (municipal vote) | F140: =A140&" Budgeted monthly capital expenditure (municipal vote)" -> Supporting Table SA28 Budgeted monthly capital expenditure (municipal vote)
A141: Supporting Table SA29 | B141: Supporting Table SA29 Budgeted monthly capital expenditure (functional classification) | E141: =A141&" Consolidated budgeted monthly capital expenditure (functional classification)" -> Supporting Table SA29 Consolidated budgeted monthly capital expenditure (functional classification) | F141: =A141&" Budgeted monthly capital expenditure (functional classification)" -> Supporting Table SA29 Budgeted monthly capital expenditure (functional classification)
A142: Supporting Table SA30 | B142: Supporting Table SA30 Budgeted monthly cash flow | E142: =A142&" Consolidated budgeted monthly cash flow" -> Supporting Table SA30 Consolidated budgeted monthly cash flow | F142: =A142&" Budgeted monthly cash flow" -> Supporting Table SA30 Budgeted monthly cash flow
A143: Supporting Table SA31 | B143: NOT REQUIRED - municipality does not have entities | E143: =A143&" Aggregated entity budget" -> Supporting Table SA31 Aggregated entity budget | F143: NOT REQUIRED - municipality does not have entities
A144: Supporting Table SA32 | B144: =A144&" List of external mechanisms" -> Supporting Table SA32 List of external mechanisms
A145: Supporting Table SA33 | B145: =A145&" Contracts having future budgetary implications" -> Supporting Table SA33 Contracts having future budgetary implications
A146: Supporting Table SA34a | B146: =IF(Consolques="YES",E146,F146) -> Supporting Table SA34a Capital expenditure on new assets by asset class | E146: =A146&" Consolidated capital expenditure on new assets by asset class" -> Supporting Table SA34a Consolidated capital expenditure on new assets by asset class | F146: =A146&" Capital expenditure on new assets by asset class" -> Supporting Table SA34a Capital expenditure on new assets by asset class
A147: Supporting Table SA34b | B147: Supporting Table SA34b Capital expenditure on the renewal of existing assets by asset class | E147: =A147&" Consolidated capital expenditure on the renewal of existing assets by asset class" -> Supporting Table SA34b Consolidated capital expenditure on the renewal of existing assets by asset class | F147: =A147&" Capital expenditure on the renewal of existing assets by asset class" -> Supporting Table SA34b Capital expenditure on the renewal of existing assets by asset class
A148: Supporting Table SA34c | B148: Supporting Table SA34c Repairs and maintenance expenditure by asset class | E148: =A148&" Consolidated repairs and maintenance by asset class" -> Supporting Table SA34c Consolidated repairs and maintenance by asset class | F148: =A148&" Repairs and maintenance expenditure by asset class" -> Supporting Table SA34c Repairs and maintenance expenditure by asset class
A149: Supporting Table SA34d | B149: =IF(Consolques="YES",E149,F149) -> Supporting Table SA34d Depreciation by asset class | E149: =A149&" Consolidated Depreciation by asset class" -> Supporting Table SA34d Consolidated Depreciation by asset class | F149: =A149&" Depreciation by asset class" -> Supporting Table SA34d Depreciation by asset class
A150: Supporting Table SA34e | B150: =IF(Consolques="YES",E150,F150) -> Supporting Table SA34e Capital expenditure on the upgrading of existing assets by asset class | E150: =A150&" Consolidated capital expenditure on the upgrading of existing assets by asset class" -> Supporting Table SA34e Consolidated capital expenditure on the upgrading of existing assets by asset class | F150: =A150&" Capital expenditure on the upgrading of existing assets by asset class" -> Supporting Table SA34e Capital expenditure on the upgrading of existing assets by asset class
A151: Supporting Table SA35 | B151: Supporting Table SA35 Future financial implications of the capital budget | E151: =A151&" Consolidated future financial implications of the capital budget" -> Supporting Table SA35 Consolidated future financial implications of the capital budget | F151: =A151& " Future financial implications of the capital budget" -> Supporting Table SA35 Future financial implications of the capital budget
A152: Supporting Table SA36 | B152: Supporting Table SA36 Detailed capital budget | E152: =A152&" Consolidated detailed capital budget" -> Supporting Table SA36 Consolidated detailed capital budget | F152: =A152& " Detailed capital budget" -> Supporting Table SA36 Detailed capital budget
A153: Supporting Table SA37 | B153: Supporting Table SA37 Projects delayed from previous financial year/s | E153: =A153&" Consolidated projects delayed from previous financial year/s" -> Supporting Table SA37 Consolidated projects delayed from previous financial year/s | F153: =A153& " Projects delayed from previous financial year/s" -> Supporting Table SA37 Projects delayed from previous financial year/s
A154: Supporting Table SA38 | B154: =IF(Consolques="YES",E154,F154) -> Supporting Table SA38 Detailed operational projects | E154: =A154&" Consolidated detailed operational projects" -> Supporting Table SA38 Consolidated detailed operational projects | F154: =A154& " Detailed operational projects" -> Supporting Table SA38 Detailed operational projects
A156: Budget Charts | B156: Charts | C156: Cross reference
A157: Chart A1 | B157: =A157&"Revenue by Municipal Vote" -> Chart A1 Revenue by Municipal Vote
A158: Chart A2 | B158: =A158&"Expenditure by Municipal Vote" -> Chart A2 Expenditure by Municipal Vote
A159: Chart A3 | B159: =A159&"Revenue by Standard Classification" -> Chart A3 Revenue by Standard Classification | C159: A2
A160: Chart A4 | B160: =A160&"Expenditure by Standard Classification" -> Chart A4 Expenditure by Standard Classification | C160: A2
A161: Chart A5 | B161: =A161&"Revenue by Major Source (refer 'Minor' source for 'Other Revenue' allocation" -> Chart A5 Revenue by Major Source (refer 'Minor' source for 'Other Revenue' allocation | C161: A3
A162: Chart A6 | B162: =A162&"Revenue by Minor Source (Other)" -> Chart A6 Revenue by Minor Source (Other) | C162: A3
A163: Chart A7 | B163: =A163&"Expenditure by Major Type" -> Chart A7 Expenditure by Major Type | C163: A3
A164: Chart A8 | B164: =A164&"Expenditure by Minor Type (Other)" -> Chart A8 Expenditure by Minor Type (Other) | C164: A3
A165: Chart A9 | B165: =A165&"Capital Expenditure by Municipal Vote/Appropriation (Major)" -> Chart A9 Capital Expenditure by Municipal Vote/Appropriation (Major) | C165: A5
A166: Chart A10 | B166: =A166&"Capital Expenditure by Municipal Vote/Appropriation (Minor)" -> Chart A10 Capital Expenditure by Municipal Vote/Appropriation (Minor) | C166: A5
A167: Chart A11 | B167: =A166&"Capital Expenditure by Standard Classification" -> Chart A10 Capital Expenditure by Standard Classification | C167: A5
A168: Chart A12 | B168: =A168&"Capital expenditure performance trend" -> Chart A12 Capital expenditure performance trend | C168: A5
A169: Chart A13 | B169: =A169&"Capital funding by Source" -> Chart A13 Capital funding by Source | C169: A5
A170: Chart A14 | B170: =A170&"Cash flow trend" -> Chart A14 Cash flow trend | C170: A7
A171: Chart A15 | B171: =A171&"IDP Strategic Objective - Revenue" -> Chart A15 IDP Strategic Objective - Revenue | C171: Table A4
A172: Chart A16 | B172: =A172&"IDP Strategic Objective - Expenditure" -> Chart A16 IDP Strategic Objective - Expenditure | C172: Table A5
A173: Chart A17 | B173: =A173&"IDP Strategic Objective - Capital Expenditure" -> Chart A17 IDP Strategic Objective - Capital Expenditure | C173: Table A6
A174: Chart A18 | B174: =A174&"Debt (borrowing to Total Revenue)" -> Chart A18 Debt (borrowing to Total Revenue) | C174: Table A8
A175: Chart A19 | B175: =A175&"Debtors' trend analysis" -> Chart A19 Debtors' trend analysis | C175: Table A8
A176: Chart A20 | B176: =A176&"Distribution losses" -> Chart A20 Distribution losses | C176: Table A8
A177: Chart A21 | B177: =A177&"Borrowed funding of capital expenditure" -> Chart A21 Borrowed funding of capital expenditure | C177: Table A8
A178: Chart A22 | B178: =A178&"Expenditure analysis (% of Revenue)" -> Chart A22 Expenditure analysis (% of Revenue) | C178: Table A8
A179: Chart A23 | B179: =A179&"Increases in service charges" -> Chart A23 Increases in service charges | C179: Table A10

Sheet Lookup and lists (hidden)
A1: Description | B1: 2007 | C1: 2008 | D1: 2009 | E1: 2010 | F1: 2011 | G1: 2012 | H1: 2013 | I1: 2014 | J1: 2015 | K1: 2016 | L1: 2017 | M1: 2018 | N1: 2019 | O1: 2020 | Q1: Lists | Y1: Grants: | Z1: National - opex | AA1: Provincial - opex | AB1: National - capex | AC1: Provincial - capex
A2: ='Template names'!C2 -> Prior year -1 | B2: 2005/06 | C2: 2006/07 | D2: 2007/08 | E2: =E1-2&"/"&RIGHT(E1,2)-1 -> 2008/9 | F2: 2009/10 | G2: 2010/11 | H2: 2011/12 | I2: 2012/13 | J2: 2013/14 | K2: 2014/15 | L2: 2015/16 | M2: 2016/17 | N2: 2017/18 | O2: 2018/19 | Q2: Yes | R2: <1 | S2: <4 | T2: Market | U2: Land & impr. | V2: Yes | W2: Uniform | X2: Yrs | Z2: Local Government Equitable Share | AA2: Health subsidy | AB2: Municipal Infrastructure Grant (MIG) | AC2: Agriculture
A3: ='Template names'!C3 -> Prior year -2 | B3: 2004/05 | C3: 2005/06 | D3: 2006/07 | E3: =E1-3&"/"&RIGHT(E1,2)-2 -> 2007/8 | F3: 2008/9 | G3: 2009/10 | H3: 2010/11 | I3: 2011/12 | J3: 2012/13 | K3: 2013/14 | L3: 2014/15 | M3: 2015/16 | N3: 2016/17 | O3: 2017/18 | Q3: No | R3: 1 | S3: 4 | T3: Dep.Replace | U3: Land only | V3: No | W3: Variable | X3: Mths | Z3: RSC Levy Replacement | AA3: Ambulance subsidy | AB3: Public Transport and Systems | AC3: Education
A4: ='Template names'!C4 -> Prior year -3 | B4: 2003/04 | C4: 2004/05 | D4: 2005/06 | E4: =E1-4&"/"&RIGHT(E1,2)-3 -> 2006/7 | F4: 2007/8 | G4: 2008/9 | H4: 2009/10 | I4: 2010/11 | J4: 2011/12 | K4: 2012/13 | L4: 2013/14 | M4: 2014/15 | N4: 2015/16 | O4: 2016/17 | R4: 2 | S4: 5 | T4: Other | U4: Other | Z4: Finance Management | AA4: Housing | AB4: Rural Transport Services and Infrastructure | AC4: Health
A5: ='Template names'!C5 -> Year in which budget is being prepared | B5: Current Year 2006/07 | C5: Current Year 2007/08 | D5: Current Year 2008/09 | E5: ="Current Year "& E1-1&"/"&RIGHT(E1,2) -> Current Year 2009/10 | F5: Current Year 2010/11 | G5: Current Year 2011/12 | H5: Current Year 2012/13 | I5: Current Year 2013/14 | J5: Current Year 2014/15 | K5: Current Year 2015/16 | L5: Current Year 2016/17 | M5: Current Year 2017/18 | N5: Current Year 2018/19 | O5: Current Year 2019/20 | R5: 3 | S5: 6 | Z5: Municipal Systems Improvement | AA5: Sport and Recreation | AB5: Regional Bulk Infrastructure | AC5: Housing and Local Government
A6: ='Template names'!C6 -> Year in which budget is being prepared | B6: 2006/07 | C6: 2007/08 | D6: 2008/09 | E6: =E1-1&"/"&RIGHT(E1,2) -> 2009/10 | F6: 2010/11 | G6: 2011/12 | H6: 2012/13 | I6: 2013/14 | J6: 2014/15 | K6: 2015/16 | L6: 2016/17 | M6: 2017/18 | N6: 2018/19 | O6: 2019/20 | R6: 4 | S6: 6-10 | Z6: Water Services Operating Subsidy | AB6: Rural Households Infrastructure | AC6: Other Departments
A7: ='Template names'!C7 -> MTREF name | B7: 2007/08 Medium Term Revenue & Expenditure Framework | C7: 2008/09 Medium Term Revenue & Expenditure Framework | D7: 2009/10 Medium Term Revenue & Expenditure Framework | E7: =E1&"/"&RIGHT(E1,2)+1&" Medium Term Revenue & Expenditure Framework" -> 2010/11 Medium Term Revenue & Expenditure Framework | F7: 2011/12 Medium Term Revenue & Expenditure Framework | G7: 2012/13 Medium Term Revenue & Expenditure Framework | H7: 2013/14 Medium Term Revenue & Expenditure Framework | I7: 2014/15 Medium Term Revenue & Expenditure Framework | J7: 2015/16 Medium Term Revenue & Expenditure Framework | K7: 2016/17 Medium Term Revenue & Expenditure Framework | L7: 2017/18 Medium Term Revenue & Expenditure Framework | M7: 2018/19 Medium Term Revenue & Expenditure Framework | N7: 2019/20 Medium Term Revenue & Expenditure Framework | O7: 2020/21 Medium Term Revenue & Expenditure Framework | R7: 5 | S7: >10 | Z7: Energy Efficiency and Demand Management | AB7: Neighbourhood Development Partnership | AC7: Public Works, Roads, Transport
A8: ='Template names'!C15 -> 1st year of MTREF | B8: Budget Year 2007/08 | C8: Budget Year 2008/09 | D8: Budget Year 2009/10 | E8: ="Budget Year "&E1&"/"&RIGHT(E1,2)+1 -> Budget Year 2010/11 | F8: Budget Year 2011/12 | G8: Budget Year 2012/13 | H8: Budget Year 2013/14 | I8: Budget Year 2014/15 | J8: Budget Year 2015/16 | K8: Budget Year 2016/17 | L8: Budget Year 2017/18 | M8: Budget Year 2018/19 | N8: Budget Year 2019/20 | O8: Budget Year 2020/21 | R8: >5 | Z8: Integrated National Electrification Programme | AB8: 2010 FIFA World Cup Stadiums Development | AC8: Sport and Recreation
A9: ='Template names'!C16 -> 2nd year of MTREF | B9: Budget Year +1 2008/09 | C9: Budget Year +1 2009/10 | D9: Budget Year +1 2010/11 | E9: ="Budget Year +1 "&E1+1&"/"&RIGHT(E1,2)+2 -> Budget Year +1 2011/12 | F9: Budget Year +1 2012/13 | G9: Budget Year +1 2013/14 | H9: Budget Year +1 2014/15 | I9: Budget Year +1 2015/16 | J9: Budget Year +1 2016/17 | K9: Budget Year +1 2017/18 | L9: Budget Year +1 2018/19 | M9: Budget Year +1 2019/20 | N9: Budget Year +1 2020/21 | O9: Budget Year +1 2021/22 | Z9: Municipal Drought Relief
A10: ='Template names'!C17 -> 3rd year of MTREF | B10: Budget Year +2 2009/10 | C10: Budget Year +2 2010/11 | D10: Budget Year +2 2011/12 | E10: ="Budget Year +2 "&E1+2&"/"&RIGHT(E1,2)+3 -> Budget Year +2 2012/13 | F10: Budget Year +2 2013/14 | G10: Budget Year +2 2014/15 | H10: Budget Year +2 2015/16 | I10: Budget Year +2 2016/17 | J10: Budget Year +2 2017/18 | K10: Budget Year +2 2018/19 | L10: Budget Year +2 2019/20 | M10: Budget Year +2 2020/21 | N10: Budget Year +2 2021/22 | O10: Budget Year +2 2022/23 | Z10: 2010 FIFA World Cup Operating
A11: ='Template names'!C18 -> 1st yr of long term forecast | B11: Forecast 2010/11 | C11: Forecast 2011/12 | D11: Forecast 2012/13 | E11: ="Forecast "&E1+3&"/"&RIGHT(E1,2)+4 -> Forecast 2013/14 | F11: Forecast 2014/15 | G11: Forecast 2015/16 | H11: Forecast 2016/17 | I11: Forecast 2017/18 | J11: Forecast 2018/19 | K11: Forecast 2019/20 | L11: Forecast 2020/21 | M11: Forecast 2021/22 | N11: Forecast 2022/23 | O11: Forecast 2023/24 | Z11: Electricity Demand Side Management
A12: ='Template names'!C19 -> Next yr of long term forecast | B12: Forecast 2011/12 | C12: Forecast 2012/13 | D12: Forecast 2013/14 | E12: ="Forecast "&E1+4&"/"&RIGHT(E1,2)+5 -> Forecast 2014/15 | F12: Forecast 2015/16 | G12: Forecast 2016/17 | H12: Forecast 2017/18 | I12: Forecast 2018/19 | J12: Forecast 2019/20 | K12: Forecast 2020/21 | L12: Forecast 2021/22 | M12: Forecast 2022/23 | N12: Forecast 2023/24 | O12: Forecast 2024/25 | Z12: EPWP Incentive
A13: ='Template names'!C20 -> Next yr of long term forecast | B13: Forecast 2012/13 | C13: Forecast 2013/14 | D13: Forecast 2014/15 | E13: ="Forecast "&E1+5&"/"&RIGHT(E1,2)+6 -> Forecast 2015/16 | F13: Forecast 2016/17 | G13: Forecast 2017/18 | H13: Forecast 2018/19 | I13: Forecast 2019/20 | J13: Forecast 2020/21 | K13: Forecast 2021/22 | L13: Forecast 2022/23 | M13: Forecast 2023/24 | N13: Forecast 2024/25 | O13: Forecast 2025/26
A14: ='Template names'!C21 -> Next yr of long term forecast | B14: Forecast 2013/14 | C14: Forecast 2014/15 | D14: Forecast 2015/16 | E14: ="Forecast "&E1+6&"/"&RIGHT(E1,2)+7 -> Forecast 2016/17 | F14: Forecast 2017/18 | G14: Forecast 2018/19 | H14: Forecast 2019/20 | I14: Forecast 2020/21 | J14: Forecast 2021/22 | K14: Forecast 2022/23 | L14: Forecast 2023/24 | M14: Forecast 2024/25 | N14: Forecast 2025/26 | O14: Forecast 2026/27 | Z14: Asset Class | AA14: Asset sub-class old | AB14: Asset sub-class | AC14: IUDF | AD14: MTSF
A15: ='Template names'!C22 -> Next yr of long term forecast | B15: Forecast 2014/15 | C15: Forecast 2015/16 | D15: Forecast 2016/17 | E15: ="Forecast "&E1+7&"/"&RIGHT(E1,2)+8 -> Forecast 2017/18 | F15: Forecast 2018/19 | G15: Forecast 2019/20 | H15: Forecast 2020/21 | I15: Forecast 2021/22 | J15: Forecast 2022/23 | K15: Forecast 2023/24 | L15: Forecast 2024/25 | M15: Forecast 2025/26 | N15: Forecast 2026/27 | O15: Forecast 2027/28
A16: ='Template names'!C23 -> Next yr of long term forecast | B16: Forecast 2015/16 | C16: Forecast 2016/17 | D16: Forecast 2017/18 | E16: ="Forecast "&E1+8&"/"&RIGHT(E1,2)+9 -> Forecast 2018/19 | F16: Forecast 2019/20 | G16: Forecast 2020/21 | H16: Forecast 2021/22 | I16: Forecast 2022/23 | J16: Forecast 2023/24 | K16: Forecast 2024/25 | L16: Forecast 2025/26 | M16: Forecast 2026/27 | N16: Forecast 2027/28 | O16: Forecast 2028/29 | Z16: Roads Infrastructure | AA16: Roads, Pavements & Bridges | AB16: Roads | AC16: Spatial integration | AD16: Quality basic education
A17: ='Template names'!C24 -> Next yr of long term forecast | B17: Forecast 2016/17 | C17: Forecast 2017/18 | D17: Forecast 2018/19 | E17: ="Forecast "&E1+9&"/"&RIGHT(E1,2)+10 -> Forecast 2019/20 | F17: Forecast 2020/21 | G17: Forecast 2021/22 | H17: Forecast 2022/23 | I17: Forecast 2023/24 | J17: Forecast 2024/25 | K17: Forecast 2025/26 | L17: Forecast 2026/27 | M17: Forecast 2027/28 | N17: Forecast 2028/29 | O17: Forecast 2029/30 | Z17: Storm water Infrastructure | AA17: Storm water | AB17: Road Structures | AC17: Inclusion and access | AD17: A long and healthy life for all South Africans
A18: ='Template names'!C25 -> Next yr of long term forecast | B18: Forecast 2017/18 | C18: Forecast 2018/19 | D18: Forecast 2019/20 | E18: ="Forecast "&E1+10&"/"&RIGHT(E1,2)+11 -> Forecast 2020/21 | F18: Forecast 2021/22 | G18: Forecast 2022/23 | H18: Forecast 2023/24 | I18: Forecast 2024/25 | J18: Forecast 2025/26 | K18: Forecast 2026/27 | L18: Forecast 2027/28 | M18: Forecast 2028/29 | N18: Forecast 2029/30 | O18: Forecast 2030/31 | Z18: Electrical Infrastructure | AA18: Generation | AB18: Road Furniture | AC18: Growth | AD18: All people in South Africa are and feel safe
A19: ='Template names'!C26 -> Next yr of long term forecast | B19: Forecast 2018/19 | C19: Forecast 2019/20 | D19: Forecast 2020/21 | E19: ="Forecast "&E1+11&"/"&RIGHT(E1,2)+12 -> Forecast 2021/22 | F19: Forecast 2022/23 | G19: Forecast 2023/24 | H19: Forecast 2024/25 | I19: Forecast 2025/26 | J19: Forecast 2026/27 | K19: Forecast 2027/28 | L19: Forecast 2028/29 | M19: Forecast 2029/30 | N19: Forecast 2030/31 | O19: Forecast 2031/32 | Z19: Water Supply Infrastructure | AA19: Transmission & Reticulation | AB19: Capital Spares | AC19: Governance | AD19: Decent employment through inclusive growth
A20: ='Template names'!C27 -> Next yr of long term forecast | B20: Forecast 2019/20 | C20: Forecast 2020/21 | D20: Forecast 2021/22 | E20: ="Forecast "&E1+12&"/"&RIGHT(E1,2)+13 -> Forecast 2022/23 | F20: Forecast 2023/24 | G20: Forecast 2024/25 | H20: Forecast 2025/26 | I20: Forecast 2026/27 | J20: Forecast 2027/28 | K20: Forecast 2028/29 | L20: Forecast 2029/30 | M20: Forecast 2030/31 | N20: Forecast 2031/32 | O20: Forecast 2032/33 | Z20: Sanitation Infrastructure | AA20: Street Lighting | AB20: Drainage Collection | AD20: A skilled and capable workforce to support an inclusive growth path
A21: ='Template names'!C28 -> Next yr of long term forecast | B21: Forecast 2020/21 | C21: Forecast 2021/22 | D21: Forecast 2022/23 | E21: ="Forecast "&E1+13&"/"&RIGHT(E1,2)+14 -> Forecast 2023/24 | F21: Forecast 2024/25 | G21: Forecast 2025/26 | H21: Forecast 2026/27 | I21: Forecast 2027/28 | J21: Forecast 2028/29 | K21: Forecast 2029/30 | L21: Forecast 2030/31 | M21: Forecast 2031/32 | N21: Forecast 2032/33 | O21: Forecast 2033/34 | Z21: Solid Waste Infrastructure | AA21: Dams & Reservoirs | AB21: Storm water Conveyance | AD21: An efficient, competitive and responsive economic infrastructure network
A22: ='Template names'!C29 -> Next yr of long term forecast | B22: Forecast 2021/22 | C22: Forecast 2022/23 | D22: Forecast 2023/24 | E22: ="Forecast "&E1+14&"/"&RIGHT(E1,2)+15 -> Forecast 2024/25 | F22: Forecast 2025/26 | G22: Forecast 2026/27 | H22: Forecast 2027/28 | I22: Forecast 2028/29 | J22: Forecast 2029/30 | K22: Forecast 2030/31 | L22: Forecast 2031/32 | M22: Forecast 2032/33 | N22: Forecast 2033/34 | O22: Forecast 2034/35 | Z22: Rail Infrastructure | AA22: Water purification | AB22: Attenuation | AD22: Vibrant, equitable, sustainable rural communities contributing towards food security for all
A23: Adjustments Budget | B23: Annual target 2007/08 | C23: Annual target 2008/09 | D23: Annual target 2009/10 | E23: ="Annual target " & E1&"/"&RIGHT(E1,2)+1 -> Annual target 2010/11 | F23: Annual target 2011/12 | G23: Annual target 2012/13 | H23: Annual target 2013/14 | I23: Annual target 2014/15 | J23: Annual target 2015/16 | K23: Annual target 2016/17 | L23: Annual target 2017/18 | M23: Annual target 2018/19 | N23: Annual target 2019/20 | O23: Annual target 2020/21 | Z23: Coastal Infrastructure | AA23: Reticulation | AB23: Power Plants | AD23: Sustainable human settlements and improved quality of household life
A24: =A23 -> Adjustments Budget | B24: Revised target 2007/08 | C24: Revised target 2008/09 | D24: Revised target 2009/10 | E24: ="Revised target "& E1&"/"&RIGHT(E1,2)+1 -> Revised target 2010/11 | F24: Revised target 2011/12 | G24: Revised target 2012/13 | H24: Revised target 2013/14 | I24: Revised target 2014/15 | J24: Revised target 2015/16 | K24: Revised target 2016/17 | L24: Revised target 2017/18 | M24: Revised target 2018/19 | N24: Revised target 2019/20 | O24: Revised target 2020/21 | Z24: Information and Communication Infrastructure | AA24: Sewerage purification | AB24: HV Substations | AD24: Responsive, accountable, effective and efficient local government
A25: NOTE: This sheet should not be directly amended - select headings from sheet 'S' | Z25: Community Facilities | AA25: Waste Management | AB25: HV Switching Station | AD25: Protect and enhance our environmental assets and natural resources
Z26: Sport and Recreation Facilities | AA26: Transportation | AB26: HV Transmission Conductors | AD26: Create a better South Africa and contribute to a better Africa and a better world
A27: Name link | B27: 246 | Z27: Heritage assets | AA27: Gas | AB27: MV Substations | AD27: An efficient, effective and development-oriented public service
A28: Name of Muni | B28: =INDEX(B29:B307,B27,1) -> DC3 Overberg | Z28: Revenue Generating | AA28: Parks & gardens | AB28: MV Switching Stations | AD28: A comprehensive, responsive and sustainable social protection system
B29: Choose name from list | C29: Set name on 'Instructions' sheet | Z29: Non-revenue Generating | AA29: Sportsfields & stadia | AB29: MV Networks | AD29: A diverse, socially cohesive society with a common national identity
B30: BUF Buffalo City | C30: EC EASTERN CAPE | Z30: Operational Buildings | AA30: Swimming pools | AB30: LV Networks
B31: NMA Nelson Mandela Bay | C31: EC EASTERN CAPE | Z31: Housing | AA31: Community halls | AB31: Capital Spares
B32: EC101 Dr Beyers Naude | C32: EC EASTERN CAPE | Z32: Biological or Cultivated Assets | AA32: Libraries | AB32: Dams and Weirs
B33: EC102 Blue Crane Route | C33: EC EASTERN CAPE | Z33: Servitudes | AA33: Recreational facilities | AB33: Boreholes
B34: EC104 Makana | C34: EC EASTERN CAPE | Z34: Licences and Rights | AA34: Fire, safety & emergency | AB34: Reservoirs
B35: EC105 Ndlambe | C35: EC EASTERN CAPE | Z35: Computer Equipment | AA35: Security and policing | AB35: Pump Stations
B36: EC106 Sundays River Valley | C36: EC EASTERN CAPE | Z36: Furniture and Office Equipment | AA36: Buses | AB36: Water Treatment Works
B37: EC108 Kouga | C37: EC EASTERN CAPE | Z37: Machinery and Equipment | AA37: Clinics | AB37: Bulk Mains
B38: EC109 Kou-Kamma | C38: EC EASTERN CAPE | Z38: Transport Assets | AA38: Museums & Art Galleries | AB38: Distribution
B39: DC10 Sarah Baartman | C39: EC EASTERN CAPE | Z39: Land | AA39: Cemeteries | AB39: Distribution Points
B40: EC121 Mbhashe | C40: EC EASTERN CAPE | Z40: Zoo's, Marine and Non-biological Animals | AA40: Social rental housing | AB40: PRV Stations
B41: EC122 Mnquma | C41: EC EASTERN CAPE | AA41: Buildings | AB41: Capital Spares
B42: EC123 Great Kei | C42: EC EASTERN CAPE | AA42: Housing development | AB42: Pump Station
B43: EC124 Amahlathi | C43: EC EASTERN CAPE | AA43: General vehicles | AB43: Reticulation
B44: EC126 Ngqushwa | C44: EC EASTERN CAPE | AA44: Specialised vehicles - Refuse | AB44: Waste Water Treatment Works
B45: EC129 Raymond Mhlaba | C45: EC EASTERN CAPE | AA45: Specialised vehicles - Fire | AB45: Outfall Sewers
B46: DC12 Amathole | C46: EC EASTERN CAPE | AA46: Specialised vehicles - Conservancy | AB46: Toilet Facilities
B47: EC131 Inxuba Yethemba | C47: EC EASTERN CAPE | AA47: Specialised vehicles - Ambulances | AB47: Capital Spares
B48: EC135 Intsika Yethu | C48: EC EASTERN CAPE | AA48: Plant & equipment | AB48: Landfill Sites
B49: EC136 Emalahleni (Ec) | C49: EC EASTERN CAPE | AA49: Computers - hardware/equipment | AB49: Waste Transfer Stations
B50: EC137 Engcobo | C50: EC EASTERN CAPE | AA50: Furniture and other office equipment | AB50: Waste Processing Facilities
B51: EC138 Sakhisizwe | C51: EC EASTERN CAPE | AA51: Abattoirs | AB51: Waste Drop-off Points
B52: EC139 Enoch Mgijima | C52: EC EASTERN CAPE | AA52: Markets | AB52: Waste Separation Facilities
B53: DC13 Chris Hani | C53: EC EASTERN CAPE | AA53: Civic Land and Buildings | AB53: Electricity Generation Facilities
B54: EC141 Elundini | C54: EC EASTERN CAPE | AA54: Other Buildings | AB54: Capital Spares
B55: EC142 Senqu | C55: EC EASTERN CAPE | AA55: Other Land | AB55: Rail Lines
B56: EC145 Walter Sisulu | C56: EC EASTERN CAPE | AA56: Surplus Assets - (Investment or Inventory) | AB56: Rail Structures
B57: DC14 Joe Gqabi | C57: EC EASTERN CAPE | AA57: Computers - software & programming | AB57: Rail Furniture
B58: EC153 Ngquza Hills | C58: EC EASTERN CAPE | AA58: Other | AB58: Drainage Collection
B59: EC154 Port St Johns | C59: EC EASTERN CAPE | AB59: Storm water Conveyance
B60: EC155 Nyandeni | C60: EC EASTERN CAPE | Z60: SA16 - Investments | AB60: Attenuation
B61: EC156 Mhlontlo | C61: EC EASTERN CAPE | Z61: Security | AA61: Interest rate | AB61: MV Substations
B62: EC157 King Sabata Dalindyebo | C62: EC EASTERN CAPE | Z62: Yes | AA62: Fixed | AB62: LV Networks
B63: DC15 O .R. Tambo | C63: EC EASTERN CAPE | Z63: No | AA63: Variable | AB63: Capital Spares
B64: EC441 Matatiele | C64: EC EASTERN CAPE | AB64: Sand Pumps
B65: EC442 Umzimvubu | C65: EC EASTERN CAPE | AB65: Piers
B66: EC443 Mbizana | C66: EC EASTERN CAPE | Z66: SA36, SA37 - Capital projects | AB66: Revetments
B67: EC444 Ntabankulu | C67: EC EASTERN CAPE | Z67: Yes | AB67: Promenades
B68: DC44 Alfred Nzo | C68: EC EASTERN CAPE | Z68: No | AB68: Capital Spares
B69: MAN Mangaung | C69: FS FREE STATE | AB69: Data Centres
B70: FS161 Letsemeng | C70: FS FREE STATE | AB70: Core Layers
B71: FS162 Kopanong | C71: FS FREE STATE | AB71: Distribution Layers
B72: FS163 Mohokare | C72: FS FREE STATE | AB72: Capital Spares
B73: DC16 Xhariep | C73: FS FREE STATE | AB73: Halls
B74: FS181 Masilonyana | C74: FS FREE STATE | AB74: Centres
B75: FS182 Tokologo | C75: FS FREE STATE | AB75: Crèches
B76: FS183 Tswelopele | C76: FS FREE STATE | AB76: Clinics/Care Centres
B77: FS184 Matjhabeng | C77: FS FREE STATE | AB77: Fire/Ambulance Stations
B78: FS185 Nala | C78: FS FREE STATE | AB78: Testing Stations
B79: DC18 Lejweleputswa | C79: FS FREE STATE | AB79: Museums
B80: FS191 Setsoto | C80: FS FREE STATE | AB80: Galleries
B81: FS192 Dihlabeng | C81: FS FREE STATE | AB81: Theatres
B82: FS193 Nketoana | C82: FS FREE STATE | AB82: Libraries
B83: FS194 Maluti-a-Phofung | C83: FS FREE STATE | AB83: Cemeteries/Crematoria
B84: FS195 Phumelela | C84: FS FREE STATE | AB84: Police
B85: FS196 Mantsopa | C85: FS FREE STATE | AB85: Purls
B86: DC19 Thabo Mofutsanyana | C86: FS FREE STATE | AB86: Public Open Space
B87: FS201 Moqhaka | C87: FS FREE STATE | AB87: Nature Reserves
B88: FS203 Ngwathe | C88: FS FREE STATE | AB88: Public Ablution Facilities
B89: FS204 Metsimaholo | C89: FS FREE STATE | AB89: Markets
B90: FS205 Mafube | C90: FS FREE STATE | AB90: Stalls
B91: DC20 Fezile Dabi | C91: FS FREE STATE | AB91: Abattoirs
B92: EKU City of Ekurhuleni | C92: GT GAUTENG | AB92: Airports
B93: JHB City Of Johannesburg | C93: GT GAUTENG | AB93: Taxi Ranks/Bus Terminals
B94: TSH City Of Tshwane | C94: GT GAUTENG | AB94: Capital Spares
B95: GT421 Emfuleni | C95: GT GAUTENG | AB95: Indoor Facilities
B96: GT422 Midvaal | C96: GT GAUTENG | AB96: Outdoor Facilities
B97: GT423 Lesedi | C97: GT GAUTENG | AB97: Capital Spares
B98: DC42 Sedibeng | C98: GT GAUTENG | AB98: Monuments
B99: GT481 Mogale City | C99: GT GAUTENG | AB99: Historic Buildings
B100: GT484 Merafong City | C100: GT GAUTENG | AB100: Works of Art
B101: GT485 Rand West City | C101: GT GAUTENG | AB101: Conservation Areas
B102: DC48 West Rand | C102: GT GAUTENG | AB102: Other Heritage
B103: ETH eThekwini | C103: KZN KWAZULU-NATAL | AB103: Improved Property
B104: KZN212 Umdoni | C104: KZN KWAZULU-NATAL | AB104: Unimproved Property
B105: KZN213 Umzumbe | C105: KZN KWAZULU-NATAL | AB105: Municipal Offices
B106: KZN214 uMuziwabantu | C106: KZN KWAZULU-NATAL | AB106: Pay/Enquiry Points
B107: KZN216 Ray Nkonyeni | C107: KZN KWAZULU-NATAL | AB107: Building Plan Offices
B108: DC21 Ugu | C108: KZN KWAZULU-NATAL | AB108: Workshops
B109: KZN221 uMshwathi | C109: KZN KWAZULU-NATAL | AB109: Yards
B110: KZN222 uMngeni | C110: KZN KWAZULU-NATAL | AB110: Stores
B111: KZN223 Mpofana | C111: KZN KWAZULU-NATAL | AB111: Laboratories
B112: KZN224 Impendle | C112: KZN KWAZULU-NATAL | AB112: Training Centres
B113: KZN225 Msunduzi | C113: KZN KWAZULU-NATAL | AB113: Manufacturing Plant
B114: KZN226 Mkhambathini | C114: KZN KWAZULU-NATAL | AB114: Depots
B115: KZN227 Richmond | C115: KZN KWAZULU-NATAL | AB115: Capital Spares
B116: DC22 uMgungundlovu | C116: KZN KWAZULU-NATAL | AB116: Staff Housing
B117: KZN235 Okhahlamba | C117: KZN KWAZULU-NATAL | AB117: Social Housing
B118: KZN237 Inkosi Langalibalele | C118: KZN KWAZULU-NATAL | AB118: Capital Spares
B119: KZN238 Alfred Duma | C119: KZN KWAZULU-NATAL | AB119: Water Rights
B120: DC23 Uthukela | C120: KZN KWAZULU-NATAL | AB120: Effluent Licenses
B121: KZN241 Endumeni | C121: KZN KWAZULU-NATAL | AB121: Solid Waste Licenses
B122: KZN242 Nquthu | C122: KZN KWAZULU-NATAL | AB122: Computer Software and Applications
B123: KZN244 Msinga | C123: KZN KWAZULU-NATAL | AB123: Load Settlement Software Applications
B124: KZN245 Umvoti | C124: KZN KWAZULU-NATAL | AB124: Unspecified
B125: DC24 Umzinyathi | C125: KZN KWAZULU-NATAL
B126: KZN252 Newcastle | C126: KZN KWAZULU-NATAL
B127: KZN253 Emadlangeni | C127: KZN KWAZULU-NATAL
B128: KZN254 Dannhauser | C128: KZN KWAZULU-NATAL
B129: DC25 Amajuba | C129: KZN KWAZULU-NATAL
B130: KZN261 eDumbe | C130: KZN KWAZULU-NATAL
B131: KZN262 uPhongolo | C131: KZN KWAZULU-NATAL
B132: KZN263 Abaqulusi | C132: KZN KWAZULU-NATAL
B133: KZN265 Nongoma | C133: KZN KWAZULU-NATAL
B134: KZN266 Ulundi | C134: KZN KWAZULU-NATAL
B135: DC26 Zululand | C135: KZN KWAZULU-NATAL
B136: KZN271 Umhlabuyalingana | C136: KZN KWAZULU-NATAL
B137: KZN272 Jozini | C137: KZN KWAZULU-NATAL
B138: KZN275 Mtubatuba | C138: KZN KWAZULU-NATAL
B139: KZN276 Hlabisa Big Five | C139: KZN KWAZULU-NATAL
B140: DC27 Umkhanyakude | C140: KZN KWAZULU-NATAL
B141: KZN281 Mfolozi | C141: KZN KWAZULU-NATAL
B142: KZN282 uMhlathuze | C142: KZN KWAZULU-NATAL
B143: KZN284 uMlalazi | C143: KZN KWAZULU-NATAL
B144: KZN285 Mthonjaneni | C144: KZN KWAZULU-NATAL
B145: KZN286 Nkandla | C145: KZN KWAZULU-NATAL
B146: DC28 King Cetshwayo | C146: KZN KWAZULU-NATAL
B147: KZN291 Mandeni | C147: KZN KWAZULU-NATAL
B148: KZN292 KwaDukuza | C148: KZN KWAZULU-NATAL
B149: KZN293 Ndwedwe | C149: KZN KWAZULU-NATAL
B150: KZN294 Maphumulo | C150: KZN KWAZULU-NATAL
B151: DC29 iLembe | C151: KZN KWAZULU-NATAL
B152: KZN433 Greater Kokstad | C152: KZN KWAZULU-NATAL
B153: KZN434 Ubuhlebezwe | C153: KZN KWAZULU-NATAL
B154: KZN435 Umzimkhulu | C154: KZN KWAZULU-NATAL
B155: KZN436 Dr Nkosazana Dlamini Zuma | C155: KZN KWAZULU-NATAL
B156: DC43 Harry Gwala | C156: KZN KWAZULU-NATAL
B157: LIM331 Greater Giyani | C157: LIM LIMPOPO
B158: LIM332 Greater Letaba | C158: LIM LIMPOPO
B159: LIM333 Greater Tzaneen | C159: LIM LIMPOPO
B160: LIM334 Ba-Phalaborwa | C160: LIM LIMPOPO
B161: LIM335 Maruleng | C161: LIM LIMPOPO
B162: DC33 Mopani | C162: LIM LIMPOPO
B163: LIM341 Musina | C163: LIM LIMPOPO
B164: LIM343 Thulamela | C164: LIM LIMPOPO
B165: LIM344 Makhado | C165: LIM LIMPOPO
B166: LIM345 Collins Chabane | C166: LIM LIMPOPO
B167: DC34 Vhembe | C167: LIM LIMPOPO
B168: LIM351 Blouberg | C168: LIM LIMPOPO
B169: LIM353 Molemole | C169: LIM LIMPOPO
B170: LIM354 Polokwane | C170: LIM LIMPOPO
B171: LIM355 Lepelle-Nkumpi | C171: LIM LIMPOPO
B172: DC35 Capricorn | C172: LIM LIMPOPO
B173: LIM361 Thabazimbi | C173: LIM LIMPOPO
B174: LIM362 Lephalale | C174: LIM LIMPOPO
B175: LIM366 Bela Bela | C175: LIM LIMPOPO
B176: LIM367 Mogalakwena | C176: LIM LIMPOPO
B177: LIM368 Modimolle-Mookgopong | C177: LIM LIMPOPO
B178: DC36 Waterberg | C178: LIM LIMPOPO
B179: LIM471 Ephraim Mogale | C179: LIM LIMPOPO
B180: LIM472 Elias Motsoaledi | C180: LIM LIMPOPO
B181: LIM473 Makhuduthamaga | C181: LIM LIMPOPO
B182: LIM476 Tubatse Fetakgomo | C182: LIM LIMPOPO
B183: DC47 Sekhukhune | C183: LIM LIMPOPO
B184: MP301 Albert Luthuli | C184: MP MPUMALANGA
B185: MP302 Msukaligwa | C185: MP MPUMALANGA
B186: MP303 Mkhondo | C186: MP MPUMALANGA
B187: MP304 Pixley Ka Seme (MP) | C187: MP MPUMALANGA
B188: MP305 Lekwa | C188: MP MPUMALANGA
B189: MP306 Dipaleseng | C189: MP MPUMALANGA
B190: MP307 Govan Mbeki | C190: MP MPUMALANGA
B191: DC30 Gert Sibande | C191: MP MPUMALANGA
B192: MP311 Victor Khanye | C192: MP MPUMALANGA
B193: MP312 Emalahleni (Mp) | C193: MP MPUMALANGA
B194: MP313 Steve Tshwete | C194: MP MPUMALANGA
B195: MP314 Emakhazeni | C195: MP MPUMALANGA
B196: MP315 Thembisile Hani | C196: MP MPUMALANGA
B197: MP316 Dr J.S. Moroka | C197: MP MPUMALANGA
B198: DC31 Nkangala | C198: MP MPUMALANGA
B199: MP321 Thaba Chweu | C199: MP MPUMALANGA
B200: MP324 Nkomazi | C200: MP MPUMALANGA
... 87 more rows

Sheet Org structure
A1: Organisational Structure Votes | C1: Organisational Structure Sub-Votes | E1: Display Sub-Votes
A2: =B2&" - "&C2 -> Vote 1 - Municipal Manager | B2: Vote 1 | C2: Municipal Manager
A3: =B13&" - "& C13 -> Vote 2 - Management Services | B3: 1.1 | C3: Executive | D3: =CONCATENATE(B3, " - ", C3) -> 1.1 - Executive | E3: 1.1 - Executive
A4: =B24&" - "&C24 -> Vote 3 - Corporate Services | B4: 1.2 | C4: Executive Support | D4: 1.2 - Executive Support | E4: 1.2 - Executive Support
A5: =B35&" - "&C35 -> Vote 4 - Finance | B5: 1.3 | C5: Internal Audit | D5: 1.3 - Internal Audit | E5: 1.3 - Internal Audit
A6: =B46&" - "&C46 -> Vote 5 - Community Services | B6: 1.4 | C6: Council Expenditure | D6: 1.4 - Council Expenditure | E6: 1.4 - Council Expenditure
A7: =B57&" - "&C57 -> Vote 6 - [NAME OF VOTE 6] | B7: 1.5 | C7: IDP & Communication | D7: 1.5 - IDP & Communication | E7: 1.5 - IDP & Communication
A8: =B68&" - "&C68 -> Vote 7 - [NAME OF VOTE 7] | B8: 1.6 | C8: Performance & Risk Management | D8: 1.6 - Performance & Risk Management | E8: 1.6 - Performance & Risk Management
A9: =B79&" - "&C79 -> Vote 8 - [NAME OF VOTE 8] | B9: 1.7 | C9: Donations | D9: 1.7 - Donations | E9: 1.7 - Donations
A10: =B90&" - "&C90 -> Vote 9 - [NAME OF VOTE 9] | B10: 1.8 | C10: Management Support | D10: 1.8 - Management Support | E10: 1.8 - Management Support
A11: =B101&" - "&C101 -> Vote 10 - [NAME OF VOTE 10] | B11: 1.9 | C11: Shared Services | D11: 1.9 - Shared Services | E11: 1.9 - Shared Services
A12: =B112&" - "&C112 -> Vote 11 - [NAME OF VOTE 11] | B12: 1.10 | D12: 1.10 -
A13: =B123&" - "&C123 -> Vote 12 - [NAME OF VOTE 12] | B13: Vote 2 | C13: Management Services
A14: =B134&" - "&C134 -> Vote 13 - [NAME OF VOTE 13] | B14: 2.1 | C14: Record Management | D14: =CONCATENATE(B14, " - ", C14) -> 2.1 - Record Management | E14: 2.1 - Record Management
A15: =B145&" - "&C145 -> Vote 14 - [NAME OF VOTE 14] | B15: 2.2 | C15: Human Resources | D15: 2.2 - Human Resources | E15: 2.2 - Human Resources
A16: =B156&" - "&C156 -> Vote 15 - [NAME OF VOTE 15] | B16: 2.3 | C16: Supply Chain Management | D16: 2.3 - Supply Chain Management | E16: 2.3 - Supply Chain Management
B17: 2.4 | C17: Finance Inc, Exp & IT | D17: 2.4 - Finance Inc, Exp & IT | E17: 2.4 - Finance Inc, Exp & IT
B18: 2.5 | C18: Performance Management | D18: 2.5 - Performance Management | E18: 2.5 - Performance Management
B19: 2.6 | C19: Administration | D19: 2.6 - Administration | E19: 2.6 - Administration
B20: 2.7 | C20: Property Services | D20: 2.7 - Property Services | E20: 2.7 - Property Services
B21: 2.8 | C21: Financial Administration | D21: 2.8 - Financial Administration | E21: 2.8 - Financial Administration
B22: 2.9 | C22: IDP/LED | D22: 2.9 - IDP/LED | E22: 2.9 - IDP/LED
B23: 2.10 | C23: Grants - National Government | D23: 2.10 - Grants - National Government | E23: 2.10 - Grants - National Government
B24: Vote 3 | C24: Corporate Services
B25: 3.1 | C25: Executive | D25: =CONCATENATE(B25, " - ", C25) -> 3.1 - Executive | E25: 3.1 - Executive
B26: 3.2 | C26: Corporate Support | D26: 3.2 - Corporate Support | E26: 3.2 - Corporate Support
B27: 3.3 | C27: Human Resources | D27: 3.3 - Human Resources | E27: 3.3 - Human Resources
B28: 3.4 | C28: Committee, Records & Councillor Support | D28: 3.4 - Committee, Records & Councillor Support | E28: 3.4 - Committee, Records & Councillor Support
B29: 3.5 | C29: Information Services | D29: 3.5 - Information Services | E29: 3.5 - Information Services
B30: 3.6 | D30: 3.6 -
B31: 3.7 | D31: 3.7 -
B32: 3.8 | D32: 3.8 -
B33: 3.9 | D33: 3.9 -
B34: 3.10 | D34: 3.10 -
B35: Vote 4 | C35: Finance
B36: 4.1 | C36: Executive | D36: =CONCATENATE(B36, " - ", C36) -> 4.1 - Executive | E36: 4.1 - Executive
B37: 4.2 | C37: Financial Support | D37: 4.2 - Financial Support | E37: 4.2 - Financial Support
B38: 4.3 | C38: Financial Services | D38: 4.3 - Financial Services | E38: 4.3 - Financial Services
B39: 4.4 | C39: Revenue | D39: 4.4 - Revenue | E39: 4.4 - Revenue
B40: 4.5 | C40: Expenditure | D40: 4.5 - Expenditure | E40: 4.5 - Expenditure
B41: 4.6 | C41: Supply Chain Management | D41: 4.6 - Supply Chain Management | E41: 4.6 - Supply Chain Management
B42: 4.7 | D42: 4.7 -
B43: 4.8 | D43: 4.8 -
B44: 4.9 | D44: 4.9 -
B45: 4.10 | D45: 4.10 -
B46: Vote 5 | C46: Community Services
B47: 5.1 | C47: Executive | D47: =CONCATENATE(B47, " - ", C47) -> 5.1 - Executive | E47: 5.1 - Executive
B48: 5.2 | C48: Community Services Support | D48: 5.2 - Community Services Support | E48: 5.2 - Community Services Support
B49: 5.3 | C49: Municipal Health | D49: 5.3 - Municipal Health | E49: 5.3 - Municipal Health
B50: 5.4 | C50: Comprehensive Health | D50: 5.4 - Comprehensive Health | E50: 5.4 - Comprehensive Health
B51: 5.5 | C51: Enviromental Management | D51: 5.5 - Enviromental Management | E51: 5.5 - Enviromental Management
B52: 5.6 | C52: Solid Waste | D52: 5.6 - Solid Waste | E52: 5.6 - Solid Waste
B53: 5.7 | C53: Emergency Services | D53: 5.7 - Emergency Services | E53: 5.7 - Emergency Services
B54: 5.8 | C54: LED, Tourism, Resorts & EPWP | D54: 5.8 - LED, Tourism, Resorts & EPWP | E54: 5.8 - LED, Tourism, Resorts & EPWP
B55: 5.9 | C55: Roads | D55: 5.9 - Roads | E55: 5.9 - Roads
B56: 5.10 | C56: Resorts | D56: 5.10 - Resorts | E56: 5.10 - Resorts
B57: Vote 6 | C57: [NAME OF VOTE 6]
B58: 6.1 | C58: [Name of sub-vote] | D58: =CONCATENATE(B58, " - ", C58) -> 6.1 - [Name of sub-vote] | E58: 6.1 - [Name of sub-vote]
B59: 6.2 | C59: [Name of sub-vote] | D59: 6.2 - [Name of sub-vote]
B60: 6.3 | C60: [Name of sub-vote] | D60: 6.3 - [Name of sub-vote]
B61: 6.4 | C61: [Name of sub-vote] | D61: 6.4 - [Name of sub-vote]
B62: 6.5 | C62: [Name of sub-vote] | D62: 6.5 - [Name of sub-vote]
B63: 6.6 | C63: [Name of sub-vote] | D63: 6.6 - [Name of sub-vote]
B64: 6.7 | C64: [Name of sub-vote] | D64: 6.7 - [Name of sub-vote]
B65: 6.8 | C65: [Name of sub-vote] | D65: 6.8 - [Name of sub-vote]
B66: 6.9 | C66: [Name of sub-vote] | D66: 6.9 - [Name of sub-vote]
B67: 6.10 | C67: [Name of sub-vote] | D67: 6.10 - [Name of sub-vote]
B68: Vote 7 | C68: [NAME OF VOTE 7]
B69: 7.1 | C69: [Name of sub-vote] | D69: =CONCATENATE(B69, " - ", C69) -> 7.1 - [Name of sub-vote] | E69: 7.1 - [Name of sub-vote]
B70: 7.2 | C70: [Name of sub-vote] | D70: 7.2 - [Name of sub-vote]
B71: 7.3 | C71: [Name of sub-vote] | D71: 7.3 - [Name of sub-vote]
B72: 7.4 | C72: [Name of sub-vote] | D72: 7.4 - [Name of sub-vote]
B73: 7.5 | C73: [Name of sub-vote] | D73: 7.5 - [Name of sub-vote]
B74: 7.6 | C74: [Name of sub-vote] | D74: 7.6 - [Name of sub-vote]
B75: 7.7 | C75: [Name of sub-vote] | D75: 7.7 - [Name of sub-vote]
B76: 7.8 | C76: [Name of sub-vote] | D76: 7.8 - [Name of sub-vote]
B77: 7.9 | C77: [Name of sub-vote] | D77: 7.9 - [Name of sub-vote]
B78: 7.10 | C78: [Name of sub-vote] | D78: 7.10 - [Name of sub-vote]
B79: Vote 8 | C79: [NAME OF VOTE 8]
B80: 8.1 | C80: [Name of sub-vote] | D80: =CONCATENATE(B80, " - ", C80) -> 8.1 - [Name of sub-vote] | E80: 8.1 - [Name of sub-vote]
B81: 8.2 | C81: [Name of sub-vote] | D81: 8.2 - [Name of sub-vote]
B82: 8.3 | C82: [Name of sub-vote] | D82: 8.3 - [Name of sub-vote]
B83: 8.4 | C83: [Name of sub-vote] | D83: 8.4 - [Name of sub-vote]
B84: 8.5 | C84: [Name of sub-vote] | D84: 8.5 - [Name of sub-vote]
B85: 8.6 | C85: [Name of sub-vote] | D85: 8.6 - [Name of sub-vote]
B86: 8.7 | C86: [Name of sub-vote] | D86: 8.7 - [Name of sub-vote]
B87: 8.8 | C87: [Name of sub-vote] | D87: 8.8 - [Name of sub-vote]
B88: 8.9 | C88: [Name of sub-vote] | D88: 8.9 - [Name of sub-vote]
B89: 8.10 | C89: [Name of sub-vote] | D89: 8.10 - [Name of sub-vote]
B90: Vote 9 | C90: [NAME OF VOTE 9]
B91: 9.1 | C91: [Name of sub-vote] | D91: =CONCATENATE(B91, " - ", C91) -> 9.1 - [Name of sub-vote] | E91: 9.1 - [Name of sub-vote]
B92: 9.2 | C92: [Name of sub-vote] | D92: 9.2 - [Name of sub-vote]
B93: 9.3 | C93: [Name of sub-vote] | D93: 9.3 - [Name of sub-vote]
B94: 9.4 | C94: [Name of sub-vote] | D94: 9.4 - [Name of sub-vote]
B95: 9.5 | C95: [Name of sub-vote] | D95: 9.5 - [Name of sub-vote]
B96: 9.6 | C96: [Name of sub-vote] | D96: 9.6 - [Name of sub-vote]
B97: 9.7 | C97: [Name of sub-vote] | D97: 9.7 - [Name of sub-vote]
B98: 9.8 | C98: [Name of sub-vote] | D98: 9.8 - [Name of sub-vote]
B99: 9.9 | C99: [Name of sub-vote] | D99: 9.9 - [Name of sub-vote]
B100: 9.10 | C100: [Name of sub-vote] | D100: 9.10 - [Name of sub-vote]
B101: Vote 10 | C101: [NAME OF VOTE 10]
B102: 10.1 | C102: [Name of sub-vote] | D102: =CONCATENATE(B102, " - ", C102) -> 10.1 - [Name of sub-vote] | E102: 10.1 - [Name of sub-vote]
B103: 10.2 | C103: [Name of sub-vote] | D103: 10.2 - [Name of sub-vote]
B104: 10.3 | C104: [Name of sub-vote] | D104: 10.3 - [Name of sub-vote]
B105: 10.4 | C105: [Name of sub-vote] | D105: 10.4 - [Name of sub-vote]
B106: 10.5 | C106: [Name of sub-vote] | D106: 10.5 - [Name of sub-vote]
B107: 10.6 | C107: [Name of sub-vote] | D107: 10.6 - [Name of sub-vote]
B108: 10.7 | C108: [Name of sub-vote] | D108: 10.7 - [Name of sub-vote]
B109: 10.8 | C109: [Name of sub-vote] | D109: 10.8 - [Name of sub-vote]
B110: 10.9 | C110: [Name of sub-vote] | D110: 10.9 - [Name of sub-vote]
B111: 10.10 | C111: [Name of sub-vote] | D111: 10.10 - [Name of sub-vote]
B112: Vote 11 | C112: [NAME OF VOTE 11]
B113: 11.1 | C113: [Name of sub-vote] | D113: =CONCATENATE(B113, " - ", C113) -> 11.1 - [Name of sub-vote] | E113: 11.1 - [Name of sub-vote]
B114: 11.2 | C114: [Name of sub-vote] | D114: 11.2 - [Name of sub-vote]
B115: 11.3 | C115: [Name of sub-vote] | D115: 11.3 - [Name of sub-vote]
B116: 11.4 | C116: [Name of sub-vote] | D116: 11.4 - [Name of sub-vote]
B117: 11.5 | C117: [Name of sub-vote] | D117: 11.5 - [Name of sub-vote]
B118: 11.6 | C118: [Name of sub-vote] | D118: 11.6 - [Name of sub-vote]
B119: 11.7 | C119: [Name of sub-vote] | D119: 11.7 - [Name of sub-vote]
B120: 11.8 | C120: [Name of sub-vote] | D120: 11.8 - [Name of sub-vote]
B121: 11.9 | C121: [Name of sub-vote] | D121: 11.9 - [Name of sub-vote]
B122: 11.10 | C122: [Name of sub-vote] | D122: 11.10 - [Name of sub-vote]
B123: Vote 12 | C123: [NAME OF VOTE 12]
B124: 12.1 | C124: [Name of sub-vote] | D124: =CONCATENATE(B124, " - ", C124) -> 12.1 - [Name of sub-vote] | E124: 12.1 - [Name of sub-vote]
B125: 12.2 | C125: [Name of sub-vote] | D125: 12.2 - [Name of sub-vote]
B126: 12.3 | C126: [Name of sub-vote] | D126: 12.3 - [Name of sub-vote]
B127: 12.4 | C127: [Name of sub-vote] | D127: 12.4 - [Name of sub-vote]
B128: 12.5 | C128: [Name of sub-vote] | D128: 12.5 - [Name of sub-vote]
B129: 12.6 | C129: [Name of sub-vote] | D129: 12.6 - [Name of sub-vote]
B130: 12.7 | C130: [Name of sub-vote] | D130: 12.7 - [Name of sub-vote]
B131: 12.8 | C131: [Name of sub-vote] | D131: 12.8 - [Name of sub-vote]
B132: 12.9 | C132: [Name of sub-vote] | D132: 12.9 - [Name of sub-vote]
B133: 12.10 | C133: [Name of sub-vote] | D133: 12.10 - [Name of sub-vote]
B134: Vote 13 | C134: [NAME OF VOTE 13]
B135: 13.1 | C135: [Name of sub-vote] | D135: =CONCATENATE(B135, " - ", C135) -> 13.1 - [Name of sub-vote] | E135: 13.1 - [Name of sub-vote]
B136: 13.2 | C136: [Name of sub-vote] | D136: 13.2 - [Name of sub-vote]
B137: 13.3 | C137: [Name of sub-vote] | D137: 13.3 - [Name of sub-vote]
B138: 13.4 | C138: [Name of sub-vote] | D138: 13.4 - [Name of sub-vote]
B139: 13.5 | C139: [Name of sub-vote] | D139: 13.5 - [Name of sub-vote]
B140: 13.6 | C140: [Name of sub-vote] | D140: 13.6 - [Name of sub-vote]
B141: 13.7 | C141: [Name of sub-vote] | D141: 13.7 - [Name of sub-vote]
B142: 13.8 | C142: [Name of sub-vote] | D142: 13.8 - [Name of sub-vote]
B143: 13.9 | C143: [Name of sub-vote] | D143: 13.9 - [Name of sub-vote]
B144: 13.10 | C144: [Name of sub-vote] | D144: 13.10 - [Name of sub-vote]
B145: Vote 14 | C145: [NAME OF VOTE 14]
B146: 14.1 | C146: [Name of sub-vote] | D146: =CONCATENATE(B146, " - ", C146) -> 14.1 - [Name of sub-vote] | E146: 14.1 - [Name of sub-vote]
B147: 14.2 | C147: [Name of sub-vote] | D147: 14.2 - [Name of sub-vote]
B148: 14.3 | C148: [Name of sub-vote] | D148: 14.3 - [Name of sub-vote]
B149: 14.4 | C149: [Name of sub-vote] | D149: 14.4 - [Name of sub-vote]
B150: 14.5 | C150: [Name of sub-vote] | D150: 14.5 - [Name of sub-vote]
B151: 14.6 | C151: [Name of sub-vote] | D151: 14.6 - [Name of sub-vote]
B152: 14.7 | C152: [Name of sub-vote] | D152: 14.7 - [Name of sub-vote]
B153: 14.8 | C153: [Name of sub-vote] | D153: 14.8 - [Name of sub-vote]
B154: 14.9 | C154: [Name of sub-vote] | D154: 14.9 - [Name of sub-vote]
B155: 14.10 | C155: [Name of sub-vote] | D155: 14.10 - [Name of sub-vote]
B156: Vote 15 | C156: [NAME OF VOTE 15]
B157: 15.1 | C157: [Name of sub-vote] | D157: =CONCATENATE(B157, " - ", C157) -> 15.1 - [Name of sub-vote] | E157: 15.1 - [Name of sub-vote]
B158: 15.2 | C158: [Name of sub-vote] | D158: 15.2 - [Name of sub-vote]
B159: 15.3 | C159: [Name of sub-vote] | D159: 15.3 - [Name of sub-vote]
B160: 15.4 | C160: [Name of sub-vote] | D160: 15.4 - [Name of sub-vote]
B161: 15.5 | C161: [Name of sub-vote] | D161: 15.5 - [Name of sub-vote]
B162: 15.6 | C162: [Name of sub-vote] | D162: 15.6 - [Name of sub-vote]
B163: 15.7 | C163: [Name of sub-vote] | D163: 15.7 - [Name of sub-vote]
B164: 15.8 | C164: [Name of sub-vote] | D164: 15.8 - [Name of sub-vote]
B165: 15.9 | C165: [Name of sub-vote] | D165: 15.9 - [Name of sub-vote]
B166: 15.10 | C166: [Name of sub-vote] | D166: 15.10 - [Name of sub-vote]

Sheet Contacts
A1: =muni&" - "&" Contact Information" -> DC3 Overberg - Contact Information
A3: A. GENERAL INFORMATION
A4: Municipality | B4: =muni -> DC3 Overberg | C4: =IF(B4="Choose name from List","Set name on 'Instructions' sheet", "") -> 
A6: Grade | C6: 1 Grade in terms of the Remuneration of Public Office Bearers Act.
A8: Province | B8: =IF(B4>" ",VLOOKUP(B4,'Lookup and lists'!B29:C307,2, FALSE)," ") -> WC WESTERN CAPE
A10: Web Address
A12: e-mail Address
A14: B. CONTACT INFORMATION
A15: Postal address:
A16: P.O. Box
A17: City / Town
A18: Postal Code
A20: Street address
A21: Building
A22: Street No. & Name
A23: City / Town
A24: Postal Code
A26: General Contacts
A27: Telephone number
A28: Fax number
A30: C. POLITICAL LEADERSHIP
A31: Speaker: | C31: Secretary/PA to the Speaker:
A32: ID Number | C32: ID Number
A33: Title | C33: Title
A34: Name | C34: Name
A35: Telephone number | C35: Telephone number
A36: Cell number | C36: Cell number
A37: Fax number | C37: Fax number
A38: E-mail address | C38: E-mail address
A40: Mayor/Executive Mayor: | C40: Secretary/PA to the Mayor/Executive Mayor:
A41: ID Number | C41: ID Number
A42: Title | C42: Title
A43: Name | C43: Name
A44: Telephone number | C44: Telephone number
A45: Cell number | C45: Cell number
A46: Fax number | C46: Fax number
A47: E-mail address | C47: E-mail address
A49: Deputy Mayor/Executive Mayor: | C49: Secretary/PA to the Deputy Mayor/Executive Mayor:
A50: ID Number | C50: ID Number
A51: Title | C51: Title
A52: Name | C52: Name
A53: Telephone number | C53: Telephone number
A54: Cell number | C54: Cell number
A55: Fax number | C55: Fax number
A56: E-mail address | C56: E-mail address
A58: D. MANAGEMENT LEADERSHIP
A59: Municipal Manager: | C59: Secretary/PA to the Municipal Manager:
A60: ID Number | C60: ID Number
A61: Title | C61: Title
A62: Name | C62: Name
A63: Telephone number | C63: Telephone number
A64: Cell number | C64: Cell number
A65: Fax number | C65: Fax number
A66: E-mail address | C66: E-mail address
A68: Chief Financial Officer | C68: Secretary/PA to the Chief Financial Officer
A69: ID Number | C69: ID Number
A70: Title | C70: Title
A71: Name | C71: Name
A72: Telephone number | C72: Telephone number
A73: Cell number | C73: Cell number
A74: Fax number | C74: Fax number
A75: E-mail address | C75: E-mail address
A77: Official responsible for submitting financial information | C77: Official responsible for submitting financial information
A78: ID Number | C78: ID Number
A79: Title | C79: Title
A80: Name | C80: Name
A81: Telephone number | C81: Telephone number
A82: Cell number | C82: Cell number
A83: Fax number | C83: Fax number
A84: E-mail address | C84: E-mail address
A85: Official responsible for submitting financial information | C85: Official responsible for submitting financial information
A86: ID Number | C86: ID Number
A87: Title | C87: Title
A88: Name | C88: Name
A89: Telephone number | C89: Telephone number
A90: Cell number | C90: Cell number
A91: Fax number | C91: Fax number
A92: E-mail address | C92: E-mail address
A93: Official responsible for submitting financial information | C93: Official responsible for submitting financial information
A94: ID Number | C94: ID Number
A95: Title | C95: Title
A96: Name | C96: Name
A97: Telephone number | C97: Telephone number
A98: Cell number | C98: Cell number
A99: Fax number | C99: Fax number
A100: E-mail address | C100: E-mail address
A101: Official responsible for submitting financial information | C101: Official responsible for submitting financial information
A102: ID Number | C102: ID Number
A103: Title | C103: Title
A104: Name | C104: Name
A105: Telephone number | C105: Telephone number
A106: Cell number | C106: Cell number
A107: Fax number | C107: Fax number
A108: E-mail address | C108: E-mail address
A109: Official responsible for submitting financial information | C109: Official responsible for submitting financial information
A110: ID Number | C110: ID Number
A111: Title | C111: Title
A112: Name | C112: Name
A113: Telephone number | C113: Telephone number
A114: Cell number | C114: Cell number
A115: Fax number | C115: Fax number
A116: E-mail address | C116: E-mail address
A117: Official responsible for submitting financial information | C117: Official responsible for submitting financial information
A118: ID Number | C118: ID Number
A119: Title | C119: Title
A120: Name | C120: Name
A121: Telephone number | C121: Telephone number
A122: Cell number | C122: Cell number
A123: Fax number | C123: Fax number
A124: E-mail address | C124: E-mail address
A125: Official responsible for submitting financial information | C125: Official responsible for submitting financial information
A126: ID Number | C126: ID Number
A127: Title | C127: Title
A128: Name | C128: Name
A129: Telephone number | C129: Telephone number
A130: Cell number | C130: Cell number
A131: Fax number | C131: Fax number
A132: E-mail address | C132: E-mail address
A133: Official responsible for submitting financial information
A134: ID Number
A135: Title
A136: Name
A137: Telephone number
A138: Cell number
A139: Fax number
A140: E-mail address

Sheet A1-Sum
A1: =muni&" - "&Approve1 -> DC3 Overberg - Table A1 Budget Summary
A2: =desc -> Description | B2: =head1b -> 2016/17 | C2: =head1A -> 2017/18 | D2: =Head1 -> 2018/19 | E2: =Head2 -> Current Year 2019/20 | I2: =Head3 -> 2020/21 Medium Term Revenue & Expenditure Framework
A3: R thousands | B3: =Head5 -> Audited Outcome | C3: =Head5 -> Audited Outcome | D3: =Head5 -> Audited Outcome | E3: =Head6 -> Original Budget | F3: =Head7 -> Adjusted Budget | G3: =Head8 -> Full Year Forecast | H3: =Head5b -> Pre-audit outcome | I3: =Head9 -> Budget Year 2020/21 | J3: =Head10 -> Budget Year +1 2021/22 | K3: =Head11 -> Budget Year +2 2022/23
A4: Financial Performance
A5: Property rates | B5: ='A4-FinPerf RE'!C5 -> 0 | C5: ='A4-FinPerf RE'!D5 -> 0 | D5: ='A4-FinPerf RE'!E5 -> 0 | E5: ='A4-FinPerf RE'!F5 -> 0 | F5: ='A4-FinPerf RE'!G5 -> 0 | G5: ='A4-FinPerf RE'!H5 -> 0 | H5: ='A4-FinPerf RE'!I5 -> 0 | I5: ='A4-FinPerf RE'!J5 -> 0 | J5: ='A4-FinPerf RE'!K5 -> 0 | K5: ='A4-FinPerf RE'!L5 -> 0
A6: Service charges | B6: =SUM('A4-FinPerf RE'!C6:C9) -> 801442.31 | C6: =SUM('A4-FinPerf RE'!D6:D9) -> 74753.05 | D6: =SUM('A4-FinPerf RE'!E6:E9) -> 2102464.12 | E6: =SUM('A4-FinPerf RE'!F6:F9) -> 10723096 | F6: =SUM('A4-FinPerf RE'!G6:G9) -> 10723096 | G6: =SUM('A4-FinPerf RE'!H6:H9) -> 10723096 | H6: =SUM('A4-FinPerf RE'!I6:I9) -> 10723096 | I6: =SUM('A4-FinPerf RE'!J6:J9) -> 12417765 | J6: =SUM('A4-FinPerf RE'!K6:K9) -> 12931186 | K6: =SUM('A4-FinPerf RE'!L6:L9) -> 13466480
A7: Investment revenue | B7: ='A4-FinPerf RE'!C12 -> 2311482.62 | C7: ='A4-FinPerf RE'!D12 -> 2936532.66 | D7: ='A4-FinPerf RE'!E12 -> 2158751.94 | E7: ='A4-FinPerf RE'!F12 -> 2500000 | F7: ='A4-FinPerf RE'!G12 -> 2500000 | G7: ='A4-FinPerf RE'!H12 -> 2500000 | H7: ='A4-FinPerf RE'!I12 -> 2500000 | I7: ='A4-FinPerf RE'!J12 -> 1800000 | J7: ='A4-FinPerf RE'!K12 -> 1872000 | K7: ='A4-FinPerf RE'!L12 -> 1946880
A8: Transfers recognised - operational | B8: ='A4-FinPerf RE'!C18 -> 58277205.22 | C8: ='A4-FinPerf RE'!D18 -> 63400089.34 | D8: ='A4-FinPerf RE'!E18 -> 73374601.84 | E8: ='A4-FinPerf RE'!F18 -> 169422787 | F8: ='A4-FinPerf RE'!G18 -> 80430968 | G8: ='A4-FinPerf RE'!H18 -> 80430968 | H8: ='A4-FinPerf RE'!I18 -> 80430968 | I8: ='A4-FinPerf RE'!J18 -> 80883000 | J8: ='A4-FinPerf RE'!K18 -> 81769000 | K8: ='A4-FinPerf RE'!L18 -> 84586000
A9: Other own revenue | B9: ='A4-FinPerf RE'!C11+'A4-FinPerf RE'!C13+'A4-FinPerf RE'!C14+'A4-FinPerf RE'!C15+'A4-FinPerf RE'!C16+'A4-FinPerf RE'!C17+'A4-FinPerf RE'!C19+'A4-FinPerf RE'!C20 -> 95610317.87 | C9: ='A4-FinPerf RE'!D11+'A4-FinPerf RE'!D13+'A4-FinPerf RE'!D14+'A4-FinPerf RE'!D15+'A4-FinPerf RE'!D16+'A4-FinPerf RE'!D17+'A4-FinPerf RE'!D19+'A4-FinPerf RE'!D20 -> 118713801.2 | D9: ='A4-FinPerf RE'!E11+'A4-FinPerf RE'!E13+'A4-FinPerf RE'!E14+'A4-FinPerf RE'!E15+'A4-FinPerf RE'!E16+'A4-FinPerf RE'!E17+'A4-FinPerf RE'!E19+'A4-FinPerf RE'!E20 -> 138205869.8 | E9: ='A4-FinPerf RE'!F11+'A4-FinPerf RE'!F13+'A4-FinPerf RE'!F14+'A4-FinPerf RE'!F15+'A4-FinPerf RE'!F16+'A4-FinPerf RE'!F17+'A4-FinPerf RE'!F19+'A4-FinPerf RE'!F20 -> 36239751.39 | F9: ='A4-FinPerf RE'!G11+'A4-FinPerf RE'!G13+'A4-FinPerf RE'!G14+'A4-FinPerf RE'!G15+'A4-FinPerf RE'!G16+'A4-FinPerf RE'!G17+'A4-FinPerf RE'!G19+'A4-FinPerf RE'!G20 -> 137190031 | G9: ='A4-FinPerf RE'!H11+'A4-FinPerf RE'!H13+'A4-FinPerf RE'!H14+'A4-FinPerf RE'!H15+'A4-FinPerf RE'!H16+'A4-FinPerf RE'!H17+'A4-FinPerf RE'!H19+'A4-FinPerf RE'!H20 -> 137190031 | H9: ='A4-FinPerf RE'!I11+'A4-FinPerf RE'!I13+'A4-FinPerf RE'!I14+'A4-FinPerf RE'!I15+'A4-FinPerf RE'!I16+'A4-FinPerf RE'!I17+'A4-FinPerf RE'!I19+'A4-FinPerf RE'!I20 -> 137190031 | I9: ='A4-FinPerf RE'!J11+'A4-FinPerf RE'!J13+'A4-FinPerf RE'!J14+'A4-FinPerf RE'!J15+'A4-FinPerf RE'!J16+'A4-FinPerf RE'!J17+'A4-FinPerf RE'!J19+'A4-FinPerf RE'!J20 -> 141991452 | J9: ='A4-FinPerf RE'!K11+'A4-FinPerf RE'!K13+'A4-FinPerf RE'!K14+'A4-FinPerf RE'!K15+'A4-FinPerf RE'!K16+'A4-FinPerf RE'!K17+'A4-FinPerf RE'!K19+'A4-FinPerf RE'!K20 -> 148278402 | K9: ='A4-FinPerf RE'!L11+'A4-FinPerf RE'!L13+'A4-FinPerf RE'!L14+'A4-FinPerf RE'!L15+'A4-FinPerf RE'!L16+'A4-FinPerf RE'!L17+'A4-FinPerf RE'!L19+'A4-FinPerf RE'!L20 -> 154865413
A10: ='A4-FinPerf RE'!A21 -> Total Revenue (excluding capital transfers and contributions) | B10: =SUM(B5:B9) -> 157000448 | C10: 185125176.2 | D10: 215841687.7 | E10: =SUM(E5:E9) -> 218885634.4 | F10: =SUM(F5:F9) -> 230844095 | G10: 230844095 | H10: 230844095 | I10: 237092217 | J10: 244850588 | K10: 254864773
A11: Employee costs | B11: ='A4-FinPerf RE'!C24 -> 83192512.11 | C11: ='A4-FinPerf RE'!D24 -> 91112721.48 | D11: ='A4-FinPerf RE'!E24 -> 101195222.8 | E11: ='A4-FinPerf RE'!F24 -> 103201344 | F11: ='A4-FinPerf RE'!G24 -> 112051236.4 | G11: ='A4-FinPerf RE'!H24 -> 112051236.4 | H11: ='A4-FinPerf RE'!I24 -> 112051236.4 | I11: ='A4-FinPerf RE'!J24 -> 124756156 | J11: ='A4-FinPerf RE'!K24 -> 128494722 | K11: ='A4-FinPerf RE'!L24 -> 133618357
A12: Remuneration of councillors | B12: ='A4-FinPerf RE'!C25 -> 5149566.34 | C12: ='A4-FinPerf RE'!D25 -> 6141571.45 | D12: ='A4-FinPerf RE'!E25 -> 6264038.02 | E12: ='A4-FinPerf RE'!F25 -> 6606537.6 | F12: ='A4-FinPerf RE'!G25 -> 6617599 | G12: ='A4-FinPerf RE'!H25 -> 6617599 | H12: ='A4-FinPerf RE'!I25 -> 6617599 | I12: ='A4-FinPerf RE'!J25 -> 6341182 | J12: ='A4-FinPerf RE'!K25 -> 6594829 | K12: ='A4-FinPerf RE'!L25 -> 6858622
A13: Depreciation & asset impairment | B13: ='A4-FinPerf RE'!C27 -> 3254079.13 | C13: ='A4-FinPerf RE'!D27 -> 4652603.312 | D13: ='A4-FinPerf RE'!E27 -> 4068052.79 | E13: ='A4-FinPerf RE'!F27 -> 3575545 | F13: ='A4-FinPerf RE'!G27 -> 3575545 | G13: ='A4-FinPerf RE'!H27 -> 3575545 | H13: ='A4-FinPerf RE'!I27 -> 3575545 | I13: ='A4-FinPerf RE'!J27 -> 3575545 | J13: ='A4-FinPerf RE'!K27 -> 3718568 | K13: ='A4-FinPerf RE'!L27 -> 3867309
A14: Finance charges | B14: ='A4-FinPerf RE'!C28 -> 7778036.08 | C14: ='A4-FinPerf RE'!D28 -> 7999174.61 | D14: ='A4-FinPerf RE'!E28 -> 9081291.78 | E14: ='A4-FinPerf RE'!F28 -> 9164827.259 | F14: ='A4-FinPerf RE'!G28 -> 11016067 | G14: ='A4-FinPerf RE'!H28 -> 11016067 | H14: ='A4-FinPerf RE'!I28 -> 11016067 | I14: ='A4-FinPerf RE'!J28 -> 11037881 | J14: ='A4-FinPerf RE'!K28 -> 11479397 | K14: ='A4-FinPerf RE'!L28 -> 11938573
A15: Materials and bulk purchases | B15: ='A4-FinPerf RE'!C29+'A4-FinPerf RE'!C30 -> 32868138.9 | C15: ='A4-FinPerf RE'!D29+'A4-FinPerf RE'!D30 -> 43285841.59 | D15: ='A4-FinPerf RE'!E29+'A4-FinPerf RE'!E30 -> 48584914.39 | E15: ='A4-FinPerf RE'!F29+'A4-FinPerf RE'!F30 -> 52930532 | F15: ='A4-FinPerf RE'!G29+'A4-FinPerf RE'!G30 -> 49052827.7 | G15: ='A4-FinPerf RE'!H29+'A4-FinPerf RE'!H30 -> 49052827.7 | H15: ='A4-FinPerf RE'!I29+'A4-FinPerf RE'!I30 -> 49052827.7 | I15: ='A4-FinPerf RE'!J29+'A4-FinPerf RE'!J30 -> 42932147 | J15: ='A4-FinPerf RE'!K29+'A4-FinPerf RE'!K30 -> 44647113 | K15: ='A4-FinPerf RE'!L29+'A4-FinPerf RE'!L30 -> 46430677
A16: Transfers and grants | B16: ='A4-FinPerf RE'!C32 -> 120000 | C16: ='A4-FinPerf RE'!D32 -> 120000 | D16: ='A4-FinPerf RE'!E32 -> 360000 | E16: ='A4-FinPerf RE'!F32 -> 380000 | F16: ='A4-FinPerf RE'!G32 -> 484347.8261 | G16: ='A4-FinPerf RE'!H32 -> 484347.8261 | H16: ='A4-FinPerf RE'!I32 -> 484347.8261 | I16: ='A4-FinPerf RE'!J32 -> 401000 | J16: ='A4-FinPerf RE'!K32 -> 0 | K16: ='A4-FinPerf RE'!L32 -> 0
A17: Other expenditure | B17: ='A4-FinPerf RE'!C26+'A4-FinPerf RE'!C31+'A4-FinPerf RE'!C33+'A4-FinPerf RE'!C34 -> 29609141.42 | C17: ='A4-FinPerf RE'!D26+'A4-FinPerf RE'!D31+'A4-FinPerf RE'!D33+'A4-FinPerf RE'!D34 -> 35381139.75 | D17: ='A4-FinPerf RE'!E26+'A4-FinPerf RE'!E31+'A4-FinPerf RE'!E33+'A4-FinPerf RE'!E34 -> 43186447.6 | E17: ='A4-FinPerf RE'!F26+'A4-FinPerf RE'!F31+'A4-FinPerf RE'!F33+'A4-FinPerf RE'!F34 -> 46553423.31 | F17: ='A4-FinPerf RE'!G26+'A4-FinPerf RE'!G31+'A4-FinPerf RE'!G33+'A4-FinPerf RE'!G34 -> 54435859.64 | G17: ='A4-FinPerf RE'!H26+'A4-FinPerf RE'!H31+'A4-FinPerf RE'!H33+'A4-FinPerf RE'!H34 -> 54435859.64 | H17: ='A4-FinPerf RE'!I26+'A4-FinPerf RE'!I31+'A4-FinPerf RE'!I33+'A4-FinPerf RE'!I34 -> 54435859.64 | I17: ='A4-FinPerf RE'!J26+'A4-FinPerf RE'!J31+'A4-FinPerf RE'!J33+'A4-FinPerf RE'!J34 -> 50814321 | J17: ='A4-FinPerf RE'!K26+'A4-FinPerf RE'!K31+'A4-FinPerf RE'!K33+'A4-FinPerf RE'!K34 -> 52093054 | K17: ='A4-FinPerf RE'!L26+'A4-FinPerf RE'!L31+'A4-FinPerf RE'!L33+'A4-FinPerf RE'!L34 -> 54203300
A18: ='A4-FinPerf RE'!A35 -> Total Expenditure | B18: =SUM(B11:B17) -> 161971474 | C18: =SUM(C11:C17) -> 188693052.2 | D18: 212739967.4 | E18: =SUM(E11:E17) -> 222412209.2 | F18: =SUM(F11:F17) -> 237233482.6 | G18: 237233482.6 | H18: 237233482.6 | I18: 239858232 | J18: 247027683 | K18: 256916838
A19: ='A4-FinPerf RE'!A37 -> Surplus/(Deficit) | B19: =B10-B18 -> -4971025.96 | C19: -3567875.973 | D19: 3101720.29 | E19: =E10-E18 -> -3526574.784 | F19: =F10-F18 -> -6389387.565 | G19: -6389387.565 | H19: -6389387.565 | I19: -2766014.999 | J19: -2177095 | K19: -2052065
A20: ='A4-FinPerf RE'!A38 -> Transfers and subsidies - capital (monetary allocations) (National / Provincial and District) | B20: ='A4-FinPerf RE'!C38 -> 2303072.63 | C20: ='A4-FinPerf RE'!D38 -> 890000 | D20: ='A4-FinPerf RE'!E38 -> 1483000 | E20: ='A4-FinPerf RE'!F38 -> 1100000 | F20: ='A4-FinPerf RE'!G38 -> 2650000 | G20: ='A4-FinPerf RE'!H38 -> 2650000 | H20: ='A4-FinPerf RE'!I38 -> 2650000 | I20: ='A4-FinPerf RE'!J38 -> 2100000 | J20: ='A4-FinPerf RE'!K38 -> 2323000 | K20: ='A4-FinPerf RE'!L38 -> 2435000
A21: ='A4-FinPerf RE'!A39&" & "&'A4-FinPerf RE'!A40 -> Transfers and subsidies - capital (monetary allocations) (National / Provincial Departmental Agencies, Households, Non-profit Institutions, Private Enterprises, Public Corporatons, Higher Educational Institutions) & Transfers and subsidies - capital (in-kind - all) | B21: ='A4-FinPerf RE'!C39+'A4-FinPerf RE'!C40 -> 110752.37 | C21: ='A4-FinPerf RE'!D39+'A4-FinPerf RE'!D40 -> 0 | D21: ='A4-FinPerf RE'!E39+'A4-FinPerf RE'!E40 -> 0 | E21: ='A4-FinPerf RE'!F39+'A4-FinPerf RE'!F40 -> 0 | F21: ='A4-FinPerf RE'!G39+'A4-FinPerf RE'!G40 -> 0 | G21: ='A4-FinPerf RE'!H39+'A4-FinPerf RE'!H40 -> 0 | H21: ='A4-FinPerf RE'!I39+'A4-FinPerf RE'!I40 -> 0 | I21: ='A4-FinPerf RE'!J39+'A4-FinPerf RE'!J40 -> 0 | J21: ='A4-FinPerf RE'!K39+'A4-FinPerf RE'!K40 -> 0 | K21: ='A4-FinPerf RE'!L39+'A4-FinPerf RE'!L40 -> 0
A22: ='A4-FinPerf RE'!A41 -> Surplus/(Deficit) after capital transfers & contributions | B22: =B19+SUM(B20:B21) -> -2557200.96 | C22: =C19+SUM(C20:C21) -> -2677875.973 | D22: 4584720.29 | E22: =E19+SUM(E20:E21) -> -2426574.784 | F22: =F19+SUM(F20:F21) -> -3739387.565 | G22: -3739387.565 | H22: -3739387.565 | I22: -666014.9989 | J22: 145905 | K22: 382935
A23: ='A4-FinPerf RE'!A46 -> Share of surplus/ (deficit) of associate | B23: ='A4-FinPerf RE'!C46 -> 0 | C23: ='A4-FinPerf RE'!D46 -> 0 | D23: ='A4-FinPerf RE'!E46 -> 0 | E23: ='A4-FinPerf RE'!F46 -> 0 | F23: ='A4-FinPerf RE'!G46 -> 0 | G23: ='A4-FinPerf RE'!H46 -> 0 | H23: ='A4-FinPerf RE'!I46 -> 0 | I23: ='A4-FinPerf RE'!J46 -> 0 | J23: ='A4-FinPerf RE'!K46 -> 0 | K23: ='A4-FinPerf RE'!L46 -> 0
A24: ='A4-FinPerf RE'!A47 -> Surplus/(Deficit) for the year | B24: =B22+B23 -> -2557200.96 | C24: =C22+C23 -> -2677875.973 | D24: 4584720.29 | E24: =E22+E23 -> -2426574.784 | F24: =F22+F23 -> -3739387.565 | G24: -3739387.565 | H24: -3739387.565 | I24: -666014.9989 | J24: 145905 | K24: 382935
A26: Capital expenditure & funds sources
A27: Capital expenditure | B27: ='A5-Capex'!C63 -> 6781510.851 | C27: ='A5-Capex'!D63 -> 5331903.19 | D27: ='A5-Capex'!E63 -> 36981856.12 | E27: ='A5-Capex'!F63 -> 11353111 | F27: ='A5-Capex'!G63 -> 5652000 | G27: ='A5-Capex'!H63 -> 5652000 | H27: ='A5-Capex'!I63 -> 5652000 | I27: ='A5-Capex'!J63 -> 8465000 | J27: ='A5-Capex'!K63 -> 8163000 | K27: ='A5-Capex'!L63 -> 3090000
A28: Transfers recognised - capital | B28: ='A5-Capex'!C70 -> 2303072.63 | C28: ='A5-Capex'!D70 -> 890000 | D28: ='A5-Capex'!E70 -> 1483000 | E28: ='A5-Capex'!F70 -> 1100000 | F28: ='A5-Capex'!G70 -> 2650000 | G28: ='A5-Capex'!H70 -> 2650000 | H28: ='A5-Capex'!I70 -> 2650000 | I28: ='A5-Capex'!J70 -> 2100000 | J28: ='A5-Capex'!K70 -> 2323000 | K28: ='A5-Capex'!L70 -> 2435000
A30: ='A5-Capex'!A72 -> Borrowing | B30: ='A5-Capex'!C72 -> 2074305.581 | C30: ='A5-Capex'!D72 -> 0 | D30: ='A5-Capex'!E72 -> 22316197.57 | E30: ='A5-Capex'!F72 -> 6128111 | F30: ='A5-Capex'!G72 -> 0 | G30: ='A5-Capex'!H72 -> 0 | H30: ='A5-Capex'!I72 -> 0 | I30: ='A5-Capex'!J72 -> 4900000 | J30: ='A5-Capex'!K72 -> 0 | K30: ='A5-Capex'!L72 -> 0
A31: ='A5-Capex'!A73 -> Internally generated funds | B31: ='A5-Capex'!C73 -> 2404132.64 | C31: ='A5-Capex'!D73 -> 4441903.19 | D31: ='A5-Capex'!E73 -> 13182658.55 | E31: ='A5-Capex'!F73 -> 4125000 | F31: ='A5-Capex'!G73 -> 3002000 | G31: ='A5-Capex'!H73 -> 3002000 | H31: ='A5-Capex'!I73 -> 3002000 | I31: ='A5-Capex'!J73 -> 1465000 | J31: ='A5-Capex'!K73 -> 5840000 | K31: ='A5-Capex'!L73 -> 655000
A32: Total sources of capital funds | B32: =+B28+B30+B31 -> 6781510.851 | C32: =+C28+C30+C31 -> 5331903.19 | D32: 36981856.12 | E32: =+E28+E30+E31 -> 11353111 | F32: =+F28+F30+F31 -> 5652000 | G32: 5652000 | H32: 5652000 | I32: 8465000 | J32: 8163000 | K32: 3090000
A34: Financial position
A35: ='A6-FinPos'!A12 -> Total current assets | B35: ='A6-FinPos'!C12 -> 38231803.94 | C35: ='A6-FinPos'!D12 -> 42097868.32 | D35: ='A6-FinPos'!E12 -> 44312811.11 | E35: ='A6-FinPos'!F12 -> 39248917.83 | F35: ='A6-FinPos'!G12 -> 38727181.86 | G35: ='A6-FinPos'!H12 -> 38727181.86 | H35: ='A6-FinPos'!I12 -> 38727181.86 | I35: ='A6-FinPos'!J12 -> 36684917.76 | J35: ='A6-FinPos'!K12 -> 35839432.49 | K35: ='A6-FinPos'!L12 -> 40005328.91
A36: ='A6-FinPos'!A24 -> Total non current assets | B36: ='A6-FinPos'!C24 -> 88028003.65 | C36: ='A6-FinPos'!D24 -> 88086670 | D36: ='A6-FinPos'!E24 -> 117215186.2 | E36: ='A6-FinPos'!F24 -> 118735832.2 | F36: ='A6-FinPos'!G24 -> 119291641.2 | G36: ='A6-FinPos'!H24 -> 119291641.2 | H36: ='A6-FinPos'!I24 -> 119291641.2 | I36: ='A6-FinPos'!J24 -> 124181096.2 | J36: ='A6-FinPos'!K24 -> 128625528.2 | K36: ='A6-FinPos'!L24 -> 127848219.2
A37: ='A6-FinPos'!A34 -> Total current liabilities | B37: ='A6-FinPos'!C34 -> 23089727.15 | C37: ='A6-FinPos'!D34 -> 33015414.86 | D37: ='A6-FinPos'!E34 -> 31882354.21 | E37: ='A6-FinPos'!F34 -> 29518580.76 | F37: ='A6-FinPos'!G34 -> 29616642.36 | G37: ='A6-FinPos'!H34 -> 29616642.36 | H37: ='A6-FinPos'!I34 -> 29616642.36 | I37: ='A6-FinPos'!J34 -> 30733913.4 | J37: ='A6-FinPos'!K34 -> 31938814.01 | K37: ='A6-FinPos'!L34 -> 33241263.43
A38: ='A6-FinPos'!A39 -> Total non current liabilities | B38: ='A6-FinPos'!C39 -> 82560642.58 | C38: ='A6-FinPos'!D39 -> 79237561.53 | D38: ='A6-FinPos'!E39 -> 107129360.9 | E38: ='A6-FinPos'!F39 -> 116540112.4 | F38: ='A6-FinPos'!G39 -> 109625285.9 | G38: ='A6-FinPos'!H39 -> 109625285.9 | H38: ='A6-FinPos'!I39 -> 109625285.9 | I38: ='A6-FinPos'!J39 -> 112021220.6 | J38: ='A6-FinPos'!K39 -> 114269361.7 | K38: ='A6-FinPos'!L39 -> 115972564.7
A39: Community wealth/Equity | B39: ='A6-FinPos'!C48 -> 20609438.59 | C39: ='A6-FinPos'!D48 -> 17931562.61 | D39: ='A6-FinPos'!E48 -> 22516282.9 | E39: ='A6-FinPos'!F48 -> 11926057.05 | F39: ='A6-FinPos'!G48 -> 18776895.02 | G39: ='A6-FinPos'!H48 -> 18776895.02 | H39: ='A6-FinPos'!I48 -> 18776895.02 | I39: ='A6-FinPos'!J48 -> 18110880.02 | J39: ='A6-FinPos'!K48 -> 18256785.02 | K39: ='A6-FinPos'!L48 -> 18639720.02
A41: Cash flows
A42: Net cash from (used) operating | B42: ='A7-CFlow'!C17 -> 15665638.87 | C42: ='A7-CFlow'!D17 -> 9440638.12 | D42: ='A7-CFlow'!E17 -> -734763.8277 | E42: ='A7-CFlow'!F17 -> 4750369.718 | F42: ='A7-CFlow'!G17 -> 338582.0307 | G42: ='A7-CFlow'!H17 -> 338582.0307 | H42: ='A7-CFlow'!I17 -> 338582.0307 | I42: ='A7-CFlow'!J17 -> -47583.37123 | J42: ='A7-CFlow'!K17 -> 816787.5923 | K42: ='A7-CFlow'!L17 -> 1109842.275
A43: Net cash from (used) investing | B43: ='A7-CFlow'!C27 -> -4596452.89 | C43: ='A7-CFlow'!D27 -> -3795209.92 | D43: ='A7-CFlow'!E27 -> -23508877.8 | E43: ='A7-CFlow'!F27 -> -6253111 | F43: ='A7-CFlow'!G27 -> -552000 | G43: ='A7-CFlow'!H27 -> -552000 | H43: ='A7-CFlow'!I27 -> -552000 | I43: ='A7-CFlow'!J27 -> 954772 | J43: ='A7-CFlow'!K27 -> 1633563 | K43: ='A7-CFlow'!L27 -> 7098426
A44: Net cash from (used) financing | B44: ='A7-CFlow'!C36 -> -1169425.251 | C44: ='A7-CFlow'!D36 -> -1206167.386 | D44: ='A7-CFlow'!E36 -> 25976231.77 | E44: ='A7-CFlow'!F36 -> -2872211.711 | F44: ='A7-CFlow'!G36 -> -2872211.589 | G44: ='A7-CFlow'!H36 -> -2872211.589 | H44: ='A7-CFlow'!I36 -> -2872211.589 | I44: ='A7-CFlow'!J36 -> -2949452.891 | J44: ='A7-CFlow'!K36 -> -3295835.864 | K44: ='A7-CFlow'!L36 -> -4042371.848
A45: =LEFT('A7-CFlow'!A40,37) -> Cash/cash equivalents at the year end | B45: ='A7-CFlow'!C40 -> 32276124.49 | C45: ='A7-CFlow'!D40 -> 36715385.3 | D45: ='A7-CFlow'!E40 -> 38447975.44 | E45: ='A7-CFlow'!F40 -> 35152644.81 | F45: ='A7-CFlow'!G40 -> 35362346.06 | G45: ='A7-CFlow'!H40 -> 35362346.06 | H45: ='A7-CFlow'!I40 -> 35362346.06 | I45: ='A7-CFlow'!J40 -> 33320082.11 | J45: ='A7-CFlow'!K40 -> 32474596.84 | K45: ='A7-CFlow'!L40 -> 36640493.27
A47: Cash backing/surplus reconciliation
A48: ='A8-ResRecon'!A4 -> Cash and investments available | B48: ='A8-ResRecon'!C8 -> 32276124.81 | C48: ='A8-ResRecon'!D8 -> 36715385.47 | D48: ='A8-ResRecon'!E8 -> 38447975.62 | E48: ='A8-ResRecon'!F8 -> 35152644.81 | F48: ='A8-ResRecon'!G8 -> 35362346.37 | G48: ='A8-ResRecon'!H8 -> 35362346.37 | H48: ='A8-ResRecon'!I8 -> 35362346.37 | I48: ='A8-ResRecon'!J8 -> 33320082.27 | J48: ='A8-ResRecon'!K8 -> 32474597 | K48: ='A8-ResRecon'!L8 -> 36640493.42
A49: ='A8-ResRecon'!A10 -> Application of cash and investments | B49: ='A8-ResRecon'!C18 -> -20545252.05 | C49: ='A8-ResRecon'!D18 -> -10854457.25 | D49: ='A8-ResRecon'!E18 -> -13303930.63 | E49: ='A8-ResRecon'!F18 -> -16978349.9 | F49: ='A8-ResRecon'!G18 -> -12935156.74 | G49: ='A8-ResRecon'!H18 -> -12935156.74 | H49: ='A8-ResRecon'!I18 -> -12935156.74 | I49: ='A8-ResRecon'!J18 -> -16614313.26 | J49: ='A8-ResRecon'!K18 -> -16033797.78 | K49: ='A8-ResRecon'!L18 -> -15453282.3
A50: Balance - surplus (shortfall) | B50: =B48-B49 -> 52821376.86 | C50: =C48-C49 -> 47569842.72 | D50: 51751906.25 | E50: =E48-E49 -> 52130994.71 | F50: =F48-F49 -> 48297503.11 | G50: 48297503.11 | H50: 48297503.11 | I50: 49934395.53 | J50: 48508394.78 | K50: 52093775.72
A52: Asset management
A53: Asset register summary (WDV) | B53: ='A9-Asset'!C165 -> 59595432.52 | C53: ='A9-Asset'!D165 -> 59654098.82 | D53: ='A9-Asset'!E165 -> 88782614.41 | E53: ='A9-Asset'!F165 -> 83414477.44 | F53: ='A9-Asset'!G165 -> 90859069.42 | G53: ='A9-Asset'!H165 -> 90859069.42 | H53: ='A9-Asset'!H165 -> 90859069.42 | I53: ='A9-Asset'!I165 -> 95748524.42 | J53: ='A9-Asset'!J165 -> 100192956.4 | K53: ='A9-Asset'!K165 -> 99415647.42
A54: ='A9-Asset'!A168 -> Depreciation | B54: ='A9-Asset'!C168 -> 3254079.13 | C54: ='A9-Asset'!D168 -> 4652603.312 | D54: ='A9-Asset'!E168 -> 4068052.785 | E54: ='A9-Asset'!F168 -> 3575544.996 | F54: ='A9-Asset'!G168 -> 3575544.996 | G54: ='A9-Asset'!H168 -> 3575544.996 | H54: ='A9-Asset'!H168 -> 3575544.996 | I54: ='A9-Asset'!I168 -> 3575545 | J54: ='A9-Asset'!J168 -> 3718568 | K54: ='A9-Asset'!K168 -> 3867309
A55: Renewal and Upgrading of Existing Assets | B55: ='A9-Asset'!C37+'A9-Asset'!C69 -> 5424883.961 | C55: ='A9-Asset'!D37+'A9-Asset'!D69 -> 2386569.77 | D55: ='A9-Asset'!E37+'A9-Asset'!E69 -> 34413988.77 | E55: ='A9-Asset'!F37+'A9-Asset'!F69 -> 6783111 | F55: ='A9-Asset'!G37+'A9-Asset'!G69 -> 3435000 | G55: ='A9-Asset'!H37+'A9-Asset'!H69 -> 3435000 | H55: ='A9-Asset'!H37+'A9-Asset'!H69 -> 3435000 | I55: ='A9-Asset'!I37+'A9-Asset'!I69 -> 5165000 | J55: ='A9-Asset'!J37+'A9-Asset'!J69 -> 4233000 | K55: ='A9-Asset'!K37+'A9-Asset'!K69 -> 550000
A56: Repairs and Maintenance | B56: ='A9-Asset'!C169 -> 4417942.8 | C56: ='A9-Asset'!D169 -> 5578701.32 | D56: ='A9-Asset'!E169 -> 5959503.29 | E56: ='A9-Asset'!F169 -> 96625975.59 | F56: ='A9-Asset'!G169 -> 13066690 | G56: ='A9-Asset'!H169 -> 13017890 | H56: ='A9-Asset'!H169 -> 13017890 | I56: ='A9-Asset'!I169 -> 8847936 | J56: ='A9-Asset'!J169 -> 9191853 | K56: ='A9-Asset'!K169 -> 9559528
A58: Free services
A59: Cost of Free Basic Services provided | B59: ='A10-SerDel'!C60 -> 0 | C59: ='A10-SerDel'!D60 -> 0 | D59: ='A10-SerDel'!E60 -> 0 | E59: ='A10-SerDel'!F60 -> 0 | F59: ='A10-SerDel'!G60 -> 0 | G59: ='A10-SerDel'!H60 -> 0 | H59: ='A10-SerDel'!I60 -> 0 | I59: ='A10-SerDel'!I60 -> 0 | J59: ='A10-SerDel'!J60 -> 0 | K59: ='A10-SerDel'!K60 -> 0
A60: Revenue cost of free services provided | B60: ='A10-SerDel'!C79 -> 0 | C60: ='A10-SerDel'!D79 -> 0 | D60: ='A10-SerDel'!E79 -> 0 | E60: ='A10-SerDel'!F79 -> 0 | F60: ='A10-SerDel'!G79 -> 0 | G60: ='A10-SerDel'!H79 -> 0 | H60: ='A10-SerDel'!I79 -> 0 | I60: ='A10-SerDel'!I79 -> 0 | J60: ='A10-SerDel'!J79 -> 0 | K60: ='A10-SerDel'!K79 -> 0
A61: Households below minimum service level
A62: ='A10-SerDel'!A5 -> Water: | B62: ='A10-SerDel'!C14 -> 0 | C62: ='A10-SerDel'!D14 -> 0 | D62: ='A10-SerDel'!E14 -> 0 | E62: ='A10-SerDel'!F14 -> 0 | F62: ='A10-SerDel'!G14 -> 0 | G62: ='A10-SerDel'!H14 -> 0 | H62: ='A10-SerDel'!I14 -> 0 | I62: ='A10-SerDel'!I14 -> 0 | J62: ='A10-SerDel'!J14 -> 0 | K62: ='A10-SerDel'!K14 -> 0
A63: ='A10-SerDel'!A16 -> Sanitation/sewerage: | B63: ='A10-SerDel'!C26 -> 0 | C63: ='A10-SerDel'!D26 -> 0 | D63: ='A10-SerDel'!E26 -> 0 | E63: ='A10-SerDel'!F26 -> 0 | F63: ='A10-SerDel'!G26 -> 0 | G63: ='A10-SerDel'!H26 -> 0 | H63: ='A10-SerDel'!I26 -> 0 | I63: ='A10-SerDel'!I26 -> 0 | J63: ='A10-SerDel'!J26 -> 0 | K63: ='A10-SerDel'!K26 -> 0
A64: ='A10-SerDel'!A28 -> Energy: | B64: ='A10-SerDel'!C35 -> 0 | C64: ='A10-SerDel'!D35 -> 0 | D64: ='A10-SerDel'!E35 -> 0 | E64: ='A10-SerDel'!F35 -> 0 | F64: ='A10-SerDel'!G35 -> 0 | G64: ='A10-SerDel'!H35 -> 0 | H64: ='A10-SerDel'!I35 -> 0 | I64: ='A10-SerDel'!I35 -> 0 | J64: ='A10-SerDel'!J35 -> 0 | K64: ='A10-SerDel'!K35 -> 0
A65: ='A10-SerDel'!A37 -> Refuse: | B65: ='A10-SerDel'!C45 -> 0 | C65: ='A10-SerDel'!D45 -> 0 | D65: ='A10-SerDel'!E45 -> 0 | E65: ='A10-SerDel'!F45 -> 0 | F65: ='A10-SerDel'!G45 -> 0 | G65: ='A10-SerDel'!H45 -> 0 | H65: ='A10-SerDel'!I45 -> 0 | I65: ='A10-SerDel'!I45 -> 0 | J65: ='A10-SerDel'!J45 -> 0 | K65: ='A10-SerDel'!K45 -> 0

Sheet A2-FinPerf SC
A1: =muni&" - "&Approve3 -> DC3 Overberg - Table A2 Budgeted Financial Performance (revenue and expenditure by functional classification)
A2: ="Functional Classification "&desc -> Functional Classification Description | B2: =head27 -> Ref | C2: =head1b -> 2016/17 | D2: =head1A -> 2017/18 | E2: =Head1 -> 2018/19 | F2: =Head2 -> Current Year 2019/20 | I2: =Head3 -> 2020/21 Medium Term Revenue & Expenditure Framework
A3: R thousand | B3: 1 | C3: =Head5 -> Audited Outcome | D3: =Head5 -> Audited Outcome | E3: =Head5 -> Audited Outcome | F3: =Head6 -> Original Budget | G3: =Head7 -> Adjusted Budget | H3: =Head8 -> Full Year Forecast | I3: =Head9 -> Budget Year 2020/21 | J3: =Head10 -> Budget Year +1 2021/22 | K3: =Head11 -> Budget Year +2 2022/23
A4: Revenue - Functional
A5: Governance and administration | C5: =SUM(C6:C8) -> 73238798.18 | D5: =SUM(D6:D8) -> 81736186.48 | E5: 94770381.81 | F5: =SUM(F6:F8) -> 94140581.61 | G5: 99224792 | H5: 99224792 | I5: 104341302 | J5: 107548154 | K5: 111423402
A6: Executive and council | C6: =A2A!C6 -> 8604951.77 | D6: =A2A!D6 -> 10870976.3 | E6: =A2A!E6 -> 10097186.41 | F6: =A2A!F6 -> 14681366 | G6: =A2A!G6 -> 15261370 | H6: =A2A!H6 -> 15261370 | I6: =A2A!I6 -> 19980797 | J6: =A2A!J6 -> 20780029 | K6: =A2A!K6 -> 21611231
A7: Finance and administration | C7: =A2A!C9 -> 64633846.41 | D7: =A2A!D9 -> 70865210.18 | E7: =A2A!E9 -> 84673195.4 | F7: =A2A!F9 -> 79459215.61 | G7: =A2A!G9 -> 83963422 | H7: =A2A!H9 -> 83963422 | I7: =A2A!I9 -> 84360505 | J7: =A2A!J9 -> 86768125 | K7: =A2A!K9 -> 89812171
A8: Internal audit | C8: =A2A!C23 -> 0 | D8: =A2A!D23 -> 0 | E8: =A2A!E23 -> 0 | F8: =A2A!F23 -> 0 | G8: =A2A!G23 -> 0 | H8: =A2A!H23 -> 0 | I8: =A2A!I23 -> 0 | J8: =A2A!J23 -> 0 | K8: =A2A!K23 -> 0
A9: Community and public safety | C9: =SUM(C10:C14) -> 15025759.12 | D9: =SUM(D10:D14) -> 18923340.57 | E9: 19717393.7 | F9: =SUM(F10:F14) -> 23157527.78 | G9: 22895932 | H9: 22895932 | I9: 21426094 | J9: 21663620 | K9: 23196085
A10: Community and social services | C10: =A2A!C26 -> 0 | D10: =A2A!D26 -> 0 | E10: =A2A!E26 -> 0 | F10: =A2A!F26 -> 0 | G10: =A2A!G26 -> 0 | H10: =A2A!H26 -> 0 | I10: =A2A!I26 -> 0 | J10: =A2A!J26 -> 0 | K10: =A2A!K26 -> 0
A11: Sport and recreation | C11: =A2A!C48 -> 13530530.87 | D11: =A2A!D48 -> 15842924.33 | E11: =A2A!E48 -> 16312968.23 | F11: =A2A!F48 -> 17658400 | G11: =A2A!G48 -> 18308400 | H11: =A2A!H48 -> 18308400 | I11: =A2A!I48 -> 16791094 | J11: =A2A!J48 -> 16851220 | K11: =A2A!K48 -> 18199189
A12: Public safety | C12: =A2A!C54 -> 1175627.55 | D12: =A2A!D54 -> 2590664.75 | E12: =A2A!E54 -> 3119563.49 | F12: =A2A!F54 -> 5183769.78 | G12: =A2A!G54 -> 4083770 | H12: =A2A!H54 -> 4083770 | I12: =A2A!I54 -> 4135000 | J12: =A2A!J54 -> 4300400 | K12: =A2A!K54 -> 4472416
A13: Housing | C13: =A2A!C63 -> 0 | D13: =A2A!D63 -> 0 | E13: =A2A!E63 -> 0 | F13: =A2A!F63 -> 0 | G13: =A2A!G63 -> 0 | H13: =A2A!H63 -> 0 | I13: =A2A!I63 -> 0 | J13: =A2A!J63 -> 0 | K13: =A2A!K63 -> 0
A14: Health | C14: =A2A!C66 -> 319600.7 | D14: =A2A!D66 -> 489751.49 | E14: =A2A!E66 -> 284861.98 | F14: =A2A!F66 -> 315358 | G14: =A2A!G66 -> 503762 | H14: =A2A!H66 -> 503762 | I14: =A2A!I66 -> 500000 | J14: =A2A!J66 -> 512000 | K14: =A2A!K66 -> 524480
A15: Economic and environmental services | C15: =SUM(C16:C18) -> 70409639.02 | D15: =SUM(D16:D18) -> 84286544.01 | E15: 96302427.37 | F15: =SUM(F16:F18) -> 91964429 | G15: 100635275 | H15: 100635275 | I15: 101409821 | J15: 105466214 | K15: 109684862
A16: Planning and development | C16: =A2A!C75 -> 0 | D16: =A2A!D75 -> 0 | E16: =A2A!E75 -> 0 | F16: =A2A!F75 -> 0 | G16: =A2A!G75 -> 0 | H16: =A2A!H75 -> 0 | I16: =A2A!I75 -> 0 | J16: =A2A!J75 -> 0 | K16: =A2A!K75 -> 0
A17: Road transport | C17: =A2A!C86 -> 70391114.02 | D17: =A2A!D86 -> 84258684.01 | E17: =A2A!E86 -> 96281627.37 | F17: =A2A!F86 -> 91821429 | G17: =A2A!G86 -> 100492275 | H17: =A2A!H86 -> 100492275 | I17: =A2A!I86 -> 101209821 | J17: =A2A!J86 -> 105258214 | K17: =A2A!K86 -> 109468542
A18: Environmental protection | C18: =A2A!C91 -> 18525 | D18: =A2A!D91 -> 27860 | E18: =A2A!E91 -> 20800 | F18: =A2A!F91 -> 143000 | G18: =A2A!G91 -> 143000 | H18: =A2A!H91 -> 143000 | I18: =A2A!I91 -> 200000 | J18: =A2A!J91 -> 208000 | K18: =A2A!K91 -> 216320
A19: Trading services | C19: =SUM(C20:C23) -> 740076.7 | D19: =SUM(D20:D23) -> 1069105.17 | E19: 6534484.77 | F19: =SUM(F20:F23) -> 10723096 | G19: 10738096 | H19: 10738096 | I19: 12015000 | J19: =SUM(J20:J23) -> 12495600 | K19: 12995424
A20: Energy sources | C20: =A2A!C99 -> 0 | D20: =A2A!D99 -> 0 | E20: =A2A!E99 -> 0 | F20: =A2A!F99 -> 0 | G20: =A2A!G99 -> 0 | H20: =A2A!H99 -> 0 | I20: =A2A!I99 -> 0 | J20: =A2A!J99 -> 0 | K20: =A2A!K99 -> 0
A21: Water management | C21: =A2A!C103 -> 0 | D21: =A2A!D103 -> 0 | E21: =A2A!E103 -> 0 | F21: =A2A!F103 -> 0 | G21: =A2A!G103 -> 0 | H21: =A2A!H103 -> 0 | I21: =A2A!I103 -> 0 | J21: =A2A!J103 -> 0 | K21: =A2A!K103 -> 0
A22: Waste water management | C22: =A2A!C107 -> 0 | D22: =A2A!D107 -> 0 | E22: =A2A!E107 -> 0 | F22: =A2A!F107 -> 0 | G22: =A2A!G107 -> 0 | H22: =A2A!H107 -> 0 | I22: =A2A!I107 -> 0 | J22: =A2A!J107 -> 0 | K22: =A2A!K107 -> 0
A23: Waste management | C23: =A2A!C112 -> 740076.7 | D23: =A2A!D112 -> 1069105.17 | E23: =A2A!E112 -> 6534484.77 | F23: =A2A!F112 -> 10723096 | G23: =A2A!G112 -> 10738096 | H23: =A2A!H112 -> 10738096 | I23: =A2A!I112 -> 12015000 | J23: =A2A!J112 -> 12495600 | K23: =A2A!K112 -> 12995424
A24: Other | B24: 4 | C24: =A2A!C117 -> 0 | D24: =A2A!D117 -> 0 | E24: =A2A!E117 -> 0 | F24: =A2A!F117 -> 0 | G24: =A2A!G117 -> 0 | H24: =A2A!H117 -> 0 | I24: =A2A!I117 -> 0 | J24: =A2A!J117 -> 0 | K24: =A2A!K117 -> 0
A25: ="Total "&A4 -> Total Revenue - Functional | B25: 2 | C25: =C5+C9+C15+C19+C24 -> 159414273 | D25: =D5+D9+D15+D19+D24 -> 186015176.2 | E25: =E5+E9+E15+E19+E24 -> 217324687.7 | F25: 219985634.4 | G25: 233494095 | H25: 233494095 | I25: =I5+I9+I15+I19+I24 -> 239192217 | J25: 247173588 | K25: 257299773
A27: Expenditure - Functional
A28: Governance and administration | C28: =SUM(C29:C31) -> 42468546.4 | D28: =SUM(D29:D31) -> 44671118.21 | E28: 47912553.05 | F28: =SUM(F29:F31) -> 51592528.85 | G28: 55845748.96 | H28: 55845748.96 | I28: 57877993 | J28: 58545754 | K28: 60895630
A29: Executive and council | C29: =A2A!C128 -> 11754726.28 | D29: =A2A!D128 -> 11357176.79 | E29: =A2A!E128 -> 10599154.42 | F29: =A2A!F128 -> 11191277.5 | G29: =A2A!G128 -> 11603515 | H29: =A2A!H128 -> 11603515 | I29: =A2A!I128 -> 11325849 | J29: =A2A!J128 -> 11310884 | K29: =A2A!K128 -> 11763319
A30: Finance and administration | C30: =A2A!C131 -> 29595854.08 | D30: =A2A!D131 -> 32177313.54 | E30: =A2A!E131 -> 36086078.88 | F30: =A2A!F131 -> 39034923.15 | G30: =A2A!G131 -> 42569423.96 | H30: =A2A!H131 -> 42569423.96 | I30: =A2A!I131 -> 44647010 | J30: =A2A!J131 -> 45253531 | K30: =A2A!K131 -> 47071718
A31: Internal audit | C31: =A2A!C145 -> 1117966.04 | D31: =A2A!D145 -> 1136627.881 | E31: =A2A!E145 -> 1227319.75 | F31: =A2A!F145 -> 1366328.202 | G31: =A2A!G145 -> 1672810 | H31: =A2A!H145 -> 1672810 | I31: =A2A!I145 -> 1905134 | J31: =A2A!J145 -> 1981339 | K31: =A2A!K145 -> 2060593
A32: Community and public safety | C32: =SUM(C33:C37) -> 45930551.48 | D32: =SUM(D33:D37) -> 56683546.11 | E32: 60172119.57 | F32: =SUM(F33:F37) -> 64657186.98 | G32: 65779567.61 | H32: 65779567.61 | I32: 65110541 | J32: 66937444 | K32: 69614941
A33: Community and social services | C33: =A2A!C148 -> 0 | D33: =A2A!D148 -> 0 | E33: =A2A!E148 -> 0 | F33: =A2A!F148 -> 0 | G33: =A2A!G148 -> 0 | H33: =A2A!H148 -> 0 | I33: =A2A!I148 -> 0 | J33: =A2A!J148 -> 0 | K33: =A2A!K148 -> 0
A34: Sport and recreation | C34: =A2A!C170 -> 13451860.56 | D34: =A2A!D170 -> 18572840.59 | E34: =A2A!E170 -> 18204562.87 | F34: =A2A!F170 -> 18819806.67 | G34: =A2A!G170 -> 19932953.39 | H34: =A2A!H170 -> 19932953.39 | I34: =A2A!I170 -> 16810353 | J34: =A2A!J170 -> 16237246 | K34: =A2A!K170 -> 16886734
A35: Public safety | C35: =A2A!C176 -> 20523666.14 | D35: =A2A!D176 -> 25707952.84 | E35: =A2A!E176 -> 28130431.13 | F35: =A2A!F176 -> 30875629.49 | G35: =A2A!G176 -> 29695789.22 | H35: =A2A!H176 -> 29695789.22 | I35: =A2A!I176 -> 30940005 | J35: =A2A!J176 -> 32645607 | K35: =A2A!K176 -> 33951432
A36: Housing | C36: =A2A!C185 -> 0 | D36: =A2A!D185 -> 0 | E36: =A2A!E185 -> 0 | F36: =A2A!F185 -> 0 | G36: =A2A!G185 -> 0 | H36: =A2A!H185 -> 0 | I36: =A2A!I185 -> 0 | J36: =A2A!J185 -> 0 | K36: =A2A!K185 -> 0
A37: Health | C37: =A2A!C188 -> 11955024.78 | D37: =A2A!D188 -> 12402752.68 | E37: =A2A!E188 -> 13837125.57 | F37: =A2A!F188 -> 14961750.81 | G37: =A2A!G188 -> 16150825 | H37: =A2A!H188 -> 16150825 | I37: =A2A!I188 -> 17360183 | J37: =A2A!J188 -> 18054591 | K37: =A2A!K188 -> 18776775
A38: Economic and environmental services | C38: =SUM(C39:C41) -> 70257472.71 | D38: =SUM(D39:D41) -> 84419853.28 | E38: 99513538.37 | F38: =SUM(F39:F41) -> 95922997.09 | G38: 104652010 | H38: 104652010 | I38: 104926219 | J38: 109123267 | K38: 113488199
A39: Planning and development | C39: =A2A!C197 -> 1474820.09 | D39: =A2A!D197 -> 1085777.672 | E39: =A2A!E197 -> 1222662.15 | F39: =A2A!F197 -> 1311503.09 | G39: =A2A!G197 -> 1331331 | H39: =A2A!H197 -> 1331331 | I39: =A2A!I197 -> 1403768 | J39: =A2A!J197 -> 1459919 | K39: =A2A!K197 -> 1518316
A40: Road transport | C40: =A2A!C208 -> 66952221.12 | D40: =A2A!D208 -> 81275805.96 | E40: =A2A!E208 -> 95937354.39 | F40: =A2A!F208 -> 91821429 | G40: =A2A!G208 -> 100475275 | H40: =A2A!H208 -> 100475275 | I40: =A2A!I208 -> 100851619 | J40: =A2A!J208 -> 104885684 | K40: =A2A!K208 -> 109081111
A41: Environmental protection | C41: =A2A!C213 -> 1830431.5 | D41: =A2A!D213 -> 2058269.646 | E41: =A2A!E213 -> 2353521.83 | F41: =A2A!F213 -> 2790065 | G41: =A2A!G213 -> 2845404 | H41: =A2A!H213 -> 2845404 | I41: =A2A!I213 -> 2670832 | J41: =A2A!J213 -> 2777664 | K41: =A2A!K213 -> 2888772
A42: Trading services | C42: =SUM(C43:C46) -> 3314903.39 | D42: =SUM(D43:D46) -> 2918534.597 | E42: 5141756.37 | F42: =SUM(F43:F46) -> 10239496.26 | G42: 10956156 | H42: 10956156 | I42: 11943479 | J42: 12421218 | K42: =SUM(K43:K46) -> 12918068
A43: Energy sources | C43: =A2A!C221 -> 0 | D43: =A2A!D221 -> 0 | E43: =A2A!E221 -> 0 | F43: =A2A!F221 -> 0 | G43: =A2A!G221 -> 0 | H43: =A2A!H221 -> 0 | I43: =A2A!I221 -> 0 | J43: =A2A!J221 -> 0 | K43: =A2A!K221 -> 0
A44: Water management | C44: =A2A!C225 -> 0 | D44: =A2A!D225 -> 0 | E44: =A2A!E225 -> 0 | F44: =A2A!F225 -> 0 | G44: =A2A!G225 -> 0 | H44: =A2A!H225 -> 0 | I44: =A2A!I225 -> 0 | J44: =A2A!J225 -> 0 | K44: =A2A!K225 -> 0
A45: Waste water management | C45: =A2A!C229 -> 0 | D45: =A2A!D229 -> 0 | E45: =A2A!E229 -> 0 | F45: =A2A!F229 -> 0 | G45: =A2A!G229 -> 0 | H45: =A2A!H229 -> 0 | I45: =A2A!I229 -> 0 | J45: =A2A!J229 -> 0 | K45: =A2A!K229 -> 0
A46: Waste management | C46: =A2A!C234 -> 3314903.39 | D46: =A2A!D234 -> 2918534.597 | E46: =A2A!E234 -> 5141756.37 | F46: =A2A!F234 -> 10239496.26 | G46: =A2A!G234 -> 10956156 | H46: =A2A!H234 -> 10956156 | I46: =A2A!I234 -> 11943479 | J46: =A2A!J234 -> 12421218 | K46: =A2A!K234 -> 12918068
A47: Other | B47: 4 | C47: =A2A!C239 -> 0 | D47: =A2A!D239 -> 0 | E47: =A2A!E239 -> 0 | F47: =A2A!F239 -> 0 | G47: =A2A!G239 -> 0 | H47: =A2A!H239 -> 0 | I47: =A2A!I239 -> 0 | J47: =A2A!J239 -> 0 | K47: =A2A!K239 -> 0
A48: ="Total "&A27 -> Total Expenditure - Functional | B48: 3 | C48: =C28+C32+C38+C42+C47 -> 161971474 | D48: =D28+D32+D38+D42+D47 -> 188693052.2 | E48: =E28+E32+E38+E42+E47 -> 212739967.4 | F48: =F28+F32+F38+F42+F47 -> 222412209.2 | G48: 237233482.6 | H48: 237233482.6 | I48: 239858232 | J48: 247027683 | K48: 256916838
A49: =result -> Surplus/(Deficit) for the year | C49: =C25-C48 -> -2557200.96 | D49: =D25-D48 -> -2677875.973 | E49: 4584720.29 | F49: -2426574.784 | G49: -3739387.565 | H49: -3739387.565 | I49: -666014.9989 | J49: 145905 | K49: 382935
A50: =head27a -> References
A51: 1. Government Finance Statistics Functions and Sub-functions are standardised to assist the compilation of national and international accounts for comparison purposes
A52: 2. Total Revenue by functional classification must reconcile to Total Operating Revenue shown in Budgeted Financial Performance (revenue and expenditure)
A53: 3. Total Expenditure by Functional Classification must reconcile to Total Operating Expenditure shown in Budgeted Financial Performance (revenue and expenditure)
A54: 4. All amounts must be classified under a functional classification . The GFS function 'Other' is only for Abbatoirs, Air Transport, Forestry, Licensing and Regulation, Markets and Tourism - and if used must be supported by footnotes. Nothing else may be placed under 'Other'. Assign associate share to relevant classification.
A57: check oprev balance | C57: =C25-'A4-FinPerf RE'!C59 -> 0 | D57: =D25-'A4-FinPerf RE'!D59 -> 0 | E57: =E25-'A4-FinPerf RE'!E59 -> 0 | F57: =F25-'A4-FinPerf RE'!F59 -> 0 | G57: =G25-'A4-FinPerf RE'!G59 -> 0 | H57: =H25-'A4-FinPerf RE'!H59 -> 0 | I57: =I25-'A4-FinPerf RE'!J59 -> 0 | J57: =J25-'A4-FinPerf RE'!K59 -> 0 | K57: =K25-'A4-FinPerf RE'!L59 -> 0
A58: check opexp balance | C58: =C48-'A4-FinPerf RE'!C35 -> 0 | D58: =D48-'A4-FinPerf RE'!D35 -> 0 | E58: =E48-'A4-FinPerf RE'!E35 -> 0 | F58: =F48-'A4-FinPerf RE'!F35 -> 0 | G58: =G48-'A4-FinPerf RE'!G35 -> 0 | H58: =H48-'A4-FinPerf RE'!H35 -> 0 | I58: =I48-'A4-FinPerf RE'!J35 -> 0 | J58: =J48-'A4-FinPerf RE'!K35 -> 0 | K58: =K48-'A4-FinPerf RE'!L35 -> 0

Sheet A2A
A1: =muni&" - "&Approve3 -> DC3 Overberg - Table A2 Budgeted Financial Performance (revenue and expenditure by functional classification)
A2: ="Functional Classification "&desc -> Functional Classification Description | B2: =head27 -> Ref | C2: =head1b -> 2016/17 | D2: =head1A -> 2017/18 | E2: =Head1 -> 2018/19 | F2: =Head2 -> Current Year 2019/20 | I2: =Head3 -> 2020/21 Medium Term Revenue & Expenditure Framework
A3: R thousand | B3: 1 | C3: =Head5 -> Audited Outcome | D3: =Head5 -> Audited Outcome | E3: =Head5 -> Audited Outcome | F3: =Head6 -> Original Budget | G3: =Head7 -> Adjusted Budget | H3: =Head8 -> Full Year Forecast | I3: =Head9 -> Budget Year 2020/21 | J3: =Head10 -> Budget Year +1 2021/22 | K3: =Head11 -> Budget Year +2 2022/23
A4: Revenue - Functional
A5: Municipal governance and administration | C5: =C6+C9+C23 -> 73238798.18 | D5: 81736186.48 | E5: 94770381.81 | F5: 94140581.61 | G5: 99224792 | H5: 99224792 | I5: 104341302 | J5: 107548154 | K5: 111423402
A6: Executive and council | C6: =SUM(C7:C8) -> 8604951.77 | D6: =SUM(D7:D8) -> 10870976.3 | E6: 10097186.41 | F6: 14681366 | G6: 15261370 | H6: 15261370 | I6: 19980797 | J6: 20780029 | K6: 21611231
A7: Mayor and Council | C7: 8114736.84 | D7: =-SUMIFS('TRIAL BALANCE'!AK:AK,'TRIAL BALANCE'!$Z:$Z,"I",'TRIAL BALANCE'!$L:$L,A2A!$A7) -> 10870976.3 | E7: =-SUMIFS('TRIAL BALANCE'!AL:AL,'TRIAL BALANCE'!$Z:$Z,"I",'TRIAL BALANCE'!$L:$L,A2A!$A7) -> 10097186.41 | F7: 14681366 | G7: 15261370 | H7: =G7 -> 15261370 | I7: =-SUMIFS('TRIAL BALANCE'!AO:AO,'TRIAL BALANCE'!$Z:$Z,"I",'TRIAL BALANCE'!$L:$L,A2A!$A7) -> 19980797 | J7: =-SUMIFS('TRIAL BALANCE'!AP:AP,'TRIAL BALANCE'!$Z:$Z,"I",'TRIAL BALANCE'!$L:$L,A2A!$A7) -> 20780029 | K7: =-SUMIFS('TRIAL BALANCE'!AQ:AQ,'TRIAL BALANCE'!$Z:$Z,"I",'TRIAL BALANCE'!$L:$L,A2A!$A7) -> 21611231
A8: Municipal Manager, Town Secretary and Chief Executive | C8: 490214.93 | D8: =-SUMIFS('TRIAL BALANCE'!AK:AK,'TRIAL BALANCE'!$Z:$Z,"I",'TRIAL BALANCE'!$L:$L,A2A!$A8) -> 0 | E8: =-SUMIFS('TRIAL BALANCE'!AL:AL,'TRIAL BALANCE'!$Z:$Z,"I",'TRIAL BALANCE'!$L:$L,A2A!$A8) -> 0 | F8: 0 | G8: 0 | H8: =G8 -> 0 | I8: =-SUMIFS('TRIAL BALANCE'!AO:AO,'TRIAL BALANCE'!$Z:$Z,"I",'TRIAL BALANCE'!$L:$L,A2A!$A8) -> 0 | J8: =-SUMIFS('TRIAL BALANCE'!AP:AP,'TRIAL BALANCE'!$Z:$Z,"I",'TRIAL BALANCE'!$L:$L,A2A!$A8) -> 0 | K8: =-SUMIFS('TRIAL BALANCE'!AQ:AQ,'TRIAL BALANCE'!$Z:$Z,"I",'TRIAL BALANCE'!$L:$L,A2A!$A8) -> 0
A9: Finance and administration | C9: =SUM(C10:C22) -> 64633846.41 | D9: 70865210.18 | E9: 84673195.4 | F9: 79459215.61 | G9: 83963422 | H9: 83963422 | I9: 84360505 | J9: 86768125 | K9: 89812171
A10: Administrative and Corporate Support | C10: 0 | D10: =-SUMIFS('TRIAL BALANCE'!AK:AK,'TRIAL BALANCE'!$Z:$Z,"I",'TRIAL BALANCE'!$L:$L,A2A!$A10) -> 559171.84 | E10: =-SUMIFS('TRIAL BALANCE'!AL:AL,'TRIAL BALANCE'!$Z:$Z,"I",'TRIAL BALANCE'!$L:$L,A2A!$A10) -> 408039.84 | F10: 23530 | G10: 601716 | H10: =G10 -> 601716 | I10: =-SUMIFS('TRIAL BALANCE'!AO:AO,'TRIAL BALANCE'!$Z:$Z,"I",'TRIAL BALANCE'!$L:$L,A2A!$A10) -> 831005 | J10: =-SUMIFS('TRIAL BALANCE'!AP:AP,'TRIAL BALANCE'!$Z:$Z,"I",'TRIAL BALANCE'!$L:$L,A2A!$A10) -> 864245 | K10: =-SUMIFS('TRIAL BALANCE'!AQ:AQ,'TRIAL BALANCE'!$Z:$Z,"I",'TRIAL BALANCE'!$L:$L,A2A!$A10) -> 898815
A11: Asset Management | C11: 0 | D11: =-SUMIFS('TRIAL BALANCE'!AK:AK,'TRIAL BALANCE'!$Z:$Z,"I",'TRIAL BALANCE'!$L:$L,A2A!$A11) -> 0 | E11: =-SUMIFS('TRIAL BALANCE'!AL:AL,'TRIAL BALANCE'!$Z:$Z,"I",'TRIAL BALANCE'!$L:$L,A2A!$A11) -> 0 | F11: 0 | G11: 0 | H11: 0 | I11: =-SUMIFS('TRIAL BALANCE'!AO:AO,'TRIAL BALANCE'!$Z:$Z,"I",'TRIAL BALANCE'!$L:$L,A2A!$A11) -> 0 | J11: =-SUMIFS('TRIAL BALANCE'!AP:AP,'TRIAL BALANCE'!$Z:$Z,"I",'TRIAL BALANCE'!$L:$L,A2A!$A11) -> 0 | K11: =-SUMIFS('TRIAL BALANCE'!AQ:AQ,'TRIAL BALANCE'!$Z:$Z,"I",'TRIAL BALANCE'!$L:$L,A2A!$A11) -> 0
A12: Finance | C12: 64586318.26 | D12: =-SUMIFS('TRIAL BALANCE'!AK:AK,'TRIAL BALANCE'!$Z:$Z,"I",'TRIAL BALANCE'!$L:$L,A2A!$A12) -> 70306038.34 | E12: =-SUMIFS('TRIAL BALANCE'!AL:AL,'TRIAL BALANCE'!$Z:$Z,"I",'TRIAL BALANCE'!$L:$L,A2A!$A12) -> 84265155.56 | F12: 78897500 | G12: 83361706 | H12: 83361706 | I12: =-SUMIFS('TRIAL BALANCE'!AO:AO,'TRIAL BALANCE'!$Z:$Z,"I",'TRIAL BALANCE'!$L:$L,A2A!$A12) -> 83529500 | J12: =-SUMIFS('TRIAL BALANCE'!AP:AP,'TRIAL BALANCE'!$Z:$Z,"I",'TRIAL BALANCE'!$L:$L,A2A!$A12) -> 85903880 | K12: =-SUMIFS('TRIAL BALANCE'!AQ:AQ,'TRIAL BALANCE'!$Z:$Z,"I",'TRIAL BALANCE'!$L:$L,A2A!$A12) -> 88913356
A13: Fleet Management | C13: 0 | D13: =-SUMIFS('TRIAL BALANCE'!AK:AK,'TRIAL BALANCE'!$Z:$Z,"I",'TRIAL BALANCE'!$L:$L,A2A!$A13) -> 0 | E13: =-SUMIFS('TRIAL BALANCE'!AL:AL,'TRIAL BALANCE'!$Z:$Z,"I",'TRIAL BALANCE'!$L:$L,A2A!$A13) -> 0 | F13: 0 | G13: 0 | H13: 0 | I13: =-SUMIFS('TRIAL BALANCE'!AO:AO,'TRIAL BALANCE'!$Z:$Z,"I",'TRIAL BALANCE'!$L:$L,A2A!$A13) -> 0 | J13: =-SUMIFS('TRIAL BALANCE'!AP:AP,'TRIAL BALANCE'!$Z:$Z,"I",'TRIAL BALANCE'!$L:$L,A2A!$A13) -> 0 | K13: =-SUMIFS('TRIAL BALANCE'!AQ:AQ,'TRIAL BALANCE'!$Z:$Z,"I",'TRIAL BALANCE'!$L:$L,A2A!$A13) -> 0
A14: Human Resources | C14: 0 | D14: =-SUMIFS('TRIAL BALANCE'!AK:AK,'TRIAL BALANCE'!$Z:$Z,"I",'TRIAL BALANCE'!$L:$L,A2A!$A14) -> 0 | E14: =-SUMIFS('TRIAL BALANCE'!AL:AL,'TRIAL BALANCE'!$Z:$Z,"I",'TRIAL BALANCE'!$L:$L,A2A!$A14) -> 0 | F14: 0 | G14: 0 | H14: 0 | I14: =-SUMIFS('TRIAL BALANCE'!AO:AO,'TRIAL BALANCE'!$Z:$Z,"I",'TRIAL BALANCE'!$L:$L,A2A!$A14) -> 0 | J14: =-SUMIFS('TRIAL BALANCE'!AP:AP,'TRIAL BALANCE'!$Z:$Z,"I",'TRIAL BALANCE'!$L:$L,A2A!$A14) -> 0 | K14: =-SUMIFS('TRIAL BALANCE'!AQ:AQ,'TRIAL BALANCE'!$Z:$Z,"I",'TRIAL BALANCE'!$L:$L,A2A!$A14) -> 0
A15: Information Technology | C15: 0 | D15: =-SUMIFS('TRIAL BALANCE'!AK:AK,'TRIAL BALANCE'!$Z:$Z,"I",'TRIAL BALANCE'!$L:$L,A2A!$A15) -> 0 | E15: =-SUMIFS('TRIAL BALANCE'!AL:AL,'TRIAL BALANCE'!$Z:$Z,"I",'TRIAL BALANCE'!$L:$L,A2A!$A15) -> 0 | F15: 0 | G15: 0 | H15: 0 | I15: =-SUMIFS('TRIAL BALANCE'!AO:AO,'TRIAL BALANCE'!$Z:$Z,"I",'TRIAL BALANCE'!$L:$L,A2A!$A15) -> 0 | J15: =-SUMIFS('TRIAL BALANCE'!AP:AP,'TRIAL BALANCE'!$Z:$Z,"I",'TRIAL BALANCE'!$L:$L,A2A!$A15) -> 0 | K15: =-SUMIFS('TRIAL BALANCE'!AQ:AQ,'TRIAL BALANCE'!$Z:$Z,"I",'TRIAL BALANCE'!$L:$L,A2A!$A15) -> 0
A16: Legal Services | C16: 0 | D16: =-SUMIFS('TRIAL BALANCE'!AK:AK,'TRIAL BALANCE'!$Z:$Z,"I",'TRIAL BALANCE'!$L:$L,A2A!$A16) -> 0 | E16: =-SUMIFS('TRIAL BALANCE'!AL:AL,'TRIAL BALANCE'!$Z:$Z,"I",'TRIAL BALANCE'!$L:$L,A2A!$A16) -> 0 | F16: 0 | G16: 0 | H16: 0 | I16: =-SUMIFS('TRIAL BALANCE'!AO:AO,'TRIAL BALANCE'!$Z:$Z,"I",'TRIAL BALANCE'!$L:$L,A2A!$A16) -> 0 | J16: =-SUMIFS('TRIAL BALANCE'!AP:AP,'TRIAL BALANCE'!$Z:$Z,"I",'TRIAL BALANCE'!$L:$L,A2A!$A16) -> 0 | K16: =-SUMIFS('TRIAL BALANCE'!AQ:AQ,'TRIAL BALANCE'!$Z:$Z,"I",'TRIAL BALANCE'!$L:$L,A2A!$A16) -> 0
A17: Marketing, Customer Relations, Publicity and Media Co-ordination | C17: 0 | D17: =-SUMIFS('TRIAL BALANCE'!AK:AK,'TRIAL BALANCE'!$Z:$Z,"I",'TRIAL BALANCE'!$L:$L,A2A!$A17) -> 0 | E17: =-SUMIFS('TRIAL BALANCE'!AL:AL,'TRIAL BALANCE'!$Z:$Z,"I",'TRIAL BALANCE'!$L:$L,A2A!$A17) -> 0 | F17: 0 | G17: 0 | H17: 0 | I17: =-SUMIFS('TRIAL BALANCE'!AO:AO,'TRIAL BALANCE'!$Z:$Z,"I",'TRIAL BALANCE'!$L:$L,A2A!$A17) -> 0 | J17: =-SUMIFS('TRIAL BALANCE'!AP:AP,'TRIAL BALANCE'!$Z:$Z,"I",'TRIAL BALANCE'!$L:$L,A2A!$A17) -> 0 | K17: =-SUMIFS('TRIAL BALANCE'!AQ:AQ,'TRIAL BALANCE'!$Z:$Z,"I",'TRIAL BALANCE'!$L:$L,A2A!$A17) -> 0
A18: Property Services | C18: 47528.15 | D18: =-SUMIFS('TRIAL BALANCE'!AK:AK,'TRIAL BALANCE'!$Z:$Z,"I",'TRIAL BALANCE'!$L:$L,A2A!$A18) -> 0 | E18: =-SUMIFS('TRIAL BALANCE'!AL:AL,'TRIAL BALANCE'!$Z:$Z,"I",'TRIAL BALANCE'!$L:$L,A2A!$A18) -> 0 | F18: 0 | G18: 0 | H18: 0 | I18: =-SUMIFS('TRIAL BALANCE'!AO:AO,'TRIAL BALANCE'!$Z:$Z,"I",'TRIAL BALANCE'!$L:$L,A2A!$A18) -> 0 | J18: =-SUMIFS('TRIAL BALANCE'!AP:AP,'TRIAL BALANCE'!$Z:$Z,"I",'TRIAL BALANCE'!$L:$L,A2A!$A18) -> 0 | K18: =-SUMIFS('TRIAL BALANCE'!AQ:AQ,'TRIAL BALANCE'!$Z:$Z,"I",'TRIAL BALANCE'!$L:$L,A2A!$A18) -> 0
A19: Risk Management | C19: 0 | D19: =-SUMIFS('TRIAL BALANCE'!AK:AK,'TRIAL BALANCE'!$Z:$Z,"I",'TRIAL BALANCE'!$L:$L,A2A!$A19) -> 0 | E19: =-SUMIFS('TRIAL BALANCE'!AL:AL,'TRIAL BALANCE'!$Z:$Z,"I",'TRIAL BALANCE'!$L:$L,A2A!$A19) -> 0 | F19: 538185.61 | G19: 0 | H19: 0 | I19: =-SUMIFS('TRIAL BALANCE'!AO:AO,'TRIAL BALANCE'!$Z:$Z,"I",'TRIAL BALANCE'!$L:$L,A2A!$A19) -> 0 | J19: =-SUMIFS('TRIAL BALANCE'!AP:AP,'TRIAL BALANCE'!$Z:$Z,"I",'TRIAL BALANCE'!$L:$L,A2A!$A19) -> 0 | K19: =-SUMIFS('TRIAL BALANCE'!AQ:AQ,'TRIAL BALANCE'!$Z:$Z,"I",'TRIAL BALANCE'!$L:$L,A2A!$A19) -> 0
A20: Security Services | C20: 0 | D20: =-SUMIFS('TRIAL BALANCE'!AK:AK,'TRIAL BALANCE'!$Z:$Z,"I",'TRIAL BALANCE'!$L:$L,A2A!$A20) -> 0 | E20: =-SUMIFS('TRIAL BALANCE'!AL:AL,'TRIAL BALANCE'!$Z:$Z,"I",'TRIAL BALANCE'!$L:$L,A2A!$A20) -> 0 | F20: 0 | G20: 0 | H20: 0 | I20: =-SUMIFS('TRIAL BALANCE'!AO:AO,'TRIAL BALANCE'!$Z:$Z,"I",'TRIAL BALANCE'!$L:$L,A2A!$A20) -> 0 | J20: =-SUMIFS('TRIAL BALANCE'!AP:AP,'TRIAL BALANCE'!$Z:$Z,"I",'TRIAL BALANCE'!$L:$L,A2A!$A20) -> 0 | K20: =-SUMIFS('TRIAL BALANCE'!AQ:AQ,'TRIAL BALANCE'!$Z:$Z,"I",'TRIAL BALANCE'!$L:$L,A2A!$A20) -> 0
A21: Supply Chain Management | C21: 0 | D21: =-SUMIFS('TRIAL BALANCE'!AK:AK,'TRIAL BALANCE'!$Z:$Z,"I",'TRIAL BALANCE'!$L:$L,A2A!$A21) -> 0 | E21: =-SUMIFS('TRIAL BALANCE'!AL:AL,'TRIAL BALANCE'!$Z:$Z,"I",'TRIAL BALANCE'!$L:$L,A2A!$A21) -> 0 | F21: 0 | G21: 0 | H21: 0 | I21: =-SUMIFS('TRIAL BALANCE'!AO:AO,'TRIAL BALANCE'!$Z:$Z,"I",'TRIAL BALANCE'!$L:$L,A2A!$A21) -> 0 | J21: =-SUMIFS('TRIAL BALANCE'!AP:AP,'TRIAL BALANCE'!$Z:$Z,"I",'TRIAL BALANCE'!$L:$L,A2A!$A21) -> 0 | K21: =-SUMIFS('TRIAL BALANCE'!AQ:AQ,'TRIAL BALANCE'!$Z:$Z,"I",'TRIAL BALANCE'!$L:$L,A2A!$A21) -> 0
A22: Valuation Service | C22: 0 | D22: =-SUMIFS('TRIAL BALANCE'!AK:AK,'TRIAL BALANCE'!$Z:$Z,"I",'TRIAL BALANCE'!$L:$L,A2A!$A22) -> 0 | E22: =-SUMIFS('TRIAL BALANCE'!AL:AL,'TRIAL BALANCE'!$Z:$Z,"I",'TRIAL BALANCE'!$L:$L,A2A!$A22) -> 0 | F22: 0 | G22: 0 | H22: 0 | I22: =-SUMIFS('TRIAL BALANCE'!AO:AO,'TRIAL BALANCE'!$Z:$Z,"I",'TRIAL BALANCE'!$L:$L,A2A!$A22) -> 0 | J22: =-SUMIFS('TRIAL BALANCE'!AP:AP,'TRIAL BALANCE'!$Z:$Z,"I",'TRIAL BALANCE'!$L:$L,A2A!$A22) -> 0 | K22: =-SUMIFS('TRIAL BALANCE'!AQ:AQ,'TRIAL BALANCE'!$Z:$Z,"I",'TRIAL BALANCE'!$L:$L,A2A!$A22) -> 0
A23: Internal audit | C23: =SUM(C24:C24) -> 0 | D23: 0 | E23: 0 | F23: 0 | G23: 0 | H23: 0 | I23: 0 | J23: 0 | K23: 0
A24: Governance Function | C24: 0 | D24: =-SUMIFS('TRIAL BALANCE'!AK:AK,'TRIAL BALANCE'!$Z:$Z,"I",'TRIAL BALANCE'!$L:$L,A2A!$A24) -> 0 | E24: =-SUMIFS('TRIAL BALANCE'!AL:AL,'TRIAL BALANCE'!$Z:$Z,"I",'TRIAL BALANCE'!$L:$L,A2A!$A24) -> 0 | F24: 0 | G24: 0 | H24: =G24 -> 0 | I24: =-SUMIFS('TRIAL BALANCE'!AO:AO,'TRIAL BALANCE'!$Z:$Z,"I",'TRIAL BALANCE'!$L:$L,A2A!$A24) -> 0 | J24: =-SUMIFS('TRIAL BALANCE'!AP:AP,'TRIAL BALANCE'!$Z:$Z,"I",'TRIAL BALANCE'!$L:$L,A2A!$A24) -> 0 | K24: =-SUMIFS('TRIAL BALANCE'!AQ:AQ,'TRIAL BALANCE'!$Z:$Z,"I",'TRIAL BALANCE'!$L:$L,A2A!$A24) -> 0
A25: Community and public safety | C25: =C26+C48+C54+C63+C66 -> 15025759.12 | D25: 18923340.57 | E25: 19717393.7 | F25: 23157527.78 | G25: 22895932 | H25: 22895932 | I25: 21426094 | J25: 21663620 | K25: 23196085
A26: Community and social services | C26: =SUM(C27:C47) -> 0 | D26: =SUM(D27:D47) -> 0 | E26: 0 | F26: 0 | G26: 0 | H26: 0 | I26: 0 | J26: 0 | K26: 0
A27: Aged Care | C27: 0 | D27: =-SUMIFS('TRIAL BALANCE'!AK:AK,'TRIAL BALANCE'!$Z:$Z,"I",'TRIAL BALANCE'!$L:$L,A2A!$A27) -> 0 | E27: =-SUMIFS('TRIAL BALANCE'!AL:AL,'TRIAL BALANCE'!$Z:$Z,"I",'TRIAL BALANCE'!$L:$L,A2A!$A27) -> 0 | F27: 0 | G27: 0 | H27: =G27 -> 0 | I27: =-SUMIFS('TRIAL BALANCE'!AO:AO,'TRIAL BALANCE'!$Z:$Z,"I",'TRIAL BALANCE'!$L:$L,A2A!$A27) -> 0 | J27: =-SUMIFS('TRIAL BALANCE'!AP:AP,'TRIAL BALANCE'!$Z:$Z,"I",'TRIAL BALANCE'!$L:$L,A2A!$A27) -> 0 | K27: =-SUMIFS('TRIAL BALANCE'!AQ:AQ,'TRIAL BALANCE'!$Z:$Z,"I",'TRIAL BALANCE'!$L:$L,A2A!$A27) -> 0
A28: Agricultural | C28: 0 | D28: =-SUMIFS('TRIAL BALANCE'!AK:AK,'TRIAL BALANCE'!$Z:$Z,"I",'TRIAL BALANCE'!$L:$L,A2A!$A28) -> 0 | E28: =-SUMIFS('TRIAL BALANCE'!AL:AL,'TRIAL BALANCE'!$Z:$Z,"I",'TRIAL BALANCE'!$L:$L,A2A!$A28) -> 0 | F28: 0 | G28: 0 | H28: 0 | I28: =-SUMIFS('TRIAL BALANCE'!AO:AO,'TRIAL BALANCE'!$Z:$Z,"I",'TRIAL BALANCE'!$L:$L,A2A!$A28) -> 0 | J28: =-SUMIFS('TRIAL BALANCE'!AP:AP,'TRIAL BALANCE'!$Z:$Z,"I",'TRIAL BALANCE'!$L:$L,A2A!$A28) -> 0 | K28: =-SUMIFS('TRIAL BALANCE'!AQ:AQ,'TRIAL BALANCE'!$Z:$Z,"I",'TRIAL BALANCE'!$L:$L,A2A!$A28) -> 0
A29: Animal Care and Diseases | C29: 0 | D29: =-SUMIFS('TRIAL BALANCE'!AK:AK,'TRIAL BALANCE'!$Z:$Z,"I",'TRIAL BALANCE'!$L:$L,A2A!$A29) -> 0 | E29: =-SUMIFS('TRIAL BALANCE'!AL:AL,'TRIAL BALANCE'!$Z:$Z,"I",'TRIAL BALANCE'!$L:$L,A2A!$A29) -> 0 | F29: 0 | G29: 0 | H29: 0 | I29: =-SUMIFS('TRIAL BALANCE'!AO:AO,'TRIAL BALANCE'!$Z:$Z,"I",'TRIAL BALANCE'!$L:$L,A2A!$A29) -> 0 | J29: =-SUMIFS('TRIAL BALANCE'!AP:AP,'TRIAL BALANCE'!$Z:$Z,"I",'TRIAL BALANCE'!$L:$L,A2A!$A29) -> 0 | K29: =-SUMIFS('TRIAL BALANCE'!AQ:AQ,'TRIAL BALANCE'!$Z:$Z,"I",'TRIAL BALANCE'!$L:$L,A2A!$A29) -> 0
A30: Cemeteries, Funeral Parlours and Crematoriums | C30: 0 | D30: =-SUMIFS('TRIAL BALANCE'!AK:AK,'TRIAL BALANCE'!$Z:$Z,"I",'TRIAL BALANCE'!$L:$L,A2A!$A30) -> 0 | E30: =-SUMIFS('TRIAL BALANCE'!AL:AL,'TRIAL BALANCE'!$Z:$Z,"I",'TRIAL BALANCE'!$L:$L,A2A!$A30) -> 0 | F30: 0 | G30: 0 | H30: 0 | I30: =-SUMIFS('TRIAL BALANCE'!AO:AO,'TRIAL BALANCE'!$Z:$Z,"I",'TRIAL BALANCE'!$L:$L,A2A!$A30) -> 0 | J30: =-SUMIFS('TRIAL BALANCE'!AP:AP,'TRIAL BALANCE'!$Z:$Z,"I",'TRIAL BALANCE'!$L:$L,A2A!$A30) -> 0 | K30: =-SUMIFS('TRIAL BALANCE'!AQ:AQ,'TRIAL BALANCE'!$Z:$Z,"I",'TRIAL BALANCE'!$L:$L,A2A!$A30) -> 0
A31: Child Care Facilities | C31: 0 | D31: =-SUMIFS('TRIAL BALANCE'!AK:AK,'TRIAL BALANCE'!$Z:$Z,"I",'TRIAL BALANCE'!$L:$L,A2A!$A31) -> 0 | E31: =-SUMIFS('TRIAL BALANCE'!AL:AL,'TRIAL BALANCE'!$Z:$Z,"I",'TRIAL BALANCE'!$L:$L,A2A!$A31) -> 0 | F31: 0 | G31: 0 | H31: 0 | I31: =-SUMIFS('TRIAL BALANCE'!AO:AO,'TRIAL BALANCE'!$Z:$Z,"I",'TRIAL BALANCE'!$L:$L,A2A!$A31) -> 0 | J31: =-SUMIFS('TRIAL BALANCE'!AP:AP,'TRIAL BALANCE'!$Z:$Z,"I",'TRIAL BALANCE'!$L:$L,A2A!$A31) -> 0 | K31: =-SUMIFS('TRIAL BALANCE'!AQ:AQ,'TRIAL BALANCE'!$Z:$Z,"I",'TRIAL BALANCE'!$L:$L,A2A!$A31) -> 0
A32: Community Halls and Facilities | C32: 0 | D32: =-SUMIFS('TRIAL BALANCE'!AK:AK,'TRIAL BALANCE'!$Z:$Z,"I",'TRIAL BALANCE'!$L:$L,A2A!$A32) -> 0 | E32: =-SUMIFS('TRIAL BALANCE'!AL:AL,'TRIAL BALANCE'!$Z:$Z,"I",'TRIAL BALANCE'!$L:$L,A2A!$A32) -> 0 | F32: 0 | G32: 0 | H32: 0 | I32: =-SUMIFS('TRIAL BALANCE'!AO:AO,'TRIAL BALANCE'!$Z:$Z,"I",'TRIAL BALANCE'!$L:$L,A2A!$A32) -> 0 | J32: =-SUMIFS('TRIAL BALANCE'!AP:AP,'TRIAL BALANCE'!$Z:$Z,"I",'TRIAL BALANCE'!$L:$L,A2A!$A32) -> 0 | K32: =-SUMIFS('TRIAL BALANCE'!AQ:AQ,'TRIAL BALANCE'!$Z:$Z,"I",'TRIAL BALANCE'!$L:$L,A2A!$A32) -> 0
A33: Consumer Protection | C33: 0 | D33: =-SUMIFS('TRIAL BALANCE'!AK:AK,'TRIAL BALANCE'!$Z:$Z,"I",'TRIAL BALANCE'!$L:$L,A2A!$A33) -> 0 | E33: =-SUMIFS('TRIAL BALANCE'!AL:AL,'TRIAL BALANCE'!$Z:$Z,"I",'TRIAL BALANCE'!$L:$L,A2A!$A33) -> 0 | F33: 0 | G33: 0 | H33: 0 | I33: =-SUMIFS('TRIAL BALANCE'!AO:AO,'TRIAL BALANCE'!$Z:$Z,"I",'TRIAL BALANCE'!$L:$L,A2A!$A33) -> 0 | J33: =-SUMIFS('TRIAL BALANCE'!AP:AP,'TRIAL BALANCE'!$Z:$Z,"I",'TRIAL BALANCE'!$L:$L,A2A!$A33) -> 0 | K33: =-SUMIFS('TRIAL BALANCE'!AQ:AQ,'TRIAL BALANCE'!$Z:$Z,"I",'TRIAL BALANCE'!$L:$L,A2A!$A33) -> 0
A34: Cultural Matters | C34: 0 | D34: =-SUMIFS('TRIAL BALANCE'!AK:AK,'TRIAL BALANCE'!$Z:$Z,"I",'TRIAL BALANCE'!$L:$L,A2A!$A34) -> 0 | E34: =-SUMIFS('TRIAL BALANCE'!AL:AL,'TRIAL BALANCE'!$Z:$Z,"I",'TRIAL BALANCE'!$L:$L,A2A!$A34) -> 0 | F34: 0 | G34: 0 | H34: 0 | I34: =-SUMIFS('TRIAL BALANCE'!AO:AO,'TRIAL BALANCE'!$Z:$Z,"I",'TRIAL BALANCE'!$L:$L,A2A!$A34) -> 0 | J34: =-SUMIFS('TRIAL BALANCE'!AP:AP,'TRIAL BALANCE'!$Z:$Z,"I",'TRIAL BALANCE'!$L:$L,A2A!$A34) -> 0 | K34: =-SUMIFS('TRIAL BALANCE'!AQ:AQ,'TRIAL BALANCE'!$Z:$Z,"I",'TRIAL BALANCE'!$L:$L,A2A!$A34) -> 0
A35: Disaster Management | C35: 0 | D35: =-SUMIFS('TRIAL BALANCE'!AK:AK,'TRIAL BALANCE'!$Z:$Z,"I",'TRIAL BALANCE'!$L:$L,A2A!$A35) -> 0 | E35: =-SUMIFS('TRIAL BALANCE'!AL:AL,'TRIAL BALANCE'!$Z:$Z,"I",'TRIAL BALANCE'!$L:$L,A2A!$A35) -> 0 | F35: 0 | G35: 0 | H35: 0 | I35: =-SUMIFS('TRIAL BALANCE'!AO:AO,'TRIAL BALANCE'!$Z:$Z,"I",'TRIAL BALANCE'!$L:$L,A2A!$A35) -> 0 | J35: =-SUMIFS('TRIAL BALANCE'!AP:AP,'TRIAL BALANCE'!$Z:$Z,"I",'TRIAL BALANCE'!$L:$L,A2A!$A35) -> 0 | K35: =-SUMIFS('TRIAL BALANCE'!AQ:AQ,'TRIAL BALANCE'!$Z:$Z,"I",'TRIAL BALANCE'!$L:$L,A2A!$A35) -> 0
A36: Education | C36: 0 | D36: =-SUMIFS('TRIAL BALANCE'!AK:AK,'TRIAL BALANCE'!$Z:$Z,"I",'TRIAL BALANCE'!$L:$L,A2A!$A36) -> 0 | E36: =-SUMIFS('TRIAL BALANCE'!AL:AL,'TRIAL BALANCE'!$Z:$Z,"I",'TRIAL BALANCE'!$L:$L,A2A!$A36) -> 0 | F36: 0 | G36: 0 | H36: 0 | I36: =-SUMIFS('TRIAL BALANCE'!AO:AO,'TRIAL BALANCE'!$Z:$Z,"I",'TRIAL BALANCE'!$L:$L,A2A!$A36) -> 0 | J36: =-SUMIFS('TRIAL BALANCE'!AP:AP,'TRIAL BALANCE'!$Z:$Z,"I",'TRIAL BALANCE'!$L:$L,A2A!$A36) -> 0 | K36: =-SUMIFS('TRIAL BALANCE'!AQ:AQ,'TRIAL BALANCE'!$Z:$Z,"I",'TRIAL BALANCE'!$L:$L,A2A!$A36) -> 0
A37: Indigenous and Customary Law | C37: 0 | D37: =-SUMIFS('TRIAL BALANCE'!AK:AK,'TRIAL BALANCE'!$Z:$Z,"I",'TRIAL BALANCE'!$L:$L,A2A!$A37) -> 0 | E37: =-SUMIFS('TRIAL BALANCE'!AL:AL,'TRIAL BALANCE'!$Z:$Z,"I",'TRIAL BALANCE'!$L:$L,A2A!$A37) -> 0 | F37: 0 | G37: 0 | H37: 0 | I37: =-SUMIFS('TRIAL BALANCE'!AO:AO,'TRIAL BALANCE'!$Z:$Z,"I",'TRIAL BALANCE'!$L:$L,A2A!$A37) -> 0 | J37: =-SUMIFS('TRIAL BALANCE'!AP:AP,'TRIAL BALANCE'!$Z:$Z,"I",'TRIAL BALANCE'!$L:$L,A2A!$A37) -> 0 | K37: =-SUMIFS('TRIAL BALANCE'!AQ:AQ,'TRIAL BALANCE'!$Z:$Z,"I",'TRIAL BALANCE'!$L:$L,A2A!$A37) -> 0
A38: Industrial Promotion | C38: 0 | D38: =-SUMIFS('TRIAL BALANCE'!AK:AK,'TRIAL BALANCE'!$Z:$Z,"I",'TRIAL BALANCE'!$L:$L,A2A!$A38) -> 0 | E38: =-SUMIFS('TRIAL BALANCE'!AL:AL,'TRIAL BALANCE'!$Z:$Z,"I",'TRIAL BALANCE'!$L:$L,A2A!$A38) -> 0 | F38: 0 | G38: 0 | H38: 0 | I38: =-SUMIFS('TRIAL BALANCE'!AO:AO,'TRIAL BALANCE'!$Z:$Z,"I",'TRIAL BALANCE'!$L:$L,A2A!$A38) -> 0 | J38: =-SUMIFS('TRIAL BALANCE'!AP:AP,'TRIAL BALANCE'!$Z:$Z,"I",'TRIAL BALANCE'!$L:$L,A2A!$A38) -> 0 | K38: =-SUMIFS('TRIAL BALANCE'!AQ:AQ,'TRIAL BALANCE'!$Z:$Z,"I",'TRIAL BALANCE'!$L:$L,A2A!$A38) -> 0
A39: Language Policy | C39: 0 | D39: =-SUMIFS('TRIAL BALANCE'!AK:AK,'TRIAL BALANCE'!$Z:$Z,"I",'TRIAL BALANCE'!$L:$L,A2A!$A39) -> 0 | E39: =-SUMIFS('TRIAL BALANCE'!AL:AL,'TRIAL BALANCE'!$Z:$Z,"I",'TRIAL BALANCE'!$L:$L,A2A!$A39) -> 0 | F39: 0 | G39: 0 | H39: 0 | I39: =-SUMIFS('TRIAL BALANCE'!AO:AO,'TRIAL BALANCE'!$Z:$Z,"I",'TRIAL BALANCE'!$L:$L,A2A!$A39) -> 0 | J39: =-SUMIFS('TRIAL BALANCE'!AP:AP,'TRIAL BALANCE'!$Z:$Z,"I",'TRIAL BALANCE'!$L:$L,A2A!$A39) -> 0 | K39: =-SUMIFS('TRIAL BALANCE'!AQ:AQ,'TRIAL BALANCE'!$Z:$Z,"I",'TRIAL BALANCE'!$L:$L,A2A!$A39) -> 0
A40: Libraries and Archives | C40: 0 | D40: =-SUMIFS('TRIAL BALANCE'!AK:AK,'TRIAL BALANCE'!$Z:$Z,"I",'TRIAL BALANCE'!$L:$L,A2A!$A40) -> 0 | E40: =-SUMIFS('TRIAL BALANCE'!AL:AL,'TRIAL BALANCE'!$Z:$Z,"I",'TRIAL BALANCE'!$L:$L,A2A!$A40) -> 0 | F40: 0 | G40: 0 | H40: 0 | I40: =-SUMIFS('TRIAL BALANCE'!AO:AO,'TRIAL BALANCE'!$Z:$Z,"I",'TRIAL BALANCE'!$L:$L,A2A!$A40) -> 0 | J40: =-SUMIFS('TRIAL BALANCE'!AP:AP,'TRIAL BALANCE'!$Z:$Z,"I",'TRIAL BALANCE'!$L:$L,A2A!$A40) -> 0 | K40: =-SUMIFS('TRIAL BALANCE'!AQ:AQ,'TRIAL BALANCE'!$Z:$Z,"I",'TRIAL BALANCE'!$L:$L,A2A!$A40) -> 0
A41: Literacy Programmes | C41: 0 | D41: =-SUMIFS('TRIAL BALANCE'!AK:AK,'TRIAL BALANCE'!$Z:$Z,"I",'TRIAL BALANCE'!$L:$L,A2A!$A41) -> 0 | E41: =-SUMIFS('TRIAL BALANCE'!AL:AL,'TRIAL BALANCE'!$Z:$Z,"I",'TRIAL BALANCE'!$L:$L,A2A!$A41) -> 0 | F41: 0 | G41: 0 | H41: 0 | I41: =-SUMIFS('TRIAL BALANCE'!AO:AO,'TRIAL BALANCE'!$Z:$Z,"I",'TRIAL BALANCE'!$L:$L,A2A!$A41) -> 0 | J41: =-SUMIFS('TRIAL BALANCE'!AP:AP,'TRIAL BALANCE'!$Z:$Z,"I",'TRIAL BALANCE'!$L:$L,A2A!$A41) -> 0 | K41: =-SUMIFS('TRIAL BALANCE'!AQ:AQ,'TRIAL BALANCE'!$Z:$Z,"I",'TRIAL BALANCE'!$L:$L,A2A!$A41) -> 0
A42: Media Services | C42: 0 | D42: =-SUMIFS('TRIAL BALANCE'!AK:AK,'TRIAL BALANCE'!$Z:$Z,"I",'TRIAL BALANCE'!$L:$L,A2A!$A42) -> 0 | E42: =-SUMIFS('TRIAL BALANCE'!AL:AL,'TRIAL BALANCE'!$Z:$Z,"I",'TRIAL BALANCE'!$L:$L,A2A!$A42) -> 0 | F42: 0 | G42: 0 | H42: 0 | I42: =-SUMIFS('TRIAL BALANCE'!AO:AO,'TRIAL BALANCE'!$Z:$Z,"I",'TRIAL BALANCE'!$L:$L,A2A!$A42) -> 0 | J42: =-SUMIFS('TRIAL BALANCE'!AP:AP,'TRIAL BALANCE'!$Z:$Z,"I",'TRIAL BALANCE'!$L:$L,A2A!$A42) -> 0 | K42: =-SUMIFS('TRIAL BALANCE'!AQ:AQ,'TRIAL BALANCE'!$Z:$Z,"I",'TRIAL BALANCE'!$L:$L,A2A!$A42) -> 0
A43: Museums and Art Galleries | C43: 0 | D43: =-SUMIFS('TRIAL BALANCE'!AK:AK,'TRIAL BALANCE'!$Z:$Z,"I",'TRIAL BALANCE'!$L:$L,A2A!$A43) -> 0 | E43: =-SUMIFS('TRIAL BALANCE'!AL:AL,'TRIAL BALANCE'!$Z:$Z,"I",'TRIAL BALANCE'!$L:$L,A2A!$A43) -> 0 | F43: 0 | G43: 0 | H43: 0 | I43: =-SUMIFS('TRIAL BALANCE'!AO:AO,'TRIAL BALANCE'!$Z:$Z,"I",'TRIAL BALANCE'!$L:$L,A2A!$A43) -> 0 | J43: =-SUMIFS('TRIAL BALANCE'!AP:AP,'TRIAL BALANCE'!$Z:$Z,"I",'TRIAL BALANCE'!$L:$L,A2A!$A43) -> 0 | K43: =-SUMIFS('TRIAL BALANCE'!AQ:AQ,'TRIAL BALANCE'!$Z:$Z,"I",'TRIAL BALANCE'!$L:$L,A2A!$A43) -> 0
A44: Population Development | C44: 0 | D44: =-SUMIFS('TRIAL BALANCE'!AK:AK,'TRIAL BALANCE'!$Z:$Z,"I",'TRIAL BALANCE'!$L:$L,A2A!$A44) -> 0 | E44: =-SUMIFS('TRIAL BALANCE'!AL:AL,'TRIAL BALANCE'!$Z:$Z,"I",'TRIAL BALANCE'!$L:$L,A2A!$A44) -> 0 | F44: 0 | G44: 0 | H44: 0 | I44: =-SUMIFS('TRIAL BALANCE'!AO:AO,'TRIAL BALANCE'!$Z:$Z,"I",'TRIAL BALANCE'!$L:$L,A2A!$A44) -> 0 | J44: =-SUMIFS('TRIAL BALANCE'!AP:AP,'TRIAL BALANCE'!$Z:$Z,"I",'TRIAL BALANCE'!$L:$L,A2A!$A44) -> 0 | K44: =-SUMIFS('TRIAL BALANCE'!AQ:AQ,'TRIAL BALANCE'!$Z:$Z,"I",'TRIAL BALANCE'!$L:$L,A2A!$A44) -> 0
A45: Provincial Cultural Matters | C45: 0 | D45: =-SUMIFS('TRIAL BALANCE'!AK:AK,'TRIAL BALANCE'!$Z:$Z,"I",'TRIAL BALANCE'!$L:$L,A2A!$A45) -> 0 | E45: =-SUMIFS('TRIAL BALANCE'!AL:AL,'TRIAL BALANCE'!$Z:$Z,"I",'TRIAL BALANCE'!$L:$L,A2A!$A45) -> 0 | F45: 0 | G45: 0 | H45: 0 | I45: =-SUMIFS('TRIAL BALANCE'!AO:AO,'TRIAL BALANCE'!$Z:$Z,"I",'TRIAL BALANCE'!$L:$L,A2A!$A45) -> 0 | J45: =-SUMIFS('TRIAL BALANCE'!AP:AP,'TRIAL BALANCE'!$Z:$Z,"I",'TRIAL BALANCE'!$L:$L,A2A!$A45) -> 0 | K45: =-SUMIFS('TRIAL BALANCE'!AQ:AQ,'TRIAL BALANCE'!$Z:$Z,"I",'TRIAL BALANCE'!$L:$L,A2A!$A45) -> 0
A46: Theatres | C46: 0 | D46: =-SUMIFS('TRIAL BALANCE'!AK:AK,'TRIAL BALANCE'!$Z:$Z,"I",'TRIAL BALANCE'!$L:$L,A2A!$A46) -> 0 | E46: =-SUMIFS('TRIAL BALANCE'!AL:AL,'TRIAL BALANCE'!$Z:$Z,"I",'TRIAL BALANCE'!$L:$L,A2A!$A46) -> 0 | F46: 0 | G46: 0 | H46: 0 | I46: =-SUMIFS('TRIAL BALANCE'!AO:AO,'TRIAL BALANCE'!$Z:$Z,"I",'TRIAL BALANCE'!$L:$L,A2A!$A46) -> 0 | J46: =-SUMIFS('TRIAL BALANCE'!AP:AP,'TRIAL BALANCE'!$Z:$Z,"I",'TRIAL BALANCE'!$L:$L,A2A!$A46) -> 0 | K46: =-SUMIFS('TRIAL BALANCE'!AQ:AQ,'TRIAL BALANCE'!$Z:$Z,"I",'TRIAL BALANCE'!$L:$L,A2A!$A46) -> 0
A47: Zoo's | C47: 0 | D47: =-SUMIFS('TRIAL BALANCE'!AK:AK,'TRIAL BALANCE'!$Z:$Z,"I",'TRIAL BALANCE'!$L:$L,A2A!$A47) -> 0 | E47: =-SUMIFS('TRIAL BALANCE'!AL:AL,'TRIAL BALANCE'!$Z:$Z,"I",'TRIAL BALANCE'!$L:$L,A2A!$A47) -> 0 | F47: 0 | G47: 0 | H47: 0 | I47: =-SUMIFS('TRIAL BALANCE'!AO:AO,'TRIAL BALANCE'!$Z:$Z,"I",'TRIAL BALANCE'!$L:$L,A2A!$A47) -> 0 | J47: =-SUMIFS('TRIAL BALANCE'!AP:AP,'TRIAL BALANCE'!$Z:$Z,"I",'TRIAL BALANCE'!$L:$L,A2A!$A47) -> 0 | K47: =-SUMIFS('TRIAL BALANCE'!AQ:AQ,'TRIAL BALANCE'!$Z:$Z,"I",'TRIAL BALANCE'!$L:$L,A2A!$A47) -> 0
A48: Sport and recreation | C48: =SUM(C49:C53) -> 13530530.87 | D48: =SUM(D49:D53) -> 15842924.33 | E48: 16312968.23 | F48: 17658400 | G48: =SUM(G49:G53) -> 18308400 | H48: 18308400 | I48: 16791094 | J48: 16851220 | K48: 18199189
A49: Beaches and Jetties | C49: 0 | D49: =-SUMIFS('TRIAL BALANCE'!AK:AK,'TRIAL BALANCE'!$Z:$Z,"I",'TRIAL BALANCE'!$L:$L,A2A!$A49) -> 0 | E49: =-SUMIFS('TRIAL BALANCE'!AL:AL,'TRIAL BALANCE'!$Z:$Z,"I",'TRIAL BALANCE'!$L:$L,A2A!$A49) -> 0 | F49: 0 | G49: 0 | H49: =G49 -> 0 | I49: =-SUMIFS('TRIAL BALANCE'!AO:AO,'TRIAL BALANCE'!$Z:$Z,"I",'TRIAL BALANCE'!$L:$L,A2A!$A49) -> 0 | J49: =-SUMIFS('TRIAL BALANCE'!AP:AP,'TRIAL BALANCE'!$Z:$Z,"I",'TRIAL BALANCE'!$L:$L,A2A!$A49) -> 0 | K49: =-SUMIFS('TRIAL BALANCE'!AQ:AQ,'TRIAL BALANCE'!$Z:$Z,"I",'TRIAL BALANCE'!$L:$L,A2A!$A49) -> 0
A50: Casinos, Racing, Gambling, Wagering | C50: 0 | D50: =-SUMIFS('TRIAL BALANCE'!AK:AK,'TRIAL BALANCE'!$Z:$Z,"I",'TRIAL BALANCE'!$L:$L,A2A!$A50) -> 0 | E50: =-SUMIFS('TRIAL BALANCE'!AL:AL,'TRIAL BALANCE'!$Z:$Z,"I",'TRIAL BALANCE'!$L:$L,A2A!$A50) -> 0 | F50: 0 | G50: 0 | H50: 0 | I50: =-SUMIFS('TRIAL BALANCE'!AO:AO,'TRIAL BALANCE'!$Z:$Z,"I",'TRIAL BALANCE'!$L:$L,A2A!$A50) -> 0 | J50: =-SUMIFS('TRIAL BALANCE'!AP:AP,'TRIAL BALANCE'!$Z:$Z,"I",'TRIAL BALANCE'!$L:$L,A2A!$A50) -> 0 | K50: =-SUMIFS('TRIAL BALANCE'!AQ:AQ,'TRIAL BALANCE'!$Z:$Z,"I",'TRIAL BALANCE'!$L:$L,A2A!$A50) -> 0
A51: Community Parks (including Nurseries) | C51: 0 | D51: =-SUMIFS('TRIAL BALANCE'!AK:AK,'TRIAL BALANCE'!$Z:$Z,"I",'TRIAL BALANCE'!$L:$L,A2A!$A51) -> 0 | E51: =-SUMIFS('TRIAL BALANCE'!AL:AL,'TRIAL BALANCE'!$Z:$Z,"I",'TRIAL BALANCE'!$L:$L,A2A!$A51) -> 0 | F51: 0 | G51: 0 | H51: 0 | I51: =-SUMIFS('TRIAL BALANCE'!AO:AO,'TRIAL BALANCE'!$Z:$Z,"I",'TRIAL BALANCE'!$L:$L,A2A!$A51) -> 0 | J51: =-SUMIFS('TRIAL BALANCE'!AP:AP,'TRIAL BALANCE'!$Z:$Z,"I",'TRIAL BALANCE'!$L:$L,A2A!$A51) -> 0 | K51: =-SUMIFS('TRIAL BALANCE'!AQ:AQ,'TRIAL BALANCE'!$Z:$Z,"I",'TRIAL BALANCE'!$L:$L,A2A!$A51) -> 0
A52: Recreational Facilities | C52: 13530530.87 | D52: =-SUMIFS('TRIAL BALANCE'!AK:AK,'TRIAL BALANCE'!$Z:$Z,"I",'TRIAL BALANCE'!$L:$L,A2A!$A52) -> 15842924.33 | E52: =-SUMIFS('TRIAL BALANCE'!AL:AL,'TRIAL BALANCE'!$Z:$Z,"I",'TRIAL BALANCE'!$L:$L,A2A!$A52) -> 16312968.23 | F52: 17658400 | G52: 18308400 | H52: 18308400 | I52: =-SUMIFS('TRIAL BALANCE'!AO:AO,'TRIAL BALANCE'!$Z:$Z,"I",'TRIAL BALANCE'!$L:$L,A2A!$A52) -> 16791094 | J52: =-SUMIFS('TRIAL BALANCE'!AP:AP,'TRIAL BALANCE'!$Z:$Z,"I",'TRIAL BALANCE'!$L:$L,A2A!$A52) -> 16851220 | K52: =-SUMIFS('TRIAL BALANCE'!AQ:AQ,'TRIAL BALANCE'!$Z:$Z,"I",'TRIAL BALANCE'!$L:$L,A2A!$A52) -> 18199189
A53: Sports Grounds and Stadiums | C53: 0 | D53: =-SUMIFS('TRIAL BALANCE'!AK:AK,'TRIAL BALANCE'!$Z:$Z,"I",'TRIAL BALANCE'!$L:$L,A2A!$A53) -> 0 | E53: =-SUMIFS('TRIAL BALANCE'!AL:AL,'TRIAL BALANCE'!$Z:$Z,"I",'TRIAL BALANCE'!$L:$L,A2A!$A53) -> 0 | F53: 0 | G53: 0 | H53: 0 | I53: =-SUMIFS('TRIAL BALANCE'!AO:AO,'TRIAL BALANCE'!$Z:$Z,"I",'TRIAL BALANCE'!$L:$L,A2A!$A53) -> 0 | J53: =-SUMIFS('TRIAL BALANCE'!AP:AP,'TRIAL BALANCE'!$Z:$Z,"I",'TRIAL BALANCE'!$L:$L,A2A!$A53) -> 0 | K53: =-SUMIFS('TRIAL BALANCE'!AQ:AQ,'TRIAL BALANCE'!$Z:$Z,"I",'TRIAL BALANCE'!$L:$L,A2A!$A53) -> 0
A54: Public safety | C54: =SUM(C55:C62) -> 1175627.55 | D54: 2590664.75 | E54: 3119563.49 | F54: 5183769.78 | G54: 4083770 | H54: 4083770 | I54: 4135000 | J54: 4300400 | K54: 4472416
A55: Civil Defence | C55: 0 | D55: =-SUMIFS('TRIAL BALANCE'!AK:AK,'TRIAL BALANCE'!$Z:$Z,"I",'TRIAL BALANCE'!$L:$L,A2A!$A55) -> 0 | E55: =-SUMIFS('TRIAL BALANCE'!AL:AL,'TRIAL BALANCE'!$Z:$Z,"I",'TRIAL BALANCE'!$L:$L,A2A!$A55) -> 0 | F55: 0 | G55: 0 | H55: =G55 -> 0 | I55: =-SUMIFS('TRIAL BALANCE'!AO:AO,'TRIAL BALANCE'!$Z:$Z,"I",'TRIAL BALANCE'!$L:$L,A2A!$A55) -> 0 | J55: =-SUMIFS('TRIAL BALANCE'!AP:AP,'TRIAL BALANCE'!$Z:$Z,"I",'TRIAL BALANCE'!$L:$L,A2A!$A55) -> 0 | K55: =-SUMIFS('TRIAL BALANCE'!AQ:AQ,'TRIAL BALANCE'!$Z:$Z,"I",'TRIAL BALANCE'!$L:$L,A2A!$A55) -> 0
A56: Cleansing | C56: 0 | D56: =-SUMIFS('TRIAL BALANCE'!AK:AK,'TRIAL BALANCE'!$Z:$Z,"I",'TRIAL BALANCE'!$L:$L,A2A!$A56) -> 0 | E56: =-SUMIFS('TRIAL BALANCE'!AL:AL,'TRIAL BALANCE'!$Z:$Z,"I",'TRIAL BALANCE'!$L:$L,A2A!$A56) -> 0 | F56: 0 | G56: 0 | H56: 0 | I56: =-SUMIFS('TRIAL BALANCE'!AO:AO,'TRIAL BALANCE'!$Z:$Z,"I",'TRIAL BALANCE'!$L:$L,A2A!$A56) -> 0 | J56: =-SUMIFS('TRIAL BALANCE'!AP:AP,'TRIAL BALANCE'!$Z:$Z,"I",'TRIAL BALANCE'!$L:$L,A2A!$A56) -> 0 | K56: =-SUMIFS('TRIAL BALANCE'!AQ:AQ,'TRIAL BALANCE'!$Z:$Z,"I",'TRIAL BALANCE'!$L:$L,A2A!$A56) -> 0
A57: Control of Public Nuisances | C57: 0 | D57: =-SUMIFS('TRIAL BALANCE'!AK:AK,'TRIAL BALANCE'!$Z:$Z,"I",'TRIAL BALANCE'!$L:$L,A2A!$A57) -> 0 | E57: =-SUMIFS('TRIAL BALANCE'!AL:AL,'TRIAL BALANCE'!$Z:$Z,"I",'TRIAL BALANCE'!$L:$L,A2A!$A57) -> 0 | F57: 0 | G57: 0 | H57: 0 | I57: =-SUMIFS('TRIAL BALANCE'!AO:AO,'TRIAL BALANCE'!$Z:$Z,"I",'TRIAL BALANCE'!$L:$L,A2A!$A57) -> 0 | J57: =-SUMIFS('TRIAL BALANCE'!AP:AP,'TRIAL BALANCE'!$Z:$Z,"I",'TRIAL BALANCE'!$L:$L,A2A!$A57) -> 0 | K57: =-SUMIFS('TRIAL BALANCE'!AQ:AQ,'TRIAL BALANCE'!$Z:$Z,"I",'TRIAL BALANCE'!$L:$L,A2A!$A57) -> 0
A58: Fencing and Fences | C58: 0 | D58: =-SUMIFS('TRIAL BALANCE'!AK:AK,'TRIAL BALANCE'!$Z:$Z,"I",'TRIAL BALANCE'!$L:$L,A2A!$A58) -> 0 | E58: =-SUMIFS('TRIAL BALANCE'!AL:AL,'TRIAL BALANCE'!$Z:$Z,"I",'TRIAL BALANCE'!$L:$L,A2A!$A58) -> 0 | F58: 0 | G58: 0 | H58: 0 | I58: =-SUMIFS('TRIAL BALANCE'!AO:AO,'TRIAL BALANCE'!$Z:$Z,"I",'TRIAL BALANCE'!$L:$L,A2A!$A58) -> 0 | J58: =-SUMIFS('TRIAL BALANCE'!AP:AP,'TRIAL BALANCE'!$Z:$Z,"I",'TRIAL BALANCE'!$L:$L,A2A!$A58) -> 0 | K58: =-SUMIFS('TRIAL BALANCE'!AQ:AQ,'TRIAL BALANCE'!$Z:$Z,"I",'TRIAL BALANCE'!$L:$L,A2A!$A58) -> 0
A59: Fire Fighting and Protection | C59: 1175627.55 | D59: =-SUMIFS('TRIAL BALANCE'!AK:AK,'TRIAL BALANCE'!$Z:$Z,"I",'TRIAL BALANCE'!$L:$L,A2A!$A59) -> 2590664.75 | E59: =-SUMIFS('TRIAL BALANCE'!AL:AL,'TRIAL BALANCE'!$Z:$Z,"I",'TRIAL BALANCE'!$L:$L,A2A!$A59) -> 3119563.49 | F59: 5183769.78 | G59: 4083770 | H59: 4083770 | I59: =-SUMIFS('TRIAL BALANCE'!AO:AO,'TRIAL BALANCE'!$Z:$Z,"I",'TRIAL BALANCE'!$L:$L,A2A!$A59) -> 4135000 | J59: =-SUMIFS('TRIAL BALANCE'!AP:AP,'TRIAL BALANCE'!$Z:$Z,"I",'TRIAL BALANCE'!$L:$L,A2A!$A59) -> 4300400 | K59: =-SUMIFS('TRIAL BALANCE'!AQ:AQ,'TRIAL BALANCE'!$Z:$Z,"I",'TRIAL BALANCE'!$L:$L,A2A!$A59) -> 4472416
A60: Licensing and Control of Animals | C60: 0 | D60: =-SUMIFS('TRIAL BALANCE'!AK:AK,'TRIAL BALANCE'!$Z:$Z,"I",'TRIAL BALANCE'!$L:$L,A2A!$A60) -> 0 | E60: =-SUMIFS('TRIAL BALANCE'!AL:AL,'TRIAL BALANCE'!$Z:$Z,"I",'TRIAL BALANCE'!$L:$L,A2A!$A60) -> 0 | F60: 0 | G60: 0 | H60: 0 | I60: =-SUMIFS('TRIAL BALANCE'!AO:AO,'TRIAL BALANCE'!$Z:$Z,"I",'TRIAL BALANCE'!$L:$L,A2A!$A60) -> 0 | J60: =-SUMIFS('TRIAL BALANCE'!AP:AP,'TRIAL BALANCE'!$Z:$Z,"I",'TRIAL BALANCE'!$L:$L,A2A!$A60) -> 0 | K60: =-SUMIFS('TRIAL BALANCE'!AQ:AQ,'TRIAL BALANCE'!$Z:$Z,"I",'TRIAL BALANCE'!$L:$L,A2A!$A60) -> 0
A61: Police Forces, Traffic and Street Parking Control | C61: 0 | D61: =-SUMIFS('TRIAL BALANCE'!AK:AK,'TRIAL BALANCE'!$Z:$Z,"I",'TRIAL BALANCE'!$L:$L,A2A!$A61) -> 0 | E61: =-SUMIFS('TRIAL BALANCE'!AL:AL,'TRIAL BALANCE'!$Z:$Z,"I",'TRIAL BALANCE'!$L:$L,A2A!$A61) -> 0 | F61: 0 | G61: 0 | H61: 0 | I61: =-SUMIFS('TRIAL BALANCE'!AO:AO,'TRIAL BALANCE'!$Z:$Z,"I",'TRIAL BALANCE'!$L:$L,A2A!$A61) -> 0 | J61: =-SUMIFS('TRIAL BALANCE'!AP:AP,'TRIAL BALANCE'!$Z:$Z,"I",'TRIAL BALANCE'!$L:$L,A2A!$A61) -> 0 | K61: =-SUMIFS('TRIAL BALANCE'!AQ:AQ,'TRIAL BALANCE'!$Z:$Z,"I",'TRIAL BALANCE'!$L:$L,A2A!$A61) -> 0
A62: Pounds | C62: 0 | D62: =-SUMIFS('TRIAL BALANCE'!AK:AK,'TRIAL BALANCE'!$Z:$Z,"I",'TRIAL BALANCE'!$L:$L,A2A!$A62) -> 0 | E62: =-SUMIFS('TRIAL BALANCE'!AL:AL,'TRIAL BALANCE'!$Z:$Z,"I",'TRIAL BALANCE'!$L:$L,A2A!$A62) -> 0 | F62: 0 | G62: 0 | H62: 0 | I62: =-SUMIFS('TRIAL BALANCE'!AO:AO,'TRIAL BALANCE'!$Z:$Z,"I",'TRIAL BALANCE'!$L:$L,A2A!$A62) -> 0 | J62: =-SUMIFS('TRIAL BALANCE'!AP:AP,'TRIAL BALANCE'!$Z:$Z,"I",'TRIAL BALANCE'!$L:$L,A2A!$A62) -> 0 | K62: =-SUMIFS('TRIAL BALANCE'!AQ:AQ,'TRIAL BALANCE'!$Z:$Z,"I",'TRIAL BALANCE'!$L:$L,A2A!$A62) -> 0
A63: Housing | C63: =SUM(C64:C65) -> 0 | D63: =SUM(D64:D65) -> 0 | E63: 0 | F63: 0 | G63: 0 | H63: 0 | I63: 0 | J63: 0 | K63: 0
A64: Housing | C64: 0 | D64: =-SUMIFS('TRIAL BALANCE'!AK:AK,'TRIAL BALANCE'!$Z:$Z,"I",'TRIAL BALANCE'!$L:$L,A2A!$A64) -> 0 | E64: =-SUMIFS('TRIAL BALANCE'!AL:AL,'TRIAL BALANCE'!$Z:$Z,"I",'TRIAL BALANCE'!$L:$L,A2A!$A64) -> 0 | F64: 0 | G64: 0 | H64: =G64 -> 0 | I64: =-SUMIFS('TRIAL BALANCE'!AO:AO,'TRIAL BALANCE'!$Z:$Z,"I",'TRIAL BALANCE'!$L:$L,A2A!$A64) -> 0 | J64: =-SUMIFS('TRIAL BALANCE'!AP:AP,'TRIAL BALANCE'!$Z:$Z,"I",'TRIAL BALANCE'!$L:$L,A2A!$A64) -> 0 | K64: =-SUMIFS('TRIAL BALANCE'!AQ:AQ,'TRIAL BALANCE'!$Z:$Z,"I",'TRIAL BALANCE'!$L:$L,A2A!$A64) -> 0
A65: Informal Settlements | C65: 0 | D65: =-SUMIFS('TRIAL BALANCE'!AK:AK,'TRIAL BALANCE'!$Z:$Z,"I",'TRIAL BALANCE'!$L:$L,A2A!$A65) -> 0 | E65: =-SUMIFS('TRIAL BALANCE'!AL:AL,'TRIAL BALANCE'!$Z:$Z,"I",'TRIAL BALANCE'!$L:$L,A2A!$A65) -> 0 | F65: 0 | G65: 0 | H65: 0 | I65: =-SUMIFS('TRIAL BALANCE'!AO:AO,'TRIAL BALANCE'!$Z:$Z,"I",'TRIAL BALANCE'!$L:$L,A2A!$A65) -> 0 | J65: =-SUMIFS('TRIAL BALANCE'!AP:AP,'TRIAL BALANCE'!$Z:$Z,"I",'TRIAL BALANCE'!$L:$L,A2A!$A65) -> 0 | K65: =-SUMIFS('TRIAL BALANCE'!AQ:AQ,'TRIAL BALANCE'!$Z:$Z,"I",'TRIAL BALANCE'!$L:$L,A2A!$A65) -> 0
A66: Health | C66: =SUM(C67:C73) -> 319600.7 | D66: =SUM(D67:D73) -> 489751.49 | E66: 284861.98 | F66: 315358 | G66: 503762 | H66: 503762 | I66: 500000 | J66: 512000 | K66: 524480
A67: Ambulance | C67: 0 | D67: =-SUMIFS('TRIAL BALANCE'!AK:AK,'TRIAL BALANCE'!$Z:$Z,"I",'TRIAL BALANCE'!$L:$L,A2A!$A67) -> 0 | E67: =-SUMIFS('TRIAL BALANCE'!AL:AL,'TRIAL BALANCE'!$Z:$Z,"I",'TRIAL BALANCE'!$L:$L,A2A!$A67) -> 0 | F67: 0 | G67: 0 | H67: =G67 -> 0 | I67: =-SUMIFS('TRIAL BALANCE'!AO:AO,'TRIAL BALANCE'!$Z:$Z,"I",'TRIAL BALANCE'!$L:$L,A2A!$A67) -> 0 | J67: =-SUMIFS('TRIAL BALANCE'!AP:AP,'TRIAL BALANCE'!$Z:$Z,"I",'TRIAL BALANCE'!$L:$L,A2A!$A67) -> 0 | K67: =-SUMIFS('TRIAL BALANCE'!AQ:AQ,'TRIAL BALANCE'!$Z:$Z,"I",'TRIAL BALANCE'!$L:$L,A2A!$A67) -> 0
A68: Health Services | C68: 319600.7 | D68: =-SUMIFS('TRIAL BALANCE'!AK:AK,'TRIAL BALANCE'!$Z:$Z,"I",'TRIAL BALANCE'!$L:$L,A2A!$A68) -> 489751.49 | E68: =-SUMIFS('TRIAL BALANCE'!AL:AL,'TRIAL BALANCE'!$Z:$Z,"I",'TRIAL BALANCE'!$L:$L,A2A!$A68) -> 284861.98 | F68: 315358 | G68: 503762 | H68: 503762 | I68: =-SUMIFS('TRIAL BALANCE'!AO:AO,'TRIAL BALANCE'!$Z:$Z,"I",'TRIAL BALANCE'!$L:$L,A2A!$A68) -> 500000 | J68: =-SUMIFS('TRIAL BALANCE'!AP:AP,'TRIAL BALANCE'!$Z:$Z,"I",'TRIAL BALANCE'!$L:$L,A2A!$A68) -> 512000 | K68: =-SUMIFS('TRIAL BALANCE'!AQ:AQ,'TRIAL BALANCE'!$Z:$Z,"I",'TRIAL BALANCE'!$L:$L,A2A!$A68) -> 524480
A69: Laboratory Services | C69: 0 | D69: =-SUMIFS('TRIAL BALANCE'!AK:AK,'TRIAL BALANCE'!$Z:$Z,"I",'TRIAL BALANCE'!$L:$L,A2A!$A69) -> 0 | E69: =-SUMIFS('TRIAL BALANCE'!AL:AL,'TRIAL BALANCE'!$Z:$Z,"I",'TRIAL BALANCE'!$L:$L,A2A!$A69) -> 0 | F69: 0 | G69: 0 | H69: 0 | I69: =-SUMIFS('TRIAL BALANCE'!AO:AO,'TRIAL BALANCE'!$Z:$Z,"I",'TRIAL BALANCE'!$L:$L,A2A!$A69) -> 0 | J69: =-SUMIFS('TRIAL BALANCE'!AP:AP,'TRIAL BALANCE'!$Z:$Z,"I",'TRIAL BALANCE'!$L:$L,A2A!$A69) -> 0 | K69: =-SUMIFS('TRIAL BALANCE'!AQ:AQ,'TRIAL BALANCE'!$Z:$Z,"I",'TRIAL BALANCE'!$L:$L,A2A!$A69) -> 0
A70: Food Control | C70: 0 | D70: =-SUMIFS('TRIAL BALANCE'!AK:AK,'TRIAL BALANCE'!$Z:$Z,"I",'TRIAL BALANCE'!$L:$L,A2A!$A70) -> 0 | E70: =-SUMIFS('TRIAL BALANCE'!AL:AL,'TRIAL BALANCE'!$Z:$Z,"I",'TRIAL BALANCE'!$L:$L,A2A!$A70) -> 0 | F70: 0 | G70: 0 | H70: 0 | I70: =-SUMIFS('TRIAL BALANCE'!AO:AO,'TRIAL BALANCE'!$Z:$Z,"I",'TRIAL BALANCE'!$L:$L,A2A!$A70) -> 0 | J70: =-SUMIFS('TRIAL BALANCE'!AP:AP,'TRIAL BALANCE'!$Z:$Z,"I",'TRIAL BALANCE'!$L:$L,A2A!$A70) -> 0 | K70: =-SUMIFS('TRIAL BALANCE'!AQ:AQ,'TRIAL BALANCE'!$Z:$Z,"I",'TRIAL BALANCE'!$L:$L,A2A!$A70) -> 0
A71: Health Surveillance and Prevention of Communicable Diseases including immunizations | C71: 0 | D71: =-SUMIFS('TRIAL BALANCE'!AK:AK,'TRIAL BALANCE'!$Z:$Z,"I",'TRIAL BALANCE'!$L:$L,A2A!$A71) -> 0 | E71: =-SUMIFS('TRIAL BALANCE'!AL:AL,'TRIAL BALANCE'!$Z:$Z,"I",'TRIAL BALANCE'!$L:$L,A2A!$A71) -> 0 | F71: 0 | G71: 0 | H71: 0 | I71: =-SUMIFS('TRIAL BALANCE'!AO:AO,'TRIAL BALANCE'!$Z:$Z,"I",'TRIAL BALANCE'!$L:$L,A2A!$A71) -> 0 | J71: =-SUMIFS('TRIAL BALANCE'!AP:AP,'TRIAL BALANCE'!$Z:$Z,"I",'TRIAL BALANCE'!$L:$L,A2A!$A71) -> 0 | K71: =-SUMIFS('TRIAL BALANCE'!AQ:AQ,'TRIAL BALANCE'!$Z:$Z,"I",'TRIAL BALANCE'!$L:$L,A2A!$A71) -> 0
A72: Vector Control | C72: 0 | D72: =-SUMIFS('TRIAL BALANCE'!AK:AK,'TRIAL BALANCE'!$Z:$Z,"I",'TRIAL BALANCE'!$L:$L,A2A!$A72) -> 0 | E72: =-SUMIFS('TRIAL BALANCE'!AL:AL,'TRIAL BALANCE'!$Z:$Z,"I",'TRIAL BALANCE'!$L:$L,A2A!$A72) -> 0 | F72: 0 | G72: 0 | H72: 0 | I72: =-SUMIFS('TRIAL BALANCE'!AO:AO,'TRIAL BALANCE'!$Z:$Z,"I",'TRIAL BALANCE'!$L:$L,A2A!$A72) -> 0 | J72: =-SUMIFS('TRIAL BALANCE'!AP:AP,'TRIAL BALANCE'!$Z:$Z,"I",'TRIAL BALANCE'!$L:$L,A2A!$A72) -> 0 | K72: =-SUMIFS('TRIAL BALANCE'!AQ:AQ,'TRIAL BALANCE'!$Z:$Z,"I",'TRIAL BALANCE'!$L:$L,A2A!$A72) -> 0
A73: Chemical Safety | C73: 0 | D73: =-SUMIFS('TRIAL BALANCE'!AK:AK,'TRIAL BALANCE'!$Z:$Z,"I",'TRIAL BALANCE'!$L:$L,A2A!$A73) -> 0 | E73: =-SUMIFS('TRIAL BALANCE'!AL:AL,'TRIAL BALANCE'!$Z:$Z,"I",'TRIAL BALANCE'!$L:$L,A2A!$A73) -> 0 | F73: 0 | G73: 0 | H73: 0 | I73: =-SUMIFS('TRIAL BALANCE'!AO:AO,'TRIAL BALANCE'!$Z:$Z,"I",'TRIAL BALANCE'!$L:$L,A2A!$A73) -> 0 | J73: =-SUMIFS('TRIAL BALANCE'!AP:AP,'TRIAL BALANCE'!$Z:$Z,"I",'TRIAL BALANCE'!$L:$L,A2A!$A73) -> 0 | K73: =-SUMIFS('TRIAL BALANCE'!AQ:AQ,'TRIAL BALANCE'!$Z:$Z,"I",'TRIAL BALANCE'!$L:$L,A2A!$A73) -> 0
A74: Economic and environmental services | C74: =C75+C86+C91 -> 70409639.02 | D74: 84286544.01 | E74: 96302427.37 | F74: 91964429 | G74: 100635275 | H74: 100635275 | I74: 101409821 | J74: 105466214 | K74: 109684862
A75: Planning and development | C75: =SUM(C76:C85) -> 0 | D75: =SUM(D76:D85) -> 0 | E75: 0 | F75: 0 | G75: 0 | H75: 0 | I75: 0 | J75: 0 | K75: 0
A76: Billboards | C76: 0 | D76: =-SUMIFS('TRIAL BALANCE'!AK:AK,'TRIAL BALANCE'!$Z:$Z,"I",'TRIAL BALANCE'!$L:$L,A2A!$A76) -> 0 | E76: =-SUMIFS('TRIAL BALANCE'!AL:AL,'TRIAL BALANCE'!$Z:$Z,"I",'TRIAL BALANCE'!$L:$L,A2A!$A76) -> 0 | F76: 0 | G76: 0 | H76: =G76 -> 0 | I76: =-SUMIFS('TRIAL BALANCE'!AO:AO,'TRIAL BALANCE'!$Z:$Z,"I",'TRIAL BALANCE'!$L:$L,A2A!$A76) -> 0 | J76: =-SUMIFS('TRIAL BALANCE'!AP:AP,'TRIAL BALANCE'!$Z:$Z,"I",'TRIAL BALANCE'!$L:$L,A2A!$A76) -> 0 | K76: =-SUMIFS('TRIAL BALANCE'!AQ:AQ,'TRIAL BALANCE'!$Z:$Z,"I",'TRIAL BALANCE'!$L:$L,A2A!$A76) -> 0
A77: Corporate Wide Strategic Planning (IDPs, LEDs) | C77: 0 | D77: =-SUMIFS('TRIAL BALANCE'!AK:AK,'TRIAL BALANCE'!$Z:$Z,"I",'TRIAL BALANCE'!$L:$L,A2A!$A77) -> 0 | E77: =-SUMIFS('TRIAL BALANCE'!AL:AL,'TRIAL BALANCE'!$Z:$Z,"I",'TRIAL BALANCE'!$L:$L,A2A!$A77) -> 0 | F77: 0 | G77: 0 | H77: 0 | I77: =-SUMIFS('TRIAL BALANCE'!AO:AO,'TRIAL BALANCE'!$Z:$Z,"I",'TRIAL BALANCE'!$L:$L,A2A!$A77) -> 0 | J77: =-SUMIFS('TRIAL BALANCE'!AP:AP,'TRIAL BALANCE'!$Z:$Z,"I",'TRIAL BALANCE'!$L:$L,A2A!$A77) -> 0 | K77: =-SUMIFS('TRIAL BALANCE'!AQ:AQ,'TRIAL BALANCE'!$Z:$Z,"I",'TRIAL BALANCE'!$L:$L,A2A!$A77) -> 0
A78: Central City Improvement District | C78: 0 | D78: =-SUMIFS('TRIAL BALANCE'!AK:AK,'TRIAL BALANCE'!$Z:$Z,"I",'TRIAL BALANCE'!$L:$L,A2A!$A78) -> 0 | E78: =-SUMIFS('TRIAL BALANCE'!AL:AL,'TRIAL BALANCE'!$Z:$Z,"I",'TRIAL BALANCE'!$L:$L,A2A!$A78) -> 0 | F78: 0 | G78: 0 | H78: 0 | I78: =-SUMIFS('TRIAL BALANCE'!AO:AO,'TRIAL BALANCE'!$Z:$Z,"I",'TRIAL BALANCE'!$L:$L,A2A!$A78) -> 0 | J78: =-SUMIFS('TRIAL BALANCE'!AP:AP,'TRIAL BALANCE'!$Z:$Z,"I",'TRIAL BALANCE'!$L:$L,A2A!$A78) -> 0 | K78: =-SUMIFS('TRIAL BALANCE'!AQ:AQ,'TRIAL BALANCE'!$Z:$Z,"I",'TRIAL BALANCE'!$L:$L,A2A!$A78) -> 0
A79: Development Facilitation | C79: 0 | D79: =-SUMIFS('TRIAL BALANCE'!AK:AK,'TRIAL BALANCE'!$Z:$Z,"I",'TRIAL BALANCE'!$L:$L,A2A!$A79) -> 0 | E79: =-SUMIFS('TRIAL BALANCE'!AL:AL,'TRIAL BALANCE'!$Z:$Z,"I",'TRIAL BALANCE'!$L:$L,A2A!$A79) -> 0 | F79: 0 | G79: 0 | H79: 0 | I79: =-SUMIFS('TRIAL BALANCE'!AO:AO,'TRIAL BALANCE'!$Z:$Z,"I",'TRIAL BALANCE'!$L:$L,A2A!$A79) -> 0 | J79: =-SUMIFS('TRIAL BALANCE'!AP:AP,'TRIAL BALANCE'!$Z:$Z,"I",'TRIAL BALANCE'!$L:$L,A2A!$A79) -> 0 | K79: =-SUMIFS('TRIAL BALANCE'!AQ:AQ,'TRIAL BALANCE'!$Z:$Z,"I",'TRIAL BALANCE'!$L:$L,A2A!$A79) -> 0
A80: Economic Development/Planning | C80: 0 | D80: =-SUMIFS('TRIAL BALANCE'!AK:AK,'TRIAL BALANCE'!$Z:$Z,"I",'TRIAL BALANCE'!$L:$L,A2A!$A80) -> 0 | E80: =-SUMIFS('TRIAL BALANCE'!AL:AL,'TRIAL BALANCE'!$Z:$Z,"I",'TRIAL BALANCE'!$L:$L,A2A!$A80) -> 0 | F80: 0 | G80: 0 | H80: 0 | I80: =-SUMIFS('TRIAL BALANCE'!AO:AO,'TRIAL BALANCE'!$Z:$Z,"I",'TRIAL BALANCE'!$L:$L,A2A!$A80) -> 0 | J80: =-SUMIFS('TRIAL BALANCE'!AP:AP,'TRIAL BALANCE'!$Z:$Z,"I",'TRIAL BALANCE'!$L:$L,A2A!$A80) -> 0 | K80: =-SUMIFS('TRIAL BALANCE'!AQ:AQ,'TRIAL BALANCE'!$Z:$Z,"I",'TRIAL BALANCE'!$L:$L,A2A!$A80) -> 0
A81: Regional Planning and Development | C81: 0 | D81: =-SUMIFS('TRIAL BALANCE'!AK:AK,'TRIAL BALANCE'!$Z:$Z,"I",'TRIAL BALANCE'!$L:$L,A2A!$A81) -> 0 | E81: =-SUMIFS('TRIAL BALANCE'!AL:AL,'TRIAL BALANCE'!$Z:$Z,"I",'TRIAL BALANCE'!$L:$L,A2A!$A81) -> 0 | F81: 0 | G81: 0 | H81: 0 | I81: =-SUMIFS('TRIAL BALANCE'!AO:AO,'TRIAL BALANCE'!$Z:$Z,"I",'TRIAL BALANCE'!$L:$L,A2A!$A81) -> 0 | J81: =-SUMIFS('TRIAL BALANCE'!AP:AP,'TRIAL BALANCE'!$Z:$Z,"I",'TRIAL BALANCE'!$L:$L,A2A!$A81) -> 0 | K81: =-SUMIFS('TRIAL BALANCE'!AQ:AQ,'TRIAL BALANCE'!$Z:$Z,"I",'TRIAL BALANCE'!$L:$L,A2A!$A81) -> 0
A82: Town Planning, Building Regulations and Enforcement, and City Engineer | C82: 0 | D82: =-SUMIFS('TRIAL BALANCE'!AK:AK,'TRIAL BALANCE'!$Z:$Z,"I",'TRIAL BALANCE'!$L:$L,A2A!$A82) -> 0 | E82: =-SUMIFS('TRIAL BALANCE'!AL:AL,'TRIAL BALANCE'!$Z:$Z,"I",'TRIAL BALANCE'!$L:$L,A2A!$A82) -> 0 | F82: 0 | G82: 0 | H82: 0 | I82: =-SUMIFS('TRIAL BALANCE'!AO:AO,'TRIAL BALANCE'!$Z:$Z,"I",'TRIAL BALANCE'!$L:$L,A2A!$A82) -> 0 | J82: =-SUMIFS('TRIAL BALANCE'!AP:AP,'TRIAL BALANCE'!$Z:$Z,"I",'TRIAL BALANCE'!$L:$L,A2A!$A82) -> 0 | K82: =-SUMIFS('TRIAL BALANCE'!AQ:AQ,'TRIAL BALANCE'!$Z:$Z,"I",'TRIAL BALANCE'!$L:$L,A2A!$A82) -> 0
A83: Project Management Unit | C83: 0 | D83: =-SUMIFS('TRIAL BALANCE'!AK:AK,'TRIAL BALANCE'!$Z:$Z,"I",'TRIAL BALANCE'!$L:$L,A2A!$A83) -> 0 | E83: =-SUMIFS('TRIAL BALANCE'!AL:AL,'TRIAL BALANCE'!$Z:$Z,"I",'TRIAL BALANCE'!$L:$L,A2A!$A83) -> 0 | F83: 0 | G83: 0 | H83: 0 | I83: =-SUMIFS('TRIAL BALANCE'!AO:AO,'TRIAL BALANCE'!$Z:$Z,"I",'TRIAL BALANCE'!$L:$L,A2A!$A83) -> 0 | J83: =-SUMIFS('TRIAL BALANCE'!AP:AP,'TRIAL BALANCE'!$Z:$Z,"I",'TRIAL BALANCE'!$L:$L,A2A!$A83) -> 0 | K83: =-SUMIFS('TRIAL BALANCE'!AQ:AQ,'TRIAL BALANCE'!$Z:$Z,"I",'TRIAL BALANCE'!$L:$L,A2A!$A83) -> 0
A84: Provincial Planning | C84: 0 | D84: =-SUMIFS('TRIAL BALANCE'!AK:AK,'TRIAL BALANCE'!$Z:$Z,"I",'TRIAL BALANCE'!$L:$L,A2A!$A84) -> 0 | E84: =-SUMIFS('TRIAL BALANCE'!AL:AL,'TRIAL BALANCE'!$Z:$Z,"I",'TRIAL BALANCE'!$L:$L,A2A!$A84) -> 0 | F84: 0 | G84: 0 | H84: 0 | I84: =-SUMIFS('TRIAL BALANCE'!AO:AO,'TRIAL BALANCE'!$Z:$Z,"I",'TRIAL BALANCE'!$L:$L,A2A!$A84) -> 0 | J84: =-SUMIFS('TRIAL BALANCE'!AP:AP,'TRIAL BALANCE'!$Z:$Z,"I",'TRIAL BALANCE'!$L:$L,A2A!$A84) -> 0 | K84: =-SUMIFS('TRIAL BALANCE'!AQ:AQ,'TRIAL BALANCE'!$Z:$Z,"I",'TRIAL BALANCE'!$L:$L,A2A!$A84) -> 0
A85: Support to Local Municipalities | C85: 0 | D85: =-SUMIFS('TRIAL BALANCE'!AK:AK,'TRIAL BALANCE'!$Z:$Z,"I",'TRIAL BALANCE'!$L:$L,A2A!$A85) -> 0 | E85: =-SUMIFS('TRIAL BALANCE'!AL:AL,'TRIAL BALANCE'!$Z:$Z,"I",'TRIAL BALANCE'!$L:$L,A2A!$A85) -> 0 | F85: 0 | G85: 0 | H85: 0 | I85: =-SUMIFS('TRIAL BALANCE'!AO:AO,'TRIAL BALANCE'!$Z:$Z,"I",'TRIAL BALANCE'!$L:$L,A2A!$A85) -> 0 | J85: =-SUMIFS('TRIAL BALANCE'!AP:AP,'TRIAL BALANCE'!$Z:$Z,"I",'TRIAL BALANCE'!$L:$L,A2A!$A85) -> 0 | K85: =-SUMIFS('TRIAL BALANCE'!AQ:AQ,'TRIAL BALANCE'!$Z:$Z,"I",'TRIAL BALANCE'!$L:$L,A2A!$A85) -> 0
A86: Road transport | C86: =SUM(C87:C90) -> 70391114.02 | D86: 84258684.01 | E86: 96281627.37 | F86: 91821429 | G86: =SUM(G87:G90) -> 100492275 | H86: 100492275 | I86: 101209821 | J86: 105258214 | K86: 109468542
A87: Public Transport | C87: 0 | D87: =-SUMIFS('TRIAL BALANCE'!AK:AK,'TRIAL BALANCE'!$Z:$Z,"I",'TRIAL BALANCE'!$L:$L,A2A!$A87) -> 0 | E87: =-SUMIFS('TRIAL BALANCE'!AL:AL,'TRIAL BALANCE'!$Z:$Z,"I",'TRIAL BALANCE'!$L:$L,A2A!$A87) -> 0 | F87: 0 | G87: 0 | H87: =G87 -> 0 | I87: =-SUMIFS('TRIAL BALANCE'!AO:AO,'TRIAL BALANCE'!$Z:$Z,"I",'TRIAL BALANCE'!$L:$L,A2A!$A87) -> 0 | J87: =-SUMIFS('TRIAL BALANCE'!AP:AP,'TRIAL BALANCE'!$Z:$Z,"I",'TRIAL BALANCE'!$L:$L,A2A!$A87) -> 0 | K87: =-SUMIFS('TRIAL BALANCE'!AQ:AQ,'TRIAL BALANCE'!$Z:$Z,"I",'TRIAL BALANCE'!$L:$L,A2A!$A87) -> 0
A88: Road and Traffic Regulation | C88: 0 | D88: =-SUMIFS('TRIAL BALANCE'!AK:AK,'TRIAL BALANCE'!$Z:$Z,"I",'TRIAL BALANCE'!$L:$L,A2A!$A88) -> 0 | E88: =-SUMIFS('TRIAL BALANCE'!AL:AL,'TRIAL BALANCE'!$Z:$Z,"I",'TRIAL BALANCE'!$L:$L,A2A!$A88) -> 0 | F88: 0 | G88: 0 | H88: 0 | I88: =-SUMIFS('TRIAL BALANCE'!AO:AO,'TRIAL BALANCE'!$Z:$Z,"I",'TRIAL BALANCE'!$L:$L,A2A!$A88) -> 0 | J88: =-SUMIFS('TRIAL BALANCE'!AP:AP,'TRIAL BALANCE'!$Z:$Z,"I",'TRIAL BALANCE'!$L:$L,A2A!$A88) -> 0 | K88: =-SUMIFS('TRIAL BALANCE'!AQ:AQ,'TRIAL BALANCE'!$Z:$Z,"I",'TRIAL BALANCE'!$L:$L,A2A!$A88) -> 0
A89: Roads | C89: 70391114.02 | D89: =-SUMIFS('TRIAL BALANCE'!AK:AK,'TRIAL BALANCE'!$Z:$Z,"I",'TRIAL BALANCE'!$L:$L,A2A!$A89) -> 84258684.01 | E89: =-SUMIFS('TRIAL BALANCE'!AL:AL,'TRIAL BALANCE'!$Z:$Z,"I",'TRIAL BALANCE'!$L:$L,A2A!$A89) -> 96281627.37 | F89: 91821429 | G89: 100492275 | H89: 100492275 | I89: =-SUMIFS('TRIAL BALANCE'!AO:AO,'TRIAL BALANCE'!$Z:$Z,"I",'TRIAL BALANCE'!$L:$L,A2A!$A89) -> 101209821 | J89: =-SUMIFS('TRIAL BALANCE'!AP:AP,'TRIAL BALANCE'!$Z:$Z,"I",'TRIAL BALANCE'!$L:$L,A2A!$A89) -> 105258214 | K89: =-SUMIFS('TRIAL BALANCE'!AQ:AQ,'TRIAL BALANCE'!$Z:$Z,"I",'TRIAL BALANCE'!$L:$L,A2A!$A89) -> 109468542
A90: Taxi Ranks | C90: 0 | D90: =-SUMIFS('TRIAL BALANCE'!AK:AK,'TRIAL BALANCE'!$Z:$Z,"I",'TRIAL BALANCE'!$L:$L,A2A!$A90) -> 0 | E90: =-SUMIFS('TRIAL BALANCE'!AL:AL,'TRIAL BALANCE'!$Z:$Z,"I",'TRIAL BALANCE'!$L:$L,A2A!$A90) -> 0 | F90: 0 | G90: 0 | H90: 0 | I90: =-SUMIFS('TRIAL BALANCE'!AO:AO,'TRIAL BALANCE'!$Z:$Z,"I",'TRIAL BALANCE'!$L:$L,A2A!$A90) -> 0 | J90: =-SUMIFS('TRIAL BALANCE'!AP:AP,'TRIAL BALANCE'!$Z:$Z,"I",'TRIAL BALANCE'!$L:$L,A2A!$A90) -> 0 | K90: =-SUMIFS('TRIAL BALANCE'!AQ:AQ,'TRIAL BALANCE'!$Z:$Z,"I",'TRIAL BALANCE'!$L:$L,A2A!$A90) -> 0
A91: Environmental protection | C91: =SUM(C92:C97) -> 18525 | D91: =SUM(D92:D97) -> 27860 | E91: 20800 | F91: 143000 | G91: 143000 | H91: 143000 | I91: 200000 | J91: 208000 | K91: 216320
A92: Biodiversity and Landscape | C92: 18525 | D92: =-SUMIFS('TRIAL BALANCE'!AK:AK,'TRIAL BALANCE'!$Z:$Z,"I",'TRIAL BALANCE'!$L:$L,A2A!$A92) -> 27860 | E92: =-SUMIFS('TRIAL BALANCE'!AL:AL,'TRIAL BALANCE'!$Z:$Z,"I",'TRIAL BALANCE'!$L:$L,A2A!$A92) -> 20800 | F92: 143000 | G92: 143000 | H92: =G92 -> 143000 | I92: =-SUMIFS('TRIAL BALANCE'!AO:AO,'TRIAL BALANCE'!$Z:$Z,"I",'TRIAL BALANCE'!$L:$L,A2A!$A92) -> 200000 | J92: =-SUMIFS('TRIAL BALANCE'!AP:AP,'TRIAL BALANCE'!$Z:$Z,"I",'TRIAL BALANCE'!$L:$L,A2A!$A92) -> 208000 | K92: =-SUMIFS('TRIAL BALANCE'!AQ:AQ,'TRIAL BALANCE'!$Z:$Z,"I",'TRIAL BALANCE'!$L:$L,A2A!$A92) -> 216320
A93: Coastal Protection | C93: 0 | D93: =-SUMIFS('TRIAL BALANCE'!AK:AK,'TRIAL BALANCE'!$Z:$Z,"I",'TRIAL BALANCE'!$L:$L,A2A!$A93) -> 0 | E93: =-SUMIFS('TRIAL BALANCE'!AL:AL,'TRIAL BALANCE'!$Z:$Z,"I",'TRIAL BALANCE'!$L:$L,A2A!$A93) -> 0 | F93: 0 | G93: 0 | H93: 0 | I93: =-SUMIFS('TRIAL BALANCE'!AO:AO,'TRIAL BALANCE'!$Z:$Z,"I",'TRIAL BALANCE'!$L:$L,A2A!$A93) -> 0 | J93: =-SUMIFS('TRIAL BALANCE'!AP:AP,'TRIAL BALANCE'!$Z:$Z,"I",'TRIAL BALANCE'!$L:$L,A2A!$A93) -> 0 | K93: =-SUMIFS('TRIAL BALANCE'!AQ:AQ,'TRIAL BALANCE'!$Z:$Z,"I",'TRIAL BALANCE'!$L:$L,A2A!$A93) -> 0
A94: Indigenous Forests | C94: 0 | D94: =-SUMIFS('TRIAL BALANCE'!AK:AK,'TRIAL BALANCE'!$Z:$Z,"I",'TRIAL BALANCE'!$L:$L,A2A!$A94) -> 0 | E94: =-SUMIFS('TRIAL BALANCE'!AL:AL,'TRIAL BALANCE'!$Z:$Z,"I",'TRIAL BALANCE'!$L:$L,A2A!$A94) -> 0 | F94: 0 | G94: 0 | H94: 0 | I94: =-SUMIFS('TRIAL BALANCE'!AO:AO,'TRIAL BALANCE'!$Z:$Z,"I",'TRIAL BALANCE'!$L:$L,A2A!$A94) -> 0 | J94: =-SUMIFS('TRIAL BALANCE'!AP:AP,'TRIAL BALANCE'!$Z:$Z,"I",'TRIAL BALANCE'!$L:$L,A2A!$A94) -> 0 | K94: =-SUMIFS('TRIAL BALANCE'!AQ:AQ,'TRIAL BALANCE'!$Z:$Z,"I",'TRIAL BALANCE'!$L:$L,A2A!$A94) -> 0
A95: Nature Conservation | C95: 0 | D95: =-SUMIFS('TRIAL BALANCE'!AK:AK,'TRIAL BALANCE'!$Z:$Z,"I",'TRIAL BALANCE'!$L:$L,A2A!$A95) -> 0 | E95: =-SUMIFS('TRIAL BALANCE'!AL:AL,'TRIAL BALANCE'!$Z:$Z,"I",'TRIAL BALANCE'!$L:$L,A2A!$A95) -> 0 | F95: 0 | G95: 0 | H95: 0 | I95: =-SUMIFS('TRIAL BALANCE'!AO:AO,'TRIAL BALANCE'!$Z:$Z,"I",'TRIAL BALANCE'!$L:$L,A2A!$A95) -> 0 | J95: =-SUMIFS('TRIAL BALANCE'!AP:AP,'TRIAL BALANCE'!$Z:$Z,"I",'TRIAL BALANCE'!$L:$L,A2A!$A95) -> 0 | K95: =-SUMIFS('TRIAL BALANCE'!AQ:AQ,'TRIAL BALANCE'!$Z:$Z,"I",'TRIAL BALANCE'!$L:$L,A2A!$A95) -> 0
A96: Pollution Control | C96: 0 | D96: =-SUMIFS('TRIAL BALANCE'!AK:AK,'TRIAL BALANCE'!$Z:$Z,"I",'TRIAL BALANCE'!$L:$L,A2A!$A96) -> 0 | E96: =-SUMIFS('TRIAL BALANCE'!AL:AL,'TRIAL BALANCE'!$Z:$Z,"I",'TRIAL BALANCE'!$L:$L,A2A!$A96) -> 0 | F96: 0 | G96: 0 | H96: 0 | I96: =-SUMIFS('TRIAL BALANCE'!AO:AO,'TRIAL BALANCE'!$Z:$Z,"I",'TRIAL BALANCE'!$L:$L,A2A!$A96) -> 0 | J96: =-SUMIFS('TRIAL BALANCE'!AP:AP,'TRIAL BALANCE'!$Z:$Z,"I",'TRIAL BALANCE'!$L:$L,A2A!$A96) -> 0 | K96: =-SUMIFS('TRIAL BALANCE'!AQ:AQ,'TRIAL BALANCE'!$Z:$Z,"I",'TRIAL BALANCE'!$L:$L,A2A!$A96) -> 0
A97: Soil Conservation | C97: 0 | D97: =-SUMIFS('TRIAL BALANCE'!AK:AK,'TRIAL BALANCE'!$Z:$Z,"I",'TRIAL BALANCE'!$L:$L,A2A!$A97) -> 0 | E97: =-SUMIFS('TRIAL BALANCE'!AL:AL,'TRIAL BALANCE'!$Z:$Z,"I",'TRIAL BALANCE'!$L:$L,A2A!$A97) -> 0 | F97: 0 | G97: 0 | H97: 0 | I97: =-SUMIFS('TRIAL BALANCE'!AO:AO,'TRIAL BALANCE'!$Z:$Z,"I",'TRIAL BALANCE'!$L:$L,A2A!$A97) -> 0 | J97: =-SUMIFS('TRIAL BALANCE'!AP:AP,'TRIAL BALANCE'!$Z:$Z,"I",'TRIAL BALANCE'!$L:$L,A2A!$A97) -> 0 | K97: =-SUMIFS('TRIAL BALANCE'!AQ:AQ,'TRIAL BALANCE'!$Z:$Z,"I",'TRIAL BALANCE'!$L:$L,A2A!$A97) -> 0
A98: Trading services | C98: =C99+C103+C107+C112 -> 740076.7 | D98: =D99+D103+D107+D112 -> 1069105.17 | E98: 6534484.77 | F98: 10723096 | G98: 10738096 | H98: 10738096 | I98: 12015000 | J98: 12495600 | K98: =K99+K103+K107+K112 -> 12995424
A99: Energy sources | C99: =SUM(C100:C102) -> 0 | D99: =SUM(D100:D102) -> 0 | E99: 0 | F99: 0 | G99: 0 | H99: 0 | I99: 0 | J99: 0 | K99: 0
A100: Electricity | C100: 0 | D100: =-SUMIFS('TRIAL BALANCE'!AK:AK,'TRIAL BALANCE'!$Z:$Z,"I",'TRIAL BALANCE'!$L:$L,A2A!$A100) -> 0 | E100: =-SUMIFS('TRIAL BALANCE'!AL:AL,'TRIAL BALANCE'!$Z:$Z,"I",'TRIAL BALANCE'!$L:$L,A2A!$A100) -> 0 | F100: 0 | G100: 0 | H100: =G100 -> 0 | I100: =-SUMIFS('TRIAL BALANCE'!AO:AO,'TRIAL BALANCE'!$Z:$Z,"I",'TRIAL BALANCE'!$L:$L,A2A!$A100) -> 0 | J100: =-SUMIFS('TRIAL BALANCE'!AP:AP,'TRIAL BALANCE'!$Z:$Z,"I",'TRIAL BALANCE'!$L:$L,A2A!$A100) -> 0 | K100: =-SUMIFS('TRIAL BALANCE'!AQ:AQ,'TRIAL BALANCE'!$Z:$Z,"I",'TRIAL BALANCE'!$L:$L,A2A!$A100) -> 0
A101: Street Lighting and Signal Systems | C101: 0 | D101: =-SUMIFS('TRIAL BALANCE'!AK:AK,'TRIAL BALANCE'!$Z:$Z,"I",'TRIAL BALANCE'!$L:$L,A2A!$A101) -> 0 | E101: =-SUMIFS('TRIAL BALANCE'!AL:AL,'TRIAL BALANCE'!$Z:$Z,"I",'TRIAL BALANCE'!$L:$L,A2A!$A101) -> 0 | F101: 0 | G101: 0 | H101: 0 | I101: =-SUMIFS('TRIAL BALANCE'!AO:AO,'TRIAL BALANCE'!$Z:$Z,"I",'TRIAL BALANCE'!$L:$L,A2A!$A101) -> 0 | J101: =-SUMIFS('TRIAL BALANCE'!AP:AP,'TRIAL BALANCE'!$Z:$Z,"I",'TRIAL BALANCE'!$L:$L,A2A!$A101) -> 0 | K101: =-SUMIFS('TRIAL BALANCE'!AQ:AQ,'TRIAL BALANCE'!$Z:$Z,"I",'TRIAL BALANCE'!$L:$L,A2A!$A101) -> 0
A102: Nonelectric Energy | C102: 0 | D102: =-SUMIFS('TRIAL BALANCE'!AK:AK,'TRIAL BALANCE'!$Z:$Z,"I",'TRIAL BALANCE'!$L:$L,A2A!$A102) -> 0 | E102: =-SUMIFS('TRIAL BALANCE'!AL:AL,'TRIAL BALANCE'!$Z:$Z,"I",'TRIAL BALANCE'!$L:$L,A2A!$A102) -> 0 | F102: 0 | G102: 0 | H102: 0 | I102: =-SUMIFS('TRIAL BALANCE'!AO:AO,'TRIAL BALANCE'!$Z:$Z,"I",'TRIAL BALANCE'!$L:$L,A2A!$A102) -> 0 | J102: =-SUMIFS('TRIAL BALANCE'!AP:AP,'TRIAL BALANCE'!$Z:$Z,"I",'TRIAL BALANCE'!$L:$L,A2A!$A102) -> 0 | K102: =-SUMIFS('TRIAL BALANCE'!AQ:AQ,'TRIAL BALANCE'!$Z:$Z,"I",'TRIAL BALANCE'!$L:$L,A2A!$A102) -> 0
A103: Water management | C103: =SUM(C104:C106) -> 0 | D103: =SUM(D104:D106) -> 0 | E103: 0 | F103: 0 | G103: 0 | H103: 0 | I103: 0 | J103: 0 | K103: 0
A104: Water Treatment | C104: 0 | D104: =-SUMIFS('TRIAL BALANCE'!AK:AK,'TRIAL BALANCE'!$Z:$Z,"I",'TRIAL BALANCE'!$L:$L,A2A!$A104) -> 0 | E104: =-SUMIFS('TRIAL BALANCE'!AL:AL,'TRIAL BALANCE'!$Z:$Z,"I",'TRIAL BALANCE'!$L:$L,A2A!$A104) -> 0 | F104: 0 | G104: 0 | H104: =G104 -> 0 | I104: =-SUMIFS('TRIAL BALANCE'!AO:AO,'TRIAL BALANCE'!$Z:$Z,"I",'TRIAL BALANCE'!$L:$L,A2A!$A104) -> 0 | J104: =-SUMIFS('TRIAL BALANCE'!AP:AP,'TRIAL BALANCE'!$Z:$Z,"I",'TRIAL BALANCE'!$L:$L,A2A!$A104) -> 0 | K104: =-SUMIFS('TRIAL BALANCE'!AQ:AQ,'TRIAL BALANCE'!$Z:$Z,"I",'TRIAL BALANCE'!$L:$L,A2A!$A104) -> 0
A105: Water Distribution | C105: 0 | D105: =-SUMIFS('TRIAL BALANCE'!AK:AK,'TRIAL BALANCE'!$Z:$Z,"I",'TRIAL BALANCE'!$L:$L,A2A!$A105) -> 0 | E105: =-SUMIFS('TRIAL BALANCE'!AL:AL,'TRIAL BALANCE'!$Z:$Z,"I",'TRIAL BALANCE'!$L:$L,A2A!$A105) -> 0 | F105: 0 | G105: 0 | H105: 0 | I105: =-SUMIFS('TRIAL BALANCE'!AO:AO,'TRIAL BALANCE'!$Z:$Z,"I",'TRIAL BALANCE'!$L:$L,A2A!$A105) -> 0 | J105: =-SUMIFS('TRIAL BALANCE'!AP:AP,'TRIAL BALANCE'!$Z:$Z,"I",'TRIAL BALANCE'!$L:$L,A2A!$A105) -> 0 | K105: =-SUMIFS('TRIAL BALANCE'!AQ:AQ,'TRIAL BALANCE'!$Z:$Z,"I",'TRIAL BALANCE'!$L:$L,A2A!$A105) -> 0
A106: Water Storage | C106: 0 | D106: =-SUMIFS('TRIAL BALANCE'!AK:AK,'TRIAL BALANCE'!$Z:$Z,"I",'TRIAL BALANCE'!$L:$L,A2A!$A106) -> 0 | E106: =-SUMIFS('TRIAL BALANCE'!AL:AL,'TRIAL BALANCE'!$Z:$Z,"I",'TRIAL BALANCE'!$L:$L,A2A!$A106) -> 0 | F106: 0 | G106: 0 | H106: 0 | I106: =-SUMIFS('TRIAL BALANCE'!AO:AO,'TRIAL BALANCE'!$Z:$Z,"I",'TRIAL BALANCE'!$L:$L,A2A!$A106) -> 0 | J106: =-SUMIFS('TRIAL BALANCE'!AP:AP,'TRIAL BALANCE'!$Z:$Z,"I",'TRIAL BALANCE'!$L:$L,A2A!$A106) -> 0 | K106: =-SUMIFS('TRIAL BALANCE'!AQ:AQ,'TRIAL BALANCE'!$Z:$Z,"I",'TRIAL BALANCE'!$L:$L,A2A!$A106) -> 0
A107: Waste water management | C107: =SUM(C108:C111) -> 0 | D107: =SUM(D108:D111) -> 0 | E107: 0 | F107: 0 | G107: 0 | H107: 0 | I107: 0 | J107: 0 | K107: 0
A108: Public Toilets | C108: 0 | D108: =-SUMIFS('TRIAL BALANCE'!AK:AK,'TRIAL BALANCE'!$Z:$Z,"I",'TRIAL BALANCE'!$L:$L,A2A!$A108) -> 0 | E108: =-SUMIFS('TRIAL BALANCE'!AL:AL,'TRIAL BALANCE'!$Z:$Z,"I",'TRIAL BALANCE'!$L:$L,A2A!$A108) -> 0 | F108: 0 | G108: 0 | H108: =G108 -> 0 | I108: =-SUMIFS('TRIAL BALANCE'!AO:AO,'TRIAL BALANCE'!$Z:$Z,"I",'TRIAL BALANCE'!$L:$L,A2A!$A108) -> 0 | J108: =-SUMIFS('TRIAL BALANCE'!AP:AP,'TRIAL BALANCE'!$Z:$Z,"I",'TRIAL BALANCE'!$L:$L,A2A!$A108) -> 0 | K108: =-SUMIFS('TRIAL BALANCE'!AQ:AQ,'TRIAL BALANCE'!$Z:$Z,"I",'TRIAL BALANCE'!$L:$L,A2A!$A108) -> 0
A109: Sewerage | C109: 0 | D109: =-SUMIFS('TRIAL BALANCE'!AK:AK,'TRIAL BALANCE'!$Z:$Z,"I",'TRIAL BALANCE'!$L:$L,A2A!$A109) -> 0 | E109: =-SUMIFS('TRIAL BALANCE'!AL:AL,'TRIAL BALANCE'!$Z:$Z,"I",'TRIAL BALANCE'!$L:$L,A2A!$A109) -> 0 | F109: 0 | G109: 0 | H109: 0 | I109: =-SUMIFS('TRIAL BALANCE'!AO:AO,'TRIAL BALANCE'!$Z:$Z,"I",'TRIAL BALANCE'!$L:$L,A2A!$A109) -> 0 | J109: =-SUMIFS('TRIAL BALANCE'!AP:AP,'TRIAL BALANCE'!$Z:$Z,"I",'TRIAL BALANCE'!$L:$L,A2A!$A109) -> 0 | K109: =-SUMIFS('TRIAL BALANCE'!AQ:AQ,'TRIAL BALANCE'!$Z:$Z,"I",'TRIAL BALANCE'!$L:$L,A2A!$A109) -> 0
A110: Storm Water Management | C110: 0 | D110: =-SUMIFS('TRIAL BALANCE'!AK:AK,'TRIAL BALANCE'!$Z:$Z,"I",'TRIAL BALANCE'!$L:$L,A2A!$A110) -> 0 | E110: =-SUMIFS('TRIAL BALANCE'!AL:AL,'TRIAL BALANCE'!$Z:$Z,"I",'TRIAL BALANCE'!$L:$L,A2A!$A110) -> 0 | F110: 0 | G110: 0 | H110: 0 | I110: =-SUMIFS('TRIAL BALANCE'!AO:AO,'TRIAL BALANCE'!$Z:$Z,"I",'TRIAL BALANCE'!$L:$L,A2A!$A110) -> 0 | J110: =-SUMIFS('TRIAL BALANCE'!AP:AP,'TRIAL BALANCE'!$Z:$Z,"I",'TRIAL BALANCE'!$L:$L,A2A!$A110) -> 0 | K110: =-SUMIFS('TRIAL BALANCE'!AQ:AQ,'TRIAL BALANCE'!$Z:$Z,"I",'TRIAL BALANCE'!$L:$L,A2A!$A110) -> 0
A111: Waste Water Treatment | C111: 0 | D111: =-SUMIFS('TRIAL BALANCE'!AK:AK,'TRIAL BALANCE'!$Z:$Z,"I",'TRIAL BALANCE'!$L:$L,A2A!$A111) -> 0 | E111: =-SUMIFS('TRIAL BALANCE'!AL:AL,'TRIAL BALANCE'!$Z:$Z,"I",'TRIAL BALANCE'!$L:$L,A2A!$A111) -> 0 | F111: 0 | G111: 0 | H111: 0 | I111: =-SUMIFS('TRIAL BALANCE'!AO:AO,'TRIAL BALANCE'!$Z:$Z,"I",'TRIAL BALANCE'!$L:$L,A2A!$A111) -> 0 | J111: =-SUMIFS('TRIAL BALANCE'!AP:AP,'TRIAL BALANCE'!$Z:$Z,"I",'TRIAL BALANCE'!$L:$L,A2A!$A111) -> 0 | K111: =-SUMIFS('TRIAL BALANCE'!AQ:AQ,'TRIAL BALANCE'!$Z:$Z,"I",'TRIAL BALANCE'!$L:$L,A2A!$A111) -> 0
A112: Waste management | C112: =SUM(C113:C116) -> 740076.7 | D112: =SUM(D113:D116) -> 1069105.17 | E112: 6534484.77 | F112: 10723096 | G112: 10738096 | H112: 10738096 | I112: 12015000 | J112: 12495600 | K112: 12995424
A113: Recycling | C113: 0 | D113: =-SUMIFS('TRIAL BALANCE'!AK:AK,'TRIAL BALANCE'!$Z:$Z,"I",'TRIAL BALANCE'!$L:$L,A2A!$A113) -> 0 | E113: =-SUMIFS('TRIAL BALANCE'!AL:AL,'TRIAL BALANCE'!$Z:$Z,"I",'TRIAL BALANCE'!$L:$L,A2A!$A113) -> 0 | F113: 0 | G113: 0 | H113: =G113 -> 0 | I113: =-SUMIFS('TRIAL BALANCE'!AO:AO,'TRIAL BALANCE'!$Z:$Z,"I",'TRIAL BALANCE'!$L:$L,A2A!$A113) -> 0 | J113: =-SUMIFS('TRIAL BALANCE'!AP:AP,'TRIAL BALANCE'!$Z:$Z,"I",'TRIAL BALANCE'!$L:$L,A2A!$A113) -> 0 | K113: =-SUMIFS('TRIAL BALANCE'!AQ:AQ,'TRIAL BALANCE'!$Z:$Z,"I",'TRIAL BALANCE'!$L:$L,A2A!$A113) -> 0
A114: Solid Waste Disposal (Landfill Sites) | C114: 740076.7 | D114: =-SUMIFS('TRIAL BALANCE'!AK:AK,'TRIAL BALANCE'!$Z:$Z,"I",'TRIAL BALANCE'!$L:$L,A2A!$A114) -> 1069105.17 | E114: =-SUMIFS('TRIAL BALANCE'!AL:AL,'TRIAL BALANCE'!$Z:$Z,"I",'TRIAL BALANCE'!$L:$L,A2A!$A114) -> 6534484.77 | F114: 10723096 | G114: 10738096 | H114: 10738096 | I114: =-SUMIFS('TRIAL BALANCE'!AO:AO,'TRIAL BALANCE'!$Z:$Z,"I",'TRIAL BALANCE'!$L:$L,A2A!$A114) -> 12015000 | J114: =-SUMIFS('TRIAL BALANCE'!AP:AP,'TRIAL BALANCE'!$Z:$Z,"I",'TRIAL BALANCE'!$L:$L,A2A!$A114) -> 12495600 | K114: =-SUMIFS('TRIAL BALANCE'!AQ:AQ,'TRIAL BALANCE'!$Z:$Z,"I",'TRIAL BALANCE'!$L:$L,A2A!$A114) -> 12995424
A115: Solid Waste Removal | C115: 0 | D115: =-SUMIFS('TRIAL BALANCE'!AK:AK,'TRIAL BALANCE'!$Z:$Z,"I",'TRIAL BALANCE'!$L:$L,A2A!$A115) -> 0 | E115: =-SUMIFS('TRIAL BALANCE'!AL:AL,'TRIAL BALANCE'!$Z:$Z,"I",'TRIAL BALANCE'!$L:$L,A2A!$A115) -> 0 | F115: 0 | G115: 0 | H115: 0 | I115: =-SUMIFS('TRIAL BALANCE'!AO:AO,'TRIAL BALANCE'!$Z:$Z,"I",'TRIAL BALANCE'!$L:$L,A2A!$A115) -> 0 | J115: =-SUMIFS('TRIAL BALANCE'!AP:AP,'TRIAL BALANCE'!$Z:$Z,"I",'TRIAL BALANCE'!$L:$L,A2A!$A115) -> 0 | K115: =-SUMIFS('TRIAL BALANCE'!AQ:AQ,'TRIAL BALANCE'!$Z:$Z,"I",'TRIAL BALANCE'!$L:$L,A2A!$A115) -> 0
A116: Street Cleaning | C116: 0 | D116: =-SUMIFS('TRIAL BALANCE'!AK:AK,'TRIAL BALANCE'!$Z:$Z,"I",'TRIAL BALANCE'!$L:$L,A2A!$A116) -> 0 | E116: =-SUMIFS('TRIAL BALANCE'!AL:AL,'TRIAL BALANCE'!$Z:$Z,"I",'TRIAL BALANCE'!$L:$L,A2A!$A116) -> 0 | F116: 0 | G116: 0 | H116: 0 | I116: =-SUMIFS('TRIAL BALANCE'!AO:AO,'TRIAL BALANCE'!$Z:$Z,"I",'TRIAL BALANCE'!$L:$L,A2A!$A116) -> 0 | J116: =-SUMIFS('TRIAL BALANCE'!AP:AP,'TRIAL BALANCE'!$Z:$Z,"I",'TRIAL BALANCE'!$L:$L,A2A!$A116) -> 0 | K116: =-SUMIFS('TRIAL BALANCE'!AQ:AQ,'TRIAL BALANCE'!$Z:$Z,"I",'TRIAL BALANCE'!$L:$L,A2A!$A116) -> 0
A117: Other | C117: =SUM(C118:C123) -> 0 | D117: =SUM(D118:D123) -> 0 | E117: 0 | F117: 0 | G117: 0 | H117: 0 | I117: 0 | J117: 0 | K117: 0
A118: Abattoirs | C118: 0 | D118: =-SUMIFS('TRIAL BALANCE'!AK:AK,'TRIAL BALANCE'!$Z:$Z,"I",'TRIAL BALANCE'!$L:$L,A2A!$A118) -> 0 | E118: =-SUMIFS('TRIAL BALANCE'!AL:AL,'TRIAL BALANCE'!$Z:$Z,"I",'TRIAL BALANCE'!$L:$L,A2A!$A118) -> 0 | F118: 0 | G118: 0 | H118: =G118 -> 0 | I118: =-SUMIFS('TRIAL BALANCE'!AO:AO,'TRIAL BALANCE'!$Z:$Z,"I",'TRIAL BALANCE'!$L:$L,A2A!$A118) -> 0 | J118: =-SUMIFS('TRIAL BALANCE'!AP:AP,'TRIAL BALANCE'!$Z:$Z,"I",'TRIAL BALANCE'!$L:$L,A2A!$A118) -> 0 | K118: =-SUMIFS('TRIAL BALANCE'!AQ:AQ,'TRIAL BALANCE'!$Z:$Z,"I",'TRIAL BALANCE'!$L:$L,A2A!$A118) -> 0
A119: Air Transport | C119: 0 | D119: =-SUMIFS('TRIAL BALANCE'!AK:AK,'TRIAL BALANCE'!$Z:$Z,"I",'TRIAL BALANCE'!$L:$L,A2A!$A119) -> 0 | E119: =-SUMIFS('TRIAL BALANCE'!AL:AL,'TRIAL BALANCE'!$Z:$Z,"I",'TRIAL BALANCE'!$L:$L,A2A!$A119) -> 0 | F119: 0 | G119: 0 | H119: 0 | I119: =-SUMIFS('TRIAL BALANCE'!AO:AO,'TRIAL BALANCE'!$Z:$Z,"I",'TRIAL BALANCE'!$L:$L,A2A!$A119) -> 0 | J119: =-SUMIFS('TRIAL BALANCE'!AP:AP,'TRIAL BALANCE'!$Z:$Z,"I",'TRIAL BALANCE'!$L:$L,A2A!$A119) -> 0 | K119: =-SUMIFS('TRIAL BALANCE'!AQ:AQ,'TRIAL BALANCE'!$Z:$Z,"I",'TRIAL BALANCE'!$L:$L,A2A!$A119) -> 0
A120: Forestry | C120: 0 | D120: =-SUMIFS('TRIAL BALANCE'!AK:AK,'TRIAL BALANCE'!$Z:$Z,"I",'TRIAL BALANCE'!$L:$L,A2A!$A120) -> 0 | E120: =-SUMIFS('TRIAL BALANCE'!AL:AL,'TRIAL BALANCE'!$Z:$Z,"I",'TRIAL BALANCE'!$L:$L,A2A!$A120) -> 0 | F120: 0 | G120: 0 | H120: 0 | I120: =-SUMIFS('TRIAL BALANCE'!AO:AO,'TRIAL BALANCE'!$Z:$Z,"I",'TRIAL BALANCE'!$L:$L,A2A!$A120) -> 0 | J120: =-SUMIFS('TRIAL BALANCE'!AP:AP,'TRIAL BALANCE'!$Z:$Z,"I",'TRIAL BALANCE'!$L:$L,A2A!$A120) -> 0 | K120: =-SUMIFS('TRIAL BALANCE'!AQ:AQ,'TRIAL BALANCE'!$Z:$Z,"I",'TRIAL BALANCE'!$L:$L,A2A!$A120) -> 0
A121: Licensing and Regulation | C121: 0 | D121: =-SUMIFS('TRIAL BALANCE'!AK:AK,'TRIAL BALANCE'!$Z:$Z,"I",'TRIAL BALANCE'!$L:$L,A2A!$A121) -> 0 | E121: =-SUMIFS('TRIAL BALANCE'!AL:AL,'TRIAL BALANCE'!$Z:$Z,"I",'TRIAL BALANCE'!$L:$L,A2A!$A121) -> 0 | F121: 0 | G121: 0 | H121: 0 | I121: =-SUMIFS('TRIAL BALANCE'!AO:AO,'TRIAL BALANCE'!$Z:$Z,"I",'TRIAL BALANCE'!$L:$L,A2A!$A121) -> 0 | J121: =-SUMIFS('TRIAL BALANCE'!AP:AP,'TRIAL BALANCE'!$Z:$Z,"I",'TRIAL BALANCE'!$L:$L,A2A!$A121) -> 0 | K121: =-SUMIFS('TRIAL BALANCE'!AQ:AQ,'TRIAL BALANCE'!$Z:$Z,"I",'TRIAL BALANCE'!$L:$L,A2A!$A121) -> 0
A122: Markets | C122: 0 | D122: =-SUMIFS('TRIAL BALANCE'!AK:AK,'TRIAL BALANCE'!$Z:$Z,"I",'TRIAL BALANCE'!$L:$L,A2A!$A122) -> 0 | E122: =-SUMIFS('TRIAL BALANCE'!AL:AL,'TRIAL BALANCE'!$Z:$Z,"I",'TRIAL BALANCE'!$L:$L,A2A!$A122) -> 0 | F122: 0 | G122: 0 | H122: 0 | I122: =-SUMIFS('TRIAL BALANCE'!AO:AO,'TRIAL BALANCE'!$Z:$Z,"I",'TRIAL BALANCE'!$L:$L,A2A!$A122) -> 0 | J122: =-SUMIFS('TRIAL BALANCE'!AP:AP,'TRIAL BALANCE'!$Z:$Z,"I",'TRIAL BALANCE'!$L:$L,A2A!$A122) -> 0 | K122: =-SUMIFS('TRIAL BALANCE'!AQ:AQ,'TRIAL BALANCE'!$Z:$Z,"I",'TRIAL BALANCE'!$L:$L,A2A!$A122) -> 0
A123: Tourism | C123: 0 | D123: =-SUMIFS('TRIAL BALANCE'!AK:AK,'TRIAL BALANCE'!$Z:$Z,"I",'TRIAL BALANCE'!$L:$L,A2A!$A123) -> 0 | E123: =-SUMIFS('TRIAL BALANCE'!AL:AL,'TRIAL BALANCE'!$Z:$Z,"I",'TRIAL BALANCE'!$L:$L,A2A!$A123) -> 0 | F123: 0 | G123: 0 | H123: 0 | I123: =-SUMIFS('TRIAL BALANCE'!AO:AO,'TRIAL BALANCE'!$Z:$Z,"I",'TRIAL BALANCE'!$L:$L,A2A!$A123) -> 0 | J123: =-SUMIFS('TRIAL BALANCE'!AP:AP,'TRIAL BALANCE'!$Z:$Z,"I",'TRIAL BALANCE'!$L:$L,A2A!$A123) -> 0 | K123: =-SUMIFS('TRIAL BALANCE'!AQ:AQ,'TRIAL BALANCE'!$Z:$Z,"I",'TRIAL BALANCE'!$L:$L,A2A!$A123) -> 0
A124: ="Total "&A4 -> Total Revenue - Functional | B124: 2 | C124: =C5+C25+C74+C98+C117 -> 159414273 | D124: 186015176.2 | E124: 217324687.7 | F124: 219985634.4 | G124: 233494095 | H124: 233494095 | I124: 239192217 | J124: 247173588 | K124: 257299773
A126: Expenditure - Functional
A127: =A5 -> Municipal governance and administration | C127: =C128+C131+C145 -> 42468546.4 | D127: 44671118.21 | E127: 47912553.05 | F127: 51592528.85 | G127: 55845748.96 | H127: 55845748.96 | I127: 57877993 | J127: 58545754 | K127: 60895630
A128: Executive and council | C128: =SUM(C129:C130) -> 11754726.28 | D128: 11357176.79 | E128: 10599154.42 | F128: 11191277.5 | G128: 11603515 | H128: 11603515 | I128: 11325849 | J128: 11310884 | K128: 11763319
A129: Mayor and Council | C129: 6911238.72 | D129: =SUMIFS('TRIAL BALANCE'!AK:AK,'TRIAL BALANCE'!$Z:$Z,"E",'TRIAL BALANCE'!$L:$L,A2A!$A129) -> 8324850.643 | E129: =SUMIFS('TRIAL BALANCE'!AL:AL,'TRIAL BALANCE'!$Z:$Z,"E",'TRIAL BALANCE'!$L:$L,A2A!$A129) -> 8197170.51 | F129: 8374844.6 | G129: 8728831 | H129: =G129 -> 8728831 | I129: =SUMIFS('TRIAL BALANCE'!AO:AO,'TRIAL BALANCE'!$Z:$Z,"E",'TRIAL BALANCE'!$L:$L,A2A!$A129) -> 8394609 | J129: =SUMIFS('TRIAL BALANCE'!AP:AP,'TRIAL BALANCE'!$Z:$Z,"E",'TRIAL BALANCE'!$L:$L,A2A!$A129) -> 8262393 | K129: =SUMIFS('TRIAL BALANCE'!AQ:AQ,'TRIAL BALANCE'!$Z:$Z,"E",'TRIAL BALANCE'!$L:$L,A2A!$A129) -> 8592889
A130: Municipal Manager, Town Secretary and Chief Executive | C130: 4843487.56 | D130: =SUMIFS('TRIAL BALANCE'!AK:AK,'TRIAL BALANCE'!$Z:$Z,"E",'TRIAL BALANCE'!$L:$L,A2A!$A130) -> 3032326.146 | E130: =SUMIFS('TRIAL BALANCE'!AL:AL,'TRIAL BALANCE'!$Z:$Z,"E",'TRIAL BALANCE'!$L:$L,A2A!$A130) -> 2401983.91 | F130: 2816432.901 | G130: 2874684 | H130: 2874684 | I130: =SUMIFS('TRIAL BALANCE'!AO:AO,'TRIAL BALANCE'!$Z:$Z,"E",'TRIAL BALANCE'!$L:$L,A2A!$A130) -> 2931240 | J130: =SUMIFS('TRIAL BALANCE'!AP:AP,'TRIAL BALANCE'!$Z:$Z,"E",'TRIAL BALANCE'!$L:$L,A2A!$A130) -> 3048491 | K130: =SUMIFS('TRIAL BALANCE'!AQ:AQ,'TRIAL BALANCE'!$Z:$Z,"E",'TRIAL BALANCE'!$L:$L,A2A!$A130) -> 3170430
A131: Finance and administration | C131: =SUM(C132:C144) -> 29595854.08 | D131: 32177313.54 | E131: 36086078.88 | F131: 39034923.15 | G131: 42569423.96 | H131: 42569423.96 | I131: 44647010 | J131: 45253531 | K131: 47071718
A132: Administrative and Corporate Support | C132: 4294372.52 | D132: =SUMIFS('TRIAL BALANCE'!AK:AK,'TRIAL BALANCE'!$Z:$Z,"E",'TRIAL BALANCE'!$L:$L,A2A!$A132) -> 6513221.839 | E132: =SUMIFS('TRIAL BALANCE'!AL:AL,'TRIAL BALANCE'!$Z:$Z,"E",'TRIAL BALANCE'!$L:$L,A2A!$A132) -> 6859393.56 | F132: 9411858.21 | G132: 10769024 | H132: =G132 -> 10769024 | I132: =SUMIFS('TRIAL BALANCE'!AO:AO,'TRIAL BALANCE'!$Z:$Z,"E",'TRIAL BALANCE'!$L:$L,A2A!$A132) -> 11689737 | J132: =SUMIFS('TRIAL BALANCE'!AP:AP,'TRIAL BALANCE'!$Z:$Z,"E",'TRIAL BALANCE'!$L:$L,A2A!$A132) -> 12157326 | K132: =SUMIFS('TRIAL BALANCE'!AQ:AQ,'TRIAL BALANCE'!$Z:$Z,"E",'TRIAL BALANCE'!$L:$L,A2A!$A132) -> 12643622
A133: Asset Management | C133: 0 | D133: =SUMIFS('TRIAL BALANCE'!AK:AK,'TRIAL BALANCE'!$Z:$Z,"E",'TRIAL BALANCE'!$L:$L,A2A!$A133) -> 0 | E133: =SUMIFS('TRIAL BALANCE'!AL:AL,'TRIAL BALANCE'!$Z:$Z,"E",'TRIAL BALANCE'!$L:$L,A2A!$A133) -> 0 | F133: 0 | G133: 0 | H133: 0 | I133: =SUMIFS('TRIAL BALANCE'!AO:AO,'TRIAL BALANCE'!$Z:$Z,"E",'TRIAL BALANCE'!$L:$L,A2A!$A133) -> 0 | J133: =SUMIFS('TRIAL BALANCE'!AP:AP,'TRIAL BALANCE'!$Z:$Z,"E",'TRIAL BALANCE'!$L:$L,A2A!$A133) -> 0 | K133: =SUMIFS('TRIAL BALANCE'!AQ:AQ,'TRIAL BALANCE'!$Z:$Z,"E",'TRIAL BALANCE'!$L:$L,A2A!$A133) -> 0
A134: Finance | C134: 20897918.99 | D134: =SUMIFS('TRIAL BALANCE'!AK:AK,'TRIAL BALANCE'!$Z:$Z,"E",'TRIAL BALANCE'!$L:$L,A2A!$A134) -> 19994027.98 | E134: =SUMIFS('TRIAL BALANCE'!AL:AL,'TRIAL BALANCE'!$Z:$Z,"E",'TRIAL BALANCE'!$L:$L,A2A!$A134) -> 22469305.68 | F134: 20991237.33 | G134: 22413641.22 | H134: 22413641.22 | I134: =SUMIFS('TRIAL BALANCE'!AO:AO,'TRIAL BALANCE'!$Z:$Z,"E",'TRIAL BALANCE'!$L:$L,A2A!$A134) -> 22418070 | J134: =SUMIFS('TRIAL BALANCE'!AP:AP,'TRIAL BALANCE'!$Z:$Z,"E",'TRIAL BALANCE'!$L:$L,A2A!$A134) -> 22135436 | K134: =SUMIFS('TRIAL BALANCE'!AQ:AQ,'TRIAL BALANCE'!$Z:$Z,"E",'TRIAL BALANCE'!$L:$L,A2A!$A134) -> 23028898
A135: Fleet Management | C135: 0 | D135: =SUMIFS('TRIAL BALANCE'!AK:AK,'TRIAL BALANCE'!$Z:$Z,"E",'TRIAL BALANCE'!$L:$L,A2A!$A135) -> 0 | E135: =SUMIFS('TRIAL BALANCE'!AL:AL,'TRIAL BALANCE'!$Z:$Z,"E",'TRIAL BALANCE'!$L:$L,A2A!$A135) -> 0 | F135: 0 | G135: 0 | H135: 0 | I135: =SUMIFS('TRIAL BALANCE'!AO:AO,'TRIAL BALANCE'!$Z:$Z,"E",'TRIAL BALANCE'!$L:$L,A2A!$A135) -> 0 | J135: =SUMIFS('TRIAL BALANCE'!AP:AP,'TRIAL BALANCE'!$Z:$Z,"E",'TRIAL BALANCE'!$L:$L,A2A!$A135) -> 0 | K135: =SUMIFS('TRIAL BALANCE'!AQ:AQ,'TRIAL BALANCE'!$Z:$Z,"E",'TRIAL BALANCE'!$L:$L,A2A!$A135) -> 0
A136: Human Resources | C136: 1750814.82 | D136: =SUMIFS('TRIAL BALANCE'!AK:AK,'TRIAL BALANCE'!$Z:$Z,"E",'TRIAL BALANCE'!$L:$L,A2A!$A136) -> 1923944.725 | E136: =SUMIFS('TRIAL BALANCE'!AL:AL,'TRIAL BALANCE'!$Z:$Z,"E",'TRIAL BALANCE'!$L:$L,A2A!$A136) -> 2007555.31 | F136: 2546636.626 | G136: 3572342.739 | H136: 3572342.739 | I136: =SUMIFS('TRIAL BALANCE'!AO:AO,'TRIAL BALANCE'!$Z:$Z,"E",'TRIAL BALANCE'!$L:$L,A2A!$A136) -> 4103522 | J136: =SUMIFS('TRIAL BALANCE'!AP:AP,'TRIAL BALANCE'!$Z:$Z,"E",'TRIAL BALANCE'!$L:$L,A2A!$A136) -> 4267662 | K136: =SUMIFS('TRIAL BALANCE'!AQ:AQ,'TRIAL BALANCE'!$Z:$Z,"E",'TRIAL BALANCE'!$L:$L,A2A!$A136) -> 4438367
A137: Information Technology | C137: 0 | D137: =SUMIFS('TRIAL BALANCE'!AK:AK,'TRIAL BALANCE'!$Z:$Z,"E",'TRIAL BALANCE'!$L:$L,A2A!$A137) -> 1987412.783 | E137: =SUMIFS('TRIAL BALANCE'!AL:AL,'TRIAL BALANCE'!$Z:$Z,"E",'TRIAL BALANCE'!$L:$L,A2A!$A137) -> 2906538 | F137: 3160672.24 | G137: 3729628 | H137: 3729628 | I137: =SUMIFS('TRIAL BALANCE'!AO:AO,'TRIAL BALANCE'!$Z:$Z,"E",'TRIAL BALANCE'!$L:$L,A2A!$A137) -> 3981717 | J137: =SUMIFS('TRIAL BALANCE'!AP:AP,'TRIAL BALANCE'!$Z:$Z,"E",'TRIAL BALANCE'!$L:$L,A2A!$A137) -> 4140985 | K137: =SUMIFS('TRIAL BALANCE'!AQ:AQ,'TRIAL BALANCE'!$Z:$Z,"E",'TRIAL BALANCE'!$L:$L,A2A!$A137) -> 4306626
A138: Legal Services | C138: 0 | D138: =SUMIFS('TRIAL BALANCE'!AK:AK,'TRIAL BALANCE'!$Z:$Z,"E",'TRIAL BALANCE'!$L:$L,A2A!$A138) -> 0 | E138: =SUMIFS('TRIAL BALANCE'!AL:AL,'TRIAL BALANCE'!$Z:$Z,"E",'TRIAL BALANCE'!$L:$L,A2A!$A138) -> 0 | F138: 0 | G138: 0 | H138: 0 | I138: =SUMIFS('TRIAL BALANCE'!AO:AO,'TRIAL BALANCE'!$Z:$Z,"E",'TRIAL BALANCE'!$L:$L,A2A!$A138) -> 0 | J138: =SUMIFS('TRIAL BALANCE'!AP:AP,'TRIAL BALANCE'!$Z:$Z,"E",'TRIAL BALANCE'!$L:$L,A2A!$A138) -> 0 | K138: =SUMIFS('TRIAL BALANCE'!AQ:AQ,'TRIAL BALANCE'!$Z:$Z,"E",'TRIAL BALANCE'!$L:$L,A2A!$A138) -> 0
A139: Marketing, Customer Relations, Publicity and Media Co-ordination | C139: 0 | D139: =SUMIFS('TRIAL BALANCE'!AK:AK,'TRIAL BALANCE'!$Z:$Z,"E",'TRIAL BALANCE'!$L:$L,A2A!$A139) -> 0 | E139: =SUMIFS('TRIAL BALANCE'!AL:AL,'TRIAL BALANCE'!$Z:$Z,"E",'TRIAL BALANCE'!$L:$L,A2A!$A139) -> 0 | F139: 0 | G139: 0 | H139: 0 | I139: =SUMIFS('TRIAL BALANCE'!AO:AO,'TRIAL BALANCE'!$Z:$Z,"E",'TRIAL BALANCE'!$L:$L,A2A!$A139) -> 0 | J139: =SUMIFS('TRIAL BALANCE'!AP:AP,'TRIAL BALANCE'!$Z:$Z,"E",'TRIAL BALANCE'!$L:$L,A2A!$A139) -> 0 | K139: =SUMIFS('TRIAL BALANCE'!AQ:AQ,'TRIAL BALANCE'!$Z:$Z,"E",'TRIAL BALANCE'!$L:$L,A2A!$A139) -> 0
A140: Property Services | C140: 1000824.6 | D140: =SUMIFS('TRIAL BALANCE'!AK:AK,'TRIAL BALANCE'!$Z:$Z,"E",'TRIAL BALANCE'!$L:$L,A2A!$A140) -> 0 | E140: =SUMIFS('TRIAL BALANCE'!AL:AL,'TRIAL BALANCE'!$Z:$Z,"E",'TRIAL BALANCE'!$L:$L,A2A!$A140) -> 0 | F140: 0 | G140: 0 | H140: 0 | I140: =SUMIFS('TRIAL BALANCE'!AO:AO,'TRIAL BALANCE'!$Z:$Z,"E",'TRIAL BALANCE'!$L:$L,A2A!$A140) -> 0 | J140: =SUMIFS('TRIAL BALANCE'!AP:AP,'TRIAL BALANCE'!$Z:$Z,"E",'TRIAL BALANCE'!$L:$L,A2A!$A140) -> 0 | K140: =SUMIFS('TRIAL BALANCE'!AQ:AQ,'TRIAL BALANCE'!$Z:$Z,"E",'TRIAL BALANCE'!$L:$L,A2A!$A140) -> 0
A141: Risk Management | C141: 0 | D141: =SUMIFS('TRIAL BALANCE'!AK:AK,'TRIAL BALANCE'!$Z:$Z,"E",'TRIAL BALANCE'!$L:$L,A2A!$A141) -> 0 | E141: =SUMIFS('TRIAL BALANCE'!AL:AL,'TRIAL BALANCE'!$Z:$Z,"E",'TRIAL BALANCE'!$L:$L,A2A!$A141) -> 0 | F141: 911641.8384 | G141: 0 | H141: 0 | I141: =SUMIFS('TRIAL BALANCE'!AO:AO,'TRIAL BALANCE'!$Z:$Z,"E",'TRIAL BALANCE'!$L:$L,A2A!$A141) -> 0 | J141: =SUMIFS('TRIAL BALANCE'!AP:AP,'TRIAL BALANCE'!$Z:$Z,"E",'TRIAL BALANCE'!$L:$L,A2A!$A141) -> 0 | K141: =SUMIFS('TRIAL BALANCE'!AQ:AQ,'TRIAL BALANCE'!$Z:$Z,"E",'TRIAL BALANCE'!$L:$L,A2A!$A141) -> 0
A142: Security Services | C142: 0 | D142: =SUMIFS('TRIAL BALANCE'!AK:AK,'TRIAL BALANCE'!$Z:$Z,"E",'TRIAL BALANCE'!$L:$L,A2A!$A142) -> 0 | E142: =SUMIFS('TRIAL BALANCE'!AL:AL,'TRIAL BALANCE'!$Z:$Z,"E",'TRIAL BALANCE'!$L:$L,A2A!$A142) -> 0 | F142: 0 | G142: 0 | H142: 0 | I142: =SUMIFS('TRIAL BALANCE'!AO:AO,'TRIAL BALANCE'!$Z:$Z,"E",'TRIAL BALANCE'!$L:$L,A2A!$A142) -> 0 | J142: =SUMIFS('TRIAL BALANCE'!AP:AP,'TRIAL BALANCE'!$Z:$Z,"E",'TRIAL BALANCE'!$L:$L,A2A!$A142) -> 0 | K142: =SUMIFS('TRIAL BALANCE'!AQ:AQ,'TRIAL BALANCE'!$Z:$Z,"E",'TRIAL BALANCE'!$L:$L,A2A!$A142) -> 0
A143: =A21 -> Supply Chain Management | C143: 1651923.15 | D143: =SUMIFS('TRIAL BALANCE'!AK:AK,'TRIAL BALANCE'!$Z:$Z,"E",'TRIAL BALANCE'!$L:$L,A2A!$A143) -> 1758706.212 | E143: =SUMIFS('TRIAL BALANCE'!AL:AL,'TRIAL BALANCE'!$Z:$Z,"E",'TRIAL BALANCE'!$L:$L,A2A!$A143) -> 1843286.33 | F143: 2012876.906 | G143: 2084788 | H143: 2084788 | I143: =SUMIFS('TRIAL BALANCE'!AO:AO,'TRIAL BALANCE'!$Z:$Z,"E",'TRIAL BALANCE'!$L:$L,A2A!$A143) -> 2453964 | J143: =SUMIFS('TRIAL BALANCE'!AP:AP,'TRIAL BALANCE'!$Z:$Z,"E",'TRIAL BALANCE'!$L:$L,A2A!$A143) -> 2552122 | K143: =SUMIFS('TRIAL BALANCE'!AQ:AQ,'TRIAL BALANCE'!$Z:$Z,"E",'TRIAL BALANCE'!$L:$L,A2A!$A143) -> 2654205
A144: Valuation Service | C144: 0 | D144: =SUMIFS('TRIAL BALANCE'!AK:AK,'TRIAL BALANCE'!$Z:$Z,"E",'TRIAL BALANCE'!$L:$L,A2A!$A144) -> 0 | E144: =SUMIFS('TRIAL BALANCE'!AL:AL,'TRIAL BALANCE'!$Z:$Z,"E",'TRIAL BALANCE'!$L:$L,A2A!$A144) -> 0 | F144: 0 | G144: 0 | H144: 0 | I144: =SUMIFS('TRIAL BALANCE'!AO:AO,'TRIAL BALANCE'!$Z:$Z,"E",'TRIAL BALANCE'!$L:$L,A2A!$A144) -> 0 | J144: =SUMIFS('TRIAL BALANCE'!AP:AP,'TRIAL BALANCE'!$Z:$Z,"E",'TRIAL BALANCE'!$L:$L,A2A!$A144) -> 0 | K144: =SUMIFS('TRIAL BALANCE'!AQ:AQ,'TRIAL BALANCE'!$Z:$Z,"E",'TRIAL BALANCE'!$L:$L,A2A!$A144) -> 0
A145: Internal audit | C145: =SUM(C146:C146) -> 1117966.04 | D145: 1136627.881 | E145: 1227319.75 | F145: 1366328.202 | G145: 1672810 | H145: 1672810 | I145: 1905134 | J145: 1981339 | K145: 2060593
A146: Governance Function | C146: 1117966.04 | D146: =SUMIFS('TRIAL BALANCE'!AK:AK,'TRIAL BALANCE'!$Z:$Z,"E",'TRIAL BALANCE'!$L:$L,A2A!$A146) -> 1136627.881 | E146: =SUMIFS('TRIAL BALANCE'!AL:AL,'TRIAL BALANCE'!$Z:$Z,"E",'TRIAL BALANCE'!$L:$L,A2A!$A146) -> 1227319.75 | F146: 1366328.202 | G146: 1672810 | H146: =G146 -> 1672810 | I146: =SUMIFS('TRIAL BALANCE'!AO:AO,'TRIAL BALANCE'!$Z:$Z,"E",'TRIAL BALANCE'!$L:$L,A2A!$A146) -> 1905134 | J146: =SUMIFS('TRIAL BALANCE'!AP:AP,'TRIAL BALANCE'!$Z:$Z,"E",'TRIAL BALANCE'!$L:$L,A2A!$A146) -> 1981339 | K146: =SUMIFS('TRIAL BALANCE'!AQ:AQ,'TRIAL BALANCE'!$Z:$Z,"E",'TRIAL BALANCE'!$L:$L,A2A!$A146) -> 2060593
A147: Community and public safety | C147: =C148+C170+C176+C185+C188 -> 45930551.48 | D147: 56683546.11 | E147: 60172119.57 | F147: 64657186.98 | G147: 65779567.61 | H147: 65779567.61 | I147: 65110541 | J147: 66937444 | K147: 69614941
A148: Community and social services | C148: =SUM(C149:C169) -> 0 | D148: =SUM(D149:D169) -> 0 | E148: 0 | F148: 0 | G148: 0 | H148: 0 | I148: 0 | J148: 0 | K148: 0
A149: Aged Care | C149: 0 | D149: =SUMIFS('TRIAL BALANCE'!AK:AK,'TRIAL BALANCE'!$Z:$Z,"E",'TRIAL BALANCE'!$L:$L,A2A!$A149) -> 0 | E149: =SUMIFS('TRIAL BALANCE'!AL:AL,'TRIAL BALANCE'!$Z:$Z,"E",'TRIAL BALANCE'!$L:$L,A2A!$A149) -> 0 | F149: 0 | G149: 0 | H149: =G149 -> 0 | I149: =SUMIFS('TRIAL BALANCE'!AO:AO,'TRIAL BALANCE'!$Z:$Z,"E",'TRIAL BALANCE'!$L:$L,A2A!$A149) -> 0 | J149: =SUMIFS('TRIAL BALANCE'!AP:AP,'TRIAL BALANCE'!$Z:$Z,"E",'TRIAL BALANCE'!$L:$L,A2A!$A149) -> 0 | K149: =SUMIFS('TRIAL BALANCE'!AQ:AQ,'TRIAL BALANCE'!$Z:$Z,"E",'TRIAL BALANCE'!$L:$L,A2A!$A149) -> 0
A150: Agricultural | C150: 0 | D150: =SUMIFS('TRIAL BALANCE'!AK:AK,'TRIAL BALANCE'!$Z:$Z,"E",'TRIAL BALANCE'!$L:$L,A2A!$A150) -> 0 | E150: =SUMIFS('TRIAL BALANCE'!AL:AL,'TRIAL BALANCE'!$Z:$Z,"E",'TRIAL BALANCE'!$L:$L,A2A!$A150) -> 0 | F150: 0 | G150: 0 | H150: 0 | I150: =SUMIFS('TRIAL BALANCE'!AO:AO,'TRIAL BALANCE'!$Z:$Z,"E",'TRIAL BALANCE'!$L:$L,A2A!$A150) -> 0 | J150: =SUMIFS('TRIAL BALANCE'!AP:AP,'TRIAL BALANCE'!$Z:$Z,"E",'TRIAL BALANCE'!$L:$L,A2A!$A150) -> 0 | K150: =SUMIFS('TRIAL BALANCE'!AQ:AQ,'TRIAL BALANCE'!$Z:$Z,"E",'TRIAL BALANCE'!$L:$L,A2A!$A150) -> 0
A151: Animal Care and Diseases | C151: 0 | D151: =SUMIFS('TRIAL BALANCE'!AK:AK,'TRIAL BALANCE'!$Z:$Z,"E",'TRIAL BALANCE'!$L:$L,A2A!$A151) -> 0 | E151: =SUMIFS('TRIAL BALANCE'!AL:AL,'TRIAL BALANCE'!$Z:$Z,"E",'TRIAL BALANCE'!$L:$L,A2A!$A151) -> 0 | F151: 0 | G151: 0 | H151: 0 | I151: =SUMIFS('TRIAL BALANCE'!AO:AO,'TRIAL BALANCE'!$Z:$Z,"E",'TRIAL BALANCE'!$L:$L,A2A!$A151) -> 0 | J151: =SUMIFS('TRIAL BALANCE'!AP:AP,'TRIAL BALANCE'!$Z:$Z,"E",'TRIAL BALANCE'!$L:$L,A2A!$A151) -> 0 | K151: =SUMIFS('TRIAL BALANCE'!AQ:AQ,'TRIAL BALANCE'!$Z:$Z,"E",'TRIAL BALANCE'!$L:$L,A2A!$A151) -> 0
A152: Cemeteries, Funeral Parlours and Crematoriums | C152: 0 | D152: =SUMIFS('TRIAL BALANCE'!AK:AK,'TRIAL BALANCE'!$Z:$Z,"E",'TRIAL BALANCE'!$L:$L,A2A!$A152) -> 0 | E152: =SUMIFS('TRIAL BALANCE'!AL:AL,'TRIAL BALANCE'!$Z:$Z,"E",'TRIAL BALANCE'!$L:$L,A2A!$A152) -> 0 | F152: 0 | G152: 0 | H152: 0 | I152: =SUMIFS('TRIAL BALANCE'!AO:AO,'TRIAL BALANCE'!$Z:$Z,"E",'TRIAL BALANCE'!$L:$L,A2A!$A152) -> 0 | J152: =SUMIFS('TRIAL BALANCE'!AP:AP,'TRIAL BALANCE'!$Z:$Z,"E",'TRIAL BALANCE'!$L:$L,A2A!$A152) -> 0 | K152: =SUMIFS('TRIAL BALANCE'!AQ:AQ,'TRIAL BALANCE'!$Z:$Z,"E",'TRIAL BALANCE'!$L:$L,A2A!$A152) -> 0
A153: Child Care Facilities | C153: 0 | D153: =SUMIFS('TRIAL BALANCE'!AK:AK,'TRIAL BALANCE'!$Z:$Z,"E",'TRIAL BALANCE'!$L:$L,A2A!$A153) -> 0 | E153: =SUMIFS('TRIAL BALANCE'!AL:AL,'TRIAL BALANCE'!$Z:$Z,"E",'TRIAL BALANCE'!$L:$L,A2A!$A153) -> 0 | F153: 0 | G153: 0 | H153: 0 | I153: =SUMIFS('TRIAL BALANCE'!AO:AO,'TRIAL BALANCE'!$Z:$Z,"E",'TRIAL BALANCE'!$L:$L,A2A!$A153) -> 0 | J153: =SUMIFS('TRIAL BALANCE'!AP:AP,'TRIAL BALANCE'!$Z:$Z,"E",'TRIAL BALANCE'!$L:$L,A2A!$A153) -> 0 | K153: =SUMIFS('TRIAL BALANCE'!AQ:AQ,'TRIAL BALANCE'!$Z:$Z,"E",'TRIAL BALANCE'!$L:$L,A2A!$A153) -> 0
A154: Community Halls and Facilities | C154: 0 | D154: =SUMIFS('TRIAL BALANCE'!AK:AK,'TRIAL BALANCE'!$Z:$Z,"E",'TRIAL BALANCE'!$L:$L,A2A!$A154) -> 0 | E154: =SUMIFS('TRIAL BALANCE'!AL:AL,'TRIAL BALANCE'!$Z:$Z,"E",'TRIAL BALANCE'!$L:$L,A2A!$A154) -> 0 | F154: 0 | G154: 0 | H154: 0 | I154: =SUMIFS('TRIAL BALANCE'!AO:AO,'TRIAL BALANCE'!$Z:$Z,"E",'TRIAL BALANCE'!$L:$L,A2A!$A154) -> 0 | J154: =SUMIFS('TRIAL BALANCE'!AP:AP,'TRIAL BALANCE'!$Z:$Z,"E",'TRIAL BALANCE'!$L:$L,A2A!$A154) -> 0 | K154: =SUMIFS('TRIAL BALANCE'!AQ:AQ,'TRIAL BALANCE'!$Z:$Z,"E",'TRIAL BALANCE'!$L:$L,A2A!$A154) -> 0
A155: Consumer Protection | C155: 0 | D155: =SUMIFS('TRIAL BALANCE'!AK:AK,'TRIAL BALANCE'!$Z:$Z,"E",'TRIAL BALANCE'!$L:$L,A2A!$A155) -> 0 | E155: =SUMIFS('TRIAL BALANCE'!AL:AL,'TRIAL BALANCE'!$Z:$Z,"E",'TRIAL BALANCE'!$L:$L,A2A!$A155) -> 0 | F155: 0 | G155: 0 | H155: 0 | I155: =SUMIFS('TRIAL BALANCE'!AO:AO,'TRIAL BALANCE'!$Z:$Z,"E",'TRIAL BALANCE'!$L:$L,A2A!$A155) -> 0 | J155: =SUMIFS('TRIAL BALANCE'!AP:AP,'TRIAL BALANCE'!$Z:$Z,"E",'TRIAL BALANCE'!$L:$L,A2A!$A155) -> 0 | K155: =SUMIFS('TRIAL BALANCE'!AQ:AQ,'TRIAL BALANCE'!$Z:$Z,"E",'TRIAL BALANCE'!$L:$L,A2A!$A155) -> 0
A156: Cultural Matters | C156: 0 | D156: =SUMIFS('TRIAL BALANCE'!AK:AK,'TRIAL BALANCE'!$Z:$Z,"E",'TRIAL BALANCE'!$L:$L,A2A!$A156) -> 0 | E156: =SUMIFS('TRIAL BALANCE'!AL:AL,'TRIAL BALANCE'!$Z:$Z,"E",'TRIAL BALANCE'!$L:$L,A2A!$A156) -> 0 | F156: 0 | G156: 0 | H156: 0 | I156: =SUMIFS('TRIAL BALANCE'!AO:AO,'TRIAL BALANCE'!$Z:$Z,"E",'TRIAL BALANCE'!$L:$L,A2A!$A156) -> 0 | J156: =SUMIFS('TRIAL BALANCE'!AP:AP,'TRIAL BALANCE'!$Z:$Z,"E",'TRIAL BALANCE'!$L:$L,A2A!$A156) -> 0 | K156: =SUMIFS('TRIAL BALANCE'!AQ:AQ,'TRIAL BALANCE'!$Z:$Z,"E",'TRIAL BALANCE'!$L:$L,A2A!$A156) -> 0
A157: Disaster Management | C157: 0 | D157: =SUMIFS('TRIAL BALANCE'!AK:AK,'TRIAL BALANCE'!$Z:$Z,"E",'TRIAL BALANCE'!$L:$L,A2A!$A157) -> 0 | E157: =SUMIFS('TRIAL BALANCE'!AL:AL,'TRIAL BALANCE'!$Z:$Z,"E",'TRIAL BALANCE'!$L:$L,A2A!$A157) -> 0 | F157: 0 | G157: 0 | H157: 0 | I157: =SUMIFS('TRIAL BALANCE'!AO:AO,'TRIAL BALANCE'!$Z:$Z,"E",'TRIAL BALANCE'!$L:$L,A2A!$A157) -> 0 | J157: =SUMIFS('TRIAL BALANCE'!AP:AP,'TRIAL BALANCE'!$Z:$Z,"E",'TRIAL BALANCE'!$L:$L,A2A!$A157) -> 0 | K157: =SUMIFS('TRIAL BALANCE'!AQ:AQ,'TRIAL BALANCE'!$Z:$Z,"E",'TRIAL BALANCE'!$L:$L,A2A!$A157) -> 0
A158: Education | C158: 0 | D158: =SUMIFS('TRIAL BALANCE'!AK:AK,'TRIAL BALANCE'!$Z:$Z,"E",'TRIAL BALANCE'!$L:$L,A2A!$A158) -> 0 | E158: =SUMIFS('TRIAL BALANCE'!AL:AL,'TRIAL BALANCE'!$Z:$Z,"E",'TRIAL BALANCE'!$L:$L,A2A!$A158) -> 0 | F158: 0 | G158: 0 | H158: 0 | I158: =SUMIFS('TRIAL BALANCE'!AO:AO,'TRIAL BALANCE'!$Z:$Z,"E",'TRIAL BALANCE'!$L:$L,A2A!$A158) -> 0 | J158: =SUMIFS('TRIAL BALANCE'!AP:AP,'TRIAL BALANCE'!$Z:$Z,"E",'TRIAL BALANCE'!$L:$L,A2A!$A158) -> 0 | K158: =SUMIFS('TRIAL BALANCE'!AQ:AQ,'TRIAL BALANCE'!$Z:$Z,"E",'TRIAL BALANCE'!$L:$L,A2A!$A158) -> 0
A159: =A37 -> Indigenous and Customary Law | C159: 0 | D159: =SUMIFS('TRIAL BALANCE'!AK:AK,'TRIAL BALANCE'!$Z:$Z,"E",'TRIAL BALANCE'!$L:$L,A2A!$A159) -> 0 | E159: =SUMIFS('TRIAL BALANCE'!AL:AL,'TRIAL BALANCE'!$Z:$Z,"E",'TRIAL BALANCE'!$L:$L,A2A!$A159) -> 0 | F159: 0 | G159: 0 | H159: 0 | I159: =SUMIFS('TRIAL BALANCE'!AO:AO,'TRIAL BALANCE'!$Z:$Z,"E",'TRIAL BALANCE'!$L:$L,A2A!$A159) -> 0 | J159: =SUMIFS('TRIAL BALANCE'!AP:AP,'TRIAL BALANCE'!$Z:$Z,"E",'TRIAL BALANCE'!$L:$L,A2A!$A159) -> 0 | K159: =SUMIFS('TRIAL BALANCE'!AQ:AQ,'TRIAL BALANCE'!$Z:$Z,"E",'TRIAL BALANCE'!$L:$L,A2A!$A159) -> 0
A160: Industrial Promotion | C160: 0 | D160: =SUMIFS('TRIAL BALANCE'!AK:AK,'TRIAL BALANCE'!$Z:$Z,"E",'TRIAL BALANCE'!$L:$L,A2A!$A160) -> 0 | E160: =SUMIFS('TRIAL BALANCE'!AL:AL,'TRIAL BALANCE'!$Z:$Z,"E",'TRIAL BALANCE'!$L:$L,A2A!$A160) -> 0 | F160: 0 | G160: 0 | H160: 0 | I160: =SUMIFS('TRIAL BALANCE'!AO:AO,'TRIAL BALANCE'!$Z:$Z,"E",'TRIAL BALANCE'!$L:$L,A2A!$A160) -> 0 | J160: =SUMIFS('TRIAL BALANCE'!AP:AP,'TRIAL BALANCE'!$Z:$Z,"E",'TRIAL BALANCE'!$L:$L,A2A!$A160) -> 0 | K160: =SUMIFS('TRIAL BALANCE'!AQ:AQ,'TRIAL BALANCE'!$Z:$Z,"E",'TRIAL BALANCE'!$L:$L,A2A!$A160) -> 0
A161: Language Policy | C161: 0 | D161: =SUMIFS('TRIAL BALANCE'!AK:AK,'TRIAL BALANCE'!$Z:$Z,"E",'TRIAL BALANCE'!$L:$L,A2A!$A161) -> 0 | E161: =SUMIFS('TRIAL BALANCE'!AL:AL,'TRIAL BALANCE'!$Z:$Z,"E",'TRIAL BALANCE'!$L:$L,A2A!$A161) -> 0 | F161: 0 | G161: 0 | H161: 0 | I161: =SUMIFS('TRIAL BALANCE'!AO:AO,'TRIAL BALANCE'!$Z:$Z,"E",'TRIAL BALANCE'!$L:$L,A2A!$A161) -> 0 | J161: =SUMIFS('TRIAL BALANCE'!AP:AP,'TRIAL BALANCE'!$Z:$Z,"E",'TRIAL BALANCE'!$L:$L,A2A!$A161) -> 0 | K161: =SUMIFS('TRIAL BALANCE'!AQ:AQ,'TRIAL BALANCE'!$Z:$Z,"E",'TRIAL BALANCE'!$L:$L,A2A!$A161) -> 0
A162: Libraries and Archives | C162: 0 | D162: =SUMIFS('TRIAL BALANCE'!AK:AK,'TRIAL BALANCE'!$Z:$Z,"E",'TRIAL BALANCE'!$L:$L,A2A!$A162) -> 0 | E162: =SUMIFS('TRIAL BALANCE'!AL:AL,'TRIAL BALANCE'!$Z:$Z,"E",'TRIAL BALANCE'!$L:$L,A2A!$A162) -> 0 | F162: 0 | G162: 0 | H162: 0 | I162: =SUMIFS('TRIAL BALANCE'!AO:AO,'TRIAL BALANCE'!$Z:$Z,"E",'TRIAL BALANCE'!$L:$L,A2A!$A162) -> 0 | J162: =SUMIFS('TRIAL BALANCE'!AP:AP,'TRIAL BALANCE'!$Z:$Z,"E",'TRIAL BALANCE'!$L:$L,A2A!$A162) -> 0 | K162: =SUMIFS('TRIAL BALANCE'!AQ:AQ,'TRIAL BALANCE'!$Z:$Z,"E",'TRIAL BALANCE'!$L:$L,A2A!$A162) -> 0
A163: Literacy Programmes | C163: 0 | D163: =SUMIFS('TRIAL BALANCE'!AK:AK,'TRIAL BALANCE'!$Z:$Z,"E",'TRIAL BALANCE'!$L:$L,A2A!$A163) -> 0 | E163: =SUMIFS('TRIAL BALANCE'!AL:AL,'TRIAL BALANCE'!$Z:$Z,"E",'TRIAL BALANCE'!$L:$L,A2A!$A163) -> 0 | F163: 0 | G163: 0 | H163: 0 | I163: =SUMIFS('TRIAL BALANCE'!AO:AO,'TRIAL BALANCE'!$Z:$Z,"E",'TRIAL BALANCE'!$L:$L,A2A!$A163) -> 0 | J163: =SUMIFS('TRIAL BALANCE'!AP:AP,'TRIAL BALANCE'!$Z:$Z,"E",'TRIAL BALANCE'!$L:$L,A2A!$A163) -> 0 | K163: =SUMIFS('TRIAL BALANCE'!AQ:AQ,'TRIAL BALANCE'!$Z:$Z,"E",'TRIAL BALANCE'!$L:$L,A2A!$A163) -> 0
A164: Media Services | C164: 0 | D164: =SUMIFS('TRIAL BALANCE'!AK:AK,'TRIAL BALANCE'!$Z:$Z,"E",'TRIAL BALANCE'!$L:$L,A2A!$A164) -> 0 | E164: =SUMIFS('TRIAL BALANCE'!AL:AL,'TRIAL BALANCE'!$Z:$Z,"E",'TRIAL BALANCE'!$L:$L,A2A!$A164) -> 0 | F164: 0 | G164: 0 | H164: 0 | I164: =SUMIFS('TRIAL BALANCE'!AO:AO,'TRIAL BALANCE'!$Z:$Z,"E",'TRIAL BALANCE'!$L:$L,A2A!$A164) -> 0 | J164: =SUMIFS('TRIAL BALANCE'!AP:AP,'TRIAL BALANCE'!$Z:$Z,"E",'TRIAL BALANCE'!$L:$L,A2A!$A164) -> 0 | K164: =SUMIFS('TRIAL BALANCE'!AQ:AQ,'TRIAL BALANCE'!$Z:$Z,"E",'TRIAL BALANCE'!$L:$L,A2A!$A164) -> 0
A165: Museums and Art Galleries | C165: 0 | D165: =SUMIFS('TRIAL BALANCE'!AK:AK,'TRIAL BALANCE'!$Z:$Z,"E",'TRIAL BALANCE'!$L:$L,A2A!$A165) -> 0 | E165: =SUMIFS('TRIAL BALANCE'!AL:AL,'TRIAL BALANCE'!$Z:$Z,"E",'TRIAL BALANCE'!$L:$L,A2A!$A165) -> 0 | F165: 0 | G165: 0 | H165: 0 | I165: =SUMIFS('TRIAL BALANCE'!AO:AO,'TRIAL BALANCE'!$Z:$Z,"E",'TRIAL BALANCE'!$L:$L,A2A!$A165) -> 0 | J165: =SUMIFS('TRIAL BALANCE'!AP:AP,'TRIAL BALANCE'!$Z:$Z,"E",'TRIAL BALANCE'!$L:$L,A2A!$A165) -> 0 | K165: =SUMIFS('TRIAL BALANCE'!AQ:AQ,'TRIAL BALANCE'!$Z:$Z,"E",'TRIAL BALANCE'!$L:$L,A2A!$A165) -> 0
A166: Population Development | C166: 0 | D166: =SUMIFS('TRIAL BALANCE'!AK:AK,'TRIAL BALANCE'!$Z:$Z,"E",'TRIAL BALANCE'!$L:$L,A2A!$A166) -> 0 | E166: =SUMIFS('TRIAL BALANCE'!AL:AL,'TRIAL BALANCE'!$Z:$Z,"E",'TRIAL BALANCE'!$L:$L,A2A!$A166) -> 0 | F166: 0 | G166: 0 | H166: 0 | I166: =SUMIFS('TRIAL BALANCE'!AO:AO,'TRIAL BALANCE'!$Z:$Z,"E",'TRIAL BALANCE'!$L:$L,A2A!$A166) -> 0 | J166: =SUMIFS('TRIAL BALANCE'!AP:AP,'TRIAL BALANCE'!$Z:$Z,"E",'TRIAL BALANCE'!$L:$L,A2A!$A166) -> 0 | K166: =SUMIFS('TRIAL BALANCE'!AQ:AQ,'TRIAL BALANCE'!$Z:$Z,"E",'TRIAL BALANCE'!$L:$L,A2A!$A166) -> 0
A167: Provincial Cultural Matters | C167: 0 | D167: =SUMIFS('TRIAL BALANCE'!AK:AK,'TRIAL BALANCE'!$Z:$Z,"E",'TRIAL BALANCE'!$L:$L,A2A!$A167) -> 0 | E167: =SUMIFS('TRIAL BALANCE'!AL:AL,'TRIAL BALANCE'!$Z:$Z,"E",'TRIAL BALANCE'!$L:$L,A2A!$A167) -> 0 | F167: 0 | G167: 0 | H167: 0 | I167: =SUMIFS('TRIAL BALANCE'!AO:AO,'TRIAL BALANCE'!$Z:$Z,"E",'TRIAL BALANCE'!$L:$L,A2A!$A167) -> 0 | J167: =SUMIFS('TRIAL BALANCE'!AP:AP,'TRIAL BALANCE'!$Z:$Z,"E",'TRIAL BALANCE'!$L:$L,A2A!$A167) -> 0 | K167: =SUMIFS('TRIAL BALANCE'!AQ:AQ,'TRIAL BALANCE'!$Z:$Z,"E",'TRIAL BALANCE'!$L:$L,A2A!$A167) -> 0
A168: Theatres | C168: 0 | D168: =SUMIFS('TRIAL BALANCE'!AK:AK,'TRIAL BALANCE'!$Z:$Z,"E",'TRIAL BALANCE'!$L:$L,A2A!$A168) -> 0 | E168: =SUMIFS('TRIAL BALANCE'!AL:AL,'TRIAL BALANCE'!$Z:$Z,"E",'TRIAL BALANCE'!$L:$L,A2A!$A168) -> 0 | F168: 0 | G168: 0 | H168: 0 | I168: =SUMIFS('TRIAL BALANCE'!AO:AO,'TRIAL BALANCE'!$Z:$Z,"E",'TRIAL BALANCE'!$L:$L,A2A!$A168) -> 0 | J168: =SUMIFS('TRIAL BALANCE'!AP:AP,'TRIAL BALANCE'!$Z:$Z,"E",'TRIAL BALANCE'!$L:$L,A2A!$A168) -> 0 | K168: =SUMIFS('TRIAL BALANCE'!AQ:AQ,'TRIAL BALANCE'!$Z:$Z,"E",'TRIAL BALANCE'!$L:$L,A2A!$A168) -> 0
A169: Zoo's | C169: 0 | D169: =SUMIFS('TRIAL BALANCE'!AK:AK,'TRIAL BALANCE'!$Z:$Z,"E",'TRIAL BALANCE'!$L:$L,A2A!$A169) -> 0 | E169: =SUMIFS('TRIAL BALANCE'!AL:AL,'TRIAL BALANCE'!$Z:$Z,"E",'TRIAL BALANCE'!$L:$L,A2A!$A169) -> 0 | F169: 0 | G169: 0 | H169: 0 | I169: =SUMIFS('TRIAL BALANCE'!AO:AO,'TRIAL BALANCE'!$Z:$Z,"E",'TRIAL BALANCE'!$L:$L,A2A!$A169) -> 0 | J169: =SUMIFS('TRIAL BALANCE'!AP:AP,'TRIAL BALANCE'!$Z:$Z,"E",'TRIAL BALANCE'!$L:$L,A2A!$A169) -> 0 | K169: =SUMIFS('TRIAL BALANCE'!AQ:AQ,'TRIAL BALANCE'!$Z:$Z,"E",'TRIAL BALANCE'!$L:$L,A2A!$A169) -> 0
A170: Sport and recreation | C170: =SUM(C171:C175) -> 13451860.56 | D170: 18572840.59 | E170: 18204562.87 | F170: 18819806.67 | G170: =SUM(G171:G175) -> 19932953.39 | H170: 19932953.39 | I170: 16810353 | J170: 16237246 | K170: 16886734
A171: Beaches and Jetties | C171: 0 | D171: =SUMIFS('TRIAL BALANCE'!AK:AK,'TRIAL BALANCE'!$Z:$Z,"E",'TRIAL BALANCE'!$L:$L,A2A!$A171) -> 0 | E171: =SUMIFS('TRIAL BALANCE'!AL:AL,'TRIAL BALANCE'!$Z:$Z,"E",'TRIAL BALANCE'!$L:$L,A2A!$A171) -> 0 | F171: 0 | G171: 0 | H171: =G171 -> 0 | I171: =SUMIFS('TRIAL BALANCE'!AO:AO,'TRIAL BALANCE'!$Z:$Z,"E",'TRIAL BALANCE'!$L:$L,A2A!$A171) -> 0 | J171: =SUMIFS('TRIAL BALANCE'!AP:AP,'TRIAL BALANCE'!$Z:$Z,"E",'TRIAL BALANCE'!$L:$L,A2A!$A171) -> 0 | K171: =SUMIFS('TRIAL BALANCE'!AQ:AQ,'TRIAL BALANCE'!$Z:$Z,"E",'TRIAL BALANCE'!$L:$L,A2A!$A171) -> 0
A172: Casinos, Racing, Gambling, Wagering | C172: 0 | D172: =SUMIFS('TRIAL BALANCE'!AK:AK,'TRIAL BALANCE'!$Z:$Z,"E",'TRIAL BALANCE'!$L:$L,A2A!$A172) -> 0 | E172: =SUMIFS('TRIAL BALANCE'!AL:AL,'TRIAL BALANCE'!$Z:$Z,"E",'TRIAL BALANCE'!$L:$L,A2A!$A172) -> 0 | F172: 0 | G172: 0 | H172: 0 | I172: =SUMIFS('TRIAL BALANCE'!AO:AO,'TRIAL BALANCE'!$Z:$Z,"E",'TRIAL BALANCE'!$L:$L,A2A!$A172) -> 0 | J172: =SUMIFS('TRIAL BALANCE'!AP:AP,'TRIAL BALANCE'!$Z:$Z,"E",'TRIAL BALANCE'!$L:$L,A2A!$A172) -> 0 | K172: =SUMIFS('TRIAL BALANCE'!AQ:AQ,'TRIAL BALANCE'!$Z:$Z,"E",'TRIAL BALANCE'!$L:$L,A2A!$A172) -> 0
A173: Community Parks (including Nurseries) | C173: 0 | D173: =SUMIFS('TRIAL BALANCE'!AK:AK,'TRIAL BALANCE'!$Z:$Z,"E",'TRIAL BALANCE'!$L:$L,A2A!$A173) -> 0 | E173: =SUMIFS('TRIAL BALANCE'!AL:AL,'TRIAL BALANCE'!$Z:$Z,"E",'TRIAL BALANCE'!$L:$L,A2A!$A173) -> 0 | F173: 0 | G173: 0 | H173: 0 | I173: =SUMIFS('TRIAL BALANCE'!AO:AO,'TRIAL BALANCE'!$Z:$Z,"E",'TRIAL BALANCE'!$L:$L,A2A!$A173) -> 0 | J173: =SUMIFS('TRIAL BALANCE'!AP:AP,'TRIAL BALANCE'!$Z:$Z,"E",'TRIAL BALANCE'!$L:$L,A2A!$A173) -> 0 | K173: =SUMIFS('TRIAL BALANCE'!AQ:AQ,'TRIAL BALANCE'!$Z:$Z,"E",'TRIAL BALANCE'!$L:$L,A2A!$A173) -> 0
A174: Recreational Facilities | C174: 13451860.56 | D174: =SUMIFS('TRIAL BALANCE'!AK:AK,'TRIAL BALANCE'!$Z:$Z,"E",'TRIAL BALANCE'!$L:$L,A2A!$A174) -> 18572840.59 | E174: =SUMIFS('TRIAL BALANCE'!AL:AL,'TRIAL BALANCE'!$Z:$Z,"E",'TRIAL BALANCE'!$L:$L,A2A!$A174) -> 18204562.87 | F174: 18819806.67 | G174: 19932953.39 | H174: 19932953.39 | I174: =SUMIFS('TRIAL BALANCE'!AO:AO,'TRIAL BALANCE'!$Z:$Z,"E",'TRIAL BALANCE'!$L:$L,A2A!$A174) -> 16810353 | J174: =SUMIFS('TRIAL BALANCE'!AP:AP,'TRIAL BALANCE'!$Z:$Z,"E",'TRIAL BALANCE'!$L:$L,A2A!$A174) -> 16237246 | K174: =SUMIFS('TRIAL BALANCE'!AQ:AQ,'TRIAL BALANCE'!$Z:$Z,"E",'TRIAL BALANCE'!$L:$L,A2A!$A174) -> 16886734
A175: Sports Grounds and Stadiums | C175: 0 | D175: =SUMIFS('TRIAL BALANCE'!AK:AK,'TRIAL BALANCE'!$Z:$Z,"E",'TRIAL BALANCE'!$L:$L,A2A!$A175) -> 0 | E175: =SUMIFS('TRIAL BALANCE'!AL:AL,'TRIAL BALANCE'!$Z:$Z,"E",'TRIAL BALANCE'!$L:$L,A2A!$A175) -> 0 | F175: 0 | G175: 0 | H175: 0 | I175: =SUMIFS('TRIAL BALANCE'!AO:AO,'TRIAL BALANCE'!$Z:$Z,"E",'TRIAL BALANCE'!$L:$L,A2A!$A175) -> 0 | J175: =SUMIFS('TRIAL BALANCE'!AP:AP,'TRIAL BALANCE'!$Z:$Z,"E",'TRIAL BALANCE'!$L:$L,A2A!$A175) -> 0 | K175: =SUMIFS('TRIAL BALANCE'!AQ:AQ,'TRIAL BALANCE'!$Z:$Z,"E",'TRIAL BALANCE'!$L:$L,A2A!$A175) -> 0
A176: Public safety | C176: =SUM(C177:C184) -> 20523666.14 | D176: 25707952.84 | E176: 28130431.13 | F176: 30875629.49 | G176: 29695789.22 | H176: 29695789.22 | I176: 30940005 | J176: 32645607 | K176: 33951432
A177: Civil Defence | C177: 0 | D177: =SUMIFS('TRIAL BALANCE'!AK:AK,'TRIAL BALANCE'!$Z:$Z,"E",'TRIAL BALANCE'!$L:$L,A2A!$A177) -> 0 | E177: =SUMIFS('TRIAL BALANCE'!AL:AL,'TRIAL BALANCE'!$Z:$Z,"E",'TRIAL BALANCE'!$L:$L,A2A!$A177) -> 0 | F177: 0 | G177: 0 | H177: =G177 -> 0 | I177: =SUMIFS('TRIAL BALANCE'!AO:AO,'TRIAL BALANCE'!$Z:$Z,"E",'TRIAL BALANCE'!$L:$L,A2A!$A177) -> 0 | J177: =SUMIFS('TRIAL BALANCE'!AP:AP,'TRIAL BALANCE'!$Z:$Z,"E",'TRIAL BALANCE'!$L:$L,A2A!$A177) -> 0 | K177: =SUMIFS('TRIAL BALANCE'!AQ:AQ,'TRIAL BALANCE'!$Z:$Z,"E",'TRIAL BALANCE'!$L:$L,A2A!$A177) -> 0
A178: Cleansing | C178: 0 | D178: =SUMIFS('TRIAL BALANCE'!AK:AK,'TRIAL BALANCE'!$Z:$Z,"E",'TRIAL BALANCE'!$L:$L,A2A!$A178) -> 0 | E178: =SUMIFS('TRIAL BALANCE'!AL:AL,'TRIAL BALANCE'!$Z:$Z,"E",'TRIAL BALANCE'!$L:$L,A2A!$A178) -> 0 | F178: 0 | G178: 0 | H178: 0 | I178: =SUMIFS('TRIAL BALANCE'!AO:AO,'TRIAL BALANCE'!$Z:$Z,"E",'TRIAL BALANCE'!$L:$L,A2A!$A178) -> 0 | J178: =SUMIFS('TRIAL BALANCE'!AP:AP,'TRIAL BALANCE'!$Z:$Z,"E",'TRIAL BALANCE'!$L:$L,A2A!$A178) -> 0 | K178: =SUMIFS('TRIAL BALANCE'!AQ:AQ,'TRIAL BALANCE'!$Z:$Z,"E",'TRIAL BALANCE'!$L:$L,A2A!$A178) -> 0
A179: =A57 -> Control of Public Nuisances | C179: 0 | D179: =SUMIFS('TRIAL BALANCE'!AK:AK,'TRIAL BALANCE'!$Z:$Z,"E",'TRIAL BALANCE'!$L:$L,A2A!$A179) -> 0 | E179: =SUMIFS('TRIAL BALANCE'!AL:AL,'TRIAL BALANCE'!$Z:$Z,"E",'TRIAL BALANCE'!$L:$L,A2A!$A179) -> 0 | F179: 0 | G179: 0 | H179: 0 | I179: =SUMIFS('TRIAL BALANCE'!AO:AO,'TRIAL BALANCE'!$Z:$Z,"E",'TRIAL BALANCE'!$L:$L,A2A!$A179) -> 0 | J179: =SUMIFS('TRIAL BALANCE'!AP:AP,'TRIAL BALANCE'!$Z:$Z,"E",'TRIAL BALANCE'!$L:$L,A2A!$A179) -> 0 | K179: =SUMIFS('TRIAL BALANCE'!AQ:AQ,'TRIAL BALANCE'!$Z:$Z,"E",'TRIAL BALANCE'!$L:$L,A2A!$A179) -> 0
A180: Fencing and Fences | C180: 0 | D180: =SUMIFS('TRIAL BALANCE'!AK:AK,'TRIAL BALANCE'!$Z:$Z,"E",'TRIAL BALANCE'!$L:$L,A2A!$A180) -> 0 | E180: =SUMIFS('TRIAL BALANCE'!AL:AL,'TRIAL BALANCE'!$Z:$Z,"E",'TRIAL BALANCE'!$L:$L,A2A!$A180) -> 0 | F180: 0 | G180: 0 | H180: 0 | I180: =SUMIFS('TRIAL BALANCE'!AO:AO,'TRIAL BALANCE'!$Z:$Z,"E",'TRIAL BALANCE'!$L:$L,A2A!$A180) -> 0 | J180: =SUMIFS('TRIAL BALANCE'!AP:AP,'TRIAL BALANCE'!$Z:$Z,"E",'TRIAL BALANCE'!$L:$L,A2A!$A180) -> 0 | K180: =SUMIFS('TRIAL BALANCE'!AQ:AQ,'TRIAL BALANCE'!$Z:$Z,"E",'TRIAL BALANCE'!$L:$L,A2A!$A180) -> 0
A181: Fire Fighting and Protection | C181: 20523666.14 | D181: =SUMIFS('TRIAL BALANCE'!AK:AK,'TRIAL BALANCE'!$Z:$Z,"E",'TRIAL BALANCE'!$L:$L,A2A!$A181) -> 25707952.84 | E181: =SUMIFS('TRIAL BALANCE'!AL:AL,'TRIAL BALANCE'!$Z:$Z,"E",'TRIAL BALANCE'!$L:$L,A2A!$A181) -> 28130431.13 | F181: 30875629.49 | G181: 29695789.22 | H181: 29695789.22 | I181: =SUMIFS('TRIAL BALANCE'!AO:AO,'TRIAL BALANCE'!$Z:$Z,"E",'TRIAL BALANCE'!$L:$L,A2A!$A181) -> 30940005 | J181: =SUMIFS('TRIAL BALANCE'!AP:AP,'TRIAL BALANCE'!$Z:$Z,"E",'TRIAL BALANCE'!$L:$L,A2A!$A181) -> 32645607 | K181: =SUMIFS('TRIAL BALANCE'!AQ:AQ,'TRIAL BALANCE'!$Z:$Z,"E",'TRIAL BALANCE'!$L:$L,A2A!$A181) -> 33951432
A182: Licensing and Control of Animals | C182: 0 | D182: =SUMIFS('TRIAL BALANCE'!AK:AK,'TRIAL BALANCE'!$Z:$Z,"E",'TRIAL BALANCE'!$L:$L,A2A!$A182) -> 0 | E182: =SUMIFS('TRIAL BALANCE'!AL:AL,'TRIAL BALANCE'!$Z:$Z,"E",'TRIAL BALANCE'!$L:$L,A2A!$A182) -> 0 | F182: 0 | G182: 0 | H182: 0 | I182: =SUMIFS('TRIAL BALANCE'!AO:AO,'TRIAL BALANCE'!$Z:$Z,"E",'TRIAL BALANCE'!$L:$L,A2A!$A182) -> 0 | J182: =SUMIFS('TRIAL BALANCE'!AP:AP,'TRIAL BALANCE'!$Z:$Z,"E",'TRIAL BALANCE'!$L:$L,A2A!$A182) -> 0 | K182: =SUMIFS('TRIAL BALANCE'!AQ:AQ,'TRIAL BALANCE'!$Z:$Z,"E",'TRIAL BALANCE'!$L:$L,A2A!$A182) -> 0
A183: Police Forces, Traffic and Street Parking Control | C183: 0 | D183: =SUMIFS('TRIAL BALANCE'!AK:AK,'TRIAL BALANCE'!$Z:$Z,"E",'TRIAL BALANCE'!$L:$L,A2A!$A183) -> 0 | E183: =SUMIFS('TRIAL BALANCE'!AL:AL,'TRIAL BALANCE'!$Z:$Z,"E",'TRIAL BALANCE'!$L:$L,A2A!$A183) -> 0 | F183: 0 | G183: 0 | H183: 0 | I183: =SUMIFS('TRIAL BALANCE'!AO:AO,'TRIAL BALANCE'!$Z:$Z,"E",'TRIAL BALANCE'!$L:$L,A2A!$A183) -> 0 | J183: =SUMIFS('TRIAL BALANCE'!AP:AP,'TRIAL BALANCE'!$Z:$Z,"E",'TRIAL BALANCE'!$L:$L,A2A!$A183) -> 0 | K183: =SUMIFS('TRIAL BALANCE'!AQ:AQ,'TRIAL BALANCE'!$Z:$Z,"E",'TRIAL BALANCE'!$L:$L,A2A!$A183) -> 0
A184: Pounds | C184: 0 | D184: =SUMIFS('TRIAL BALANCE'!AK:AK,'TRIAL BALANCE'!$Z:$Z,"E",'TRIAL BALANCE'!$L:$L,A2A!$A184) -> 0 | E184: =SUMIFS('TRIAL BALANCE'!AL:AL,'TRIAL BALANCE'!$Z:$Z,"E",'TRIAL BALANCE'!$L:$L,A2A!$A184) -> 0 | F184: 0 | G184: 0 | H184: 0 | I184: =SUMIFS('TRIAL BALANCE'!AO:AO,'TRIAL BALANCE'!$Z:$Z,"E",'TRIAL BALANCE'!$L:$L,A2A!$A184) -> 0 | J184: =SUMIFS('TRIAL BALANCE'!AP:AP,'TRIAL BALANCE'!$Z:$Z,"E",'TRIAL BALANCE'!$L:$L,A2A!$A184) -> 0 | K184: =SUMIFS('TRIAL BALANCE'!AQ:AQ,'TRIAL BALANCE'!$Z:$Z,"E",'TRIAL BALANCE'!$L:$L,A2A!$A184) -> 0
A185: =A63 -> Housing | C185: =SUM(C186:C187) -> 0 | D185: 0 | E185: 0 | F185: 0 | G185: 0 | H185: 0 | I185: 0 | J185: 0 | K185: 0
A186: Housing | C186: 0 | D186: =SUMIFS('TRIAL BALANCE'!AK:AK,'TRIAL BALANCE'!$Z:$Z,"E",'TRIAL BALANCE'!$L:$L,A2A!$A186) -> 0 | E186: =SUMIFS('TRIAL BALANCE'!AL:AL,'TRIAL BALANCE'!$Z:$Z,"E",'TRIAL BALANCE'!$L:$L,A2A!$A186) -> 0 | F186: 0 | G186: 0 | H186: =G186 -> 0 | I186: =SUMIFS('TRIAL BALANCE'!AO:AO,'TRIAL BALANCE'!$Z:$Z,"E",'TRIAL BALANCE'!$L:$L,A2A!$A186) -> 0 | J186: =SUMIFS('TRIAL BALANCE'!AP:AP,'TRIAL BALANCE'!$Z:$Z,"E",'TRIAL BALANCE'!$L:$L,A2A!$A186) -> 0 | K186: =SUMIFS('TRIAL BALANCE'!AQ:AQ,'TRIAL BALANCE'!$Z:$Z,"E",'TRIAL BALANCE'!$L:$L,A2A!$A186) -> 0
A187: Informal Settlements | C187: 0 | D187: =SUMIFS('TRIAL BALANCE'!AK:AK,'TRIAL BALANCE'!$Z:$Z,"E",'TRIAL BALANCE'!$L:$L,A2A!$A187) -> 0 | E187: =SUMIFS('TRIAL BALANCE'!AL:AL,'TRIAL BALANCE'!$Z:$Z,"E",'TRIAL BALANCE'!$L:$L,A2A!$A187) -> 0 | F187: 0 | G187: 0 | H187: 0 | I187: =SUMIFS('TRIAL BALANCE'!AO:AO,'TRIAL BALANCE'!$Z:$Z,"E",'TRIAL BALANCE'!$L:$L,A2A!$A187) -> 0 | J187: =SUMIFS('TRIAL BALANCE'!AP:AP,'TRIAL BALANCE'!$Z:$Z,"E",'TRIAL BALANCE'!$L:$L,A2A!$A187) -> 0 | K187: =SUMIFS('TRIAL BALANCE'!AQ:AQ,'TRIAL BALANCE'!$Z:$Z,"E",'TRIAL BALANCE'!$L:$L,A2A!$A187) -> 0
A188: Health | C188: =SUM(C189:C195) -> 11955024.78 | D188: =SUM(D189:D195) -> 12402752.68 | E188: 13837125.57 | F188: 14961750.81 | G188: 16150825 | H188: 16150825 | I188: 17360183 | J188: 18054591 | K188: 18776775
A189: Ambulance | C189: 0 | D189: =SUMIFS('TRIAL BALANCE'!AK:AK,'TRIAL BALANCE'!$Z:$Z,"E",'TRIAL BALANCE'!$L:$L,A2A!$A189) -> 0 | E189: =SUMIFS('TRIAL BALANCE'!AL:AL,'TRIAL BALANCE'!$Z:$Z,"E",'TRIAL BALANCE'!$L:$L,A2A!$A189) -> 0 | F189: 0 | G189: 0 | H189: =G189 -> 0 | I189: =SUMIFS('TRIAL BALANCE'!AO:AO,'TRIAL BALANCE'!$Z:$Z,"E",'TRIAL BALANCE'!$L:$L,A2A!$A189) -> 0 | J189: =SUMIFS('TRIAL BALANCE'!AP:AP,'TRIAL BALANCE'!$Z:$Z,"E",'TRIAL BALANCE'!$L:$L,A2A!$A189) -> 0 | K189: =SUMIFS('TRIAL BALANCE'!AQ:AQ,'TRIAL BALANCE'!$Z:$Z,"E",'TRIAL BALANCE'!$L:$L,A2A!$A189) -> 0
A190: Health Services | C190: 11955024.78 | D190: =SUMIFS('TRIAL BALANCE'!AK:AK,'TRIAL BALANCE'!$Z:$Z,"E",'TRIAL BALANCE'!$L:$L,A2A!$A190) -> 12402752.68 | E190: =SUMIFS('TRIAL BALANCE'!AL:AL,'TRIAL BALANCE'!$Z:$Z,"E",'TRIAL BALANCE'!$L:$L,A2A!$A190) -> 13837125.57 | F190: 14961750.81 | G190: 16150825 | H190: 16150825 | I190: =SUMIFS('TRIAL BALANCE'!AO:AO,'TRIAL BALANCE'!$Z:$Z,"E",'TRIAL BALANCE'!$L:$L,A2A!$A190) -> 17360183 | J190: =SUMIFS('TRIAL BALANCE'!AP:AP,'TRIAL BALANCE'!$Z:$Z,"E",'TRIAL BALANCE'!$L:$L,A2A!$A190) -> 18054591 | K190: =SUMIFS('TRIAL BALANCE'!AQ:AQ,'TRIAL BALANCE'!$Z:$Z,"E",'TRIAL BALANCE'!$L:$L,A2A!$A190) -> 18776775
A191: Laboratory Services | C191: 0 | D191: =SUMIFS('TRIAL BALANCE'!AK:AK,'TRIAL BALANCE'!$Z:$Z,"E",'TRIAL BALANCE'!$L:$L,A2A!$A191) -> 0 | E191: =SUMIFS('TRIAL BALANCE'!AL:AL,'TRIAL BALANCE'!$Z:$Z,"E",'TRIAL BALANCE'!$L:$L,A2A!$A191) -> 0 | F191: 0 | G191: 0 | H191: 0 | I191: =SUMIFS('TRIAL BALANCE'!AO:AO,'TRIAL BALANCE'!$Z:$Z,"E",'TRIAL BALANCE'!$L:$L,A2A!$A191) -> 0 | J191: =SUMIFS('TRIAL BALANCE'!AP:AP,'TRIAL BALANCE'!$Z:$Z,"E",'TRIAL BALANCE'!$L:$L,A2A!$A191) -> 0 | K191: =SUMIFS('TRIAL BALANCE'!AQ:AQ,'TRIAL BALANCE'!$Z:$Z,"E",'TRIAL BALANCE'!$L:$L,A2A!$A191) -> 0
A192: Food Control | C192: 0 | D192: =SUMIFS('TRIAL BALANCE'!AK:AK,'TRIAL BALANCE'!$Z:$Z,"E",'TRIAL BALANCE'!$L:$L,A2A!$A192) -> 0 | E192: =SUMIFS('TRIAL BALANCE'!AL:AL,'TRIAL BALANCE'!$Z:$Z,"E",'TRIAL BALANCE'!$L:$L,A2A!$A192) -> 0 | F192: 0 | G192: 0 | H192: 0 | I192: =SUMIFS('TRIAL BALANCE'!AO:AO,'TRIAL BALANCE'!$Z:$Z,"E",'TRIAL BALANCE'!$L:$L,A2A!$A192) -> 0 | J192: =SUMIFS('TRIAL BALANCE'!AP:AP,'TRIAL BALANCE'!$Z:$Z,"E",'TRIAL BALANCE'!$L:$L,A2A!$A192) -> 0 | K192: =SUMIFS('TRIAL BALANCE'!AQ:AQ,'TRIAL BALANCE'!$Z:$Z,"E",'TRIAL BALANCE'!$L:$L,A2A!$A192) -> 0
A193: Health Surveillance and Prevention of Communicable Diseases including immunizations | C193: 0 | D193: =SUMIFS('TRIAL BALANCE'!AK:AK,'TRIAL BALANCE'!$Z:$Z,"E",'TRIAL BALANCE'!$L:$L,A2A!$A193) -> 0 | E193: =SUMIFS('TRIAL BALANCE'!AL:AL,'TRIAL BALANCE'!$Z:$Z,"E",'TRIAL BALANCE'!$L:$L,A2A!$A193) -> 0 | F193: 0 | G193: 0 | H193: 0 | I193: =SUMIFS('TRIAL BALANCE'!AO:AO,'TRIAL BALANCE'!$Z:$Z,"E",'TRIAL BALANCE'!$L:$L,A2A!$A193) -> 0 | J193: =SUMIFS('TRIAL BALANCE'!AP:AP,'TRIAL BALANCE'!$Z:$Z,"E",'TRIAL BALANCE'!$L:$L,A2A!$A193) -> 0 | K193: =SUMIFS('TRIAL BALANCE'!AQ:AQ,'TRIAL BALANCE'!$Z:$Z,"E",'TRIAL BALANCE'!$L:$L,A2A!$A193) -> 0
A194: Vector Control | C194: 0 | D194: =SUMIFS('TRIAL BALANCE'!AK:AK,'TRIAL BALANCE'!$Z:$Z,"E",'TRIAL BALANCE'!$L:$L,A2A!$A194) -> 0 | E194: =SUMIFS('TRIAL BALANCE'!AL:AL,'TRIAL BALANCE'!$Z:$Z,"E",'TRIAL BALANCE'!$L:$L,A2A!$A194) -> 0 | F194: 0 | G194: 0 | H194: 0 | I194: =SUMIFS('TRIAL BALANCE'!AO:AO,'TRIAL BALANCE'!$Z:$Z,"E",'TRIAL BALANCE'!$L:$L,A2A!$A194) -> 0 | J194: =SUMIFS('TRIAL BALANCE'!AP:AP,'TRIAL BALANCE'!$Z:$Z,"E",'TRIAL BALANCE'!$L:$L,A2A!$A194) -> 0 | K194: =SUMIFS('TRIAL BALANCE'!AQ:AQ,'TRIAL BALANCE'!$Z:$Z,"E",'TRIAL BALANCE'!$L:$L,A2A!$A194) -> 0
A195: Chemical Safety | C195: 0 | D195: =SUMIFS('TRIAL BALANCE'!AK:AK,'TRIAL BALANCE'!$Z:$Z,"E",'TRIAL BALANCE'!$L:$L,A2A!$A195) -> 0 | E195: =SUMIFS('TRIAL BALANCE'!AL:AL,'TRIAL BALANCE'!$Z:$Z,"E",'TRIAL BALANCE'!$L:$L,A2A!$A195) -> 0 | F195: 0 | G195: 0 | H195: 0 | I195: =SUMIFS('TRIAL BALANCE'!AO:AO,'TRIAL BALANCE'!$Z:$Z,"E",'TRIAL BALANCE'!$L:$L,A2A!$A195) -> 0 | J195: =SUMIFS('TRIAL BALANCE'!AP:AP,'TRIAL BALANCE'!$Z:$Z,"E",'TRIAL BALANCE'!$L:$L,A2A!$A195) -> 0 | K195: =SUMIFS('TRIAL BALANCE'!AQ:AQ,'TRIAL BALANCE'!$Z:$Z,"E",'TRIAL BALANCE'!$L:$L,A2A!$A195) -> 0
A196: Economic and environmental services | C196: =C197+C208+C213 -> 70257472.71 | D196: 84419853.28 | E196: 99513538.37 | F196: 95922997.09 | G196: 104652010 | H196: 104652010 | I196: 104926219 | J196: 109123267 | K196: 113488199
A197: Planning and development | C197: =SUM(C198:C207) -> 1474820.09 | D197: =SUM(D198:D207) -> 1085777.672 | E197: 1222662.15 | F197: 1311503.09 | G197: 1331331 | H197: 1331331 | I197: 1403768 | J197: 1459919 | K197: 1518316
A198: Billboards | C198: 0 | D198: =SUMIFS('TRIAL BALANCE'!AK:AK,'TRIAL BALANCE'!$Z:$Z,"E",'TRIAL BALANCE'!$L:$L,A2A!$A198) -> 0 | E198: =SUMIFS('TRIAL BALANCE'!AL:AL,'TRIAL BALANCE'!$Z:$Z,"E",'TRIAL BALANCE'!$L:$L,A2A!$A198) -> 0 | F198: 0 | G198: 0 | H198: =G198 -> 0 | I198: =SUMIFS('TRIAL BALANCE'!AO:AO,'TRIAL BALANCE'!$Z:$Z,"E",'TRIAL BALANCE'!$L:$L,A2A!$A198) -> 0 | J198: =SUMIFS('TRIAL BALANCE'!AP:AP,'TRIAL BALANCE'!$Z:$Z,"E",'TRIAL BALANCE'!$L:$L,A2A!$A198) -> 0 | K198: =SUMIFS('TRIAL BALANCE'!AQ:AQ,'TRIAL BALANCE'!$Z:$Z,"E",'TRIAL BALANCE'!$L:$L,A2A!$A198) -> 0
A199: Corporate Wide Strategic Planning (IDPs, LEDs) | C199: 0 | D199: =SUMIFS('TRIAL BALANCE'!AK:AK,'TRIAL BALANCE'!$Z:$Z,"E",'TRIAL BALANCE'!$L:$L,A2A!$A199) -> 1085777.672 | E199: =SUMIFS('TRIAL BALANCE'!AL:AL,'TRIAL BALANCE'!$Z:$Z,"E",'TRIAL BALANCE'!$L:$L,A2A!$A199) -> 1222662.15 | F199: 1311503.09 | G199: 1331331 | H199: 1331331 | I199: =SUMIFS('TRIAL BALANCE'!AO:AO,'TRIAL BALANCE'!$Z:$Z,"E",'TRIAL BALANCE'!$L:$L,A2A!$A199) -> 1403768 | J199: =SUMIFS('TRIAL BALANCE'!AP:AP,'TRIAL BALANCE'!$Z:$Z,"E",'TRIAL BALANCE'!$L:$L,A2A!$A199) -> 1459919 | K199: =SUMIFS('TRIAL BALANCE'!AQ:AQ,'TRIAL BALANCE'!$Z:$Z,"E",'TRIAL BALANCE'!$L:$L,A2A!$A199) -> 1518316
A200: Central City Improvement District | C200: 0 | D200: =SUMIFS('TRIAL BALANCE'!AK:AK,'TRIAL BALANCE'!$Z:$Z,"E",'TRIAL BALANCE'!$L:$L,A2A!$A200) -> 0 | E200: =SUMIFS('TRIAL BALANCE'!AL:AL,'TRIAL BALANCE'!$Z:$Z,"E",'TRIAL BALANCE'!$L:$L,A2A!$A200) -> 0 | F200: 0 | G200: 0 | H200: 0 | I200: =SUMIFS('TRIAL BALANCE'!AO:AO,'TRIAL BALANCE'!$Z:$Z,"E",'TRIAL BALANCE'!$L:$L,A2A!$A200) -> 0 | J200: =SUMIFS('TRIAL BALANCE'!AP:AP,'TRIAL BALANCE'!$Z:$Z,"E",'TRIAL BALANCE'!$L:$L,A2A!$A200) -> 0 | K200: =SUMIFS('TRIAL BALANCE'!AQ:AQ,'TRIAL BALANCE'!$Z:$Z,"E",'TRIAL BALANCE'!$L:$L,A2A!$A200) -> 0
A201: Development Facilitation | C201: 0 | D201: =SUMIFS('TRIAL BALANCE'!AK:AK,'TRIAL BALANCE'!$Z:$Z,"E",'TRIAL BALANCE'!$L:$L,A2A!$A201) -> 0 | E201: =SUMIFS('TRIAL BALANCE'!AL:AL,'TRIAL BALANCE'!$Z:$Z,"E",'TRIAL BALANCE'!$L:$L,A2A!$A201) -> 0 | F201: 0 | G201: 0 | H201: 0 | I201: =SUMIFS('TRIAL BALANCE'!AO:AO,'TRIAL BALANCE'!$Z:$Z,"E",'TRIAL BALANCE'!$L:$L,A2A!$A201) -> 0 | J201: =SUMIFS('TRIAL BALANCE'!AP:AP,'TRIAL BALANCE'!$Z:$Z,"E",'TRIAL BALANCE'!$L:$L,A2A!$A201) -> 0 | K201: =SUMIFS('TRIAL BALANCE'!AQ:AQ,'TRIAL BALANCE'!$Z:$Z,"E",'TRIAL BALANCE'!$L:$L,A2A!$A201) -> 0
... 55 more rows

Sheet A3-FinPerf V
A1: =muni&" - "&Approve2 -> DC3 Overberg - Table A3 Budgeted Financial Performance (revenue and expenditure by municipal vote)
A2: =Vdesc -> Vote Description | B2: =head27 -> Ref | C2: =head1b -> 2016/17 | D2: =head1A -> 2017/18 | E2: =Head1 -> 2018/19 | F2: =Head2 -> Current Year 2019/20 | I2: =Head3 -> 2020/21 Medium Term Revenue & Expenditure Framework | L2: =Head4 -> LTFS
A3: R thousand | C3: =Head5 -> Audited Outcome | D3: =Head5 -> Audited Outcome | E3: =Head5 -> Audited Outcome | F3: =Head6 -> Original Budget | G3: =Head7 -> Adjusted Budget | H3: =Head8 -> Full Year Forecast | I3: =Head9 -> Budget Year 2020/21 | J3: =Head10 -> Budget Year +1 2021/22 | K3: =Head11 -> Budget Year +2 2022/23 | L3: =Head12 -> Forecast 2023/24 | M3: =Head13 -> Forecast 2024/25 | N3: =Head14 -> Forecast 2025/26 | O3: =Head15 -> Forecast 2026/27 | P3: =Head16 -> Forecast 2027/28 | Q3: =Head17 -> Forecast 2028/29 | R3: =Head18 -> Forecast 2029/30 | S3: =Head19 -> Forecast 2030/31 | T3: =Head20 -> Forecast 2031/32 | U3: =Head21 -> Forecast 2032/33 | V3: =Head22 -> Forecast 2033/34 | W3: =Head23 -> Forecast 2034/35
A4: Revenue by Vote | B4: 1
A5: =A3A!A5 -> Vote 1 - Municipal Manager | C5: =A3A!C5 -> 8604951.77 | D5: =A3A!D5 -> 11402457.16 | E5: =A3A!E5 -> 10480679.05 | F5: =A3A!F5 -> 15219551.61 | G5: =A3A!G5 -> 15799556 | H5: =A3A!H5 -> 15799556 | I5: =A3A!I5 -> 20748272 | J5: =A3A!J5 -> 21578203 | K5: =A3A!K5 -> 22441332
A6: =A3A!A16 -> Vote 2 - Management Services | C6: =A3A!C16 -> 48874.03 | D6: =A3A!D16 -> 0 | E6: =A3A!E16 -> 0 | F6: =A3A!F16 -> 0 | G6: =A3A!G16 -> 0 | H6: =A3A!H16 -> 0 | I6: =A3A!I16 -> 0 | J6: =A3A!J16 -> 0 | K6: =A3A!K16 -> 0
A7: =A3A!A27 -> Vote 3 - Corporate Services | C7: =A3A!C27 -> 0 | D7: =A3A!D27 -> 27690.98 | E7: =A3A!E27 -> 24547.2 | F7: =A3A!F27 -> 23530 | G7: =A3A!G27 -> 63530 | H7: =A3A!H27 -> 63530 | I7: =A3A!I27 -> 63530 | J7: =A3A!J27 -> 66071 | K7: =A3A!K27 -> 68714
A8: =A3A!A38 -> Vote 4 - Finance | C8: =A3A!C38 -> 64584972.38 | D8: =A3A!D38 -> 70306038.34 | E8: =A3A!E38 -> 84265155.56 | F8: =A3A!F38 -> 79997500 | G8: =A3A!G38 -> 83361706 | H8: =A3A!H38 -> 83361706 | I8: =A3A!I38 -> 83529500 | J8: =A3A!J38 -> 85903880 | K8: =A3A!K38 -> 88913356
A9: =A3A!A49 -> Vote 5 - Community Services | C9: =A3A!C49 -> 86175474.84 | D9: =A3A!D49 -> 104278989.7 | E9: =A3A!E49 -> 122554305.8 | F9: =A3A!F49 -> 124745052.8 | G9: =A3A!G49 -> 134269303 | H9: =A3A!H49 -> 134269303 | I9: =A3A!I49 -> 134850915 | J9: =A3A!J49 -> 139625434 | K9: =A3A!K49 -> 145876371
A10: =A3A!A60 -> Vote 6 - [NAME OF VOTE 6] | C10: =A3A!C60 -> 0 | D10: =A3A!D60 -> 0 | E10: =A3A!E60 -> 0 | F10: =A3A!F60 -> 0 | G10: =A3A!G60 -> 0 | H10: =A3A!H60 -> 0 | I10: =A3A!I60 -> 0 | J10: =A3A!J60 -> 0 | K10: =A3A!K60 -> 0
A11: =A3A!A71 -> Vote 7 - [NAME OF VOTE 7] | C11: =A3A!C71 -> 0 | D11: =A3A!D71 -> 0 | E11: =A3A!E71 -> 0 | F11: =A3A!F71 -> 0 | G11: =A3A!G71 -> 0 | H11: =A3A!H71 -> 0 | I11: =A3A!I71 -> 0 | J11: =A3A!J71 -> 0 | K11: =A3A!K71 -> 0
A12: =A3A!A82 -> Vote 8 - [NAME OF VOTE 8] | C12: =A3A!C82 -> 0 | D12: =A3A!D82 -> 0 | E12: =A3A!E82 -> 0 | F12: =A3A!F82 -> 0 | G12: =A3A!G82 -> 0 | H12: =A3A!H82 -> 0 | I12: =A3A!I82 -> 0 | J12: =A3A!J82 -> 0 | K12: =A3A!K82 -> 0
A13: =A3A!A93 -> Vote 9 - [NAME OF VOTE 9] | C13: =A3A!C93 -> 0 | D13: =A3A!D93 -> 0 | E13: =A3A!E93 -> 0 | F13: =A3A!F93 -> 0 | G13: =A3A!G93 -> 0 | H13: =A3A!H93 -> 0 | I13: =A3A!I93 -> 0 | J13: =A3A!J93 -> 0 | K13: =A3A!K93 -> 0
A14: =A3A!A104 -> Vote 10 - [NAME OF VOTE 10] | C14: =A3A!C104 -> 0 | D14: =A3A!D104 -> 0 | E14: =A3A!E104 -> 0 | F14: =A3A!F104 -> 0 | G14: =A3A!G104 -> 0 | H14: =A3A!H104 -> 0 | I14: =A3A!I104 -> 0 | J14: =A3A!J104 -> 0 | K14: =A3A!K104 -> 0
A15: =A3A!A115 -> Vote 11 - [NAME OF VOTE 11] | C15: =A3A!C115 -> 0 | D15: =A3A!D115 -> 0 | E15: =A3A!E115 -> 0 | F15: =A3A!F115 -> 0 | G15: =A3A!G115 -> 0 | H15: =A3A!H115 -> 0 | I15: =A3A!I115 -> 0 | J15: =A3A!J115 -> 0 | K15: =A3A!K115 -> 0 | L15: =A5A!L115 -> 0
A16: =A3A!A126 -> Vote 12 - [NAME OF VOTE 12] | C16: =A3A!C126 -> 0 | D16: =A3A!D126 -> 0 | E16: =A3A!E126 -> 0 | F16: =A3A!F126 -> 0 | G16: =A3A!G126 -> 0 | H16: =A3A!H126 -> 0 | I16: =A3A!I126 -> 0 | J16: =A3A!J126 -> 0 | K16: =A3A!K126 -> 0 | L16: =A5A!L126 -> 0
A17: =A3A!A137 -> Vote 13 - [NAME OF VOTE 13] | C17: =A3A!C137 -> 0 | D17: =A3A!D137 -> 0 | E17: =A3A!E137 -> 0 | F17: =A3A!F137 -> 0 | G17: =A3A!G137 -> 0 | H17: =A3A!H137 -> 0 | I17: =A3A!I137 -> 0 | J17: =A3A!J137 -> 0 | K17: =A3A!K137 -> 0 | L17: =A5A!L137 -> 0
A18: =A3A!A148 -> Vote 14 - [NAME OF VOTE 14] | C18: =A3A!C148 -> 0 | D18: =A3A!D148 -> 0 | E18: =A3A!E148 -> 0 | F18: =A3A!F148 -> 0 | G18: =A3A!G148 -> 0 | H18: =A3A!H148 -> 0 | I18: =A3A!I148 -> 0 | J18: =A3A!J148 -> 0 | K18: =A3A!K148 -> 0 | L18: =A5A!L148 -> 0
A19: =A3A!A159 -> Vote 15 - [NAME OF VOTE 15] | C19: =A3A!C159 -> 0 | D19: =A3A!D159 -> 0 | E19: =A3A!E159 -> 0 | F19: =A3A!F159 -> 0 | G19: =A3A!G159 -> 0 | H19: =A3A!H159 -> 0 | I19: =A3A!I159 -> 0 | J19: =A3A!J159 -> 0 | K19: =A3A!K159 -> 0 | L19: =A5A!L159 -> 0
A20: Total Revenue by Vote | B20: 2 | C20: =SUM(C5:C19) -> 159414273 | D20: =SUM(D5:D19) -> 186015176.2 | E20: 217324687.7 | F20: 219985634.4 | G20: 233494095 | H20: 233494095 | I20: 239192217 | J20: 247173588 | K20: 257299773
A22: Expenditure by Vote to be appropriated | B22: 1
A23: =A3A!A173 -> Vote 1 - Municipal Manager | C23: =A3A!C173 -> 12872692.32 | D23: =A3A!D173 -> 14915222.22 | E23: =A3A!E173 -> 14167703.42 | F23: =A3A!F173 -> 15563148.21 | G23: =A3A!G173 -> 16269344 | H23: =A3A!H173 -> 16269344 | I23: =A3A!I173 -> 16649754 | J23: =A3A!J173 -> 16847746 | K23: =A3A!K173 -> 17521657
A24: =A3A!A184 -> Vote 2 - Management Services | C24: =A3A!C184 -> 11631945.32 | D24: =A3A!D184 -> 0 | E24: =A3A!E184 -> 0 | F24: =A3A!F184 -> 0 | G24: =A3A!G184 -> 0 | H24: =A3A!H184 -> 0 | I24: =A3A!I184 -> 0 | J24: =A3A!J184 -> 0 | K24: =A3A!K184 -> 0
A25: =A3A!A195 -> Vote 3 - Corporate Services | C25: =A3A!C195 -> 1750814.82 | D25: =A3A!D195 -> 8291384.534 | E25: =A3A!E195 -> 8581168.92 | F25: =A3A!F195 -> 11619846.59 | G25: =A3A!G195 -> 13417301.74 | H25: =A3A!H195 -> 13417301.74 | I25: =A3A!I195 -> 14357489 | J25: =A3A!J195 -> 14931786 | K25: =A3A!K195 -> 15529061
A26: =A3A!A206 -> Vote 4 - Finance | C26: =A3A!C206 -> 17681861.37 | D26: =A3A!D206 -> 22463711.67 | E26: =A3A!E206 -> 25349358.27 | F26: =A3A!F206 -> 24521323.17 | G26: =A3A!G206 -> 26271920.22 | H26: =A3A!H206 -> 26271920.22 | I26: =A3A!I206 -> 26688699 | J26: =A3A!J206 -> 26576888 | K26: =A3A!K206 -> 27648007
A27: =A3A!A217 -> Vote 5 - Community Services | C27: =A3A!C217 -> 118034160.1 | D27: =A3A!D217 -> 143022733.8 | E27: =A3A!E217 -> 164641736.8 | F27: =A3A!F217 -> 170707891.2 | G27: =A3A!G217 -> 181274916.6 | H27: =A3A!H217 -> 181274916.6 | I27: =A3A!I217 -> 182162290 | J27: =A3A!J217 -> 188671263 | K27: =A3A!K217 -> 196218113
A28: =A3A!A228 -> Vote 6 - [NAME OF VOTE 6] | C28: =A3A!C228 -> 0 | D28: =A3A!D228 -> 0 | E28: =A3A!E228 -> 0 | F28: =A3A!F228 -> 0 | G28: =A3A!G228 -> 0 | H28: =A3A!H228 -> 0 | I28: =A3A!I228 -> 0 | J28: =A3A!J228 -> 0 | K28: =A3A!K228 -> 0
A29: =A3A!A239 -> Vote 7 - [NAME OF VOTE 7] | C29: =A3A!C239 -> 0 | D29: =A3A!D239 -> 0 | E29: =A3A!E239 -> 0 | F29: =A3A!F239 -> 0 | G29: =A3A!G239 -> 0 | H29: =A3A!H239 -> 0 | I29: =A3A!I239 -> 0 | J29: =A3A!J239 -> 0 | K29: =A3A!K239 -> 0
A30: =A3A!A250 -> Vote 8 - [NAME OF VOTE 8] | C30: =A3A!C250 -> 0 | D30: =A3A!D250 -> 0 | E30: =A3A!E250 -> 0 | F30: =A3A!F250 -> 0 | G30: =A3A!G250 -> 0 | H30: =A3A!H250 -> 0 | I30: =A3A!I250 -> 0 | J30: =A3A!J250 -> 0 | K30: =A3A!K250 -> 0
A31: =A3A!A261 -> Vote 9 - [NAME OF VOTE 9] | C31: =A3A!C261 -> 0 | D31: =A3A!D261 -> 0 | E31: =A3A!E261 -> 0 | F31: =A3A!F261 -> 0 | G31: =A3A!G261 -> 0 | H31: =A3A!H261 -> 0 | I31: =A3A!I261 -> 0 | J31: =A3A!J261 -> 0 | K31: =A3A!K261 -> 0
A32: =A3A!A272 -> Vote 10 - [NAME OF VOTE 10] | C32: =A3A!C272 -> 0 | D32: =A3A!D272 -> 0 | E32: =A3A!E272 -> 0 | F32: =A3A!F272 -> 0 | G32: =A3A!G272 -> 0 | H32: =A3A!H272 -> 0 | I32: =A3A!I272 -> 0 | J32: =A3A!J272 -> 0 | K32: =A3A!K272 -> 0
A33: =A3A!A283 -> Vote 11 - [NAME OF VOTE 11] | C33: =A3A!C283 -> 0 | D33: =A3A!D283 -> 0 | E33: =A3A!E283 -> 0 | F33: =A3A!F283 -> 0 | G33: =A3A!G283 -> 0 | H33: =A3A!H283 -> 0 | I33: =A3A!I283 -> 0 | J33: =A3A!J283 -> 0 | K33: =A3A!K283 -> 0 | L33: =A3A!L284 -> 0
A34: =A3A!A294 -> Vote 12 - [NAME OF VOTE 12] | C34: =A3A!C294 -> 0 | D34: =A3A!D294 -> 0 | E34: =A3A!E294 -> 0 | F34: =A3A!F294 -> 0 | G34: =A3A!G294 -> 0 | H34: =A3A!H294 -> 0 | I34: =A3A!I294 -> 0 | J34: =A3A!J294 -> 0 | K34: =A3A!K294 -> 0 | L34: =A3A!L295 -> 0
A35: =A3A!A305 -> Vote 13 - [NAME OF VOTE 13] | C35: =A3A!C305 -> 0 | D35: =A3A!D305 -> 0 | E35: =A3A!E305 -> 0 | F35: =A3A!F305 -> 0 | G35: =A3A!G305 -> 0 | H35: =A3A!H305 -> 0 | I35: =A3A!I305 -> 0 | J35: =A3A!J305 -> 0 | K35: =A3A!K305 -> 0 | L35: =A3A!L306 -> 0
A36: =A3A!A316 -> Vote 14 - [NAME OF VOTE 14] | C36: =A3A!C316 -> 0 | D36: =A3A!D316 -> 0 | E36: =A3A!E316 -> 0 | F36: =A3A!F316 -> 0 | G36: =A3A!G316 -> 0 | H36: =A3A!H316 -> 0 | I36: =A3A!I316 -> 0 | J36: =A3A!J316 -> 0 | K36: =A3A!K316 -> 0 | L36: =A3A!L317 -> 0
A37: =A3A!A327 -> Vote 15 - [NAME OF VOTE 15] | C37: =A3A!C327 -> 0 | D37: =A3A!D327 -> 0 | E37: =A3A!E327 -> 0 | F37: =A3A!F327 -> 0 | G37: =A3A!G327 -> 0 | H37: =A3A!H327 -> 0 | I37: =A3A!I327 -> 0 | J37: =A3A!J327 -> 0 | K37: =A3A!K327 -> 0 | L37: =A3A!L328 -> 0
A38: Total Expenditure by Vote | B38: 2 | C38: =SUM(C23:C37) -> 161971474 | D38: =SUM(D23:D37) -> 188693052.2 | E38: 212739967.4 | F38: 222412209.2 | G38: 237233482.6 | H38: 237233482.6 | I38: 239858232 | J38: 247027683 | K38: 256916838 | L38: =SUM(L23:L29) -> 0 | M38: 0 | N38: 0 | O38: 0 | P38: 0 | Q38: 0 | R38: 0 | S38: 0 | T38: 0 | U38: 0 | V38: 0 | W38: 0
A39: =result -> Surplus/(Deficit) for the year | B39: 2 | C39: =C20-C38 -> -2557200.96 | D39: -2677875.973 | E39: 4584720.29 | F39: -2426574.784 | G39: =G20-G38 -> -3739387.565 | H39: -3739387.565 | I39: -666014.9989 | J39: 145905 | K39: 382935 | L39: 0 | M39: 0 | N39: 0 | O39: 0 | P39: 0 | Q39: 0 | R39: 0 | S39: 0 | T39: 0 | U39: 0 | V39: 0 | W39: 0
A40: =head27a -> References
A41: 1. Insert 'Vote'; e.g. department, if different to functional classification structure
A42: 2. Must reconcile to Budgeted Financial Performance (revenue and expenditure)
A43: 3. Assign share in 'associate' to relevant Vote
A45: ="check "&A39 -> check Surplus/(Deficit) for the year | C45: =C39-A3A!C340 -> 0 | D45: =D39-A3A!D340 -> 0 | E45: =E39-A3A!E340 -> 0 | F45: =F39-A3A!F340 -> 0 | G45: =G39-A3A!G340 -> 0 | H45: =H39-A3A!H340 -> 0 | I45: =I39-A3A!I340 -> 0 | J45: =J39-A3A!J340 -> 0 | K45: =K39-A3A!K340 -> 0

Sheet A3A
A1: =muni&" - "&Approve2&"A" -> DC3 Overberg - Table A3 Budgeted Financial Performance (revenue and expenditure by municipal vote)A
A2: =Vdesc -> Vote Description | B2: =head27 -> Ref | C2: =head1b -> 2016/17 | D2: =head1A -> 2017/18 | E2: =Head1 -> 2018/19 | F2: =Head2 -> Current Year 2019/20 | I2: =Head3 -> 2020/21 Medium Term Revenue & Expenditure Framework | L2: =Head4 -> LTFS
A3: R thousand | C3: =Head5 -> Audited Outcome | D3: =Head5 -> Audited Outcome | E3: =Head5 -> Audited Outcome | F3: =Head6 -> Original Budget | G3: =Head7 -> Adjusted Budget | H3: =Head8 -> Full Year Forecast | I3: =Head9 -> Budget Year 2020/21 | J3: =Head10 -> Budget Year +1 2021/22 | K3: =Head11 -> Budget Year +2 2022/23 | L3: =Head12 -> Forecast 2023/24 | M3: =Head13 -> Forecast 2024/25 | N3: =Head14 -> Forecast 2025/26 | O3: =Head15 -> Forecast 2026/27 | P3: =Head16 -> Forecast 2027/28 | Q3: =Head17 -> Forecast 2028/29 | R3: =Head18 -> Forecast 2029/30 | S3: =Head19 -> Forecast 2030/31 | T3: =Head20 -> Forecast 2031/32 | U3: =Head21 -> Forecast 2032/33 | V3: =Head22 -> Forecast 2033/34 | W3: =Head23 -> Forecast 2034/35
A4: Revenue by Vote | B4: 1
A5: ='Org structure'!A2 -> Vote 1 - Municipal Manager | C5: =SUM(C6:C15) -> 8604951.77 | D5: =SUM(D6:D15) -> 11402457.16 | E5: 10480679.05 | F5: 15219551.61 | G5: 15799556 | H5: 15799556 | I5: 20748272 | J5: 21578203 | K5: 22441332
A6: ='Org structure'!E3 -> 1.1 - Executive | C6: 0 | D6: =-SUMIFS('TRIAL BALANCE'!AK:AK,'TRIAL BALANCE'!$Z:$Z,"I",'TRIAL BALANCE'!$P:$P,A3A!$A6) -> 0 | E6: =-SUMIFS('TRIAL BALANCE'!AL:AL,'TRIAL BALANCE'!$Z:$Z,"I",'TRIAL BALANCE'!$P:$P,A3A!$A6) -> 0 | F6: 0 | G6: 0 | H6: =G6 -> 0 | I6: =-SUMIFS('TRIAL BALANCE'!AO:AO,'TRIAL BALANCE'!$Z:$Z,"I",'TRIAL BALANCE'!$P:$P,A3A!$A6) -> 0 | J6: =-SUMIFS('TRIAL BALANCE'!AP:AP,'TRIAL BALANCE'!$Z:$Z,"I",'TRIAL BALANCE'!$P:$P,A3A!$A6) -> 0 | K6: =-SUMIFS('TRIAL BALANCE'!AQ:AQ,'TRIAL BALANCE'!$Z:$Z,"I",'TRIAL BALANCE'!$P:$P,A3A!$A6) -> 0
A7: ='Org structure'!E4 -> 1.2 - Executive Support | C7: 0 | D7: =-SUMIFS('TRIAL BALANCE'!AK:AK,'TRIAL BALANCE'!$Z:$Z,"I",'TRIAL BALANCE'!$P:$P,A3A!$A7) -> 0 | E7: =-SUMIFS('TRIAL BALANCE'!AL:AL,'TRIAL BALANCE'!$Z:$Z,"I",'TRIAL BALANCE'!$P:$P,A3A!$A7) -> 0 | F7: 0 | G7: 0 | H7: =G7 -> 0 | I7: =-SUMIFS('TRIAL BALANCE'!AO:AO,'TRIAL BALANCE'!$Z:$Z,"I",'TRIAL BALANCE'!$P:$P,A3A!$A7) -> 0 | J7: =-SUMIFS('TRIAL BALANCE'!AP:AP,'TRIAL BALANCE'!$Z:$Z,"I",'TRIAL BALANCE'!$P:$P,A3A!$A7) -> 0 | K7: =-SUMIFS('TRIAL BALANCE'!AQ:AQ,'TRIAL BALANCE'!$Z:$Z,"I",'TRIAL BALANCE'!$P:$P,A3A!$A7) -> 0
A8: ='Org structure'!E5 -> 1.3 - Internal Audit | C8: 0 | D8: =-SUMIFS('TRIAL BALANCE'!AK:AK,'TRIAL BALANCE'!$Z:$Z,"I",'TRIAL BALANCE'!$P:$P,A3A!$A8) -> 0 | E8: =-SUMIFS('TRIAL BALANCE'!AL:AL,'TRIAL BALANCE'!$Z:$Z,"I",'TRIAL BALANCE'!$P:$P,A3A!$A8) -> 0 | F8: 0 | G8: 0 | H8: 0 | I8: =-SUMIFS('TRIAL BALANCE'!AO:AO,'TRIAL BALANCE'!$Z:$Z,"I",'TRIAL BALANCE'!$P:$P,A3A!$A8) -> 0 | J8: =-SUMIFS('TRIAL BALANCE'!AP:AP,'TRIAL BALANCE'!$Z:$Z,"I",'TRIAL BALANCE'!$P:$P,A3A!$A8) -> 0 | K8: =-SUMIFS('TRIAL BALANCE'!AQ:AQ,'TRIAL BALANCE'!$Z:$Z,"I",'TRIAL BALANCE'!$P:$P,A3A!$A8) -> 0
A9: ='Org structure'!E6 -> 1.4 - Council Expenditure | C9: 8114736.84 | D9: =-SUMIFS('TRIAL BALANCE'!AK:AK,'TRIAL BALANCE'!$Z:$Z,"I",'TRIAL BALANCE'!$P:$P,A3A!$A9) -> 10870976.3 | E9: =-SUMIFS('TRIAL BALANCE'!AL:AL,'TRIAL BALANCE'!$Z:$Z,"I",'TRIAL BALANCE'!$P:$P,A3A!$A9) -> 10097186.41 | F9: 14681366 | G9: 15261370 | H9: 15261370 | I9: =-SUMIFS('TRIAL BALANCE'!AO:AO,'TRIAL BALANCE'!$Z:$Z,"I",'TRIAL BALANCE'!$P:$P,A3A!$A9) -> 19980797 | J9: =-SUMIFS('TRIAL BALANCE'!AP:AP,'TRIAL BALANCE'!$Z:$Z,"I",'TRIAL BALANCE'!$P:$P,A3A!$A9) -> 20780029 | K9: =-SUMIFS('TRIAL BALANCE'!AQ:AQ,'TRIAL BALANCE'!$Z:$Z,"I",'TRIAL BALANCE'!$P:$P,A3A!$A9) -> 21611231
A10: ='Org structure'!E7 -> 1.5 - IDP & Communication | C10: 0 | D10: =-SUMIFS('TRIAL BALANCE'!AK:AK,'TRIAL BALANCE'!$Z:$Z,"I",'TRIAL BALANCE'!$P:$P,A3A!$A10) -> 0 | E10: =-SUMIFS('TRIAL BALANCE'!AL:AL,'TRIAL BALANCE'!$Z:$Z,"I",'TRIAL BALANCE'!$P:$P,A3A!$A10) -> 0 | F10: 0 | G10: 0 | H10: 0 | I10: =-SUMIFS('TRIAL BALANCE'!AO:AO,'TRIAL BALANCE'!$Z:$Z,"I",'TRIAL BALANCE'!$P:$P,A3A!$A10) -> 0 | J10: =-SUMIFS('TRIAL BALANCE'!AP:AP,'TRIAL BALANCE'!$Z:$Z,"I",'TRIAL BALANCE'!$P:$P,A3A!$A10) -> 0 | K10: =-SUMIFS('TRIAL BALANCE'!AQ:AQ,'TRIAL BALANCE'!$Z:$Z,"I",'TRIAL BALANCE'!$P:$P,A3A!$A10) -> 0
A11: ='Org structure'!E8 -> 1.6 - Performance & Risk Management | C11: 0 | D11: =-SUMIFS('TRIAL BALANCE'!AK:AK,'TRIAL BALANCE'!$Z:$Z,"I",'TRIAL BALANCE'!$P:$P,A3A!$A11) -> 531480.86 | E11: =-SUMIFS('TRIAL BALANCE'!AL:AL,'TRIAL BALANCE'!$Z:$Z,"I",'TRIAL BALANCE'!$P:$P,A3A!$A11) -> 383492.64 | F11: 538185.61 | G11: 538186 | H11: 538186 | I11: =-SUMIFS('TRIAL BALANCE'!AO:AO,'TRIAL BALANCE'!$Z:$Z,"I",'TRIAL BALANCE'!$P:$P,A3A!$A11) -> 767475 | J11: =-SUMIFS('TRIAL BALANCE'!AP:AP,'TRIAL BALANCE'!$Z:$Z,"I",'TRIAL BALANCE'!$P:$P,A3A!$A11) -> 798174 | K11: =-SUMIFS('TRIAL BALANCE'!AQ:AQ,'TRIAL BALANCE'!$Z:$Z,"I",'TRIAL BALANCE'!$P:$P,A3A!$A11) -> 830101
A12: ='Org structure'!E9 -> 1.7 - Donations | C12: 3200 | D12: =-SUMIFS('TRIAL BALANCE'!AK:AK,'TRIAL BALANCE'!$Z:$Z,"I",'TRIAL BALANCE'!$P:$P,A3A!$A12) -> 0 | E12: =-SUMIFS('TRIAL BALANCE'!AL:AL,'TRIAL BALANCE'!$Z:$Z,"I",'TRIAL BALANCE'!$P:$P,A3A!$A12) -> 0 | F12: 0 | G12: 0 | H12: 0 | I12: =-SUMIFS('TRIAL BALANCE'!AO:AO,'TRIAL BALANCE'!$Z:$Z,"I",'TRIAL BALANCE'!$P:$P,A3A!$A12) -> 0 | J12: =-SUMIFS('TRIAL BALANCE'!AP:AP,'TRIAL BALANCE'!$Z:$Z,"I",'TRIAL BALANCE'!$P:$P,A3A!$A12) -> 0 | K12: =-SUMIFS('TRIAL BALANCE'!AQ:AQ,'TRIAL BALANCE'!$Z:$Z,"I",'TRIAL BALANCE'!$P:$P,A3A!$A12) -> 0
A13: ='Org structure'!E10 -> 1.8 - Management Support | C13: 0 | D13: =-SUMIFS('TRIAL BALANCE'!AK:AK,'TRIAL BALANCE'!$Z:$Z,"I",'TRIAL BALANCE'!$P:$P,A3A!$A13) -> 0 | E13: =-SUMIFS('TRIAL BALANCE'!AL:AL,'TRIAL BALANCE'!$Z:$Z,"I",'TRIAL BALANCE'!$P:$P,A3A!$A13) -> 0 | F13: 0 | G13: 0 | H13: 0 | I13: =-SUMIFS('TRIAL BALANCE'!AO:AO,'TRIAL BALANCE'!$Z:$Z,"I",'TRIAL BALANCE'!$P:$P,A3A!$A13) -> 0 | J13: =-SUMIFS('TRIAL BALANCE'!AP:AP,'TRIAL BALANCE'!$Z:$Z,"I",'TRIAL BALANCE'!$P:$P,A3A!$A13) -> 0 | K13: =-SUMIFS('TRIAL BALANCE'!AQ:AQ,'TRIAL BALANCE'!$Z:$Z,"I",'TRIAL BALANCE'!$P:$P,A3A!$A13) -> 0
A14: ='Org structure'!E11 -> 1.9 - Shared Services | C14: 487014.93 | D14: =-SUMIFS('TRIAL BALANCE'!AK:AK,'TRIAL BALANCE'!$Z:$Z,"I",'TRIAL BALANCE'!$P:$P,A3A!$A14) -> 0 | E14: =-SUMIFS('TRIAL BALANCE'!AL:AL,'TRIAL BALANCE'!$Z:$Z,"I",'TRIAL BALANCE'!$P:$P,A3A!$A14) -> 0 | F14: 0 | G14: 0 | H14: 0 | I14: =-SUMIFS('TRIAL BALANCE'!AO:AO,'TRIAL BALANCE'!$Z:$Z,"I",'TRIAL BALANCE'!$P:$P,A3A!$A14) -> 0 | J14: =-SUMIFS('TRIAL BALANCE'!AP:AP,'TRIAL BALANCE'!$Z:$Z,"I",'TRIAL BALANCE'!$P:$P,A3A!$A14) -> 0 | K14: =-SUMIFS('TRIAL BALANCE'!AQ:AQ,'TRIAL BALANCE'!$Z:$Z,"I",'TRIAL BALANCE'!$P:$P,A3A!$A14) -> 0
A15: ='Org structure'!E12 -> 0 | G15: 0
A16: ='Org structure'!A3 -> Vote 2 - Management Services | C16: =SUM(C17:C26) -> 48874.03 | D16: =SUM(D17:D26) -> 0 | E16: 0 | F16: 0 | G16: 0 | H16: 0 | I16: 0 | J16: 0 | K16: 0
A17: ='Org structure'!E14 -> 2.1 - Record Management | C17: 0 | D17: =-SUMIFS('TRIAL BALANCE'!AK:AK,'TRIAL BALANCE'!$Z:$Z,"I",'TRIAL BALANCE'!$P:$P,A3A!$A17) -> 0 | E17: =-SUMIFS('TRIAL BALANCE'!AL:AL,'TRIAL BALANCE'!$Z:$Z,"I",'TRIAL BALANCE'!$P:$P,A3A!$A17) -> 0 | F17: 0 | G17: 0 | H17: =G17 -> 0 | I17: =-SUMIFS('TRIAL BALANCE'!AO:AO,'TRIAL BALANCE'!$Z:$Z,"I",'TRIAL BALANCE'!$P:$P,A3A!$A17) -> 0 | J17: =-SUMIFS('TRIAL BALANCE'!AP:AP,'TRIAL BALANCE'!$Z:$Z,"I",'TRIAL BALANCE'!$P:$P,A3A!$A17) -> 0 | K17: =-SUMIFS('TRIAL BALANCE'!AQ:AQ,'TRIAL BALANCE'!$Z:$Z,"I",'TRIAL BALANCE'!$P:$P,A3A!$A17) -> 0
A18: ='Org structure'!E15 -> 2.2 - Human Resources | C18: 0 | D18: =-SUMIFS('TRIAL BALANCE'!AK:AK,'TRIAL BALANCE'!$Z:$Z,"I",'TRIAL BALANCE'!$P:$P,A3A!$A18) -> 0 | E18: =-SUMIFS('TRIAL BALANCE'!AL:AL,'TRIAL BALANCE'!$Z:$Z,"I",'TRIAL BALANCE'!$P:$P,A3A!$A18) -> 0 | F18: 0 | G18: 0 | H18: 0 | I18: =-SUMIFS('TRIAL BALANCE'!AO:AO,'TRIAL BALANCE'!$Z:$Z,"I",'TRIAL BALANCE'!$P:$P,A3A!$A18) -> 0 | J18: =-SUMIFS('TRIAL BALANCE'!AP:AP,'TRIAL BALANCE'!$Z:$Z,"I",'TRIAL BALANCE'!$P:$P,A3A!$A18) -> 0 | K18: =-SUMIFS('TRIAL BALANCE'!AQ:AQ,'TRIAL BALANCE'!$Z:$Z,"I",'TRIAL BALANCE'!$P:$P,A3A!$A18) -> 0
A19: ='Org structure'!E16 -> 2.3 - Supply Chain Management | C19: 0 | D19: =-SUMIFS('TRIAL BALANCE'!AK:AK,'TRIAL BALANCE'!$Z:$Z,"I",'TRIAL BALANCE'!$P:$P,A3A!$A19) -> 0 | E19: =-SUMIFS('TRIAL BALANCE'!AL:AL,'TRIAL BALANCE'!$Z:$Z,"I",'TRIAL BALANCE'!$P:$P,A3A!$A19) -> 0 | F19: 0 | G19: 0 | H19: 0 | I19: =-SUMIFS('TRIAL BALANCE'!AO:AO,'TRIAL BALANCE'!$Z:$Z,"I",'TRIAL BALANCE'!$P:$P,A3A!$A19) -> 0 | J19: =-SUMIFS('TRIAL BALANCE'!AP:AP,'TRIAL BALANCE'!$Z:$Z,"I",'TRIAL BALANCE'!$P:$P,A3A!$A19) -> 0 | K19: =-SUMIFS('TRIAL BALANCE'!AQ:AQ,'TRIAL BALANCE'!$Z:$Z,"I",'TRIAL BALANCE'!$P:$P,A3A!$A19) -> 0
A20: ='Org structure'!E17 -> 2.4 - Finance Inc, Exp & IT | C20: 1345.88 | D20: =-SUMIFS('TRIAL BALANCE'!AK:AK,'TRIAL BALANCE'!$Z:$Z,"I",'TRIAL BALANCE'!$P:$P,A3A!$A20) -> 0 | E20: =-SUMIFS('TRIAL BALANCE'!AL:AL,'TRIAL BALANCE'!$Z:$Z,"I",'TRIAL BALANCE'!$P:$P,A3A!$A20) -> 0 | F20: 0 | G20: 0 | H20: 0 | I20: =-SUMIFS('TRIAL BALANCE'!AO:AO,'TRIAL BALANCE'!$Z:$Z,"I",'TRIAL BALANCE'!$P:$P,A3A!$A20) -> 0 | J20: =-SUMIFS('TRIAL BALANCE'!AP:AP,'TRIAL BALANCE'!$Z:$Z,"I",'TRIAL BALANCE'!$P:$P,A3A!$A20) -> 0 | K20: =-SUMIFS('TRIAL BALANCE'!AQ:AQ,'TRIAL BALANCE'!$Z:$Z,"I",'TRIAL BALANCE'!$P:$P,A3A!$A20) -> 0
A21: ='Org structure'!E18 -> 2.5 - Performance Management | C21: 0 | D21: =-SUMIFS('TRIAL BALANCE'!AK:AK,'TRIAL BALANCE'!$Z:$Z,"I",'TRIAL BALANCE'!$P:$P,A3A!$A21) -> 0 | E21: =-SUMIFS('TRIAL BALANCE'!AL:AL,'TRIAL BALANCE'!$Z:$Z,"I",'TRIAL BALANCE'!$P:$P,A3A!$A21) -> 0 | F21: 0 | G21: 0 | H21: 0 | I21: =-SUMIFS('TRIAL BALANCE'!AO:AO,'TRIAL BALANCE'!$Z:$Z,"I",'TRIAL BALANCE'!$P:$P,A3A!$A21) -> 0 | J21: =-SUMIFS('TRIAL BALANCE'!AP:AP,'TRIAL BALANCE'!$Z:$Z,"I",'TRIAL BALANCE'!$P:$P,A3A!$A21) -> 0 | K21: =-SUMIFS('TRIAL BALANCE'!AQ:AQ,'TRIAL BALANCE'!$Z:$Z,"I",'TRIAL BALANCE'!$P:$P,A3A!$A21) -> 0
A22: ='Org structure'!E19 -> 2.6 - Administration | C22: 0 | D22: =-SUMIFS('TRIAL BALANCE'!AK:AK,'TRIAL BALANCE'!$Z:$Z,"I",'TRIAL BALANCE'!$P:$P,A3A!$A22) -> 0 | E22: =-SUMIFS('TRIAL BALANCE'!AL:AL,'TRIAL BALANCE'!$Z:$Z,"I",'TRIAL BALANCE'!$P:$P,A3A!$A22) -> 0 | F22: 0 | G22: 0 | H22: 0 | I22: =-SUMIFS('TRIAL BALANCE'!AO:AO,'TRIAL BALANCE'!$Z:$Z,"I",'TRIAL BALANCE'!$P:$P,A3A!$A22) -> 0 | J22: =-SUMIFS('TRIAL BALANCE'!AP:AP,'TRIAL BALANCE'!$Z:$Z,"I",'TRIAL BALANCE'!$P:$P,A3A!$A22) -> 0 | K22: =-SUMIFS('TRIAL BALANCE'!AQ:AQ,'TRIAL BALANCE'!$Z:$Z,"I",'TRIAL BALANCE'!$P:$P,A3A!$A22) -> 0
A23: ='Org structure'!E20 -> 2.7 - Property Services | C23: 47528.15 | D23: =-SUMIFS('TRIAL BALANCE'!AK:AK,'TRIAL BALANCE'!$Z:$Z,"I",'TRIAL BALANCE'!$P:$P,A3A!$A23) -> 0 | E23: =-SUMIFS('TRIAL BALANCE'!AL:AL,'TRIAL BALANCE'!$Z:$Z,"I",'TRIAL BALANCE'!$P:$P,A3A!$A23) -> 0 | F23: 0 | G23: 0 | H23: 0 | I23: =-SUMIFS('TRIAL BALANCE'!AO:AO,'TRIAL BALANCE'!$Z:$Z,"I",'TRIAL BALANCE'!$P:$P,A3A!$A23) -> 0 | J23: =-SUMIFS('TRIAL BALANCE'!AP:AP,'TRIAL BALANCE'!$Z:$Z,"I",'TRIAL BALANCE'!$P:$P,A3A!$A23) -> 0 | K23: =-SUMIFS('TRIAL BALANCE'!AQ:AQ,'TRIAL BALANCE'!$Z:$Z,"I",'TRIAL BALANCE'!$P:$P,A3A!$A23) -> 0
A24: ='Org structure'!E21 -> 2.8 - Financial Administration | C24: 0 | D24: =-SUMIFS('TRIAL BALANCE'!AK:AK,'TRIAL BALANCE'!$Z:$Z,"I",'TRIAL BALANCE'!$P:$P,A3A!$A24) -> 0 | E24: =-SUMIFS('TRIAL BALANCE'!AL:AL,'TRIAL BALANCE'!$Z:$Z,"I",'TRIAL BALANCE'!$P:$P,A3A!$A24) -> 0 | F24: 0 | G24: 0 | H24: 0 | I24: =-SUMIFS('TRIAL BALANCE'!AO:AO,'TRIAL BALANCE'!$Z:$Z,"I",'TRIAL BALANCE'!$P:$P,A3A!$A24) -> 0 | J24: =-SUMIFS('TRIAL BALANCE'!AP:AP,'TRIAL BALANCE'!$Z:$Z,"I",'TRIAL BALANCE'!$P:$P,A3A!$A24) -> 0 | K24: =-SUMIFS('TRIAL BALANCE'!AQ:AQ,'TRIAL BALANCE'!$Z:$Z,"I",'TRIAL BALANCE'!$P:$P,A3A!$A24) -> 0
A25: ='Org structure'!E22 -> 2.9 - IDP/LED | C25: 0 | D25: =-SUMIFS('TRIAL BALANCE'!AK:AK,'TRIAL BALANCE'!$Z:$Z,"I",'TRIAL BALANCE'!$P:$P,A3A!$A25) -> 0 | E25: =-SUMIFS('TRIAL BALANCE'!AL:AL,'TRIAL BALANCE'!$Z:$Z,"I",'TRIAL BALANCE'!$P:$P,A3A!$A25) -> 0 | F25: 0 | G25: 0 | H25: 0 | I25: =-SUMIFS('TRIAL BALANCE'!AO:AO,'TRIAL BALANCE'!$Z:$Z,"I",'TRIAL BALANCE'!$P:$P,A3A!$A25) -> 0 | J25: =-SUMIFS('TRIAL BALANCE'!AP:AP,'TRIAL BALANCE'!$Z:$Z,"I",'TRIAL BALANCE'!$P:$P,A3A!$A25) -> 0 | K25: =-SUMIFS('TRIAL BALANCE'!AQ:AQ,'TRIAL BALANCE'!$Z:$Z,"I",'TRIAL BALANCE'!$P:$P,A3A!$A25) -> 0
A26: ='Org structure'!E23 -> 2.10 - Grants - National Government | C26: 0 | D26: =-SUMIFS('TRIAL BALANCE'!AK:AK,'TRIAL BALANCE'!$Z:$Z,"I",'TRIAL BALANCE'!$P:$P,A3A!$A26) -> 0 | E26: =-SUMIFS('TRIAL BALANCE'!AL:AL,'TRIAL BALANCE'!$Z:$Z,"I",'TRIAL BALANCE'!$P:$P,A3A!$A26) -> 0 | F26: 0 | G26: 0 | H26: 0 | I26: =-SUMIFS('TRIAL BALANCE'!AO:AO,'TRIAL BALANCE'!$Z:$Z,"I",'TRIAL BALANCE'!$P:$P,A3A!$A26) -> 0 | J26: =-SUMIFS('TRIAL BALANCE'!AP:AP,'TRIAL BALANCE'!$Z:$Z,"I",'TRIAL BALANCE'!$P:$P,A3A!$A26) -> 0 | K26: =-SUMIFS('TRIAL BALANCE'!AQ:AQ,'TRIAL BALANCE'!$Z:$Z,"I",'TRIAL BALANCE'!$P:$P,A3A!$A26) -> 0
A27: ='Org structure'!A4 -> Vote 3 - Corporate Services | C27: =SUM(C28:C37) -> 0 | D27: 27690.98 | E27: 24547.2 | F27: 23530 | G27: 63530 | H27: 63530 | I27: 63530 | J27: 66071 | K27: 68714
A28: ='Org structure'!E25 -> 3.1 - Executive | C28: 0 | D28: =-SUMIFS('TRIAL BALANCE'!AK:AK,'TRIAL BALANCE'!$Z:$Z,"I",'TRIAL BALANCE'!$P:$P,A3A!$A28) -> 0 | E28: =-SUMIFS('TRIAL BALANCE'!AL:AL,'TRIAL BALANCE'!$Z:$Z,"I",'TRIAL BALANCE'!$P:$P,A3A!$A28) -> 0 | F28: 0 | G28: 0 | H28: =G28 -> 0 | I28: =-SUMIFS('TRIAL BALANCE'!AO:AO,'TRIAL BALANCE'!$Z:$Z,"I",'TRIAL BALANCE'!$P:$P,A3A!$A28) -> 0 | J28: =-SUMIFS('TRIAL BALANCE'!AP:AP,'TRIAL BALANCE'!$Z:$Z,"I",'TRIAL BALANCE'!$P:$P,A3A!$A28) -> 0 | K28: =-SUMIFS('TRIAL BALANCE'!AQ:AQ,'TRIAL BALANCE'!$Z:$Z,"I",'TRIAL BALANCE'!$P:$P,A3A!$A28) -> 0
A29: ='Org structure'!E26 -> 3.2 - Corporate Support | C29: 0 | D29: =-SUMIFS('TRIAL BALANCE'!AK:AK,'TRIAL BALANCE'!$Z:$Z,"I",'TRIAL BALANCE'!$P:$P,A3A!$A29) -> 27690.98 | E29: =-SUMIFS('TRIAL BALANCE'!AL:AL,'TRIAL BALANCE'!$Z:$Z,"I",'TRIAL BALANCE'!$P:$P,A3A!$A29) -> 24547.2 | F29: 23530 | G29: 63530 | H29: 63530 | I29: =-SUMIFS('TRIAL BALANCE'!AO:AO,'TRIAL BALANCE'!$Z:$Z,"I",'TRIAL BALANCE'!$P:$P,A3A!$A29) -> 63530 | J29: =-SUMIFS('TRIAL BALANCE'!AP:AP,'TRIAL BALANCE'!$Z:$Z,"I",'TRIAL BALANCE'!$P:$P,A3A!$A29) -> 66071 | K29: =-SUMIFS('TRIAL BALANCE'!AQ:AQ,'TRIAL BALANCE'!$Z:$Z,"I",'TRIAL BALANCE'!$P:$P,A3A!$A29) -> 68714
A30: ='Org structure'!E27 -> 3.3 - Human Resources | C30: 0 | D30: =-SUMIFS('TRIAL BALANCE'!AK:AK,'TRIAL BALANCE'!$Z:$Z,"I",'TRIAL BALANCE'!$P:$P,A3A!$A30) -> 0 | E30: =-SUMIFS('TRIAL BALANCE'!AL:AL,'TRIAL BALANCE'!$Z:$Z,"I",'TRIAL BALANCE'!$P:$P,A3A!$A30) -> 0 | F30: 0 | G30: 0 | H30: 0 | I30: =-SUMIFS('TRIAL BALANCE'!AO:AO,'TRIAL BALANCE'!$Z:$Z,"I",'TRIAL BALANCE'!$P:$P,A3A!$A30) -> 0 | J30: =-SUMIFS('TRIAL BALANCE'!AP:AP,'TRIAL BALANCE'!$Z:$Z,"I",'TRIAL BALANCE'!$P:$P,A3A!$A30) -> 0 | K30: =-SUMIFS('TRIAL BALANCE'!AQ:AQ,'TRIAL BALANCE'!$Z:$Z,"I",'TRIAL BALANCE'!$P:$P,A3A!$A30) -> 0
A31: ='Org structure'!E28 -> 3.4 - Committee, Records & Councillor Support | C31: 0 | D31: =-SUMIFS('TRIAL BALANCE'!AK:AK,'TRIAL BALANCE'!$Z:$Z,"I",'TRIAL BALANCE'!$P:$P,A3A!$A31) -> 0 | E31: =-SUMIFS('TRIAL BALANCE'!AL:AL,'TRIAL BALANCE'!$Z:$Z,"I",'TRIAL BALANCE'!$P:$P,A3A!$A31) -> 0 | F31: 0 | G31: 0 | H31: 0 | I31: =-SUMIFS('TRIAL BALANCE'!AO:AO,'TRIAL BALANCE'!$Z:$Z,"I",'TRIAL BALANCE'!$P:$P,A3A!$A31) -> 0 | J31: =-SUMIFS('TRIAL BALANCE'!AP:AP,'TRIAL BALANCE'!$Z:$Z,"I",'TRIAL BALANCE'!$P:$P,A3A!$A31) -> 0 | K31: =-SUMIFS('TRIAL BALANCE'!AQ:AQ,'TRIAL BALANCE'!$Z:$Z,"I",'TRIAL BALANCE'!$P:$P,A3A!$A31) -> 0
A32: ='Org structure'!E29 -> 3.5 - Information Services | C32: 0 | D32: =-SUMIFS('TRIAL BALANCE'!AK:AK,'TRIAL BALANCE'!$Z:$Z,"I",'TRIAL BALANCE'!$P:$P,A3A!$A32) -> 0 | E32: =-SUMIFS('TRIAL BALANCE'!AL:AL,'TRIAL BALANCE'!$Z:$Z,"I",'TRIAL BALANCE'!$P:$P,A3A!$A32) -> 0 | F32: 0 | G32: 0 | H32: 0 | I32: =-SUMIFS('TRIAL BALANCE'!AO:AO,'TRIAL BALANCE'!$Z:$Z,"I",'TRIAL BALANCE'!$P:$P,A3A!$A32) -> 0 | J32: =-SUMIFS('TRIAL BALANCE'!AP:AP,'TRIAL BALANCE'!$Z:$Z,"I",'TRIAL BALANCE'!$P:$P,A3A!$A32) -> 0 | K32: =-SUMIFS('TRIAL BALANCE'!AQ:AQ,'TRIAL BALANCE'!$Z:$Z,"I",'TRIAL BALANCE'!$P:$P,A3A!$A32) -> 0
A33: ='Org structure'!E30 -> 0 | G33: 0
A34: ='Org structure'!E31 -> 0 | G34: 0
A35: ='Org structure'!E32 -> 0 | G35: 0
A36: ='Org structure'!E33 -> 0 | G36: 0
A37: ='Org structure'!E34 -> 0 | G37: 0
A38: ='Org structure'!A5 -> Vote 4 - Finance | C38: =SUM(C39:C48) -> 64584972.38 | D38: 70306038.34 | E38: 84265155.56 | F38: 79997500 | G38: 83361706 | H38: 83361706 | I38: 83529500 | J38: 85903880 | K38: 88913356
A39: ='Org structure'!E36 -> 4.1 - Executive | C39: 0 | D39: =-SUMIFS('TRIAL BALANCE'!AK:AK,'TRIAL BALANCE'!$Z:$Z,"I",'TRIAL BALANCE'!$P:$P,A3A!$A39) -> 0 | E39: =-SUMIFS('TRIAL BALANCE'!AL:AL,'TRIAL BALANCE'!$Z:$Z,"I",'TRIAL BALANCE'!$P:$P,A3A!$A39) -> 0 | F39: 0 | G39: 0 | H39: =G39 -> 0 | I39: =-SUMIFS('TRIAL BALANCE'!AO:AO,'TRIAL BALANCE'!$Z:$Z,"I",'TRIAL BALANCE'!$P:$P,A3A!$A39) -> 0 | J39: =-SUMIFS('TRIAL BALANCE'!AP:AP,'TRIAL BALANCE'!$Z:$Z,"I",'TRIAL BALANCE'!$P:$P,A3A!$A39) -> 0 | K39: =-SUMIFS('TRIAL BALANCE'!AQ:AQ,'TRIAL BALANCE'!$Z:$Z,"I",'TRIAL BALANCE'!$P:$P,A3A!$A39) -> 0
A40: ='Org structure'!E37 -> 4.2 - Financial Support | C40: 0 | D40: =-SUMIFS('TRIAL BALANCE'!AK:AK,'TRIAL BALANCE'!$Z:$Z,"I",'TRIAL BALANCE'!$P:$P,A3A!$A40) -> 0 | E40: =-SUMIFS('TRIAL BALANCE'!AL:AL,'TRIAL BALANCE'!$Z:$Z,"I",'TRIAL BALANCE'!$P:$P,A3A!$A40) -> 0 | F40: 0 | G40: 0 | H40: 0 | I40: =-SUMIFS('TRIAL BALANCE'!AO:AO,'TRIAL BALANCE'!$Z:$Z,"I",'TRIAL BALANCE'!$P:$P,A3A!$A40) -> 0 | J40: =-SUMIFS('TRIAL BALANCE'!AP:AP,'TRIAL BALANCE'!$Z:$Z,"I",'TRIAL BALANCE'!$P:$P,A3A!$A40) -> 0 | K40: =-SUMIFS('TRIAL BALANCE'!AQ:AQ,'TRIAL BALANCE'!$Z:$Z,"I",'TRIAL BALANCE'!$P:$P,A3A!$A40) -> 0
A41: ='Org structure'!E38 -> 4.3 - Financial Services | C41: 64584972.38 | D41: =-SUMIFS('TRIAL BALANCE'!AK:AK,'TRIAL BALANCE'!$Z:$Z,"I",'TRIAL BALANCE'!$P:$P,A3A!$A41) -> 70143953.81 | E41: =-SUMIFS('TRIAL BALANCE'!AL:AL,'TRIAL BALANCE'!$Z:$Z,"I",'TRIAL BALANCE'!$P:$P,A3A!$A41) -> 84214415.34 | F41: 79990500 | G41: 83324706 | H41: 83324706 | I41: =-SUMIFS('TRIAL BALANCE'!AO:AO,'TRIAL BALANCE'!$Z:$Z,"I",'TRIAL BALANCE'!$P:$P,A3A!$A41) -> 83514500 | J41: =-SUMIFS('TRIAL BALANCE'!AP:AP,'TRIAL BALANCE'!$Z:$Z,"I",'TRIAL BALANCE'!$P:$P,A3A!$A41) -> 85888280 | K41: =-SUMIFS('TRIAL BALANCE'!AQ:AQ,'TRIAL BALANCE'!$Z:$Z,"I",'TRIAL BALANCE'!$P:$P,A3A!$A41) -> 88897132
A42: ='Org structure'!E39 -> 4.4 - Revenue | C42: 0 | D42: =-SUMIFS('TRIAL BALANCE'!AK:AK,'TRIAL BALANCE'!$Z:$Z,"I",'TRIAL BALANCE'!$P:$P,A3A!$A42) -> 138173.27 | E42: =-SUMIFS('TRIAL BALANCE'!AL:AL,'TRIAL BALANCE'!$Z:$Z,"I",'TRIAL BALANCE'!$P:$P,A3A!$A42) -> 24369.29 | F42: 7000 | G42: 7000 | H42: 7000 | I42: =-SUMIFS('TRIAL BALANCE'!AO:AO,'TRIAL BALANCE'!$Z:$Z,"I",'TRIAL BALANCE'!$P:$P,A3A!$A42) -> 15000 | J42: =-SUMIFS('TRIAL BALANCE'!AP:AP,'TRIAL BALANCE'!$Z:$Z,"I",'TRIAL BALANCE'!$P:$P,A3A!$A42) -> 15600 | K42: =-SUMIFS('TRIAL BALANCE'!AQ:AQ,'TRIAL BALANCE'!$Z:$Z,"I",'TRIAL BALANCE'!$P:$P,A3A!$A42) -> 16224
A43: ='Org structure'!E40 -> 4.5 - Expenditure | C43: 0 | D43: =-SUMIFS('TRIAL BALANCE'!AK:AK,'TRIAL BALANCE'!$Z:$Z,"I",'TRIAL BALANCE'!$P:$P,A3A!$A43) -> 23911.26 | E43: =-SUMIFS('TRIAL BALANCE'!AL:AL,'TRIAL BALANCE'!$Z:$Z,"I",'TRIAL BALANCE'!$P:$P,A3A!$A43) -> 26370.93 | F43: 0 | G43: 30000 | H43: 30000 | I43: =-SUMIFS('TRIAL BALANCE'!AO:AO,'TRIAL BALANCE'!$Z:$Z,"I",'TRIAL BALANCE'!$P:$P,A3A!$A43) -> 0 | J43: =-SUMIFS('TRIAL BALANCE'!AP:AP,'TRIAL BALANCE'!$Z:$Z,"I",'TRIAL BALANCE'!$P:$P,A3A!$A43) -> 0 | K43: =-SUMIFS('TRIAL BALANCE'!AQ:AQ,'TRIAL BALANCE'!$Z:$Z,"I",'TRIAL BALANCE'!$P:$P,A3A!$A43) -> 0
A44: ='Org structure'!E41 -> 4.6 - Supply Chain Management | C44: 0 | D44: =-SUMIFS('TRIAL BALANCE'!AK:AK,'TRIAL BALANCE'!$Z:$Z,"I",'TRIAL BALANCE'!$P:$P,A3A!$A44) -> 0 | E44: =-SUMIFS('TRIAL BALANCE'!AL:AL,'TRIAL BALANCE'!$Z:$Z,"I",'TRIAL BALANCE'!$P:$P,A3A!$A44) -> 0 | F44: 0 | G44: 0 | H44: 0 | I44: =-SUMIFS('TRIAL BALANCE'!AO:AO,'TRIAL BALANCE'!$Z:$Z,"I",'TRIAL BALANCE'!$P:$P,A3A!$A44) -> 0 | J44: =-SUMIFS('TRIAL BALANCE'!AP:AP,'TRIAL BALANCE'!$Z:$Z,"I",'TRIAL BALANCE'!$P:$P,A3A!$A44) -> 0 | K44: =-SUMIFS('TRIAL BALANCE'!AQ:AQ,'TRIAL BALANCE'!$Z:$Z,"I",'TRIAL BALANCE'!$P:$P,A3A!$A44) -> 0
A45: ='Org structure'!E42 -> 0 | G45: 0
A46: ='Org structure'!E43 -> 0 | G46: 0
A47: ='Org structure'!E44 -> 0 | G47: 0
A48: ='Org structure'!E45 -> 0 | G48: 0
A49: ='Org structure'!A6 -> Vote 5 - Community Services | C49: =SUM(C50:C59) -> 86175474.84 | D49: =SUM(D50:D59) -> 104278989.7 | E49: 122554305.8 | F49: 124745052.8 | G49: 134269303 | H49: 134269303 | I49: 134850915 | J49: 139625434 | K49: 145876371
A50: ='Org structure'!E47 -> 5.1 - Executive | C50: 0 | D50: =-SUMIFS('TRIAL BALANCE'!AK:AK,'TRIAL BALANCE'!$Z:$Z,"I",'TRIAL BALANCE'!$P:$P,A3A!$A50) -> 0 | E50: =-SUMIFS('TRIAL BALANCE'!AL:AL,'TRIAL BALANCE'!$Z:$Z,"I",'TRIAL BALANCE'!$P:$P,A3A!$A50) -> 0 | F50: 0 | G50: 0 | H50: =G50 -> 0 | I50: =-SUMIFS('TRIAL BALANCE'!AO:AO,'TRIAL BALANCE'!$Z:$Z,"I",'TRIAL BALANCE'!$P:$P,A3A!$A50) -> 0 | J50: =-SUMIFS('TRIAL BALANCE'!AP:AP,'TRIAL BALANCE'!$Z:$Z,"I",'TRIAL BALANCE'!$P:$P,A3A!$A50) -> 0 | K50: =-SUMIFS('TRIAL BALANCE'!AQ:AQ,'TRIAL BALANCE'!$Z:$Z,"I",'TRIAL BALANCE'!$P:$P,A3A!$A50) -> 0
A51: ='Org structure'!E48 -> 5.2 - Community Services Support | C51: 0 | D51: =-SUMIFS('TRIAL BALANCE'!AK:AK,'TRIAL BALANCE'!$Z:$Z,"I",'TRIAL BALANCE'!$P:$P,A3A!$A51) -> 0 | E51: =-SUMIFS('TRIAL BALANCE'!AL:AL,'TRIAL BALANCE'!$Z:$Z,"I",'TRIAL BALANCE'!$P:$P,A3A!$A51) -> 0 | F51: 0 | G51: 0 | H51: 0 | I51: =-SUMIFS('TRIAL BALANCE'!AO:AO,'TRIAL BALANCE'!$Z:$Z,"I",'TRIAL BALANCE'!$P:$P,A3A!$A51) -> 0 | J51: =-SUMIFS('TRIAL BALANCE'!AP:AP,'TRIAL BALANCE'!$Z:$Z,"I",'TRIAL BALANCE'!$P:$P,A3A!$A51) -> 0 | K51: =-SUMIFS('TRIAL BALANCE'!AQ:AQ,'TRIAL BALANCE'!$Z:$Z,"I",'TRIAL BALANCE'!$P:$P,A3A!$A51) -> 0
A52: ='Org structure'!E49 -> 5.3 - Municipal Health | C52: 181250.86 | D52: =-SUMIFS('TRIAL BALANCE'!AK:AK,'TRIAL BALANCE'!$Z:$Z,"I",'TRIAL BALANCE'!$P:$P,A3A!$A52) -> 325881.42 | E52: =-SUMIFS('TRIAL BALANCE'!AL:AL,'TRIAL BALANCE'!$Z:$Z,"I",'TRIAL BALANCE'!$P:$P,A3A!$A52) -> 122893.39 | F52: 300000 | G52: 300000 | H52: 300000 | I52: =-SUMIFS('TRIAL BALANCE'!AO:AO,'TRIAL BALANCE'!$Z:$Z,"I",'TRIAL BALANCE'!$P:$P,A3A!$A52) -> 300000 | J52: =-SUMIFS('TRIAL BALANCE'!AP:AP,'TRIAL BALANCE'!$Z:$Z,"I",'TRIAL BALANCE'!$P:$P,A3A!$A52) -> 312000 | K52: =-SUMIFS('TRIAL BALANCE'!AQ:AQ,'TRIAL BALANCE'!$Z:$Z,"I",'TRIAL BALANCE'!$P:$P,A3A!$A52) -> 324480
A53: ='Org structure'!E50 -> 5.4 - Comprehensive Health | C53: 138349.84 | D53: =-SUMIFS('TRIAL BALANCE'!AK:AK,'TRIAL BALANCE'!$Z:$Z,"I",'TRIAL BALANCE'!$P:$P,A3A!$A53) -> 163870.07 | E53: =-SUMIFS('TRIAL BALANCE'!AL:AL,'TRIAL BALANCE'!$Z:$Z,"I",'TRIAL BALANCE'!$P:$P,A3A!$A53) -> 161968.59 | F53: 15358 | G53: 203762 | H53: 203762 | I53: =-SUMIFS('TRIAL BALANCE'!AO:AO,'TRIAL BALANCE'!$Z:$Z,"I",'TRIAL BALANCE'!$P:$P,A3A!$A53) -> 200000 | J53: =-SUMIFS('TRIAL BALANCE'!AP:AP,'TRIAL BALANCE'!$Z:$Z,"I",'TRIAL BALANCE'!$P:$P,A3A!$A53) -> 200000 | K53: =-SUMIFS('TRIAL BALANCE'!AQ:AQ,'TRIAL BALANCE'!$Z:$Z,"I",'TRIAL BALANCE'!$P:$P,A3A!$A53) -> 200000
A54: ='Org structure'!E51 -> 5.5 - Enviromental Management | C54: 18525 | D54: =-SUMIFS('TRIAL BALANCE'!AK:AK,'TRIAL BALANCE'!$Z:$Z,"I",'TRIAL BALANCE'!$P:$P,A3A!$A54) -> 27860 | E54: =-SUMIFS('TRIAL BALANCE'!AL:AL,'TRIAL BALANCE'!$Z:$Z,"I",'TRIAL BALANCE'!$P:$P,A3A!$A54) -> 20800 | F54: 143000 | G54: 143000 | H54: 143000 | I54: =-SUMIFS('TRIAL BALANCE'!AO:AO,'TRIAL BALANCE'!$Z:$Z,"I",'TRIAL BALANCE'!$P:$P,A3A!$A54) -> 200000 | J54: =-SUMIFS('TRIAL BALANCE'!AP:AP,'TRIAL BALANCE'!$Z:$Z,"I",'TRIAL BALANCE'!$P:$P,A3A!$A54) -> 208000 | K54: =-SUMIFS('TRIAL BALANCE'!AQ:AQ,'TRIAL BALANCE'!$Z:$Z,"I",'TRIAL BALANCE'!$P:$P,A3A!$A54) -> 216320
A55: ='Org structure'!E52 -> 5.6 - Solid Waste | C55: 740076.7 | D55: =-SUMIFS('TRIAL BALANCE'!AK:AK,'TRIAL BALANCE'!$Z:$Z,"I",'TRIAL BALANCE'!$P:$P,A3A!$A55) -> 1069105.17 | E55: =-SUMIFS('TRIAL BALANCE'!AL:AL,'TRIAL BALANCE'!$Z:$Z,"I",'TRIAL BALANCE'!$P:$P,A3A!$A55) -> 6534484.77 | F55: 10723096 | G55: 10738096 | H55: 10738096 | I55: =-SUMIFS('TRIAL BALANCE'!AO:AO,'TRIAL BALANCE'!$Z:$Z,"I",'TRIAL BALANCE'!$P:$P,A3A!$A55) -> 12015000 | J55: =-SUMIFS('TRIAL BALANCE'!AP:AP,'TRIAL BALANCE'!$Z:$Z,"I",'TRIAL BALANCE'!$P:$P,A3A!$A55) -> 12495600 | K55: =-SUMIFS('TRIAL BALANCE'!AQ:AQ,'TRIAL BALANCE'!$Z:$Z,"I",'TRIAL BALANCE'!$P:$P,A3A!$A55) -> 12995424
A56: ='Org structure'!E53 -> 5.7 - Emergency Services | C56: 1175627.55 | D56: =-SUMIFS('TRIAL BALANCE'!AK:AK,'TRIAL BALANCE'!$Z:$Z,"I",'TRIAL BALANCE'!$P:$P,A3A!$A56) -> 2590664.75 | E56: =-SUMIFS('TRIAL BALANCE'!AL:AL,'TRIAL BALANCE'!$Z:$Z,"I",'TRIAL BALANCE'!$P:$P,A3A!$A56) -> 3119563.49 | F56: 4083769.78 | G56: 4083770 | H56: 4083770 | I56: =-SUMIFS('TRIAL BALANCE'!AO:AO,'TRIAL BALANCE'!$Z:$Z,"I",'TRIAL BALANCE'!$P:$P,A3A!$A56) -> 4135000 | J56: =-SUMIFS('TRIAL BALANCE'!AP:AP,'TRIAL BALANCE'!$Z:$Z,"I",'TRIAL BALANCE'!$P:$P,A3A!$A56) -> 4300400 | K56: =-SUMIFS('TRIAL BALANCE'!AQ:AQ,'TRIAL BALANCE'!$Z:$Z,"I",'TRIAL BALANCE'!$P:$P,A3A!$A56) -> 4472416
A57: ='Org structure'!E54 -> 5.8 - LED, Tourism, Resorts & EPWP | C57: 0 | D57: =-SUMIFS('TRIAL BALANCE'!AK:AK,'TRIAL BALANCE'!$Z:$Z,"I",'TRIAL BALANCE'!$P:$P,A3A!$A57) -> 15842924.33 | E57: =-SUMIFS('TRIAL BALANCE'!AL:AL,'TRIAL BALANCE'!$Z:$Z,"I",'TRIAL BALANCE'!$P:$P,A3A!$A57) -> 16312968.23 | F57: 17658400 | G57: 18308400 | H57: 18308400 | I57: =-SUMIFS('TRIAL BALANCE'!AO:AO,'TRIAL BALANCE'!$Z:$Z,"I",'TRIAL BALANCE'!$P:$P,A3A!$A57) -> 16791094 | J57: =-SUMIFS('TRIAL BALANCE'!AP:AP,'TRIAL BALANCE'!$Z:$Z,"I",'TRIAL BALANCE'!$P:$P,A3A!$A57) -> 16851220 | K57: =-SUMIFS('TRIAL BALANCE'!AQ:AQ,'TRIAL BALANCE'!$Z:$Z,"I",'TRIAL BALANCE'!$P:$P,A3A!$A57) -> 18199189
A58: ='Org structure'!E55 -> 5.9 - Roads | C58: 70391114.02 | D58: =-SUMIFS('TRIAL BALANCE'!AK:AK,'TRIAL BALANCE'!$Z:$Z,"I",'TRIAL BALANCE'!$P:$P,A3A!$A58) -> 84258684.01 | E58: =-SUMIFS('TRIAL BALANCE'!AL:AL,'TRIAL BALANCE'!$Z:$Z,"I",'TRIAL BALANCE'!$P:$P,A3A!$A58) -> 96281627.37 | F58: 91821429 | G58: 100492275 | H58: 100492275 | I58: =-SUMIFS('TRIAL BALANCE'!AO:AO,'TRIAL BALANCE'!$Z:$Z,"I",'TRIAL BALANCE'!$P:$P,A3A!$A58) -> 101209821 | J58: =-SUMIFS('TRIAL BALANCE'!AP:AP,'TRIAL BALANCE'!$Z:$Z,"I",'TRIAL BALANCE'!$P:$P,A3A!$A58) -> 105258214 | K58: =-SUMIFS('TRIAL BALANCE'!AQ:AQ,'TRIAL BALANCE'!$Z:$Z,"I",'TRIAL BALANCE'!$P:$P,A3A!$A58) -> 109468542
A59: ='Org structure'!E56 -> 5.10 - Resorts | C59: 13530530.87 | D59: =-SUMIFS('TRIAL BALANCE'!AK:AK,'TRIAL BALANCE'!$Z:$Z,"I",'TRIAL BALANCE'!$P:$P,A3A!$A59) -> 0 | E59: =-SUMIFS('TRIAL BALANCE'!AL:AL,'TRIAL BALANCE'!$Z:$Z,"I",'TRIAL BALANCE'!$P:$P,A3A!$A59) -> 0 | F59: 0 | G59: 0 | H59: 0 | I59: =-SUMIFS('TRIAL BALANCE'!AO:AO,'TRIAL BALANCE'!$Z:$Z,"I",'TRIAL BALANCE'!$P:$P,A3A!$A59) -> 0 | J59: =-SUMIFS('TRIAL BALANCE'!AP:AP,'TRIAL BALANCE'!$Z:$Z,"I",'TRIAL BALANCE'!$P:$P,A3A!$A59) -> 0 | K59: =-SUMIFS('TRIAL BALANCE'!AQ:AQ,'TRIAL BALANCE'!$Z:$Z,"I",'TRIAL BALANCE'!$P:$P,A3A!$A59) -> 0
A60: ='Org structure'!A7 -> Vote 6 - [NAME OF VOTE 6] | C60: =SUM(C61:C70) -> 0 | D60: =SUM(D61:D70) -> 0 | E60: 0 | F60: 0 | G60: 0 | H60: 0 | I60: 0 | J60: 0 | K60: 0
A61: ='Org structure'!E58 -> 6.1 - [Name of sub-vote] | G61: 0
A62: ='Org structure'!E59 -> 0 | G62: 0
A63: ='Org structure'!E60 -> 0 | G63: 0
A64: ='Org structure'!E61 -> 0 | G64: 0
A65: ='Org structure'!E62 -> 0 | G65: 0
A66: ='Org structure'!E63 -> 0 | G66: 0
A67: ='Org structure'!E64 -> 0 | G67: 0
A68: ='Org structure'!E65 -> 0 | G68: 0
A69: ='Org structure'!E66 -> 0 | G69: 0
A70: ='Org structure'!E67 -> 0 | G70: 0
A71: ='Org structure'!A8 -> Vote 7 - [NAME OF VOTE 7] | C71: =SUM(C72:C81) -> 0 | D71: 0 | E71: 0 | F71: 0 | G71: 0 | H71: 0 | I71: 0 | J71: 0 | K71: 0
A72: ='Org structure'!E69 -> 7.1 - [Name of sub-vote] | G72: 0
A73: ='Org structure'!E70 -> 0 | G73: 0
A74: ='Org structure'!E71 -> 0 | G74: 0
A75: ='Org structure'!E72 -> 0 | G75: 0
A76: ='Org structure'!E73 -> 0 | G76: 0
A77: ='Org structure'!E74 -> 0 | G77: 0
A78: ='Org structure'!E75 -> 0 | G78: 0
A79: ='Org structure'!E76 -> 0 | G79: 0
A80: ='Org structure'!E77 -> 0 | G80: 0
A81: ='Org structure'!E78 -> 0 | G81: 0
A82: ='Org structure'!A9 -> Vote 8 - [NAME OF VOTE 8] | C82: =SUM(C83:C92) -> 0 | D82: =SUM(D83:D92) -> 0 | E82: 0 | F82: 0 | G82: 0 | H82: 0 | I82: 0 | J82: 0 | K82: 0
A83: ='Org structure'!E80 -> 8.1 - [Name of sub-vote] | G83: 0
A84: ='Org structure'!E81 -> 0 | G84: 0
A85: ='Org structure'!E82 -> 0 | G85: 0
A86: ='Org structure'!E83 -> 0 | G86: 0
A87: ='Org structure'!E84 -> 0 | G87: 0
A88: ='Org structure'!E85 -> 0 | G88: 0
A89: ='Org structure'!E86 -> 0 | G89: 0
A90: ='Org structure'!E87 -> 0 | G90: 0
A91: ='Org structure'!E88 -> 0 | G91: 0
A92: ='Org structure'!E89 -> 0 | G92: 0
A93: ='Org structure'!A10 -> Vote 9 - [NAME OF VOTE 9] | C93: =SUM(C94:C103) -> 0 | D93: =SUM(D94:D103) -> 0 | E93: 0 | F93: 0 | G93: 0 | H93: 0 | I93: 0 | J93: 0 | K93: 0
A94: ='Org structure'!E91 -> 9.1 - [Name of sub-vote] | G94: 0
A95: ='Org structure'!E92 -> 0 | G95: 0
A96: ='Org structure'!E93 -> 0 | G96: 0
A97: ='Org structure'!E94 -> 0 | G97: 0
A98: ='Org structure'!E95 -> 0 | G98: 0
A99: ='Org structure'!E96 -> 0 | G99: 0
A100: ='Org structure'!E97 -> 0 | G100: 0
A101: ='Org structure'!E98 -> 0 | G101: 0
A102: ='Org structure'!E99 -> 0 | G102: 0
A103: ='Org structure'!E100 -> 0 | G103: 0
A104: ='Org structure'!A11 -> Vote 10 - [NAME OF VOTE 10] | C104: =SUM(C105:C114) -> 0 | D104: =SUM(D105:D114) -> 0 | E104: 0 | F104: 0 | G104: 0 | H104: 0 | I104: 0 | J104: 0 | K104: 0
A105: ='Org structure'!E102 -> 10.1 - [Name of sub-vote] | G105: 0
A106: ='Org structure'!E103 -> 0 | G106: 0
A107: ='Org structure'!E104 -> 0 | G107: 0
A108: ='Org structure'!E105 -> 0 | G108: 0
A109: ='Org structure'!E106 -> 0 | G109: 0
A110: ='Org structure'!E107 -> 0 | G110: 0
A111: ='Org structure'!E108 -> 0 | G111: 0
A112: ='Org structure'!E109 -> 0 | G112: 0
A113: ='Org structure'!E110 -> 0 | G113: 0
A114: ='Org structure'!E111 -> 0 | G114: 0
A115: ='Org structure'!A12 -> Vote 11 - [NAME OF VOTE 11] | C115: =SUM(C116:C125) -> 0 | D115: =SUM(D116:D125) -> 0 | E115: 0 | F115: 0 | G115: 0 | H115: 0 | I115: 0 | J115: 0 | K115: 0
A116: ='Org structure'!E113 -> 11.1 - [Name of sub-vote] | G116: 0
A117: ='Org structure'!E114 -> 0 | G117: 0
A118: ='Org structure'!E115 -> 0 | G118: 0
A119: ='Org structure'!E116 -> 0 | G119: 0
A120: ='Org structure'!E117 -> 0 | G120: 0
A121: ='Org structure'!E118 -> 0 | G121: 0
A122: ='Org structure'!E119 -> 0 | G122: 0
A123: ='Org structure'!E120 -> 0 | G123: 0
A124: ='Org structure'!E121 -> 0 | G124: 0
A125: ='Org structure'!E122 -> 0 | G125: 0
A126: ='Org structure'!A13 -> Vote 12 - [NAME OF VOTE 12] | C126: =SUM(C127:C136) -> 0 | D126: =SUM(D127:D136) -> 0 | E126: 0 | F126: 0 | G126: 0 | H126: 0 | I126: 0 | J126: 0 | K126: 0
A127: ='Org structure'!E124 -> 12.1 - [Name of sub-vote] | G127: 0
A128: ='Org structure'!E125 -> 0 | G128: 0
A129: ='Org structure'!E126 -> 0 | G129: 0
A130: ='Org structure'!E127 -> 0 | G130: 0
A131: ='Org structure'!E128 -> 0 | G131: 0
A132: ='Org structure'!E129 -> 0 | G132: 0
A133: ='Org structure'!E130 -> 0 | G133: 0
A134: ='Org structure'!E131 -> 0 | G134: 0
A135: ='Org structure'!E132 -> 0 | G135: 0
A136: ='Org structure'!E133 -> 0 | G136: 0
A137: ='Org structure'!A14 -> Vote 13 - [NAME OF VOTE 13] | C137: =SUM(C138:C147) -> 0 | D137: =SUM(D138:D147) -> 0 | E137: 0 | F137: 0 | G137: 0 | H137: 0 | I137: 0 | J137: 0 | K137: 0
A138: ='Org structure'!E135 -> 13.1 - [Name of sub-vote] | G138: 0
A139: ='Org structure'!E136 -> 0 | G139: 0
A140: ='Org structure'!E137 -> 0 | G140: 0
A141: ='Org structure'!E138 -> 0 | G141: 0
A142: ='Org structure'!E139 -> 0 | G142: 0
A143: ='Org structure'!E140 -> 0 | G143: 0
A144: ='Org structure'!E141 -> 0 | G144: 0
A145: ='Org structure'!E142 -> 0 | G145: 0
A146: ='Org structure'!E143 -> 0 | G146: 0
A147: ='Org structure'!E144 -> 0 | G147: 0
A148: ='Org structure'!A15 -> Vote 14 - [NAME OF VOTE 14] | C148: =SUM(C149:C158) -> 0 | D148: =SUM(D149:D158) -> 0 | E148: 0 | F148: 0 | G148: 0 | H148: 0 | I148: 0 | J148: 0 | K148: 0
A149: ='Org structure'!E146 -> 14.1 - [Name of sub-vote] | G149: 0
A150: ='Org structure'!E147 -> 0 | G150: 0
A151: ='Org structure'!E148 -> 0 | G151: 0
A152: ='Org structure'!E149 -> 0 | G152: 0
A153: ='Org structure'!E150 -> 0 | G153: 0
A154: ='Org structure'!E151 -> 0 | G154: 0
A155: ='Org structure'!E152 -> 0 | G155: 0
A156: ='Org structure'!E153 -> 0 | G156: 0
A157: ='Org structure'!E154 -> 0 | G157: 0
A158: ='Org structure'!E155 -> 0 | G158: 0
A159: ='Org structure'!A16 -> Vote 15 - [NAME OF VOTE 15] | C159: =SUM(C160:C169) -> 0 | D159: =SUM(D160:D169) -> 0 | E159: 0 | F159: 0 | G159: 0 | H159: 0 | I159: 0 | J159: 0 | K159: 0
A160: ='Org structure'!E157 -> 15.1 - [Name of sub-vote] | G160: 0
A161: ='Org structure'!E158 -> 0 | G161: 0
A162: ='Org structure'!E159 -> 0 | G162: 0
A163: ='Org structure'!E160 -> 0 | G163: 0
A164: ='Org structure'!E161 -> 0 | G164: 0
A165: ='Org structure'!E162 -> 0 | G165: 0
A166: ='Org structure'!E163 -> 0 | G166: 0
A167: ='Org structure'!E164 -> 0 | G167: 0
A168: ='Org structure'!E165 -> 0 | G168: 0
A169: ='Org structure'!E166 -> 0 | G169: 0
A170: Total Revenue by Vote | B170: 2 | C170: =C5+C16+C27+C38+C49+C60+C71+C82+C93+C104+C115+C126+C137+C148+C159 -> 159414273 | D170: =D5+D16+D27+D38+D49+D60+D71+D82+D93+D104+D115+D126+D137+D148+D159 -> 186015176.2 | E170: =E5+E16+E27+E38+E49+E60+E71+E82+E93+E104+E115+E126+E137+E148+E159 -> 217324687.7 | F170: 219985634.4 | G170: 233494095 | H170: 233494095 | I170: =I5+I16+I27+I38+I49+I60+I71+I82+I93+I104+I115+I126+I137+I148+I159 -> 239192217 | J170: 247173588 | K170: 257299773 | L170: =SUM(L78:L81) -> 0 | M170: 0 | N170: 0 | O170: 0 | P170: 0 | Q170: 0 | R170: 0 | S170: 0 | T170: 0 | U170: 0 | V170: 0 | W170: 0
A172: Expenditure by Vote | B172: 1
A173: =A5 -> Vote 1 - Municipal Manager | C173: =SUM(C174:C183) -> 12872692.32 | D173: 14915222.22 | E173: 14167703.42 | F173: 15563148.21 | G173: 16269344 | H173: 16269344 | I173: 16649754 | J173: 16847746 | K173: 17521657
A174: =A6 -> 1.1 - Executive | C174: 2733359.51 | D174: =SUMIFS('TRIAL BALANCE'!AK:AK,'TRIAL BALANCE'!$Z:$Z,"E",'TRIAL BALANCE'!$P:$P,A3A!$A174) -> 1948079.086 | E174: =SUMIFS('TRIAL BALANCE'!AL:AL,'TRIAL BALANCE'!$Z:$Z,"E",'TRIAL BALANCE'!$P:$P,A3A!$A174) -> 2189577.65 | F174: 1927742.067 | G174: 2093019 | H174: =G174 -> 2093019 | I174: =SUMIFS('TRIAL BALANCE'!AO:AO,'TRIAL BALANCE'!$Z:$Z,"E",'TRIAL BALANCE'!$P:$P,A3A!$A174) -> 2246499 | J174: =SUMIFS('TRIAL BALANCE'!AP:AP,'TRIAL BALANCE'!$Z:$Z,"E",'TRIAL BALANCE'!$P:$P,A3A!$A174) -> 2336359 | K174: =SUMIFS('TRIAL BALANCE'!AQ:AQ,'TRIAL BALANCE'!$Z:$Z,"E",'TRIAL BALANCE'!$P:$P,A3A!$A174) -> 2429814
A175: 1.2 - Executive Support | C175: 0 | D175: =SUMIFS('TRIAL BALANCE'!AK:AK,'TRIAL BALANCE'!$Z:$Z,"E",'TRIAL BALANCE'!$P:$P,A3A!$A175) -> 1084247.06 | E175: =SUMIFS('TRIAL BALANCE'!AL:AL,'TRIAL BALANCE'!$Z:$Z,"E",'TRIAL BALANCE'!$P:$P,A3A!$A175) -> 212406.26 | F175: 888690.8336 | G175: 781665 | H175: =G175 -> 781665 | I175: =SUMIFS('TRIAL BALANCE'!AO:AO,'TRIAL BALANCE'!$Z:$Z,"E",'TRIAL BALANCE'!$P:$P,A3A!$A175) -> 684741 | J175: =SUMIFS('TRIAL BALANCE'!AP:AP,'TRIAL BALANCE'!$Z:$Z,"E",'TRIAL BALANCE'!$P:$P,A3A!$A175) -> 712132 | K175: =SUMIFS('TRIAL BALANCE'!AQ:AQ,'TRIAL BALANCE'!$Z:$Z,"E",'TRIAL BALANCE'!$P:$P,A3A!$A175) -> 740616
A176: 1.3 - Internal Audit | C176: 1117966.04 | D176: =SUMIFS('TRIAL BALANCE'!AK:AK,'TRIAL BALANCE'!$Z:$Z,"E",'TRIAL BALANCE'!$P:$P,A3A!$A176) -> 1136627.881 | E176: =SUMIFS('TRIAL BALANCE'!AL:AL,'TRIAL BALANCE'!$Z:$Z,"E",'TRIAL BALANCE'!$P:$P,A3A!$A176) -> 1227319.75 | F176: 1366328.202 | G176: 1672810 | H176: 1672810 | I176: =SUMIFS('TRIAL BALANCE'!AO:AO,'TRIAL BALANCE'!$Z:$Z,"E",'TRIAL BALANCE'!$P:$P,A3A!$A176) -> 1905134 | J176: =SUMIFS('TRIAL BALANCE'!AP:AP,'TRIAL BALANCE'!$Z:$Z,"E",'TRIAL BALANCE'!$P:$P,A3A!$A176) -> 1981339 | K176: =SUMIFS('TRIAL BALANCE'!AQ:AQ,'TRIAL BALANCE'!$Z:$Z,"E",'TRIAL BALANCE'!$P:$P,A3A!$A176) -> 2060593
A177: 1.4 - Council Expenditure | C177: 6911238.72 | D177: =SUMIFS('TRIAL BALANCE'!AK:AK,'TRIAL BALANCE'!$Z:$Z,"E",'TRIAL BALANCE'!$P:$P,A3A!$A177) -> 8324850.643 | E177: =SUMIFS('TRIAL BALANCE'!AL:AL,'TRIAL BALANCE'!$Z:$Z,"E",'TRIAL BALANCE'!$P:$P,A3A!$A177) -> 8197170.51 | F177: 8374844.6 | G177: 8728831 | H177: 8728831 | I177: =SUMIFS('TRIAL BALANCE'!AO:AO,'TRIAL BALANCE'!$Z:$Z,"E",'TRIAL BALANCE'!$P:$P,A3A!$A177) -> 8394609 | J177: =SUMIFS('TRIAL BALANCE'!AP:AP,'TRIAL BALANCE'!$Z:$Z,"E",'TRIAL BALANCE'!$P:$P,A3A!$A177) -> 8262393 | K177: =SUMIFS('TRIAL BALANCE'!AQ:AQ,'TRIAL BALANCE'!$Z:$Z,"E",'TRIAL BALANCE'!$P:$P,A3A!$A177) -> 8592889
A178: 1.5 - IDP & Communication | C178: 0 | D178: =SUMIFS('TRIAL BALANCE'!AK:AK,'TRIAL BALANCE'!$Z:$Z,"E",'TRIAL BALANCE'!$P:$P,A3A!$A178) -> 1085777.672 | E178: =SUMIFS('TRIAL BALANCE'!AL:AL,'TRIAL BALANCE'!$Z:$Z,"E",'TRIAL BALANCE'!$P:$P,A3A!$A178) -> 1222662.15 | F178: 1311503.09 | G178: 1331331 | H178: 1331331 | I178: =SUMIFS('TRIAL BALANCE'!AO:AO,'TRIAL BALANCE'!$Z:$Z,"E",'TRIAL BALANCE'!$P:$P,A3A!$A178) -> 1403768 | J178: =SUMIFS('TRIAL BALANCE'!AP:AP,'TRIAL BALANCE'!$Z:$Z,"E",'TRIAL BALANCE'!$P:$P,A3A!$A178) -> 1459919 | K178: =SUMIFS('TRIAL BALANCE'!AQ:AQ,'TRIAL BALANCE'!$Z:$Z,"E",'TRIAL BALANCE'!$P:$P,A3A!$A178) -> 1518316
A179: 1.6 - Performance & Risk Management | C179: 0 | D179: =SUMIFS('TRIAL BALANCE'!AK:AK,'TRIAL BALANCE'!$Z:$Z,"E",'TRIAL BALANCE'!$P:$P,A3A!$A179) -> 1335639.873 | E179: =SUMIFS('TRIAL BALANCE'!AL:AL,'TRIAL BALANCE'!$Z:$Z,"E",'TRIAL BALANCE'!$P:$P,A3A!$A179) -> 1118567.1 | F179: 1694039.422 | G179: 1661688 | H179: 1661688 | I179: =SUMIFS('TRIAL BALANCE'!AO:AO,'TRIAL BALANCE'!$Z:$Z,"E",'TRIAL BALANCE'!$P:$P,A3A!$A179) -> 2015003 | J179: =SUMIFS('TRIAL BALANCE'!AP:AP,'TRIAL BALANCE'!$Z:$Z,"E",'TRIAL BALANCE'!$P:$P,A3A!$A179) -> 2095604 | K179: =SUMIFS('TRIAL BALANCE'!AQ:AQ,'TRIAL BALANCE'!$Z:$Z,"E",'TRIAL BALANCE'!$P:$P,A3A!$A179) -> 2179429
A180: 1.7 - Donations | C180: 0 | D180: =SUMIFS('TRIAL BALANCE'!AK:AK,'TRIAL BALANCE'!$Z:$Z,"E",'TRIAL BALANCE'!$P:$P,A3A!$A180) -> 0 | E180: =SUMIFS('TRIAL BALANCE'!AL:AL,'TRIAL BALANCE'!$Z:$Z,"E",'TRIAL BALANCE'!$P:$P,A3A!$A180) -> 0 | F180: 0 | G180: 0 | H180: 0 | I180: =SUMIFS('TRIAL BALANCE'!AO:AO,'TRIAL BALANCE'!$Z:$Z,"E",'TRIAL BALANCE'!$P:$P,A3A!$A180) -> 0 | J180: =SUMIFS('TRIAL BALANCE'!AP:AP,'TRIAL BALANCE'!$Z:$Z,"E",'TRIAL BALANCE'!$P:$P,A3A!$A180) -> 0 | K180: =SUMIFS('TRIAL BALANCE'!AQ:AQ,'TRIAL BALANCE'!$Z:$Z,"E",'TRIAL BALANCE'!$P:$P,A3A!$A180) -> 0
A181: 1.8 - Management Support | C181: 1487490.16 | D181: =SUMIFS('TRIAL BALANCE'!AK:AK,'TRIAL BALANCE'!$Z:$Z,"E",'TRIAL BALANCE'!$P:$P,A3A!$A181) -> 0 | E181: =SUMIFS('TRIAL BALANCE'!AL:AL,'TRIAL BALANCE'!$Z:$Z,"E",'TRIAL BALANCE'!$P:$P,A3A!$A181) -> 0 | F181: 0 | G181: 0 | H181: 0 | I181: =SUMIFS('TRIAL BALANCE'!AO:AO,'TRIAL BALANCE'!$Z:$Z,"E",'TRIAL BALANCE'!$P:$P,A3A!$A181) -> 0 | J181: =SUMIFS('TRIAL BALANCE'!AP:AP,'TRIAL BALANCE'!$Z:$Z,"E",'TRIAL BALANCE'!$P:$P,A3A!$A181) -> 0 | K181: =SUMIFS('TRIAL BALANCE'!AQ:AQ,'TRIAL BALANCE'!$Z:$Z,"E",'TRIAL BALANCE'!$P:$P,A3A!$A181) -> 0
A182: 1.9 - Shared Services | C182: 622637.89 | D182: =SUMIFS('TRIAL BALANCE'!AK:AK,'TRIAL BALANCE'!$Z:$Z,"E",'TRIAL BALANCE'!$P:$P,A3A!$A182) -> 0 | E182: =SUMIFS('TRIAL BALANCE'!AL:AL,'TRIAL BALANCE'!$Z:$Z,"E",'TRIAL BALANCE'!$P:$P,A3A!$A182) -> 0 | F182: 0 | G182: 0 | H182: 0 | I182: =SUMIFS('TRIAL BALANCE'!AO:AO,'TRIAL BALANCE'!$Z:$Z,"E",'TRIAL BALANCE'!$P:$P,A3A!$A182) -> 0 | J182: =SUMIFS('TRIAL BALANCE'!AP:AP,'TRIAL BALANCE'!$Z:$Z,"E",'TRIAL BALANCE'!$P:$P,A3A!$A182) -> 0 | K182: =SUMIFS('TRIAL BALANCE'!AQ:AQ,'TRIAL BALANCE'!$Z:$Z,"E",'TRIAL BALANCE'!$P:$P,A3A!$A182) -> 0
A183: 0 | G183: 0
A184: =A16 -> Vote 2 - Management Services | C184: =SUM(C185:C194) -> 11631945.32 | D184: =SUM(D185:D194) -> 0 | E184: =SUM(E185:E194) -> 0 | F184: 0 | G184: 0 | H184: 0 | I184: 0 | J184: 0 | K184: 0
A185: =A17 -> 2.1 - Record Management | C185: 735937.26 | D185: =SUMIFS('TRIAL BALANCE'!AK:AK,'TRIAL BALANCE'!$Z:$Z,"E",'TRIAL BALANCE'!$P:$P,A3A!$A185) -> 0 | E185: =SUMIFS('TRIAL BALANCE'!AL:AL,'TRIAL BALANCE'!$Z:$Z,"E",'TRIAL BALANCE'!$P:$P,A3A!$A185) -> 0 | F185: 0 | G185: 0 | H185: =G185 -> 0 | I185: =SUMIFS('TRIAL BALANCE'!AO:AO,'TRIAL BALANCE'!$Z:$Z,"E",'TRIAL BALANCE'!$P:$P,A3A!$A185) -> 0 | J185: =SUMIFS('TRIAL BALANCE'!AP:AP,'TRIAL BALANCE'!$Z:$Z,"E",'TRIAL BALANCE'!$P:$P,A3A!$A185) -> 0 | K185: =SUMIFS('TRIAL BALANCE'!AQ:AQ,'TRIAL BALANCE'!$Z:$Z,"E",'TRIAL BALANCE'!$P:$P,A3A!$A185) -> 0
A186: 2.2 - Human Resources | C186: 0 | D186: =SUMIFS('TRIAL BALANCE'!AK:AK,'TRIAL BALANCE'!$Z:$Z,"E",'TRIAL BALANCE'!$P:$P,A3A!$A186) -> 0 | E186: =SUMIFS('TRIAL BALANCE'!AL:AL,'TRIAL BALANCE'!$Z:$Z,"E",'TRIAL BALANCE'!$P:$P,A3A!$A186) -> 0 | F186: 0 | G186: 0 | H186: 0 | I186: =SUMIFS('TRIAL BALANCE'!AO:AO,'TRIAL BALANCE'!$Z:$Z,"E",'TRIAL BALANCE'!$P:$P,A3A!$A186) -> 0 | J186: =SUMIFS('TRIAL BALANCE'!AP:AP,'TRIAL BALANCE'!$Z:$Z,"E",'TRIAL BALANCE'!$P:$P,A3A!$A186) -> 0 | K186: =SUMIFS('TRIAL BALANCE'!AQ:AQ,'TRIAL BALANCE'!$Z:$Z,"E",'TRIAL BALANCE'!$P:$P,A3A!$A186) -> 0
A187: 2.3 - Supply Chain Management | C187: 0 | D187: =SUMIFS('TRIAL BALANCE'!AK:AK,'TRIAL BALANCE'!$Z:$Z,"E",'TRIAL BALANCE'!$P:$P,A3A!$A187) -> 0 | E187: =SUMIFS('TRIAL BALANCE'!AL:AL,'TRIAL BALANCE'!$Z:$Z,"E",'TRIAL BALANCE'!$P:$P,A3A!$A187) -> 0 | F187: 0 | G187: 0 | H187: 0 | I187: =SUMIFS('TRIAL BALANCE'!AO:AO,'TRIAL BALANCE'!$Z:$Z,"E",'TRIAL BALANCE'!$P:$P,A3A!$A187) -> 0 | J187: =SUMIFS('TRIAL BALANCE'!AP:AP,'TRIAL BALANCE'!$Z:$Z,"E",'TRIAL BALANCE'!$P:$P,A3A!$A187) -> 0 | K187: =SUMIFS('TRIAL BALANCE'!AQ:AQ,'TRIAL BALANCE'!$Z:$Z,"E",'TRIAL BALANCE'!$P:$P,A3A!$A187) -> 0
A188: 2.4 - Finance Inc, Exp & IT | C188: 4867980.77 | D188: =SUMIFS('TRIAL BALANCE'!AK:AK,'TRIAL BALANCE'!$Z:$Z,"E",'TRIAL BALANCE'!$P:$P,A3A!$A188) -> 0 | E188: =SUMIFS('TRIAL BALANCE'!AL:AL,'TRIAL BALANCE'!$Z:$Z,"E",'TRIAL BALANCE'!$P:$P,A3A!$A188) -> 0 | F188: 0 | G188: 0 | H188: 0 | I188: =SUMIFS('TRIAL BALANCE'!AO:AO,'TRIAL BALANCE'!$Z:$Z,"E",'TRIAL BALANCE'!$P:$P,A3A!$A188) -> 0 | J188: =SUMIFS('TRIAL BALANCE'!AP:AP,'TRIAL BALANCE'!$Z:$Z,"E",'TRIAL BALANCE'!$P:$P,A3A!$A188) -> 0 | K188: =SUMIFS('TRIAL BALANCE'!AQ:AQ,'TRIAL BALANCE'!$Z:$Z,"E",'TRIAL BALANCE'!$P:$P,A3A!$A188) -> 0
A189: 2.5 - Performance Management | C189: 549991.49 | D189: =SUMIFS('TRIAL BALANCE'!AK:AK,'TRIAL BALANCE'!$Z:$Z,"E",'TRIAL BALANCE'!$P:$P,A3A!$A189) -> 0 | E189: =SUMIFS('TRIAL BALANCE'!AL:AL,'TRIAL BALANCE'!$Z:$Z,"E",'TRIAL BALANCE'!$P:$P,A3A!$A189) -> 0 | F189: 0 | G189: 0 | H189: 0 | I189: =SUMIFS('TRIAL BALANCE'!AO:AO,'TRIAL BALANCE'!$Z:$Z,"E",'TRIAL BALANCE'!$P:$P,A3A!$A189) -> 0 | J189: =SUMIFS('TRIAL BALANCE'!AP:AP,'TRIAL BALANCE'!$Z:$Z,"E",'TRIAL BALANCE'!$P:$P,A3A!$A189) -> 0 | K189: =SUMIFS('TRIAL BALANCE'!AQ:AQ,'TRIAL BALANCE'!$Z:$Z,"E",'TRIAL BALANCE'!$P:$P,A3A!$A189) -> 0
A190: 2.6 - Administration | C190: 3008443.77 | D190: =SUMIFS('TRIAL BALANCE'!AK:AK,'TRIAL BALANCE'!$Z:$Z,"E",'TRIAL BALANCE'!$P:$P,A3A!$A190) -> 0 | E190: =SUMIFS('TRIAL BALANCE'!AL:AL,'TRIAL BALANCE'!$Z:$Z,"E",'TRIAL BALANCE'!$P:$P,A3A!$A190) -> 0 | F190: 0 | G190: 0 | H190: 0 | I190: =SUMIFS('TRIAL BALANCE'!AO:AO,'TRIAL BALANCE'!$Z:$Z,"E",'TRIAL BALANCE'!$P:$P,A3A!$A190) -> 0 | J190: =SUMIFS('TRIAL BALANCE'!AP:AP,'TRIAL BALANCE'!$Z:$Z,"E",'TRIAL BALANCE'!$P:$P,A3A!$A190) -> 0 | K190: =SUMIFS('TRIAL BALANCE'!AQ:AQ,'TRIAL BALANCE'!$Z:$Z,"E",'TRIAL BALANCE'!$P:$P,A3A!$A190) -> 0
A191: 2.7 - Property Services | C191: 1000824.6 | D191: =SUMIFS('TRIAL BALANCE'!AK:AK,'TRIAL BALANCE'!$Z:$Z,"E",'TRIAL BALANCE'!$P:$P,A3A!$A191) -> 0 | E191: =SUMIFS('TRIAL BALANCE'!AL:AL,'TRIAL BALANCE'!$Z:$Z,"E",'TRIAL BALANCE'!$P:$P,A3A!$A191) -> 0 | F191: 0 | G191: 0 | H191: 0 | I191: =SUMIFS('TRIAL BALANCE'!AO:AO,'TRIAL BALANCE'!$Z:$Z,"E",'TRIAL BALANCE'!$P:$P,A3A!$A191) -> 0 | J191: =SUMIFS('TRIAL BALANCE'!AP:AP,'TRIAL BALANCE'!$Z:$Z,"E",'TRIAL BALANCE'!$P:$P,A3A!$A191) -> 0 | K191: =SUMIFS('TRIAL BALANCE'!AQ:AQ,'TRIAL BALANCE'!$Z:$Z,"E",'TRIAL BALANCE'!$P:$P,A3A!$A191) -> 0
A192: 2.8 - Financial Administration | C192: 0 | D192: =SUMIFS('TRIAL BALANCE'!AK:AK,'TRIAL BALANCE'!$Z:$Z,"E",'TRIAL BALANCE'!$P:$P,A3A!$A192) -> 0 | E192: =SUMIFS('TRIAL BALANCE'!AL:AL,'TRIAL BALANCE'!$Z:$Z,"E",'TRIAL BALANCE'!$P:$P,A3A!$A192) -> 0 | F192: 0 | G192: 0 | H192: 0 | I192: =SUMIFS('TRIAL BALANCE'!AO:AO,'TRIAL BALANCE'!$Z:$Z,"E",'TRIAL BALANCE'!$P:$P,A3A!$A192) -> 0 | J192: =SUMIFS('TRIAL BALANCE'!AP:AP,'TRIAL BALANCE'!$Z:$Z,"E",'TRIAL BALANCE'!$P:$P,A3A!$A192) -> 0 | K192: =SUMIFS('TRIAL BALANCE'!AQ:AQ,'TRIAL BALANCE'!$Z:$Z,"E",'TRIAL BALANCE'!$P:$P,A3A!$A192) -> 0
A193: 2.9 - IDP/LED | C193: 1468767.43 | D193: =SUMIFS('TRIAL BALANCE'!AK:AK,'TRIAL BALANCE'!$Z:$Z,"E",'TRIAL BALANCE'!$P:$P,A3A!$A193) -> 0 | E193: =SUMIFS('TRIAL BALANCE'!AL:AL,'TRIAL BALANCE'!$Z:$Z,"E",'TRIAL BALANCE'!$P:$P,A3A!$A193) -> 0 | F193: 0 | G193: 0 | H193: 0 | I193: =SUMIFS('TRIAL BALANCE'!AO:AO,'TRIAL BALANCE'!$Z:$Z,"E",'TRIAL BALANCE'!$P:$P,A3A!$A193) -> 0 | J193: =SUMIFS('TRIAL BALANCE'!AP:AP,'TRIAL BALANCE'!$Z:$Z,"E",'TRIAL BALANCE'!$P:$P,A3A!$A193) -> 0 | K193: =SUMIFS('TRIAL BALANCE'!AQ:AQ,'TRIAL BALANCE'!$Z:$Z,"E",'TRIAL BALANCE'!$P:$P,A3A!$A193) -> 0
A194: 2.10 - Grants - National Government | C194: 0 | D194: =SUMIFS('TRIAL BALANCE'!AK:AK,'TRIAL BALANCE'!$Z:$Z,"E",'TRIAL BALANCE'!$P:$P,A3A!$A194) -> 0 | E194: =SUMIFS('TRIAL BALANCE'!AL:AL,'TRIAL BALANCE'!$Z:$Z,"E",'TRIAL BALANCE'!$P:$P,A3A!$A194) -> 0 | F194: 0 | G194: 0 | H194: 0 | I194: =SUMIFS('TRIAL BALANCE'!AO:AO,'TRIAL BALANCE'!$Z:$Z,"E",'TRIAL BALANCE'!$P:$P,A3A!$A194) -> 0 | J194: =SUMIFS('TRIAL BALANCE'!AP:AP,'TRIAL BALANCE'!$Z:$Z,"E",'TRIAL BALANCE'!$P:$P,A3A!$A194) -> 0 | K194: =SUMIFS('TRIAL BALANCE'!AQ:AQ,'TRIAL BALANCE'!$Z:$Z,"E",'TRIAL BALANCE'!$P:$P,A3A!$A194) -> 0
A195: =A27 -> Vote 3 - Corporate Services | C195: =SUM(C196:C205) -> 1750814.82 | D195: 8291384.534 | E195: 8581168.92 | F195: 11619846.59 | G195: 13417301.74 | H195: 13417301.74 | I195: 14357489 | J195: 14931786 | K195: 15529061
A196: 3.1 - Executive | C196: 0 | D196: =SUMIFS('TRIAL BALANCE'!AK:AK,'TRIAL BALANCE'!$Z:$Z,"E",'TRIAL BALANCE'!$P:$P,A3A!$A196) -> 604404.7 | E196: =SUMIFS('TRIAL BALANCE'!AL:AL,'TRIAL BALANCE'!$Z:$Z,"E",'TRIAL BALANCE'!$P:$P,A3A!$A196) -> 285.6 | F196: 1187269 | G196: 1000122 | H196: =G196 -> 1000122 | I196: =SUMIFS('TRIAL BALANCE'!AO:AO,'TRIAL BALANCE'!$Z:$Z,"E",'TRIAL BALANCE'!$P:$P,A3A!$A196) -> 1097531 | J196: =SUMIFS('TRIAL BALANCE'!AP:AP,'TRIAL BALANCE'!$Z:$Z,"E",'TRIAL BALANCE'!$P:$P,A3A!$A196) -> 1141431 | K196: =SUMIFS('TRIAL BALANCE'!AQ:AQ,'TRIAL BALANCE'!$Z:$Z,"E",'TRIAL BALANCE'!$P:$P,A3A!$A196) -> 1187090
A197: 3.2 - Corporate Support | C197: 0 | D197: =SUMIFS('TRIAL BALANCE'!AK:AK,'TRIAL BALANCE'!$Z:$Z,"E",'TRIAL BALANCE'!$P:$P,A3A!$A197) -> 1742991.846 | E197: =SUMIFS('TRIAL BALANCE'!AL:AL,'TRIAL BALANCE'!$Z:$Z,"E",'TRIAL BALANCE'!$P:$P,A3A!$A197) -> 1560047.24 | F197: 1620282.083 | G197: 1766067 | H197: 1766067 | I197: =SUMIFS('TRIAL BALANCE'!AO:AO,'TRIAL BALANCE'!$Z:$Z,"E",'TRIAL BALANCE'!$P:$P,A3A!$A197) -> 1712967 | J197: =SUMIFS('TRIAL BALANCE'!AP:AP,'TRIAL BALANCE'!$Z:$Z,"E",'TRIAL BALANCE'!$P:$P,A3A!$A197) -> 1781485 | K197: =SUMIFS('TRIAL BALANCE'!AQ:AQ,'TRIAL BALANCE'!$Z:$Z,"E",'TRIAL BALANCE'!$P:$P,A3A!$A197) -> 1852747
A198: 3.3 - Human Resources | C198: 1750814.82 | D198: =SUMIFS('TRIAL BALANCE'!AK:AK,'TRIAL BALANCE'!$Z:$Z,"E",'TRIAL BALANCE'!$P:$P,A3A!$A198) -> 1923944.725 | E198: =SUMIFS('TRIAL BALANCE'!AL:AL,'TRIAL BALANCE'!$Z:$Z,"E",'TRIAL BALANCE'!$P:$P,A3A!$A198) -> 2007555.31 | F198: 2546636.626 | G198: 3572342.739 | H198: 3572342.739 | I198: =SUMIFS('TRIAL BALANCE'!AO:AO,'TRIAL BALANCE'!$Z:$Z,"E",'TRIAL BALANCE'!$P:$P,A3A!$A198) -> 4103522 | J198: =SUMIFS('TRIAL BALANCE'!AP:AP,'TRIAL BALANCE'!$Z:$Z,"E",'TRIAL BALANCE'!$P:$P,A3A!$A198) -> 4267662 | K198: =SUMIFS('TRIAL BALANCE'!AQ:AQ,'TRIAL BALANCE'!$Z:$Z,"E",'TRIAL BALANCE'!$P:$P,A3A!$A198) -> 4438367
A199: 3.4 - Committee, Records & Councillor Support | C199: 0 | D199: =SUMIFS('TRIAL BALANCE'!AK:AK,'TRIAL BALANCE'!$Z:$Z,"E",'TRIAL BALANCE'!$P:$P,A3A!$A199) -> 2032630.48 | E199: =SUMIFS('TRIAL BALANCE'!AL:AL,'TRIAL BALANCE'!$Z:$Z,"E",'TRIAL BALANCE'!$P:$P,A3A!$A199) -> 2106742.77 | F199: 3104986.64 | G199: 3349142 | H199: 3349142 | I199: =SUMIFS('TRIAL BALANCE'!AO:AO,'TRIAL BALANCE'!$Z:$Z,"E",'TRIAL BALANCE'!$P:$P,A3A!$A199) -> 3461752 | J199: =SUMIFS('TRIAL BALANCE'!AP:AP,'TRIAL BALANCE'!$Z:$Z,"E",'TRIAL BALANCE'!$P:$P,A3A!$A199) -> 3600223 | K199: =SUMIFS('TRIAL BALANCE'!AQ:AQ,'TRIAL BALANCE'!$Z:$Z,"E",'TRIAL BALANCE'!$P:$P,A3A!$A199) -> 3744231
A200: 3.5 - Information Services | C200: 0 | D200: =SUMIFS('TRIAL BALANCE'!AK:AK,'TRIAL BALANCE'!$Z:$Z,"E",'TRIAL BALANCE'!$P:$P,A3A!$A200) -> 1987412.783 | E200: =SUMIFS('TRIAL BALANCE'!AL:AL,'TRIAL BALANCE'!$Z:$Z,"E",'TRIAL BALANCE'!$P:$P,A3A!$A200) -> 2906538 | F200: 3160672.24 | G200: 3729628 | H200: 3729628 | I200: =SUMIFS('TRIAL BALANCE'!AO:AO,'TRIAL BALANCE'!$Z:$Z,"E",'TRIAL BALANCE'!$P:$P,A3A!$A200) -> 3981717 | J200: =SUMIFS('TRIAL BALANCE'!AP:AP,'TRIAL BALANCE'!$Z:$Z,"E",'TRIAL BALANCE'!$P:$P,A3A!$A200) -> 4140985 | K200: =SUMIFS('TRIAL BALANCE'!AQ:AQ,'TRIAL BALANCE'!$Z:$Z,"E",'TRIAL BALANCE'!$P:$P,A3A!$A200) -> 4306626
A201: 0 | G201: 0
... 146 more rows

Sheet A4-FinPerf RE
A1: =muni&" - "&Approve4 -> DC3 Overberg - Table A4 Budgeted Financial Performance (revenue and expenditure)
A2: =desc -> Description | B2: =head27 -> Ref | C2: =head1b -> 2016/17 | D2: =head1A -> 2017/18 | E2: =Head1 -> 2018/19 | F2: =Head2 -> Current Year 2019/20 | J2: =Head3 -> 2020/21 Medium Term Revenue & Expenditure Framework | M2: =Head4 -> LTFS
A3: R thousand | B3: 1 | C3: =Head5 -> Audited Outcome | D3: =Head5 -> Audited Outcome | E3: =Head5 -> Audited Outcome | F3: =Head6 -> Original Budget | G3: =Head7 -> Adjusted Budget | H3: =Head8 -> Full Year Forecast | I3: =Head5b -> Pre-audit outcome | J3: =Head9 -> Budget Year 2020/21 | K3: =Head10 -> Budget Year +1 2021/22 | L3: =Head11 -> Budget Year +2 2022/23 | M3: =Head12 -> Forecast 2023/24 | N3: =Head13 -> Forecast 2024/25 | O3: =Head14 -> Forecast 2025/26 | P3: =Head15 -> Forecast 2026/27 | Q3: =Head16 -> Forecast 2027/28 | R3: =Head17 -> Forecast 2028/29 | S3: =Head18 -> Forecast 2029/30 | T3: =Head19 -> Forecast 2030/31 | U3: =Head20 -> Forecast 2031/32 | V3: =Head21 -> Forecast 2032/33 | W3: =Head22 -> Forecast 2033/34 | X3: =Head23 -> Forecast 2034/35
A4: Revenue By Source
A5: Property rates | B5: 2 | C5: ='SA1'!C9 -> 0 | D5: ='SA1'!D9 -> 0 | E5: ='SA1'!E9 -> 0 | F5: ='SA1'!F9 -> 0 | G5: ='SA1'!G9 -> 0 | H5: ='SA1'!H9 -> 0 | I5: ='SA1'!I9 -> 0 | J5: ='SA1'!J9 -> 0 | K5: ='SA1'!K9 -> 0 | L5: ='SA1'!L9 -> 0 | Z5: =-SUMIF('TRIAL BALANCE'!$AA:$AA,'A4-FinPerf RE'!$A5,'TRIAL BALANCE'!AO:AO) -> 0 | AA5: =Z5-J5 -> 0
A6: Service charges - electricity revenue | B6: 2 | C6: ='SA1'!C15 -> 253851.9 | D6: ='SA1'!D15 -> 14753.05 | E6: ='SA1'!E15 -> 0 | F6: ='SA1'!F15 -> 0 | G6: ='SA1'!G15 -> 0 | H6: ='SA1'!H15 -> 0 | I6: ='SA1'!I15 -> 0 | J6: ='SA1'!J15 -> 411765 | K6: ='SA1'!K15 -> 444706 | L6: ='SA1'!L15 -> 480282 | Z6: =-SUMIF('TRIAL BALANCE'!$AA:$AA,'A4-FinPerf RE'!$A6,'TRIAL BALANCE'!AO:AO) -> 411765 | AA6: =Z6-J6 -> 0
A7: Service charges - water revenue | B7: 2 | C7: ='SA1'!C21 -> 0 | D7: ='SA1'!D21 -> 0 | E7: ='SA1'!E21 -> 0 | F7: ='SA1'!F21 -> 0 | G7: ='SA1'!G21 -> 0 | H7: ='SA1'!H21 -> 0 | I7: ='SA1'!I21 -> 0 | J7: ='SA1'!J21 -> 6000 | K7: ='SA1'!K21 -> 6480 | L7: ='SA1'!L21 -> 6998 | Z7: =-SUMIF('TRIAL BALANCE'!$AA:$AA,'A4-FinPerf RE'!$A7,'TRIAL BALANCE'!AO:AO) -> 6000 | AA7: 0
A8: Service charges - sanitation revenue | B8: 2 | C8: ='SA1'!C27 -> 0 | D8: ='SA1'!D27 -> 0 | E8: ='SA1'!E27 -> 0 | F8: ='SA1'!F27 -> 0 | G8: ='SA1'!G27 -> 0 | H8: ='SA1'!H27 -> 0 | I8: ='SA1'!I27 -> 0 | J8: ='SA1'!J27 -> 0 | K8: ='SA1'!K27 -> 0 | L8: ='SA1'!L27 -> 0 | Z8: =-SUMIF('TRIAL BALANCE'!$AA:$AA,'A4-FinPerf RE'!$A8,'TRIAL BALANCE'!AO:AO) -> 0 | AA8: 0
A9: Service charges - refuse revenue | B9: 2 | C9: ='SA1'!C34 -> 547590.41 | D9: ='SA1'!D34 -> 60000 | E9: ='SA1'!E34 -> 2102464.12 | F9: ='SA1'!F34 -> 10723096 | G9: ='SA1'!G34 -> 10723096 | H9: ='SA1'!H34 -> 10723096 | I9: ='SA1'!I34 -> 10723096 | J9: ='SA1'!J34 -> 12000000 | K9: ='SA1'!K34 -> 12480000 | L9: ='SA1'!L34 -> 12979200 | Z9: =-SUMIF('TRIAL BALANCE'!$AA:$AA,'A4-FinPerf RE'!$A9,'TRIAL BALANCE'!AO:AO) -> 12000000 | AA9: 0
Z10: =-SUMIF('TRIAL BALANCE'!$AA:$AA,'A4-FinPerf RE'!$A10,'TRIAL BALANCE'!AO:AO) -> 0 | AA10: 0
A11: Rental of facilities and equipment | C11: 13256735.74 | D11: =-SUMIF('TRIAL BALANCE'!$AA:$AA,'A4-FinPerf RE'!$A11,'TRIAL BALANCE'!AK:AK) -> 15737164.48 | E11: =-SUMIF('TRIAL BALANCE'!$AA:$AA,'A4-FinPerf RE'!$A11,'TRIAL BALANCE'!AL:AL) -> 15201012.28 | F11: 12024330 | G11: 12039330 | H11: =G11 -> 12039330 | I11: =H11 -> 12039330 | J11: =-SUMIF('TRIAL BALANCE'!$AA:$AA,'A4-FinPerf RE'!$A11,'TRIAL BALANCE'!AO:AO) -> 11918530 | K11: =-SUMIF('TRIAL BALANCE'!$AA:$AA,'A4-FinPerf RE'!$A11,'TRIAL BALANCE'!AP:AP) -> 12870471 | L11: =-SUMIF('TRIAL BALANCE'!$AA:$AA,'A4-FinPerf RE'!$A11,'TRIAL BALANCE'!AQ:AQ) -> 13898506 | Z11: =-SUMIF('TRIAL BALANCE'!$AA:$AA,'A4-FinPerf RE'!$A11,'TRIAL BALANCE'!AO:AO) -> 11918530 | AA11: 0
A12: Interest earned - external investments | C12: 2311482.62 | D12: =-SUMIF('TRIAL BALANCE'!$AA:$AA,'A4-FinPerf RE'!$A12,'TRIAL BALANCE'!AK:AK) -> 2936532.66 | E12: =-SUMIF('TRIAL BALANCE'!$AA:$AA,'A4-FinPerf RE'!$A12,'TRIAL BALANCE'!AL:AL) -> 2158751.94 | F12: 2500000 | G12: 2500000 | H12: =G12 -> 2500000 | I12: 2500000 | J12: =-SUMIF('TRIAL BALANCE'!$AA:$AA,'A4-FinPerf RE'!$A12,'TRIAL BALANCE'!AO:AO) -> 1800000 | K12: =-SUMIF('TRIAL BALANCE'!$AA:$AA,'A4-FinPerf RE'!$A12,'TRIAL BALANCE'!AP:AP) -> 1872000 | L12: =-SUMIF('TRIAL BALANCE'!$AA:$AA,'A4-FinPerf RE'!$A12,'TRIAL BALANCE'!AQ:AQ) -> 1946880 | Z12: =-SUMIF('TRIAL BALANCE'!$AA:$AA,'A4-FinPerf RE'!$A12,'TRIAL BALANCE'!AO:AO) -> 1800000 | AA12: 0
A13: Interest earned - outstanding debtors | C13: 0 | D13: =-SUMIF('TRIAL BALANCE'!$AA:$AA,'A4-FinPerf RE'!$A13,'TRIAL BALANCE'!AK:AK) -> 0 | E13: =-SUMIF('TRIAL BALANCE'!$AA:$AA,'A4-FinPerf RE'!$A13,'TRIAL BALANCE'!AL:AL) -> 0 | F13: 100000 | G13: 100000 | H13: 100000 | I13: 100000 | J13: =-SUMIF('TRIAL BALANCE'!$AA:$AA,'A4-FinPerf RE'!$A13,'TRIAL BALANCE'!AO:AO) -> 162700 | K13: =-SUMIF('TRIAL BALANCE'!$AA:$AA,'A4-FinPerf RE'!$A13,'TRIAL BALANCE'!AP:AP) -> 175716 | L13: =-SUMIF('TRIAL BALANCE'!$AA:$AA,'A4-FinPerf RE'!$A13,'TRIAL BALANCE'!AQ:AQ) -> 189773 | Z13: =-SUMIF('TRIAL BALANCE'!$AA:$AA,'A4-FinPerf RE'!$A13,'TRIAL BALANCE'!AO:AO) -> 162700 | AA13: 0
A14: Dividends received | C14: 0 | D14: =-SUMIF('TRIAL BALANCE'!$AA:$AA,'A4-FinPerf RE'!$A14,'TRIAL BALANCE'!AK:AK) -> 0 | E14: =-SUMIF('TRIAL BALANCE'!$AA:$AA,'A4-FinPerf RE'!$A14,'TRIAL BALANCE'!AL:AL) -> 0 | F14: 0 | G14: 0 | H14: 0 | I14: 0 | J14: =-SUMIF('TRIAL BALANCE'!$AA:$AA,'A4-FinPerf RE'!$A14,'TRIAL BALANCE'!AO:AO) -> 0 | K14: =-SUMIF('TRIAL BALANCE'!$AA:$AA,'A4-FinPerf RE'!$A14,'TRIAL BALANCE'!AP:AP) -> 0 | L14: =-SUMIF('TRIAL BALANCE'!$AA:$AA,'A4-FinPerf RE'!$A14,'TRIAL BALANCE'!AQ:AQ) -> 0 | Z14: =-SUMIF('TRIAL BALANCE'!$AA:$AA,'A4-FinPerf RE'!$A14,'TRIAL BALANCE'!AO:AO) -> 0 | AA14: 0
A15: Fines, penalties and forfeits | C15: 0 | D15: =-SUMIF('TRIAL BALANCE'!$AA:$AA,'A4-FinPerf RE'!$A15,'TRIAL BALANCE'!AK:AK) -> 0 | E15: =-SUMIF('TRIAL BALANCE'!$AA:$AA,'A4-FinPerf RE'!$A15,'TRIAL BALANCE'!AL:AL) -> 0 | F15: 0 | G15: 0 | H15: 0 | I15: 0 | J15: =-SUMIF('TRIAL BALANCE'!$AA:$AA,'A4-FinPerf RE'!$A15,'TRIAL BALANCE'!AO:AO) -> 0 | K15: =-SUMIF('TRIAL BALANCE'!$AA:$AA,'A4-FinPerf RE'!$A15,'TRIAL BALANCE'!AP:AP) -> 0 | L15: =-SUMIF('TRIAL BALANCE'!$AA:$AA,'A4-FinPerf RE'!$A15,'TRIAL BALANCE'!AQ:AQ) -> 0 | Z15: =-SUMIF('TRIAL BALANCE'!$AA:$AA,'A4-FinPerf RE'!$A15,'TRIAL BALANCE'!AO:AO) -> 0 | AA15: 0
A16: Licences and permits | C16: 171490.85 | D16: =-SUMIF('TRIAL BALANCE'!$AA:$AA,'A4-FinPerf RE'!$A16,'TRIAL BALANCE'!AK:AK) -> 325881.42 | E16: =-SUMIF('TRIAL BALANCE'!$AA:$AA,'A4-FinPerf RE'!$A16,'TRIAL BALANCE'!AL:AL) -> 122893.39 | F16: 300000 | G16: 300000 | H16: 300000 | I16: 300000 | J16: =-SUMIF('TRIAL BALANCE'!$AA:$AA,'A4-FinPerf RE'!$A16,'TRIAL BALANCE'!AO:AO) -> 300000 | K16: =-SUMIF('TRIAL BALANCE'!$AA:$AA,'A4-FinPerf RE'!$A16,'TRIAL BALANCE'!AP:AP) -> 312000 | L16: =-SUMIF('TRIAL BALANCE'!$AA:$AA,'A4-FinPerf RE'!$A16,'TRIAL BALANCE'!AQ:AQ) -> 324480 | Z16: =-SUMIF('TRIAL BALANCE'!$AA:$AA,'A4-FinPerf RE'!$A16,'TRIAL BALANCE'!AO:AO) -> 300000 | AA16: 0
A17: Agency services | C17: 8114736.84 | D17: =-SUMIF('TRIAL BALANCE'!$AA:$AA,'A4-FinPerf RE'!$A17,'TRIAL BALANCE'!AK:AK) -> 9388283.03 | E17: =-SUMIF('TRIAL BALANCE'!$AA:$AA,'A4-FinPerf RE'!$A17,'TRIAL BALANCE'!AL:AL) -> 9214868.11 | F17: 9581366 | G17: 9882370 | H17: 9882370 | I17: 9882370 | J17: =-SUMIF('TRIAL BALANCE'!$AA:$AA,'A4-FinPerf RE'!$A17,'TRIAL BALANCE'!AO:AO) -> 10561025 | K17: =-SUMIF('TRIAL BALANCE'!$AA:$AA,'A4-FinPerf RE'!$A17,'TRIAL BALANCE'!AP:AP) -> 10983466 | L17: =-SUMIF('TRIAL BALANCE'!$AA:$AA,'A4-FinPerf RE'!$A17,'TRIAL BALANCE'!AQ:AQ) -> 11422805 | Z17: =-SUMIF('TRIAL BALANCE'!$AA:$AA,'A4-FinPerf RE'!$A17,'TRIAL BALANCE'!AO:AO) -> 10561025 | AA17: 0
A18: Transfers and subsidies | C18: =127560743.14-69283537.92 -> 58277205.22 | D18: =-SUMIF('TRIAL BALANCE'!$AA:$AA,"Government Grants and Subsidies - Operating",'TRIAL BALANCE'!AK:AK) -> 63400089.34 | E18: =-SUMIF('TRIAL BALANCE'!$AA:$AA,"Government Grants and Subsidies - Operating",'TRIAL BALANCE'!AL:AL) -> 73374601.84 | F18: 169422787 | G18: 80430968 | H18: 80430968 | I18: 80430968 | J18: =-SUMIF('TRIAL BALANCE'!$AA:$AA,"Government Grants and Subsidies - Operating",'TRIAL BALANCE'!AO:AO) -> 80883000 | K18: =-SUMIF('TRIAL BALANCE'!$AA:$AA,"Government Grants and Subsidies - Operating",'TRIAL BALANCE'!AP:AP) -> 81769000 | L18: =-SUMIF('TRIAL BALANCE'!$AA:$AA,"Government Grants and Subsidies - Operating",'TRIAL BALANCE'!AQ:AQ) -> 84586000 | Z18: =-SUMIF('TRIAL BALANCE'!$AA:$AA,'A4-FinPerf RE'!$A18,'TRIAL BALANCE'!AO:AO) -> 0 | AA18: -80883000
A19: Other revenue | B19: 2 | C19: ='SA1'!C49 -> 74067354.44 | D19: ='SA1'!D49 -> 91779778.98 | E19: ='SA1'!E49 -> 112784777.7 | F19: ='SA1'!F49 -> 9134055.39 | G19: ='SA1'!G49 -> 109768331 | H19: ='SA1'!H49 -> 109768331 | I19: ='SA1'!I49 -> 109768331 | J19: ='SA1'!J49 -> 109629425 | K19: ='SA1'!K49 -> 114140186 | L19: ='SA1'!L49 -> 118841423 | Z19: =-SUMIF('TRIAL BALANCE'!$AA:$AA,'A4-FinPerf RE'!$A19,'TRIAL BALANCE'!AO:AO) -> 109629425 | AA19: 0
A20: Gains | C20: 0 | D20: =-SUMIF('TRIAL BALANCE'!$AA:$AA,'A4-FinPerf RE'!$A20,'TRIAL BALANCE'!AK:AK) -> 1482693.27 | E20: =-SUMIF('TRIAL BALANCE'!$AA:$AA,'A4-FinPerf RE'!$A20,'TRIAL BALANCE'!AL:AL) -> 882318.3 | F20: 5100000 | G20: 5100000 | H20: =G20 -> 5100000 | I20: 5100000 | J20: =-SUMIF('TRIAL BALANCE'!$AA:$AA,'A4-FinPerf RE'!$A20,'TRIAL BALANCE'!AO:AO) -> 9419772 | K20: =-SUMIF('TRIAL BALANCE'!$AA:$AA,'A4-FinPerf RE'!$A20,'TRIAL BALANCE'!AP:AP) -> 9796563 | L20: =-SUMIF('TRIAL BALANCE'!$AA:$AA,'A4-FinPerf RE'!$A20,'TRIAL BALANCE'!AQ:AQ) -> 10188426 | Z20: =-SUMIF('TRIAL BALANCE'!$AA:$AA,'A4-FinPerf RE'!$A20,'TRIAL BALANCE'!AO:AO) -> 9419772 | AA20: 0
A21: Total Revenue (excluding capital transfers and contributions) | C21: =SUM(C5:C9)+SUM(C11:C20) -> 157000448 | D21: =SUM(D5:D9)+SUM(D11:D20) -> 185125176.2 | E21: 215841687.7 | F21: 218885634.4 | G21: 230844095 | H21: 230844095 | I21: 230844095 | J21: 237092217 | K21: 244850588 | L21: 254864773 | M21: =SUM(M5:M20) -> 0 | N21: 0 | O21: 0 | P21: 0 | Q21: 0 | R21: 0 | S21: 0 | T21: 0 | U21: 0 | V21: 0 | W21: 0 | X21: 0
A23: Expenditure By Type
A24: Employee related costs | B24: 2 | C24: ='SA1'!C67 -> 83192512.11 | D24: ='SA1'!D67 -> 91112721.48 | E24: ='SA1'!E67 -> 101195222.8 | F24: ='SA1'!F67 -> 103201344 | G24: ='SA1'!G67 -> 112051236.4 | H24: ='SA1'!H67 -> 112051236.4 | I24: ='SA1'!I67 -> 112051236.4 | J24: ='SA1'!J67 -> 124756156 | K24: ='SA1'!K67 -> 128494722 | L24: ='SA1'!L67 -> 133618357 | Z24: =-SUMIF('TRIAL BALANCE'!$AA:$AA,'A4-FinPerf RE'!$A24,'TRIAL BALANCE'!AO:AO) -> -124756156 | AA24: =Z24+J24 -> 0
A25: Remuneration of councillors | C25: 5149566.34 | D25: =SUMIF('TRIAL BALANCE'!$AA:$AA,'A4-FinPerf RE'!$A25,'TRIAL BALANCE'!AK:AK) -> 6141571.45 | E25: =SUMIF('TRIAL BALANCE'!$AA:$AA,'A4-FinPerf RE'!$A25,'TRIAL BALANCE'!AL:AL) -> 6264038.02 | F25: 6606537.6 | G25: 6617599 | H25: =G25 -> 6617599 | I25: 6617599 | J25: =SUMIF('TRIAL BALANCE'!$AA:$AA,'A4-FinPerf RE'!$A25,'TRIAL BALANCE'!AO:AO) -> 6341182 | K25: =SUMIF('TRIAL BALANCE'!$AA:$AA,'A4-FinPerf RE'!$A25,'TRIAL BALANCE'!AP:AP) -> 6594829 | L25: =SUMIF('TRIAL BALANCE'!$AA:$AA,'A4-FinPerf RE'!$A25,'TRIAL BALANCE'!AQ:AQ) -> 6858622 | Z25: =-SUMIF('TRIAL BALANCE'!$AA:$AA,'A4-FinPerf RE'!$A25,'TRIAL BALANCE'!AO:AO) -> -6341182 | AA25: =Z25+J25 -> 0
A26: Debt impairment | B26: 3 | C26: 109792.5 | D26: =SUMIF('TRIAL BALANCE'!$AA:$AA,'A4-FinPerf RE'!$A26,'TRIAL BALANCE'!AK:AK) -> 14719.75 | E26: =SUMIF('TRIAL BALANCE'!$AA:$AA,'A4-FinPerf RE'!$A26,'TRIAL BALANCE'!AL:AL) -> 61498.75 | F26: 0 | G26: 0 | H26: =G26 -> 0 | I26: 0 | J26: =SUMIF('TRIAL BALANCE'!$AA:$AA,'A4-FinPerf RE'!$A26,'TRIAL BALANCE'!AO:AO) -> 400000 | K26: =SUMIF('TRIAL BALANCE'!$AA:$AA,'A4-FinPerf RE'!$A26,'TRIAL BALANCE'!AP:AP) -> 416000 | L26: =SUMIF('TRIAL BALANCE'!$AA:$AA,'A4-FinPerf RE'!$A26,'TRIAL BALANCE'!AQ:AQ) -> 432640 | Z26: =-SUMIF('TRIAL BALANCE'!$AA:$AA,'A4-FinPerf RE'!$A26,'TRIAL BALANCE'!AO:AO) -> -400000 | AA26: 0
A27: Depreciation & asset impairment | B27: 2 | C27: ='SA1'!C83 -> 3254079.13 | D27: ='SA1'!D83 -> 4652603.312 | E27: ='SA1'!E83 -> 4068052.79 | F27: ='SA1'!F83 -> 3575545 | G27: ='SA1'!G83 -> 3575545 | H27: ='SA1'!H83 -> 3575545 | I27: ='SA1'!I83 -> 3575545 | J27: ='SA1'!J83 -> 3575545 | K27: ='SA1'!K83 -> 3718568 | L27: ='SA1'!L83 -> 3867309 | Z27: =-SUMIF('TRIAL BALANCE'!$AA:$AA,'A4-FinPerf RE'!$A27,'TRIAL BALANCE'!AO:AO) -> -3575545 | AA27: 0
A28: Finance charges | C28: 7778036.08 | D28: =SUMIF('TRIAL BALANCE'!$AA:$AA,'A4-FinPerf RE'!$A28,'TRIAL BALANCE'!AK:AK) -> 7999174.61 | E28: =SUMIF('TRIAL BALANCE'!$AA:$AA,'A4-FinPerf RE'!$A28,'TRIAL BALANCE'!AL:AL) -> 9081291.78 | F28: 9164827.259 | G28: 11016067 | H28: =G28 -> 11016067 | I28: =H28 -> 11016067 | J28: =SUMIF('TRIAL BALANCE'!$AA:$AA,'A4-FinPerf RE'!$A28,'TRIAL BALANCE'!AO:AO) -> 11037881 | K28: =SUMIF('TRIAL BALANCE'!$AA:$AA,'A4-FinPerf RE'!$A28,'TRIAL BALANCE'!AP:AP) -> 11479397 | L28: =SUMIF('TRIAL BALANCE'!$AA:$AA,'A4-FinPerf RE'!$A28,'TRIAL BALANCE'!AQ:AQ) -> 11938573 | Z28: =-SUMIF('TRIAL BALANCE'!$AA:$AA,'A4-FinPerf RE'!$A28,'TRIAL BALANCE'!AO:AO) -> -11037881 | AA28: 0
A29: Bulk purchases | B29: 2 | C29: ='SA1'!C88 -> 0 | D29: ='SA1'!D88 -> 0 | E29: ='SA1'!E88 -> 0 | F29: ='SA1'!F88 -> 0 | G29: ='SA1'!G88 -> 0 | H29: ='SA1'!H88 -> 0 | I29: ='SA1'!I88 -> 0 | J29: ='SA1'!J88 -> 0 | K29: ='SA1'!K88 -> 0 | L29: ='SA1'!L88 -> 0 | Z29: =-SUMIF('TRIAL BALANCE'!$AA:$AA,'A4-FinPerf RE'!$A29,'TRIAL BALANCE'!AO:AO) -> 0 | AA29: 0
A30: Other materials | B30: 8 | C30: 32868138.9 | D30: =SUMIF('TRIAL BALANCE'!$AA:$AA,'A4-FinPerf RE'!$A30,'TRIAL BALANCE'!AK:AK) -> 43285841.59 | E30: =SUMIF('TRIAL BALANCE'!$AA:$AA,'A4-FinPerf RE'!$A30,'TRIAL BALANCE'!AL:AL) -> 48584914.39 | F30: 52930532 | G30: 49052827.7 | H30: =G30 -> 49052827.7 | I30: =H30 -> 49052827.7 | J30: =SUMIF('TRIAL BALANCE'!$AA:$AA,'A4-FinPerf RE'!$A30,'TRIAL BALANCE'!AO:AO) -> 42932147 | K30: =SUMIF('TRIAL BALANCE'!$AA:$AA,'A4-FinPerf RE'!$A30,'TRIAL BALANCE'!AP:AP) -> 44647113 | L30: =SUMIF('TRIAL BALANCE'!$AA:$AA,'A4-FinPerf RE'!$A30,'TRIAL BALANCE'!AQ:AQ) -> 46430677 | Z30: =-SUMIF('TRIAL BALANCE'!$AA:$AA,'A4-FinPerf RE'!$A30,'TRIAL BALANCE'!AO:AO) -> -42932147 | AA30: 0
A31: Contracted services | C31: ='SA1'!C127 -> 12793051 | D31: ='SA1'!D127 -> 14516619.07 | E31: ='SA1'!E127 -> 15512286.24 | F31: ='SA1'!F127 -> 20993589.59 | G31: ='SA1'!G127 -> 22930565.24 | H31: ='SA1'!H127 -> 22930565.24 | I31: ='SA1'!I127 -> 22930565.24 | J31: ='SA1'!J127 -> 19478830 | K31: ='SA1'!K127 -> 19821841 | L31: ='SA1'!L127 -> 20646934 | Z31: =-SUMIF('TRIAL BALANCE'!$AA:$AA,'A4-FinPerf RE'!$A31,'TRIAL BALANCE'!AO:AO) -> -19478830 | AA31: 0
A32: Transfers and subsidies | C32: ='SA1'!C93 -> 120000 | D32: ='SA1'!D93 -> 120000 | E32: ='SA1'!E93 -> 360000 | F32: ='SA1'!F93 -> 380000 | G32: ='SA1'!G93 -> 484347.8261 | H32: ='SA1'!H93 -> 484347.8261 | I32: ='SA1'!I93 -> 484347.8261 | J32: ='SA1'!J93 -> 401000 | K32: ='SA1'!K93 -> 0 | L32: ='SA1'!L93 -> 0 | Z32: =-SUMIF('TRIAL BALANCE'!$AA:$AA,'A4-FinPerf RE'!$A32,'TRIAL BALANCE'!AO:AO) -> 0 | AA32: 401000
A33: Other expenditure | B33: 4, 5 | C33: ='SA1'!C157 -> 16546575.51 | D33: ='SA1'!D157 -> 20832798.98 | E33: ='SA1'!E157 -> 24768408.85 | F33: ='SA1'!F157 -> 25559833.73 | G33: ='SA1'!G157 -> 31505294.41 | H33: ='SA1'!H157 -> 31505294.41 | I33: ='SA1'!I157 -> 31505294.41 | J33: ='SA1'!J157 -> 30935491 | K33: ='SA1'!K157 -> 31855213 | L33: ='SA1'!L157 -> 33123726 | Z33: =-SUMIF('TRIAL BALANCE'!$AA:$AA,'A4-FinPerf RE'!$A33,'TRIAL BALANCE'!AO:AO) -> -30935491 | AA33: 0
A34: Losses | C34: 159722.41 | D34: =SUMIF('TRIAL BALANCE'!$AA:$AA,'A4-FinPerf RE'!$A34,'TRIAL BALANCE'!AK:AK) -> 17001.95322 | E34: =SUMIF('TRIAL BALANCE'!$AA:$AA,'A4-FinPerf RE'!$A34,'TRIAL BALANCE'!AL:AL) -> 2844253.76 | F34: 0 | G34: 0 | H34: =G34 -> 0 | I34: =H34 -> 0 | J34: =SUMIF('TRIAL BALANCE'!$AA:$AA,'A4-FinPerf RE'!$A34,'TRIAL BALANCE'!AO:AO) -> 0 | K34: =SUMIF('TRIAL BALANCE'!$AA:$AA,'A4-FinPerf RE'!$A34,'TRIAL BALANCE'!AP:AP) -> 0 | L34: =SUMIF('TRIAL BALANCE'!$AA:$AA,'A4-FinPerf RE'!$A34,'TRIAL BALANCE'!AQ:AQ) -> 0 | Z34: =-SUMIF('TRIAL BALANCE'!$AA:$AA,'A4-FinPerf RE'!$A34,'TRIAL BALANCE'!AO:AO) -> 0 | AA34: 0
A35: Total Expenditure | C35: =SUM(C24:C34) -> 161971474 | D35: =SUM(D24:D34) -> 188693052.2 | E35: 212739967.4 | F35: 222412209.2 | G35: 237233482.6 | H35: 237233482.6 | I35: 237233482.6 | J35: 239858232 | K35: 247027683 | L35: 256916838 | M35: =SUM(M24:M34) -> 0 | N35: 0 | O35: 0 | P35: 0 | Q35: 0 | R35: 0 | S35: 0 | T35: 0 | U35: 0 | V35: 0 | W35: 0 | X35: 0
A37: Surplus/(Deficit) | C37: =C21-C35 -> -4971025.96 | D37: -3567875.973 | E37: 3101720.29 | F37: -3526574.784 | G37: -6389387.565 | H37: -6389387.565 | I37: -6389387.565 | J37: -2766014.999 | K37: -2177095 | L37: -2052065 | M37: =M21+M35 -> 0 | N37: 0 | O37: 0 | P37: 0 | Q37: 0 | R37: 0 | S37: 0 | T37: 0 | U37: 0 | V37: 0 | W37: 0 | X37: 0
A38: Transfers and subsidies - capital (monetary allocations) (National / Provincial and District) | C38: 2303072.63 | D38: =-SUMIF('TRIAL BALANCE'!$AA:$AA,"Government Grants and Subsidies - Capital",'TRIAL BALANCE'!AK:AK) -> 890000 | E38: =-SUMIF('TRIAL BALANCE'!$AA:$AA,"Government Grants and Subsidies - Capital",'TRIAL BALANCE'!AL:AL) -> 1483000 | F38: 1100000 | G38: 2650000 | H38: =G38 -> 2650000 | I38: 2650000 | J38: =-SUMIF('TRIAL BALANCE'!$AA:$AA,"Government Grants and Subsidies - Capital",'TRIAL BALANCE'!AO:AO) -> 2100000 | K38: =-SUMIF('TRIAL BALANCE'!$AA:$AA,"Government Grants and Subsidies - Capital",'TRIAL BALANCE'!AP:AP) -> 2323000 | L38: =-SUMIF('TRIAL BALANCE'!$AA:$AA,"Government Grants and Subsidies - Capital",'TRIAL BALANCE'!AQ:AQ) -> 2435000
A39: Transfers and subsidies - capital (monetary allocations) (National / Provincial Departmental Agencies, Households, Non-profit Institutions, Private Enterprises, Public Corporatons, Higher Educational Institutions) | B39: 6 | C39: ='SA1'!C76 -> 0 | F39: 0 | G39: 0 | H39: =G39 -> 0 | I39: 0 | J39: 0 | K39: 0 | L39: 0
A40: Transfers and subsidies - capital (in-kind - all) | C40: 110752.37 | F40: 0 | G40: 0 | H40: 0 | I40: 0 | J40: 0 | K40: 0 | L40: 0
A41: Surplus/(Deficit) after capital transfers & contributions | C41: =SUM(C37:C40) -> -2557200.96 | D41: -2677875.973 | E41: 4584720.29 | F41: -2426574.784 | G41: -3739387.565 | H41: -3739387.565 | I41: -3739387.565 | J41: -666014.9989 | K41: 145905 | L41: 382935
A42: Taxation | F42: 0 | G42: 0 | H42: =G42 -> 0 | I42: =H42 -> 0
A43: Surplus/(Deficit) after taxation | C43: =C41-C42 -> -2557200.96 | D43: -2677875.973 | E43: 4584720.29 | F43: -2426574.784 | G43: -3739387.565 | H43: -3739387.565 | I43: -3739387.565 | J43: -666014.9989 | K43: 145905 | L43: 382935
A44: Attributable to minorities | F44: 0 | G44: 0 | H44: =G44 -> 0 | I44: =H44 -> 0
A45: Surplus/(Deficit) attributable to municipality | C45: =SUM(C43:C44) -> -2557200.96 | D45: -2677875.973 | E45: 4584720.29 | F45: -2426574.784 | G45: -3739387.565 | H45: -3739387.565 | I45: -3739387.565 | J45: -666014.9989 | K45: 145905 | L45: 382935
A46: Share of surplus/ (deficit) of associate | B46: 7 | F46: 0 | G46: 0 | H46: =G46 -> 0 | I46: =H46 -> 0
A47: =result -> Surplus/(Deficit) for the year | C47: =SUM(C45:C46) -> -2557200.96 | D47: -2677875.973 | E47: 4584720.29 | F47: -2426574.784 | G47: -3739387.565 | H47: -3739387.565 | I47: -3739387.565 | J47: -666014.9989 | K47: 145905 | L47: 382935 | M47: =M25+M46 -> 0 | N47: 0 | O47: 0 | P47: 0 | Q47: 0 | R47: 0 | S47: 0 | T47: 0 | U47: 0 | V47: 0 | W47: 0 | X47: 0
A48: =head27a -> References
A49: 1. Classifications are revenue sources and expenditure type
A50: 2. Detail to be provided in Table SA1
A51: 3. Previously described as 'bad or doubtful debts' - amounts shown should reflect the change in the provision for debt impairment
A52: 4. Expenditure type components previously shown under repairs and maintenance should be allocated back to the originating expenditure group/item; e.g. employee costs
A53: 5. Repairs & maintenance detailed in Table A9 and Table SA34c
A54: 6. Contributions are funds provided by external organisations to assist with infrastructure development; e.g. developer contributions (detail to be provided in Table SA1)
A55: 7. Equity method ( Includes Joint Ventures)
A56: 8. All materials not part of 'bulk' e.g road making materials, pipe, cable etc.
A57: check balance | C57: =C45-'A3-FinPerf V'!C39 -> 5.960464478e-08 | D57: =D45-'A3-FinPerf V'!D39 -> 2.980232239e-08 | E57: =E45-'A3-FinPerf V'!E39 -> 0 | F57: =F45-'A3-FinPerf V'!F39 -> -2.980232239e-08 | G57: =G45-'A3-FinPerf V'!G39 -> 0 | H57: =H45-'A3-FinPerf V'!H39 -> 0 | J57: =J45-'A3-FinPerf V'!I39 -> 2.980232239e-08 | K57: =K45-'A3-FinPerf V'!J39 -> 0 | L57: =L45-'A3-FinPerf V'!K39 -> 0
A59: Total revenue | C59: =C21+SUM(C38:C40) -> 159414273 | D59: 186015176.2 | E59: 217324687.7 | F59: 219985634.4 | G59: 233494095 | H59: 233494095 | I59: 233494095 | J59: 239192217 | K59: 247173588 | L59: 257299773

Sheet A5-Capex
A2: =Vdesc -> Vote Description | B2: =head27 -> Ref | C2: =head1b -> 2016/17 | D2: =head1A -> 2017/18 | E2: =Head1 -> 2018/19 | F2: =Head2 -> Current Year 2019/20 | J2: =Head3 -> 2020/21 Medium Term Revenue & Expenditure Framework
A3: R thousand | B3: 1 | C3: =Head5 -> Audited Outcome | D3: =Head5 -> Audited Outcome | E3: =Head5 -> Audited Outcome | F3: =Head6 -> Original Budget | G3: =Head7 -> Adjusted Budget | H3: =Head8 -> Full Year Forecast | I3: =Head5b -> Pre-audit outcome | J3: =Head9 -> Budget Year 2020/21 | K3: =Head10 -> Budget Year +1 2021/22 | L3: =Head11 -> Budget Year +2 2022/23
A4: Capital expenditure - Vote
A5: Multi-year expenditure to be appropriated | B5: 2
A6: =A5A!A6 -> Vote 1 - Municipal Manager | C6: =A5A!C6 -> 0 | D6: =A5A!D6 -> 0 | E6: =A5A!E6 -> 0 | F6: =A5A!F6 -> 0 | G6: =A5A!G6 -> 0 | H6: =A5A!H6 -> 0 | I6: =A5A!I6 -> 0 | J6: =A5A!J6 -> 0 | K6: =A5A!K6 -> 0 | L6: =A5A!L6 -> 0
A7: =A5A!A17 -> Vote 2 - Management Services | C7: =A5A!C17 -> 0 | D7: =A5A!D17 -> 0 | E7: =A5A!E17 -> 0 | F7: =A5A!F17 -> 0 | G7: =A5A!G17 -> 0 | H7: =A5A!H17 -> 0 | I7: =A5A!I17 -> 0 | J7: =A5A!J17 -> 0 | K7: =A5A!K17 -> 0 | L7: =A5A!L17 -> 0
A8: =A5A!A28 -> Vote 3 - Corporate Services | C8: =A5A!C28 -> 0 | D8: =A5A!D28 -> 0 | E8: =A5A!E28 -> 0 | F8: =A5A!F28 -> 0 | G8: =A5A!G28 -> 0 | H8: =A5A!H28 -> 0 | I8: =A5A!I28 -> 0 | J8: =A5A!J28 -> 0 | K8: =A5A!K28 -> 0 | L8: =A5A!L28 -> 0
A9: =A5A!A39 -> Vote 4 - Finance | C9: =A5A!C39 -> 0 | D9: =A5A!D39 -> 0 | E9: =A5A!E39 -> 0 | F9: =A5A!F39 -> 0 | G9: =A5A!G39 -> 0 | H9: =A5A!H39 -> 0 | I9: =A5A!I39 -> 0 | J9: =A5A!J39 -> 0 | K9: =A5A!K39 -> 0 | L9: =A5A!L39 -> 0
A10: =A5A!A50 -> Vote 5 - Community Services | C10: =A5A!C50 -> 0 | D10: =A5A!D50 -> 1164403 | E10: =A5A!E50 -> 22316197.57 | F10: =A5A!F50 -> 6128111 | G10: =A5A!G50 -> 0 | H10: =A5A!H50 -> 0 | I10: =A5A!I50 -> 0 | J10: =A5A!J50 -> 4900000 | K10: =A5A!K50 -> 0 | L10: =A5A!L50 -> 0
A11: =A5A!A61 -> Vote 6 - [NAME OF VOTE 6] | C11: =A5A!C61 -> 0 | D11: =A5A!D61 -> 0 | E11: =A5A!E61 -> 0 | F11: =A5A!F61 -> 0 | G11: =A5A!G61 -> 0 | H11: =A5A!H61 -> 0 | I11: =A5A!I61 -> 0 | J11: =A5A!J61 -> 0 | K11: =A5A!K61 -> 0 | L11: =A5A!L61 -> 0
A12: =A5A!A72 -> Vote 7 - [NAME OF VOTE 7] | C12: =A5A!C72 -> 0 | D12: =A5A!D72 -> 0 | E12: =A5A!E72 -> 0 | F12: =A5A!F72 -> 0 | G12: =A5A!G72 -> 0 | H12: =A5A!H72 -> 0 | I12: =A5A!I72 -> 0 | J12: =A5A!J72 -> 0 | K12: =A5A!K72 -> 0 | L12: =A5A!L72 -> 0
A13: =A5A!A83 -> Vote 8 - [NAME OF VOTE 8] | C13: =A5A!C83 -> 0 | D13: =A5A!D83 -> 0 | E13: =A5A!E83 -> 0 | F13: =A5A!F83 -> 0 | G13: =A5A!G83 -> 0 | H13: =A5A!H83 -> 0 | I13: =A5A!I83 -> 0 | J13: =A5A!J83 -> 0 | K13: =A5A!K83 -> 0 | L13: =A5A!L83 -> 0
A14: =A5A!A94 -> Vote 9 - [NAME OF VOTE 9] | C14: =A5A!C94 -> 0 | D14: =A5A!D94 -> 0 | E14: =A5A!E94 -> 0 | F14: =A5A!F94 -> 0 | G14: =A5A!G94 -> 0 | H14: =A5A!H94 -> 0 | I14: =A5A!I94 -> 0 | J14: =A5A!J94 -> 0 | K14: =A5A!K94 -> 0 | L14: =A5A!L94 -> 0
A15: =A5A!A105 -> Vote 10 - [NAME OF VOTE 10] | C15: =A5A!C105 -> 0 | D15: =A5A!D105 -> 0 | E15: =A5A!E105 -> 0 | F15: =A5A!F105 -> 0 | G15: =A5A!G105 -> 0 | H15: =A5A!H105 -> 0 | I15: =A5A!I105 -> 0 | J15: =A5A!J105 -> 0 | K15: =A5A!K105 -> 0 | L15: =A5A!L105 -> 0
A16: =A5A!A116 -> Vote 11 - [NAME OF VOTE 11] | C16: =A5A!C116 -> 0 | D16: =A5A!D116 -> 0 | E16: =A5A!E116 -> 0 | F16: =A5A!F116 -> 0 | G16: =A5A!G116 -> 0 | H16: =A5A!H116 -> 0 | I16: =A5A!I116 -> 0 | J16: =A5A!J116 -> 0 | K16: =A5A!K116 -> 0 | L16: =A5A!L116 -> 0
A17: =A5A!A127 -> Vote 12 - [NAME OF VOTE 12] | C17: =A5A!C127 -> 0 | D17: =A5A!D127 -> 0 | E17: =A5A!E127 -> 0 | F17: =A5A!F127 -> 0 | G17: =A5A!G127 -> 0 | H17: =A5A!H127 -> 0 | I17: =A5A!I127 -> 0 | J17: =A5A!J127 -> 0 | K17: =A5A!K127 -> 0 | L17: =A5A!L127 -> 0
A18: =A5A!A138 -> Vote 13 - [NAME OF VOTE 13] | C18: =A5A!C138 -> 0 | D18: =A5A!D138 -> 0 | E18: =A5A!E138 -> 0 | F18: =A5A!F138 -> 0 | G18: =A5A!G138 -> 0 | H18: =A5A!H138 -> 0 | I18: =A5A!I138 -> 0 | J18: =A5A!J138 -> 0 | K18: =A5A!K138 -> 0 | L18: =A5A!L138 -> 0
A19: =A5A!A149 -> Vote 14 - [NAME OF VOTE 14] | C19: =A5A!C149 -> 0 | D19: =A5A!D149 -> 0 | E19: =A5A!E149 -> 0 | F19: =A5A!F149 -> 0 | G19: =A5A!G149 -> 0 | H19: =A5A!H149 -> 0 | I19: =A5A!I149 -> 0 | J19: =A5A!J149 -> 0 | K19: =A5A!K149 -> 0 | L19: =A5A!L149 -> 0
A20: =A5A!A160 -> Vote 15 - [NAME OF VOTE 15] | C20: =A5A!C160 -> 0 | D20: =A5A!D160 -> 0 | E20: =A5A!E160 -> 0 | F20: =A5A!F160 -> 0 | G20: =A5A!G160 -> 0 | H20: =A5A!H160 -> 0 | I20: =A5A!I160 -> 0 | J20: =A5A!J160 -> 0 | K20: =A5A!K160 -> 0 | L20: =A5A!L160 -> 0
A21: Capital multi-year expenditure sub-total | B21: 7 | C21: =SUM(C6:C20) -> 0 | D21: =SUM(D6:D20) -> 1164403 | E21: 22316197.57 | F21: 6128111 | G21: 0 | H21: =SUM(H6:H20) -> 0 | I21: 0 | J21: 4900000 | K21: 0 | L21: 0
A23: Single-year expenditure to be appropriated | B23: 2
A24: =A6 -> Vote 1 - Municipal Manager | C24: =A5A!C175 -> 2912.28 | D24: =A5A!D175 -> 36304.25 | E24: =A5A!E175 -> 11432.9 | F24: =A5A!F175 -> 0 | G24: =A5A!G175 -> 0 | H24: =A5A!H175 -> 0 | I24: =A5A!I175 -> 0 | J24: =A5A!J175 -> 40000 | K24: =A5A!K175 -> 500000 | L24: =A5A!L175 -> 0
A25: =A7 -> Vote 2 - Management Services | C25: =A5A!C186 -> 2722217.401 | D25: =A5A!D186 -> 0 | E25: =A5A!E186 -> 0 | F25: =A5A!F186 -> 0 | G25: =A5A!G186 -> 0 | H25: =A5A!H186 -> 0 | I25: =A5A!I186 -> 0 | J25: =A5A!J186 -> 0 | K25: =A5A!K186 -> 0 | L25: =A5A!L186 -> 0
A26: Vote 3 - Corporate Services | C26: =A5A!C197 -> 0 | D26: =A5A!D197 -> 95224.73 | E26: =A5A!E197 -> 302647.4 | F26: =A5A!F197 -> 300000 | G26: =A5A!G197 -> 450000 | H26: =A5A!H197 -> 450000 | I26: =A5A!I197 -> 450000 | J26: =A5A!J197 -> 225000 | K26: =A5A!K197 -> 3180000 | L26: =A5A!L197 -> 500000
A27: Vote 4 - Finance | C27: =A5A!C208 -> 0 | D27: =A5A!D208 -> 778896.55 | E27: =A5A!E208 -> 32077.72 | F27: =A5A!F208 -> 65000 | G27: =A5A!G208 -> 115000 | H27: =A5A!H208 -> 115000 | I27: =A5A!I208 -> 115000 | J27: =A5A!J208 -> 0 | K27: =A5A!K208 -> 0 | L27: =A5A!L208 -> 0
A28: Vote 5 - Community Services | C28: =A5A!C219 -> 4056381.17 | D28: =A5A!D219 -> 3257074.66 | E28: =A5A!E219 -> 14319500.53 | F28: =A5A!F219 -> 4860000 | G28: =A5A!G219 -> 5087000 | H28: =A5A!H219 -> 5087000 | I28: =A5A!I219 -> 5087000 | J28: =A5A!J219 -> 3300000 | K28: =A5A!K219 -> 4483000 | L28: =A5A!L219 -> 2590000
A29: Vote 6 - [NAME OF VOTE 6] | C29: =A5A!C230 -> 0 | D29: =A5A!D230 -> 0 | E29: =A5A!E230 -> 0 | F29: =A5A!F230 -> 0 | G29: =A5A!G230 -> 0 | H29: =A5A!H230 -> 0 | I29: =A5A!I230 -> 0 | J29: =A5A!J230 -> 0 | K29: =A5A!K230 -> 0 | L29: =A5A!L230 -> 0
A30: Vote 7 - [NAME OF VOTE 7] | C30: =A5A!C241 -> 0 | D30: =A5A!D241 -> 0 | E30: =A5A!E241 -> 0 | F30: =A5A!F241 -> 0 | G30: =A5A!G241 -> 0 | H30: =A5A!H241 -> 0 | I30: =A5A!I241 -> 0 | J30: =A5A!J241 -> 0 | K30: =A5A!K241 -> 0 | L30: =A5A!L241 -> 0
A31: Vote 8 - [NAME OF VOTE 8] | C31: =A5A!C252 -> 0 | D31: =A5A!D252 -> 0 | E31: =A5A!E252 -> 0 | F31: =A5A!F252 -> 0 | G31: =A5A!G252 -> 0 | H31: =A5A!H252 -> 0 | I31: =A5A!I252 -> 0 | J31: =A5A!J252 -> 0 | K31: =A5A!K252 -> 0 | L31: =A5A!L252 -> 0
A32: Vote 9 - [NAME OF VOTE 9] | C32: =A5A!C263 -> 0 | D32: =A5A!D263 -> 0 | E32: =A5A!E263 -> 0 | F32: =A5A!F263 -> 0 | G32: =A5A!G263 -> 0 | H32: =A5A!H263 -> 0 | I32: =A5A!I263 -> 0 | J32: =A5A!J263 -> 0 | K32: =A5A!K263 -> 0 | L32: =A5A!L263 -> 0
A33: Vote 10 - [NAME OF VOTE 10] | C33: =A5A!C274 -> 0 | D33: =A5A!D274 -> 0 | E33: =A5A!E274 -> 0 | F33: =A5A!F274 -> 0 | G33: =A5A!G274 -> 0 | H33: =A5A!H274 -> 0 | I33: =A5A!I274 -> 0 | J33: =A5A!J274 -> 0 | K33: =A5A!K274 -> 0 | L33: =A5A!L274 -> 0
A34: Vote 11 - [NAME OF VOTE 11] | C34: =A5A!C285 -> 0 | D34: =A5A!D285 -> 0 | E34: =A5A!E285 -> 0 | F34: =A5A!F285 -> 0 | G34: =A5A!G285 -> 0 | H34: =A5A!H285 -> 0 | I34: =A5A!I285 -> 0 | J34: =A5A!J285 -> 0 | K34: =A5A!K285 -> 0 | L34: =A5A!L285 -> 0
A35: Vote 12 - [NAME OF VOTE 12] | C35: =A5A!C296 -> 0 | D35: =A5A!D296 -> 0 | E35: =A5A!E296 -> 0 | F35: =A5A!F296 -> 0 | G35: =A5A!G296 -> 0 | H35: =A5A!H296 -> 0 | I35: =A5A!I296 -> 0 | J35: =A5A!J296 -> 0 | K35: =A5A!K296 -> 0 | L35: =A5A!L296 -> 0
A36: Vote 13 - [NAME OF VOTE 13] | C36: =A5A!C307 -> 0 | D36: =A5A!D307 -> 0 | E36: =A5A!E307 -> 0 | F36: =A5A!F307 -> 0 | G36: =A5A!G307 -> 0 | H36: =A5A!H307 -> 0 | I36: =A5A!I307 -> 0 | J36: =A5A!J307 -> 0 | K36: =A5A!K307 -> 0 | L36: =A5A!L307 -> 0
A37: Vote 14 - [NAME OF VOTE 14] | C37: =A5A!C318 -> 0 | D37: =A5A!D318 -> 0 | E37: =A5A!E318 -> 0 | F37: =A5A!F318 -> 0 | G37: =A5A!G318 -> 0 | H37: =A5A!H318 -> 0 | I37: =A5A!I318 -> 0 | J37: =A5A!J318 -> 0 | K37: =A5A!K318 -> 0 | L37: =A5A!L318 -> 0
A38: =A20 -> Vote 15 - [NAME OF VOTE 15] | C38: =A5A!C329 -> 0 | D38: =A5A!D329 -> 0 | E38: =A5A!E329 -> 0 | F38: =A5A!F329 -> 0 | G38: =A5A!G329 -> 0 | H38: =A5A!H329 -> 0 | I38: =A5A!I329 -> 0 | J38: =A5A!J329 -> 0 | K38: =A5A!K329 -> 0 | L38: =A5A!L329 -> 0
A39: Capital single-year expenditure sub-total | C39: =SUM(C24:C38) -> 6781510.851 | D39: =SUM(D24:D38) -> 4167500.19 | E39: 14665658.55 | F39: 5225000 | G39: 5652000 | H39: 5652000 | I39: 5652000 | J39: 3565000 | K39: 8163000 | L39: 3090000
A40: Total Capital Expenditure - Vote | C40: =C39+C21 -> 6781510.851 | D40: =D39+D21 -> 5331903.19 | E40: 36981856.12 | F40: 11353111 | G40: 5652000 | H40: 5652000 | I40: 5652000 | J40: 8465000 | K40: 8163000 | L40: 3090000
A42: Capital Expenditure - Functional
A43: Governance and administration | C43: =SUM(C44:C46) -> 2707819.681 | D43: =SUM(D44:D46) -> 897187.54 | E43: 344505.85 | F43: 365000 | G43: 565000 | H43: 565000 | I43: 565000 | J43: 265000 | K43: 3680000 | L43: 500000
A44: Executive and council | C44: 2912.28 | D44: 16213.13 | F44: =SUMIFS('TRIAL BALANCE'!AM:AM,'TRIAL BALANCE'!$Y:$Y,"Capital",'TRIAL BALANCE'!$K:$K,'A5-Capex'!$A44) -> 0 | G44: =SUMIFS('TRIAL BALANCE'!AN:AN,'TRIAL BALANCE'!$Y:$Y,"Capital",'TRIAL BALANCE'!$K:$K,'A5-Capex'!$A44) -> 0 | H44: =G44 -> 0 | I44: =H44 -> 0 | J44: =SUMIFS('TRIAL BALANCE'!AO:AO,'TRIAL BALANCE'!$Y:$Y,"Capital",'TRIAL BALANCE'!$K:$K,'A5-Capex'!$A44) -> 40000 | K44: =SUMIFS('TRIAL BALANCE'!AP:AP,'TRIAL BALANCE'!$Y:$Y,"Capital",'TRIAL BALANCE'!$K:$K,'A5-Capex'!$A44) -> 500000 | L44: =SUMIFS('TRIAL BALANCE'!AQ:AQ,'TRIAL BALANCE'!$Y:$Y,"Capital",'TRIAL BALANCE'!$K:$K,'A5-Capex'!$A44) -> 0
A45: Finance and administration | C45: 2704907.401 | D45: 880974.41 | E45: 342060.63 | F45: =SUMIFS('TRIAL BALANCE'!AM:AM,'TRIAL BALANCE'!$Y:$Y,"Capital",'TRIAL BALANCE'!$K:$K,'A5-Capex'!$A45) -> 365000 | G45: =SUMIFS('TRIAL BALANCE'!AN:AN,'TRIAL BALANCE'!$Y:$Y,"Capital",'TRIAL BALANCE'!$K:$K,'A5-Capex'!$A45) -> 565000 | H45: =G45 -> 565000 | I45: 565000 | J45: =SUMIFS('TRIAL BALANCE'!AO:AO,'TRIAL BALANCE'!$Y:$Y,"Capital",'TRIAL BALANCE'!$K:$K,'A5-Capex'!$A45) -> 225000 | K45: =SUMIFS('TRIAL BALANCE'!AP:AP,'TRIAL BALANCE'!$Y:$Y,"Capital",'TRIAL BALANCE'!$K:$K,'A5-Capex'!$A45) -> 3180000 | L45: =SUMIFS('TRIAL BALANCE'!AQ:AQ,'TRIAL BALANCE'!$Y:$Y,"Capital",'TRIAL BALANCE'!$K:$K,'A5-Capex'!$A45) -> 500000
A46: Internal audit | C46: 0 | D46: 0 | E46: 2445.22 | F46: =SUMIFS('TRIAL BALANCE'!AM:AM,'TRIAL BALANCE'!$Y:$Y,"Capital",'TRIAL BALANCE'!$K:$K,'A5-Capex'!$A46) -> 0 | G46: =SUMIFS('TRIAL BALANCE'!AN:AN,'TRIAL BALANCE'!$Y:$Y,"Capital",'TRIAL BALANCE'!$K:$K,'A5-Capex'!$A46) -> 0 | H46: =G46 -> 0 | I46: 0 | J46: =SUMIFS('TRIAL BALANCE'!AO:AO,'TRIAL BALANCE'!$Y:$Y,"Capital",'TRIAL BALANCE'!$K:$K,'A5-Capex'!$A46) -> 0 | K46: =SUMIFS('TRIAL BALANCE'!AP:AP,'TRIAL BALANCE'!$Y:$Y,"Capital",'TRIAL BALANCE'!$K:$K,'A5-Capex'!$A46) -> 0 | L46: =SUMIFS('TRIAL BALANCE'!AQ:AQ,'TRIAL BALANCE'!$Y:$Y,"Capital",'TRIAL BALANCE'!$K:$K,'A5-Capex'!$A46) -> 0
A47: Community and public safety | C47: =SUM(C48:C52) -> 3686880.95 | D47: =SUM(D48:D52) -> 3226941.15 | E47: 3066360.15 | F47: 4860000 | G47: 5087000 | H47: 5087000 | I47: 5087000 | J47: 3300000 | K47: 4483000 | L47: 2590000
A48: Community and social services | C48: 0 | D48: 0 | F48: =SUMIFS('TRIAL BALANCE'!AM:AM,'TRIAL BALANCE'!$Y:$Y,"Capital",'TRIAL BALANCE'!$K:$K,'A5-Capex'!$A48) -> 0 | G48: =SUMIFS('TRIAL BALANCE'!AN:AN,'TRIAL BALANCE'!$Y:$Y,"Capital",'TRIAL BALANCE'!$K:$K,'A5-Capex'!$A48) -> 0 | H48: =G48 -> 0 | I48: 0 | J48: =SUMIFS('TRIAL BALANCE'!AO:AO,'TRIAL BALANCE'!$Y:$Y,"Capital",'TRIAL BALANCE'!$K:$K,'A5-Capex'!$A48) -> 0 | K48: =SUMIFS('TRIAL BALANCE'!AP:AP,'TRIAL BALANCE'!$Y:$Y,"Capital",'TRIAL BALANCE'!$K:$K,'A5-Capex'!$A48) -> 0 | L48: =SUMIFS('TRIAL BALANCE'!AQ:AQ,'TRIAL BALANCE'!$Y:$Y,"Capital",'TRIAL BALANCE'!$K:$K,'A5-Capex'!$A48) -> 0
